Workbook

Sheet Existing
B1: New | F1: Units assumed to redevelop | J1: Net Growth | N1: Acres
A2: CodeNEXT2 | B2: Units | C2: Multifamily | D2: Townhome | E2: Single Family | F2: Units | G2: Multifamily | H2: Townhome | I2: Single Family | J2: Units | K2: Multifamily | L2: Townhome | M2: Single Family | N2: Vacant Developed | O2: Developed Redeveloped
A3: Central Business District | B3: =[3]SCENARIO1!BD6 -> 1321.481866 | C3: =[3]SCENARIO1!BE6 -> 1321.481866 | D3: =[3]SCENARIO1!BF6 -> 0 | E3: =[3]SCENARIO1!BG6 -> 0 | F3: =[3]SCENARIO1!AB6 -> 3 | G3: =[3]SCENARIO1!AC6 -> 0 | H3: =[3]SCENARIO1!AD6 -> 0 | I3: =[3]SCENARIO1!AE6 -> 3 | J3: =B3-F3 -> 1318.481866 | K3: 1321.481866 | L3: 0 | M3: -3 | N3: =[3]SCENARIO1!AW6 -> 2.892162 | O3: =[3]SCENARIO1!AY6 -> 6.909411
A4: Commercial Highway | B4: =[3]SCENARIO1!BD7 -> 0 | C4: =[3]SCENARIO1!BE7 -> 0 | D4: =[3]SCENARIO1!BF7 -> 0 | E4: =[3]SCENARIO1!BG7 -> 0 | F4: =[3]SCENARIO1!AB7 -> 0 | G4: =[3]SCENARIO1!AC7 -> 0 | H4: =[3]SCENARIO1!AD7 -> 0 | I4: =[3]SCENARIO1!AE7 -> 0 | J4: 0 | K4: 0 | L4: 0 | M4: 0 | N4: =[3]SCENARIO1!AW7 -> 138.535229 | O4: =[3]SCENARIO1!AY7 -> 1.276221
A5: Commercial Highway with VMU | B5: =[3]SCENARIO1!BD8 -> 0 | C5: =[3]SCENARIO1!BE8 -> 0 | D5: =[3]SCENARIO1!BF8 -> 0 | E5: =[3]SCENARIO1!BG8 -> 0 | F5: =[3]SCENARIO1!AB8 -> 0 | G5: =[3]SCENARIO1!AC8 -> 0 | H5: =[3]SCENARIO1!AD8 -> 0 | I5: =[3]SCENARIO1!AE8 -> 0 | J5: =B5-F5 -> 0 | K5: =C5-G5 -> 0 | L5: =D5-H5 -> 0 | M5: =E5-I5 -> 0 | N5: =[3]SCENARIO1!AW8 -> 0 | O5: =[3]SCENARIO1!AY8 -> 0
A6: Commercial Recreation | B6: =[3]SCENARIO1!BD9 -> 0 | C6: =[3]SCENARIO1!BE9 -> 0 | D6: =[3]SCENARIO1!BF9 -> 0 | E6: =[3]SCENARIO1!BG9 -> 0 | F6: =[3]SCENARIO1!AB9 -> 0 | G6: =[3]SCENARIO1!AC9 -> 0 | H6: =[3]SCENARIO1!AD9 -> 0 | I6: =[3]SCENARIO1!AE9 -> 0 | J6: 0 | K6: 0 | L6: 0 | M6: 0 | N6: =[3]SCENARIO1!AW9 -> 1.330308 | O6: =[3]SCENARIO1!AY9 -> 0
A7: Commercial Services | B7: =[3]SCENARIO1!BD10 -> 0 | C7: =[3]SCENARIO1!BE10 -> 0 | D7: =[3]SCENARIO1!BF10 -> 0 | E7: =[3]SCENARIO1!BG10 -> 0 | F7: =[3]SCENARIO1!AB10 -> 43 | G7: =[3]SCENARIO1!AC10 -> 28 | H7: =[3]SCENARIO1!AD10 -> 2 | I7: =[3]SCENARIO1!AE10 -> 8 | J7: -43 | K7: -28 | L7: -2 | M7: -8 | N7: =[3]SCENARIO1!AW10 -> 540.170968 | O7: =[3]SCENARIO1!AY10 -> 41.490493
A8: Commercial, Office Vertical Mixed Use | B8: =[3]SCENARIO1!BD11 -> 9224.150213 | C8: =[3]SCENARIO1!BE11 -> 9224.150213 | D8: =[3]SCENARIO1!BF11 -> 0 | E8: =[3]SCENARIO1!BG11 -> 0 | F8: =[3]SCENARIO1!AB11 -> 453 | G8: =[3]SCENARIO1!AC11 -> 427 | H8: =[3]SCENARIO1!AD11 -> 12 | I8: =[3]SCENARIO1!AE11 -> 14 | J8: 8771.150213 | K8: 8797.150213 | L8: -12 | M8: -14 | N8: =[3]SCENARIO1!AW11 -> 165.424502 | O8: =[3]SCENARIO1!AY11 -> 216.011251
A9: Commercial, Office with Mixed Use | B9: =[3]SCENARIO1!BD12 -> 19023.24386 | C9: =[3]SCENARIO1!BE12 -> 19023.24386 | D9: =[3]SCENARIO1!BF12 -> 0 | E9: =[3]SCENARIO1!BG12 -> 0 | F9: =[3]SCENARIO1!AB12 -> 448 | G9: =[3]SCENARIO1!AC12 -> 422 | H9: =[3]SCENARIO1!AD12 -> 12 | I9: =[3]SCENARIO1!AE12 -> 14 | J9: 18575.24386 | K9: 18601.24386 | L9: -12 | M9: -14 | N9: =[3]SCENARIO1!AW12 -> 887.892207 | O9: =[3]SCENARIO1!AY12 -> 127.626417
A10: Development Reserve | B10: =[3]SCENARIO1!BD13 -> 64.54455941 | C10: =[3]SCENARIO1!BE13 -> 0 | D10: =[3]SCENARIO1!BF13 -> 0 | E10: =[3]SCENARIO1!BG13 -> 64.54455941 | F10: =[3]SCENARIO1!AB13 -> 4 | G10: =[3]SCENARIO1!AC13 -> 0 | H10: =[3]SCENARIO1!AD13 -> 0 | I10: =[3]SCENARIO1!AE13 -> 4 | J10: 60.54455941 | K10: 0 | L10: 0 | M10: 60.54455941 | N10: =[3]SCENARIO1!AW13 -> 992.130034 | O10: =[3]SCENARIO1!AY13 -> 17.806876
A11: Downtown Mixed Use | B11: =[3]SCENARIO1!BD14 -> 783.1634839 | C11: =[3]SCENARIO1!BE14 -> 783.1634839 | D11: =[3]SCENARIO1!BF14 -> 0 | E11: =[3]SCENARIO1!BG14 -> 0 | F11: =[3]SCENARIO1!AB14 -> 43 | G11: =[3]SCENARIO1!AC14 -> 40 | H11: =[3]SCENARIO1!AD14 -> 0 | I11: =[3]SCENARIO1!AE14 -> 3 | J11: 740.1634839 | K11: 743.1634839 | L11: 0 | M11: -3 | N11: =[3]SCENARIO1!AW14 -> 0.587497 | O11: =[3]SCENARIO1!AY14 -> 4.611492
A12: Family Residence | B12: =[3]SCENARIO1!BD15 -> 5303.353747 | C12: =[3]SCENARIO1!BE15 -> 0 | D12: =[3]SCENARIO1!BF15 -> 42.16773814 | E12: =[3]SCENARIO1!BG15 -> 5261.186009 | F12: =[3]SCENARIO1!AB15 -> 1426 | G12: =[3]SCENARIO1!AC15 -> 1100 | H12: =[3]SCENARIO1!AD15 -> 116 | I12: =[3]SCENARIO1!AE15 -> 209 | J12: 3877.353747 | K12: -1100 | L12: -73.83226186 | M12: 5052.186009 | N12: =[3]SCENARIO1!AW15 -> 835.222676 | O12: =[3]SCENARIO1!AY15 -> 245.545873
A13: General Office | B13: =[3]SCENARIO1!BD16 -> 0 | C13: =[3]SCENARIO1!BE16 -> 0 | D13: =[3]SCENARIO1!BF16 -> 0 | E13: =[3]SCENARIO1!BG16 -> 0 | F13: =[3]SCENARIO1!AB16 -> 70 | G13: =[3]SCENARIO1!AC16 -> 65 | H13: =[3]SCENARIO1!AD16 -> 2 | I13: =[3]SCENARIO1!AE16 -> 3 | J13: -70 | K13: -65 | L13: -2 | M13: -3 | N13: =[3]SCENARIO1!AW16 -> 229.211477 | O13: =[3]SCENARIO1!AY16 -> 14.614073
A14: Industrial Park, Research and Development | B14: =[3]SCENARIO1!BD17 -> 0 | C14: =[3]SCENARIO1!BE17 -> 0 | D14: =[3]SCENARIO1!BF17 -> 0 | E14: =[3]SCENARIO1!BG17 -> 0 | F14: =[3]SCENARIO1!AB17 -> 0 | G14: =[3]SCENARIO1!AC17 -> 0 | H14: =[3]SCENARIO1!AD17 -> 0 | I14: =[3]SCENARIO1!AE17 -> 0 | J14: 0 | K14: 0 | L14: 0 | M14: 0 | N14: =[3]SCENARIO1!AW17 -> 290.547924 | O14: =[3]SCENARIO1!AY17 -> 0
A15: Lake Austin Residence District | B15: =[3]SCENARIO1!BD18 -> 357.558286 | C15: =[3]SCENARIO1!BE18 -> 0 | D15: =[3]SCENARIO1!BF18 -> 43.81240778 | E15: =[3]SCENARIO1!BG18 -> 313.7458782 | F15: =[3]SCENARIO1!AB18 -> 0 | G15: =[3]SCENARIO1!AC18 -> 0 | H15: =[3]SCENARIO1!AD18 -> 0 | I15: =[3]SCENARIO1!AE18 -> 0 | J15: 357.558286 | K15: 0 | L15: 43.81240778 | M15: 313.7458782 | N15: =[3]SCENARIO1!AW18 -> 306.810748 | O15: =[3]SCENARIO1!AY18 -> 0
A16: Lake Commercial | B16: =[3]SCENARIO1!BD19 -> 0 | C16: =[3]SCENARIO1!BE19 -> 0 | D16: =[3]SCENARIO1!BF19 -> 0 | E16: =[3]SCENARIO1!BG19 -> 0 | F16: =[3]SCENARIO1!AB19 -> 0 | G16: =[3]SCENARIO1!AC19 -> 0 | H16: =[3]SCENARIO1!AD19 -> 0 | I16: =[3]SCENARIO1!AE19 -> 0 | J16: 0 | K16: 0 | L16: 0 | M16: 0 | N16: =[3]SCENARIO1!AW19 -> 0 | O16: =[3]SCENARIO1!AY19 -> 1.859446
A17: Lake Commercial with VMU | B17: =[3]SCENARIO1!BD20 -> 0 | C17: =[3]SCENARIO1!BE20 -> 0 | D17: =[3]SCENARIO1!BF20 -> 0 | E17: =[3]SCENARIO1!BG20 -> 0 | F17: =[3]SCENARIO1!AB20 -> 0 | G17: =[3]SCENARIO1!AC20 -> 0 | H17: =[3]SCENARIO1!AD20 -> 0 | I17: =[3]SCENARIO1!AE20 -> 0 | J17: 0 | K17: 0 | L17: 0 | M17: 0 | N17: =[3]SCENARIO1!AW20 -> 0 | O17: =[3]SCENARIO1!AY20 -> 0
A18: Limited Industrial Services | B18: =[3]SCENARIO1!BD21 -> 0 | C18: =[3]SCENARIO1!BE21 -> 0 | D18: =[3]SCENARIO1!BF21 -> 0 | E18: =[3]SCENARIO1!BG21 -> 0 | F18: =[3]SCENARIO1!AB21 -> 0 | G18: =[3]SCENARIO1!AC21 -> 0 | H18: =[3]SCENARIO1!AD21 -> 0 | I18: =[3]SCENARIO1!AE21 -> 0 | J18: 0 | K18: 0 | L18: 0 | M18: 0 | N18: =[3]SCENARIO1!AW21 -> 796.845349 | O18: =[3]SCENARIO1!AY21 -> 20.415232
A19: Limited Office | B19: =[3]SCENARIO1!BD22 -> 0 | C19: =[3]SCENARIO1!BE22 -> 0 | D19: =[3]SCENARIO1!BF22 -> 0 | E19: =[3]SCENARIO1!BG22 -> 0 | F19: =[3]SCENARIO1!AB22 -> 392 | G19: =[3]SCENARIO1!AC22 -> 378 | H19: =[3]SCENARIO1!AD22 -> 7 | I19: =[3]SCENARIO1!AE22 -> 7 | J19: -392 | K19: -378 | L19: -7 | M19: -7 | N19: =[3]SCENARIO1!AW22 -> 529.987214 | O19: =[3]SCENARIO1!AY22 -> 39.04114
A20: Limited Office, Commercial with MU | B20: =[3]SCENARIO1!BD23 -> 693.6229318 | C20: =[3]SCENARIO1!BE23 -> 693.6229318 | D20: =[3]SCENARIO1!BF23 -> 0 | E20: =[3]SCENARIO1!BG23 -> 0 | F20: =[3]SCENARIO1!AB23 -> 11 | G20: =[3]SCENARIO1!AC23 -> 0 | H20: =[3]SCENARIO1!AD23 -> 2 | I20: =[3]SCENARIO1!AE23 -> 9 | J20: 682.6229318 | K20: 693.6229318 | L20: -2 | M20: -9 | N20: =[3]SCENARIO1!AW23 -> 80.796535 | O20: =[3]SCENARIO1!AY23 -> 22.194207
A21: Limited Office, Commercial with VMU | B21: =[3]SCENARIO1!BD24 -> 469.8764665 | C21: =[3]SCENARIO1!BE24 -> 469.8764665 | D21: =[3]SCENARIO1!BF24 -> 0 | E21: =[3]SCENARIO1!BG24 -> 0 | F21: =[3]SCENARIO1!AB24 -> 14 | G21: =[3]SCENARIO1!AC24 -> 0 | H21: =[3]SCENARIO1!AD24 -> 13 | I21: =[3]SCENARIO1!AE24 -> 1 | J21: 455.8764665 | K21: 469.8764665 | L21: -13 | M21: -1 | N21: =[3]SCENARIO1!AW24 -> 34.116655 | O21: =[3]SCENARIO1!AY24 -> 2.099946
A22: Mobile Home Residence | B22: =[3]SCENARIO1!BD25 -> 0 | C22: =[3]SCENARIO1!BE25 -> 0 | D22: =[3]SCENARIO1!BF25 -> 0 | E22: =[3]SCENARIO1!BG25 -> 0 | F22: =[3]SCENARIO1!AB25 -> 0 | G22: =[3]SCENARIO1!AC25 -> 0 | H22: =[3]SCENARIO1!AD25 -> 0 | I22: =[3]SCENARIO1!AE25 -> 0 | J22: 0 | K22: 0 | L22: 0 | M22: 0 | N22: =[3]SCENARIO1!AW25 -> 123.021244 | O22: =[3]SCENARIO1!AY25 -> 0
A23: Multi-Family - Highest Density | B23: =[3]SCENARIO1!BD26 -> 0 | C23: =[3]SCENARIO1!BE26 -> 0 | D23: =[3]SCENARIO1!BF26 -> 0 | E23: =[3]SCENARIO1!BG26 -> 0 | F23: =[3]SCENARIO1!AB26 -> 0 | G23: =[3]SCENARIO1!AC26 -> 0 | H23: =[3]SCENARIO1!AD26 -> 0 | I23: =[3]SCENARIO1!AE26 -> 0 | J23: 0 | K23: 0 | L23: 0 | M23: 0 | N23: =[3]SCENARIO1!AW26 -> 0 | O23: =[3]SCENARIO1!AY26 -> 0
A24: Multi-Family - Low Density | B24: =[3]SCENARIO1!BD27 -> 4258.505448 | C24: =[3]SCENARIO1!BE27 -> 2265.803039 | D24: =[3]SCENARIO1!BF27 -> 1912.755836 | E24: =[3]SCENARIO1!BG27 -> 79.94657265 | F24: =[3]SCENARIO1!AB27 -> 804 | G24: =[3]SCENARIO1!AC27 -> 769 | H24: =[3]SCENARIO1!AD27 -> 16 | I24: =[3]SCENARIO1!AE27 -> 19 | J24: 3454.505448 | K24: 1496.803039 | L24: 1896.755836 | M24: 60.94657265 | N24: =[3]SCENARIO1!AW27 -> 272.910755 | O24: =[3]SCENARIO1!AY27 -> 66.936684
A25: Multi-Family - Medium Density | B25: =[3]SCENARIO1!BD28 -> 8393.713949 | C25: =[3]SCENARIO1!BE28 -> 6688.701125 | D25: =[3]SCENARIO1!BF28 -> 1579.263798 | E25: =[3]SCENARIO1!BG28 -> 125.7490258 | F25: =[3]SCENARIO1!AB28 -> 1325 | G25: =[3]SCENARIO1!AC28 -> 1159 | H25: =[3]SCENARIO1!AD28 -> 134 | I25: =[3]SCENARIO1!AE28 -> 32 | J25: 7068.713949 | K25: 5529.701125 | L25: 1445.263798 | M25: 93.74902585 | N25: =[3]SCENARIO1!AW28 -> 251.376061 | O25: =[3]SCENARIO1!AY28 -> 148.02933
A26: Multi-Family - Moderate Density | B26: =[3]SCENARIO1!BD29 -> 4079.00686 | C26: =[3]SCENARIO1!BE29 -> 3804.968487 | D26: =[3]SCENARIO1!BF29 -> 190.0189225 | E26: =[3]SCENARIO1!BG29 -> 84.01944991 | F26: =[3]SCENARIO1!AB29 -> 886 | G26: =[3]SCENARIO1!AC29 -> 847 | H26: =[3]SCENARIO1!AD29 -> 24 | I26: =[3]SCENARIO1!AE29 -> 15 | J26: 3193.00686 | K26: 2957.968487 | L26: 166.0189225 | M26: 69.01944991 | N26: =[3]SCENARIO1!AW29 -> 47.058196 | O26: =[3]SCENARIO1!AY29 -> 74.150342
A27: Neighborhood and Community Commercial | B27: =[3]SCENARIO1!BD30 -> 0 | C27: =[3]SCENARIO1!BE30 -> 0 | D27: =[3]SCENARIO1!BF30 -> 0 | E27: =[3]SCENARIO1!BG30 -> 0 | F27: =[3]SCENARIO1!AB30 -> 4 | G27: =[3]SCENARIO1!AC30 -> 0 | H27: =[3]SCENARIO1!AD30 -> 2 | I27: =[3]SCENARIO1!AE30 -> 2 | J27: -4 | K27: 0 | L27: -2 | M27: -2 | N27: =[3]SCENARIO1!AW30 -> 513.685506 | O27: =[3]SCENARIO1!AY30 -> 27.107722
A28: Neighborhood Office | B28: =[3]SCENARIO1!BD31 -> 0 | C28: =[3]SCENARIO1!BE31 -> 0 | D28: =[3]SCENARIO1!BF31 -> 0 | E28: =[3]SCENARIO1!BG31 -> 0 | F28: =[3]SCENARIO1!AB31 -> 1 | G28: =[3]SCENARIO1!AC31 -> 0 | H28: =[3]SCENARIO1!AD31 -> 0 | I28: =[3]SCENARIO1!AE31 -> 1 | J28: -1 | K28: 0 | L28: 0 | M28: -1 | N28: =[3]SCENARIO1!AW31 -> 0.925103 | O28: =[3]SCENARIO1!AY31 -> 0.273685
A29: Neighborhood Office with MU | B29: =[3]SCENARIO1!BD32 -> 28.23912144 | C29: =[3]SCENARIO1!BE32 -> 8.030385718 | D29: =[3]SCENARIO1!BF32 -> 16.03170343 | E29: =[3]SCENARIO1!BG32 -> 4.177032296 | F29: =[3]SCENARIO1!AB32 -> 0 | G29: =[3]SCENARIO1!AC32 -> 0 | H29: =[3]SCENARIO1!AD32 -> 0 | I29: =[3]SCENARIO1!AE32 -> 0 | J29: 28.23912144 | K29: 8.030385718 | L29: 16.03170343 | M29: 4.177032296 | N29: =[3]SCENARIO1!AW32 -> 2.25848 | O29: =[3]SCENARIO1!AY32 -> 0.265071
A30: Neighborhood Office with VMU | B30: =[3]SCENARIO1!BD33 -> 13.31542233 | C30: =[3]SCENARIO1!BE33 -> 1.046697798 | D30: =[3]SCENARIO1!BF33 -> 12.26872453 | E30: =[3]SCENARIO1!BG33 -> 0 | F30: =[3]SCENARIO1!AB33 -> 0 | G30: =[3]SCENARIO1!AC33 -> 0 | H30: =[3]SCENARIO1!AD33 -> 0 | I30: =[3]SCENARIO1!AE33 -> 0 | J30: 13.31542233 | K30: 1.046697798 | L30: 12.26872453 | M30: 0 | N30: =[3]SCENARIO1!AW33 -> 0.963459 | O30: =[3]SCENARIO1!AY33 -> 0
A31: North Burnet/Gateway District | B31: =[3]SCENARIO1!BD34 -> 0 | C31: =[3]SCENARIO1!BE34 -> 0 | D31: =[3]SCENARIO1!BF34 -> 0 | E31: =[3]SCENARIO1!BG34 -> 0 | F31: =[3]SCENARIO1!AB34 -> 0 | G31: =[3]SCENARIO1!AC34 -> 0 | H31: =[3]SCENARIO1!AD34 -> 0 | I31: =[3]SCENARIO1!AE34 -> 0 | J31: 0 | K31: 0 | L31: 0 | M31: 0 | N31: =[3]SCENARIO1!AW34 -> 0 | O31: =[3]SCENARIO1!AY34 -> 0
A32: Rural Residence District | B32: =[3]SCENARIO1!BD35 -> 2489.580826 | C32: =[3]SCENARIO1!BE35 -> 0 | D32: =[3]SCENARIO1!BF35 -> 0 | E32: =[3]SCENARIO1!BG35 -> 2489.580826 | F32: =[3]SCENARIO1!AB35 -> 0 | G32: =[3]SCENARIO1!AC35 -> 0 | H32: =[3]SCENARIO1!AD35 -> 0 | I32: =[3]SCENARIO1!AE35 -> 0 | J32: 2489.580826 | K32: 0 | L32: 0 | M32: 2489.580826 | N32: =[3]SCENARIO1!AW35 -> 3114.422916 | O32: =[3]SCENARIO1!AY35 -> 0
A33: Single Family - Large Lot | B33: =[3]SCENARIO1!BD36 -> 567.6207929 | C33: =[3]SCENARIO1!BE36 -> 0 | D33: =[3]SCENARIO1!BF36 -> 0 | E33: =[3]SCENARIO1!BG36 -> 567.6207929 | F33: =[3]SCENARIO1!AB36 -> 0 | G33: =[3]SCENARIO1!AC36 -> 0 | H33: =[3]SCENARIO1!AD36 -> 0 | I33: =[3]SCENARIO1!AE36 -> 0 | J33: 567.6207929 | K33: 0 | L33: 0 | M33: 567.6207929 | N33: =[3]SCENARIO1!AW36 -> 287.849574 | O33: =[3]SCENARIO1!AY36 -> 0
A34: Single Family - Small Lot | B34: =[3]SCENARIO1!BD37 -> 2517.132976 | C34: =[3]SCENARIO1!BE37 -> 0 | D34: =[3]SCENARIO1!BF37 -> 0 | E34: =[3]SCENARIO1!BG37 -> 2517.132976 | F34: =[3]SCENARIO1!AB37 -> 12 | G34: =[3]SCENARIO1!AC37 -> 12 | H34: =[3]SCENARIO1!AD37 -> 0 | I34: =[3]SCENARIO1!AE37 -> 0 | J34: 2505.132976 | K34: -12 | L34: 0 | M34: 2517.132976 | N34: =[3]SCENARIO1!AW37 -> 324.955517 | O34: =[3]SCENARIO1!AY37 -> 1.047638
A35: Single Family - Standard Lot | B35: =[3]SCENARIO1!BD38 -> 7141.500921 | C35: =[3]SCENARIO1!BE38 -> 0 | D35: =[3]SCENARIO1!BF38 -> 0 | E35: =[3]SCENARIO1!BG38 -> 7141.500921 | F35: =[3]SCENARIO1!AB38 -> 202 | G35: =[3]SCENARIO1!AC38 -> 200 | H35: =[3]SCENARIO1!AD38 -> 0 | I35: =[3]SCENARIO1!AE38 -> 2 | J35: 6939.500921 | K35: -200 | L35: 0 | M35: 7139.500921 | N35: =[3]SCENARIO1!AW38 -> 1720.900267 | O35: =[3]SCENARIO1!AY38 -> 34.199696
A36: Urban Family Residence | B36: =[3]SCENARIO1!BD39 -> 2108.16229 | C36: =[3]SCENARIO1!BE39 -> 0 | D36: =[3]SCENARIO1!BF39 -> 424.6746897 | E36: =[3]SCENARIO1!BG39 -> 1683.4876 | F36: =[3]SCENARIO1!AB39 -> 97 | G36: =[3]SCENARIO1!AC39 -> 83 | H36: =[3]SCENARIO1!AD39 -> 6 | I36: =[3]SCENARIO1!AE39 -> 8 | J36: 2011.16229 | K36: -83 | L36: 418.6746897 | M36: 1675.4876 | N36: =[3]SCENARIO1!AW39 -> 229.739154 | O36: =[3]SCENARIO1!AY39 -> 8.679714
A37: Warehouse Limited Office | B37: =[3]SCENARIO1!BD40 -> 0 | C37: =[3]SCENARIO1!BE40 -> 0 | D37: =[3]SCENARIO1!BF40 -> 0 | E37: =[3]SCENARIO1!BG40 -> 0 | F37: =[3]SCENARIO1!AB40 -> 1 | G37: =[3]SCENARIO1!AC40 -> 0 | H37: =[3]SCENARIO1!AD40 -> 0 | I37: =[3]SCENARIO1!AE40 -> 1 | J37: -1 | K37: 0 | L37: 0 | M37: -1 | N37: =[3]SCENARIO1!AW40 -> 10.094505 | O37: =[3]SCENARIO1!AY40 -> 0.835807
A38: TOD - Medium Density Residential (TODMDR) | B38: =[3]SCENARIO1!BD41 -> 1042.429269 | C38: =[3]SCENARIO1!BE41 -> 873.623833 | D38: =[3]SCENARIO1!BF41 -> 155.1379921 | E38: =[3]SCENARIO1!BG41 -> 13.66744356 | F38: =[3]SCENARIO1!AB41 -> 43 | G38: =[3]SCENARIO1!AC41 -> 35 | H38: =[3]SCENARIO1!AD41 -> 4 | I38: =[3]SCENARIO1!AE41 -> 4 | J38: 999.4292687 | K38: 838.623833 | L38: 151.1379921 | M38: 9.667443563 | N38: =[3]SCENARIO1!AW41 -> 21.036471 | O38: =[3]SCENARIO1!AY41 -> 11.052555
A39: TOD – Low Density Residential (TODLDR) | B39: =[3]SCENARIO1!BD42 -> 113.2345441 | C39: =[3]SCENARIO1!BE42 -> 56.43891325 | D39: =[3]SCENARIO1!BF42 -> 20.63770099 | E39: =[3]SCENARIO1!BG42 -> 36.1579299 | F39: =[3]SCENARIO1!AB42 -> 0 | G39: =[3]SCENARIO1!AC42 -> 0 | H39: =[3]SCENARIO1!AD42 -> 0 | I39: =[3]SCENARIO1!AE42 -> 0 | J39: 113.2345441 | K39: 56.43891325 | L39: 20.63770099 | M39: 36.1579299 | N39: =[3]SCENARIO1!AW42 -> 4.856195 | O39: =[3]SCENARIO1!AY42 -> 2.023368
A40: TOD – TOD Mixed Use | B40: =[3]SCENARIO1!BD43 -> 0 | C40: =[3]SCENARIO1!BE43 -> 0 | D40: =[3]SCENARIO1!BF43 -> 0 | E40: =[3]SCENARIO1!BG43 -> 0 | F40: =[3]SCENARIO1!AB43 -> 0 | G40: =[3]SCENARIO1!AC43 -> 0 | H40: =[3]SCENARIO1!AD43 -> 0 | I40: =[3]SCENARIO1!AE43 -> 0 | J40: 0 | K40: 0 | L40: 0 | M40: 0 | N40: =[3]SCENARIO1!AW43 -> 0 | O40: =[3]SCENARIO1!AY43 -> 0
A41: TOD – Corridor Mixed Use (TODCMU) | B41: =[3]SCENARIO1!BD44 -> 5052.975021 | C41: =[3]SCENARIO1!BE44 -> 5052.975021 | D41: =[3]SCENARIO1!BF44 -> 0 | E41: =[3]SCENARIO1!BG44 -> 0 | F41: =[3]SCENARIO1!AB44 -> 518 | G41: =[3]SCENARIO1!AC44 -> 498 | H41: =[3]SCENARIO1!AD44 -> 6 | I41: =[3]SCENARIO1!AE44 -> 14 | J41: 4534.975021 | K41: 4554.975021 | L41: -6 | M41: -14 | N41: =[3]SCENARIO1!AW44 -> 147.83378 | O41: =[3]SCENARIO1!AY44 -> 131.380482
A42: NBG – Commercial Industrial | B42: =[3]SCENARIO1!BD45 -> 0 | C42: =[3]SCENARIO1!BE45 -> 0 | D42: =[3]SCENARIO1!BF45 -> 0 | E42: =[3]SCENARIO1!BG45 -> 0 | F42: =[3]SCENARIO1!AB45 -> 0 | G42: =[3]SCENARIO1!AC45 -> 0 | H42: =[3]SCENARIO1!AD45 -> 0 | I42: =[3]SCENARIO1!AE45 -> 0 | J42: 0 | K42: 0 | L42: 0 | M42: 0 | N42: =[3]SCENARIO1!AW45 -> 0 | O42: =[3]SCENARIO1!AY45 -> 0
A43: Whisper Valley PUD | B43: =[3]SCENARIO1!BD46 -> 6135.151336 | C43: =[3]SCENARIO1!BE46 -> 851.2240251 | D43: =[3]SCENARIO1!BF46 -> 543.4452522 | E43: =[3]SCENARIO1!BG46 -> 4740.482059 | F43: =[3]SCENARIO1!AB46 -> 0 | G43: =[3]SCENARIO1!AC46 -> 0 | H43: =[3]SCENARIO1!AD46 -> 0 | I43: =[3]SCENARIO1!AE46 -> 0 | J43: 6135.151336 | K43: 851.2240251 | L43: 543.4452522 | M43: 4740.482059 | N43: =[3]SCENARIO1!AW46 -> 2066.022682 | O43: =[3]SCENARIO1!AY46 -> 0
A44: Wildhorse Ranch PUD | B44: =[3]SCENARIO1!BD47 -> 2722.97002 | C44: =[3]SCENARIO1!BE47 -> 0 | D44: =[3]SCENARIO1!BF47 -> 0 | E44: =[3]SCENARIO1!BG47 -> 2722.97002 | F44: =[3]SCENARIO1!AB47 -> 0 | G44: =[3]SCENARIO1!AC47 -> 0 | H44: =[3]SCENARIO1!AD47 -> 0 | I44: =[3]SCENARIO1!AE47 -> 0 | J44: 2722.97002 | K44: 0 | L44: 0 | M44: 2722.97002 | N44: =[3]SCENARIO1!AW47 -> 784.170657 | O44: =[3]SCENARIO1!AY47 -> 0
A45: Waters Edge PUD | B45: =[3]SCENARIO1!BD48 -> 1619.978334 | C45: =[3]SCENARIO1!BE48 -> 166.8787128 | D45: =[3]SCENARIO1!BF48 -> 1231.129385 | E45: =[3]SCENARIO1!BG48 -> 221.9702361 | F45: =[3]SCENARIO1!AB48 -> 0 | G45: =[3]SCENARIO1!AC48 -> 0 | H45: =[3]SCENARIO1!AD48 -> 0 | I45: =[3]SCENARIO1!AE48 -> 0 | J45: 1619.978334 | K45: 166.8787128 | L45: 1231.129385 | M45: 221.9702361 | N45: =[3]SCENARIO1!AW48 -> 282.144465 | O45: =[3]SCENARIO1!AY48 -> 0
A46: Robinson Ranch PUD | B46: =[3]SCENARIO1!BD49 -> 0 | C46: =[3]SCENARIO1!BE49 -> 0 | D46: =[3]SCENARIO1!BF49 -> 0 | E46: =[3]SCENARIO1!BG49 -> 0 | F46: =[3]SCENARIO1!AB49 -> 0 | G46: =[3]SCENARIO1!AC49 -> 0 | H46: =[3]SCENARIO1!AD49 -> 0 | I46: =[3]SCENARIO1!AE49 -> 0 | J46: 0 | K46: 0 | L46: 0 | M46: 0 | N46: =[3]SCENARIO1!AW49 -> 0 | O46: =[3]SCENARIO1!AY49 -> 0
A47: Goodnight Ranch PUD | B47: =[3]SCENARIO1!BD50 -> 3305.76889 | C47: =[3]SCENARIO1!BE50 -> 645.3235915 | D47: =[3]SCENARIO1!BF50 -> 0 | E47: =[3]SCENARIO1!BG50 -> 2660.445298 | F47: =[3]SCENARIO1!AB50 -> 1 | G47: =[3]SCENARIO1!AC50 -> 0 | H47: =[3]SCENARIO1!AD50 -> 0 | I47: =[3]SCENARIO1!AE50 -> 1 | J47: 3304.76889 | K47: 645.3235915 | L47: 0 | M47: 2659.445298 | N47: =[3]SCENARIO1!AW50 -> 391.287367 | O47: =[3]SCENARIO1!AY50 -> 0.246241
A48: UNO | B48: =[3]SCENARIO1!BD51 -> 1689.731446 | C48: =[3]SCENARIO1!BE51 -> 1689.731446 | D48: =[3]SCENARIO1!BF51 -> 0 | E48: =[3]SCENARIO1!BG51 -> 0 | F48: =[3]SCENARIO1!AB51 -> 237 | G48: =[3]SCENARIO1!AC51 -> 228 | H48: =[3]SCENARIO1!AD51 -> 8 | I48: =[3]SCENARIO1!AE51 -> 1 | J48: 1452.731446 | K48: 1461.731446 | L48: -8 | M48: -1 | N48: =[3]SCENARIO1!AW51 -> 0.538058 | O48: =[3]SCENARIO1!AY51 -> 12.0011
A49: Estancia PUD | B49: =[3]SCENARIO1!BD52 -> 1393.59578 | C49: =[3]SCENARIO1!BE52 -> 0 | D49: =[3]SCENARIO1!BF52 -> 0 | E49: =[3]SCENARIO1!BG52 -> 1393.59578 | F49: =[3]SCENARIO1!AB52 -> 0 | G49: =[3]SCENARIO1!AC52 -> 0 | H49: =[3]SCENARIO1!AD52 -> 0 | I49: =[3]SCENARIO1!AE52 -> 0 | J49: 1393.59578 | K49: 0 | L49: 0 | M49: 1393.59578 | N49: =[3]SCENARIO1!AW52 -> 401.332703 | O49: =[3]SCENARIO1!AY52 -> 0
A50: Total | B50: =SUM(B3:B49) -> 91913.60866 | C50: 53620.2841 | D50: 6171.34415 | E50: 32121.98041 | F50: 7038 | G50: 6291 | H50: 366 | I50: 375 | J50: 84875.60866 | K50: 47329.2841 | L50: 5805.34415 | M50: 31746.98041 | N50: 16831.8846 | O50: 1279.731513

Sheet Draft 1
B1: New | F1: Units assumed to redevelop | J1: Net Growth | N1: Acres
A2: CodeNEXT2 | B2: Units | C2: Multifamily | D2: Townhome | E2: Single Family | F2: Units | G2: Multifamily | H2: Townhome | I2: Single Family | J2: Units | K2: Multifamily | L2: Townhome | M2: Single Family | N2: Vacant Developed | O2: Developed Redeveloped
A3: T3NE.WL | B3: =[4]SCENARIO1!BD6 -> 9.165393584 | C3: =[4]SCENARIO1!BE6 -> 0 | D3: =[4]SCENARIO1!BF6 -> 0 | E3: =[4]SCENARIO1!BG6 -> 9.165393584 | F3: =[4]SCENARIO1!AB6 -> 0 | G3: =[4]SCENARIO1!AC6 -> 0 | H3: =[4]SCENARIO1!AD6 -> 0 | I3: =[4]SCENARIO1!AE6 -> 0 | J3: =B3-F3 -> 9.165393584 | K3: 0 | L3: 0 | M3: 9.165393584 | N3: =[4]SCENARIO1!AW6 -> 2.34525 | O3: =[4]SCENARIO1!AY6 -> 0
A4: T3NE | B4: =[4]SCENARIO1!BD7 -> 4.207548176 | C4: =[4]SCENARIO1!BE7 -> 0 | D4: =[4]SCENARIO1!BF7 -> 1.402516059 | E4: =[4]SCENARIO1!BG7 -> 2.805032117 | F4: =[4]SCENARIO1!AB7 -> 0 | G4: =[4]SCENARIO1!AC7 -> 0 | H4: =[4]SCENARIO1!AD7 -> 0 | I4: =[4]SCENARIO1!AE7 -> 0 | J4: 4.207548176 | K4: 0 | L4: 1.402516059 | M4: 2.805032117 | N4: =[4]SCENARIO1!AW7 -> 0.897193 | O4: =[4]SCENARIO1!AY7 -> 0
A5: T3N.DS | B5: =[4]SCENARIO1!BD8 -> 84.06108677 | C5: =[4]SCENARIO1!BE8 -> 0 | D5: =[4]SCENARIO1!BF8 -> 10.56044602 | E5: =[4]SCENARIO1!BG8 -> 73.50064076 | F5: =[4]SCENARIO1!AB8 -> 0 | G5: =[4]SCENARIO1!AC8 -> 0 | H5: =[4]SCENARIO1!AD8 -> 0 | I5: =[4]SCENARIO1!AE8 -> 0 | J5: =B5-F5 -> 84.06108677 | K5: =C5-G5 -> 0 | L5: =D5-H5 -> 10.56044602 | M5: =E5-I5 -> 73.50064076 | N5: =[4]SCENARIO1!AW8 -> 13.511087 | O5: =[4]SCENARIO1!AY8 -> 0
A6: T3N.IS | B6: =[4]SCENARIO1!BD9 -> 193.0424707 | C6: =[4]SCENARIO1!BE9 -> 0 | D6: =[4]SCENARIO1!BF9 -> 109.6832844 | E6: =[4]SCENARIO1!BG9 -> 83.35918622 | F6: =[4]SCENARIO1!AB9 -> 0 | G6: =[4]SCENARIO1!AC9 -> 0 | H6: =[4]SCENARIO1!AD9 -> 0 | I6: =[4]SCENARIO1!AE9 -> 0 | J6: 193.0424707 | K6: =C6-G6 -> 0 | L6: =D6-H6 -> 109.6832844 | M6: =E6-I6 -> 83.35918622 | N6: =[4]SCENARIO1!AW9 -> 23.388223 | O6: =[4]SCENARIO1!AY9 -> 0
A7: T3N.IS-O | B7: =[4]SCENARIO1!BD10 -> 0 | C7: =[4]SCENARIO1!BE10 -> 0 | D7: =[4]SCENARIO1!BF10 -> 0 | E7: =[4]SCENARIO1!BG10 -> 0 | F7: =[4]SCENARIO1!AB10 -> 0 | G7: =[4]SCENARIO1!AC10 -> 0 | H7: =[4]SCENARIO1!AD10 -> 0 | I7: =[4]SCENARIO1!AE10 -> 0 | J7: 0 | K7: 0 | L7: 0 | M7: 0 | N7: =[4]SCENARIO1!AW10 -> 0 | O7: =[4]SCENARIO1!AY10 -> 0
A8: T4N.IS | B8: =[4]SCENARIO1!BD11 -> 1526.661164 | C8: =[4]SCENARIO1!BE11 -> 954.1632278 | D8: =[4]SCENARIO1!BF11 -> 381.6652911 | E8: =[4]SCENARIO1!BG11 -> 190.8326456 | F8: =[4]SCENARIO1!AB11 -> 821 | G8: =[4]SCENARIO1!AC11 -> 507 | H8: =[4]SCENARIO1!AD11 -> 131 | I8: =[4]SCENARIO1!AE11 -> 183 | J8: 705.6611644 | K8: 447.1632278 | L8: 250.6652911 | M8: 7.832645553 | N8: =[4]SCENARIO1!AW11 -> 7.594819 | O8: =[4]SCENARIO1!AY11 -> 103.125615
A9: T4N.IS-O | B9: =[4]SCENARIO1!BD12 -> 158.9511901 | C9: =[4]SCENARIO1!BE12 -> 99.34449383 | D9: =[4]SCENARIO1!BF12 -> 39.73779753 | E9: =[4]SCENARIO1!BG12 -> 19.86889877 | F9: =[4]SCENARIO1!AB12 -> 4 | G9: =[4]SCENARIO1!AC12 -> 0 | H9: =[4]SCENARIO1!AD12 -> 2 | I9: =[4]SCENARIO1!AE12 -> 2 | J9: 154.9511901 | K9: 99.34449383 | L9: 37.73779753 | M9: 17.86889877 | N9: =[4]SCENARIO1!AW12 -> 0.971146 | O9: =[4]SCENARIO1!AY12 -> 10.585165
A10: T4N.SS | B10: =[4]SCENARIO1!BD13 -> 118.1179105 | C10: =[4]SCENARIO1!BE13 -> 62.82868033 | D10: =[4]SCENARIO1!BF13 -> 31.41434016 | E10: =[4]SCENARIO1!BG13 -> 23.87488998 | F10: =[4]SCENARIO1!AB13 -> 39 | G10: =[4]SCENARIO1!AC13 -> 24 | H10: =[4]SCENARIO1!AD13 -> 4 | I10: =[4]SCENARIO1!AE13 -> 11 | J10: 79.11791047 | K10: 38.82868033 | L10: 27.41434016 | M10: 12.87488998 | N10: =[4]SCENARIO1!AW13 -> 1.385552 | O10: =[4]SCENARIO1!AY13 -> 4.842708
A11: T4N.SS-O | B11: =[4]SCENARIO1!BD14 -> 38.19998133 | C11: =[4]SCENARIO1!BE14 -> 20.31914048 | D11: =[4]SCENARIO1!BF14 -> 10.15957024 | E11: =[4]SCENARIO1!BG14 -> 7.721270617 | F11: =[4]SCENARIO1!AB14 -> 33 | G11: =[4]SCENARIO1!AC14 -> 30 | H11: =[4]SCENARIO1!AD14 -> 2 | I11: =[4]SCENARIO1!AE14 -> 1 | J11: 5.199981332 | K11: -9.680859523 | L11: 8.159570238 | M11: 6.721270617 | N11: =[4]SCENARIO1!AW14 -> 0 | O11: =[4]SCENARIO1!AY14 -> 1.943597
A12: T4MS | B12: =[4]SCENARIO1!BD15 -> 3802.597682 | C12: =[4]SCENARIO1!BE15 -> 3595.034149 | D12: =[4]SCENARIO1!BF15 -> 0 | E12: =[4]SCENARIO1!BG15 -> 207.5635326 | F12: =[4]SCENARIO1!AB15 -> 67 | G12: =[4]SCENARIO1!AC15 -> 47 | H12: =[4]SCENARIO1!AD15 -> 9 | I12: =[4]SCENARIO1!AE15 -> 11 | J12: 3735.597682 | K12: 3548.034149 | L12: -9 | M12: 196.5635326 | N12: =[4]SCENARIO1!AW15 -> 16.659184 | O12: =[4]SCENARIO1!AY15 -> 116.211404
A13: T4MS-O | B13: =[4]SCENARIO1!BD16 -> 456.853253 | C13: =[4]SCENARIO1!BE16 -> 431.9160697 | D13: =[4]SCENARIO1!BF16 -> 0 | E13: =[4]SCENARIO1!BG16 -> 24.93718321 | F13: =[4]SCENARIO1!AB16 -> 64 | G13: =[4]SCENARIO1!AC16 -> 54 | H13: =[4]SCENARIO1!AD16 -> 7 | I13: =[4]SCENARIO1!AE16 -> 3 | J13: 392.853253 | K13: 377.9160697 | L13: -7 | M13: 21.93718321 | N13: =[4]SCENARIO1!AW16 -> 3.449651 | O13: =[4]SCENARIO1!AY16 -> 13.041511
A14: T5N.SS | B14: =[4]SCENARIO1!BD17 -> 515.4284324 | C14: =[4]SCENARIO1!BE17 -> 322.1427702 | D14: =[4]SCENARIO1!BF17 -> 0 | E14: =[4]SCENARIO1!BG17 -> 193.2856621 | F14: =[4]SCENARIO1!AB17 -> 102 | G14: =[4]SCENARIO1!AC17 -> 99 | H14: =[4]SCENARIO1!AD17 -> 0 | I14: =[4]SCENARIO1!AE17 -> 3 | J14: 413.4284324 | K14: 223.1427702 | L14: 0 | M14: 190.2856621 | N14: =[4]SCENARIO1!AW17 -> 0 | O14: =[4]SCENARIO1!AY17 -> 18.488451
A15: T5N.SS-O | B15: =[4]SCENARIO1!BD18 -> 268.6027247 | C15: =[4]SCENARIO1!BE18 -> 167.8767029 | D15: =[4]SCENARIO1!BF18 -> 0 | E15: =[4]SCENARIO1!BG18 -> 100.7260218 | F15: =[4]SCENARIO1!AB18 -> 172 | G15: =[4]SCENARIO1!AC18 -> 172 | H15: =[4]SCENARIO1!AD18 -> 0 | I15: =[4]SCENARIO1!AE18 -> 0 | J15: 96.60272468 | K15: -4.123297072 | L15: 0 | M15: 100.7260218 | N15: =[4]SCENARIO1!AW18 -> 0 | O15: =[4]SCENARIO1!AY18 -> 9.634797
A16: T5U.SS | B16: =[4]SCENARIO1!BD19 -> 166.5309164 | C16: =[4]SCENARIO1!BE19 -> 160.5752068 | D16: =[4]SCENARIO1!BF19 -> 0 | E16: =[4]SCENARIO1!BG19 -> 5.955709637 | F16: =[4]SCENARIO1!AB19 -> 100 | G16: =[4]SCENARIO1!AC19 -> 100 | H16: =[4]SCENARIO1!AD19 -> 0 | I16: =[4]SCENARIO1!AE19 -> 0 | J16: 66.53091641 | K16: 60.57520678 | L16: 0 | M16: 5.955709637 | N16: =[4]SCENARIO1!AW19 -> 0 | O16: =[4]SCENARIO1!AY19 -> 2.278738
A17: T5U.SS-O | B17: =[4]SCENARIO1!BD20 -> 38.56083283 | C17: =[4]SCENARIO1!BE20 -> 37.18176684 | D17: =[4]SCENARIO1!BF20 -> 0 | E17: =[4]SCENARIO1!BG20 -> 1.379065994 | F17: =[4]SCENARIO1!AB20 -> 0 | G17: =[4]SCENARIO1!AC20 -> 0 | H17: =[4]SCENARIO1!AD20 -> 0 | I17: =[4]SCENARIO1!AE20 -> 0 | J17: 38.56083283 | K17: 37.18176684 | L17: 0 | M17: 1.379065994 | N17: =[4]SCENARIO1!AW20 -> 0.099771 | O17: =[4]SCENARIO1!AY20 -> 0.452699
A18: T5U | B18: =[4]SCENARIO1!BD21 -> 1141.305358 | C18: =[4]SCENARIO1!BE21 -> 1100.343728 | D18: =[4]SCENARIO1!BF21 -> 0 | E18: =[4]SCENARIO1!BG21 -> 40.96162948 | F18: =[4]SCENARIO1!AB21 -> 406 | G18: =[4]SCENARIO1!AC21 -> 406 | H18: =[4]SCENARIO1!AD21 -> 0 | I18: =[4]SCENARIO1!AE21 -> 0 | J18: 735.3053578 | K18: 694.3437283 | L18: 0 | M18: 40.96162948 | N18: =[4]SCENARIO1!AW21 -> 0.694173 | O18: =[4]SCENARIO1!AY21 -> 15.15101
A19: T5U-O | B19: =[4]SCENARIO1!BD22 -> 221.0829168 | C19: =[4]SCENARIO1!BE22 -> 213.1482161 | D19: =[4]SCENARIO1!BF22 -> 0 | E19: =[4]SCENARIO1!BG22 -> 7.93470079 | F19: =[4]SCENARIO1!AB22 -> 42 | G19: =[4]SCENARIO1!AC22 -> 42 | H19: =[4]SCENARIO1!AD22 -> 0 | I19: =[4]SCENARIO1!AE22 -> 0 | J19: 179.0829168 | K19: 171.1482161 | L19: 0 | M19: 7.93470079 | N19: =[4]SCENARIO1!AW22 -> 1.373632 | O19: =[4]SCENARIO1!AY22 -> 2.004014
A20: T5MS | B20: =[4]SCENARIO1!BD23 -> 7011.425003 | C20: =[4]SCENARIO1!BE23 -> 7011.425003 | D20: =[4]SCENARIO1!BF23 -> 0 | E20: =[4]SCENARIO1!BG23 -> 0 | F20: =[4]SCENARIO1!AB23 -> 5 | G20: =[4]SCENARIO1!AC23 -> 0 | H20: =[4]SCENARIO1!AD23 -> 0 | I20: =[4]SCENARIO1!AE23 -> 0 | J20: 7006.425003 | K20: 7011.425003 | L20: 0 | M20: 0 | N20: =[4]SCENARIO1!AW23 -> 3.021838 | O20: =[4]SCENARIO1!AY23 -> 101.789279
A21: T5MS-O | B21: =[4]SCENARIO1!BD24 -> 3607.026276 | C21: =[4]SCENARIO1!BE24 -> 3607.026276 | D21: =[4]SCENARIO1!BF24 -> 0 | E21: =[4]SCENARIO1!BG24 -> 0 | F21: =[4]SCENARIO1!AB24 -> 0 | G21: =[4]SCENARIO1!AC24 -> 0 | H21: =[4]SCENARIO1!AD24 -> 0 | I21: =[4]SCENARIO1!AE24 -> 0 | J21: 3607.026276 | K21: 3607.026276 | L21: 0 | M21: 0 | N21: =[4]SCENARIO1!AW24 -> 0.138145 | O21: =[4]SCENARIO1!AY24 -> 51.154766
A22: T6U | B22: =[4]SCENARIO1!BD25 -> 0 | C22: =[4]SCENARIO1!BE25 -> 0 | D22: =[4]SCENARIO1!BF25 -> 0 | E22: =[4]SCENARIO1!BG25 -> 0 | F22: =[4]SCENARIO1!AB25 -> 0 | G22: =[4]SCENARIO1!AC25 -> 0 | H22: =[4]SCENARIO1!AD25 -> 0 | I22: =[4]SCENARIO1!AE25 -> 0 | J22: 0 | K22: 0 | L22: 0 | M22: 0 | N22: =[4]SCENARIO1!AW25 -> 0 | O22: =[4]SCENARIO1!AY25 -> 0
A23: T6U-R | B23: =[4]SCENARIO1!BD26 -> 0 | C23: =[4]SCENARIO1!BE26 -> 0 | D23: =[4]SCENARIO1!BF26 -> 0 | E23: =[4]SCENARIO1!BG26 -> 0 | F23: =[4]SCENARIO1!AB26 -> 0 | G23: =[4]SCENARIO1!AC26 -> 0 | H23: =[4]SCENARIO1!AD26 -> 0 | I23: =[4]SCENARIO1!AE26 -> 0 | J23: 0 | K23: 0 | L23: 0 | M23: 0 | N23: =[4]SCENARIO1!AW26 -> 0 | O23: =[4]SCENARIO1!AY26 -> 0
A24: T6UC | B24: =[4]SCENARIO1!BD27 -> 0 | C24: =[4]SCENARIO1!BE27 -> 0 | D24: =[4]SCENARIO1!BF27 -> 0 | E24: =[4]SCENARIO1!BG27 -> 0 | F24: =[4]SCENARIO1!AB27 -> 0 | G24: =[4]SCENARIO1!AC27 -> 0 | H24: =[4]SCENARIO1!AD27 -> 0 | I24: =[4]SCENARIO1!AE27 -> 0 | J24: 0 | K24: 0 | L24: 0 | M24: 0 | N24: =[4]SCENARIO1!AW27 -> 0 | O24: =[4]SCENARIO1!AY27 -> 0
A25: RR | B25: =[4]SCENARIO1!BD28 -> 958.2799646 | C25: =[4]SCENARIO1!BE28 -> 0 | D25: =[4]SCENARIO1!BF28 -> 0 | E25: =[4]SCENARIO1!BG28 -> 958.2799646 | F25: =[4]SCENARIO1!AB28 -> 0 | G25: =[4]SCENARIO1!AC28 -> 0 | H25: =[4]SCENARIO1!AD28 -> 0 | I25: =[4]SCENARIO1!AE28 -> 0 | J25: 958.2799646 | K25: 0 | L25: 0 | M25: 958.2799646 | N25: =[4]SCENARIO1!AW28 -> 1695.952172 | O25: =[4]SCENARIO1!AY28 -> 0
A26: VLDR | B26: =[4]SCENARIO1!BD29 -> 998.0499652 | C26: =[4]SCENARIO1!BE29 -> 0 | D26: =[4]SCENARIO1!BF29 -> 0 | E26: =[4]SCENARIO1!BG29 -> 998.0499652 | F26: =[4]SCENARIO1!AB29 -> 0 | G26: =[4]SCENARIO1!AC29 -> 0 | H26: =[4]SCENARIO1!AD29 -> 0 | I26: =[4]SCENARIO1!AE29 -> 0 | J26: 998.0499652 | K26: 0 | L26: 0 | M26: 998.0499652 | N26: =[4]SCENARIO1!AW29 -> 506.127085 | O26: =[4]SCENARIO1!AY29 -> 0
A27: LDR | B27: =[4]SCENARIO1!BD30 -> 3754.061079 | C27: =[4]SCENARIO1!BE30 -> 0 | D27: =[4]SCENARIO1!BF30 -> 0 | E27: =[4]SCENARIO1!BG30 -> 3754.061079 | F27: =[4]SCENARIO1!AB30 -> 0 | G27: =[4]SCENARIO1!AC30 -> 0 | H27: =[4]SCENARIO1!AD30 -> 0 | I27: =[4]SCENARIO1!AE30 -> 0 | J27: 3754.061079 | K27: 0 | L27: 0 | M27: 3754.061079 | N27: =[4]SCENARIO1!AW30 -> 1063.573229 | O27: =[4]SCENARIO1!AY30 -> 0
A28: LMDR | B28: =[4]SCENARIO1!BD31 -> 3205.986316 | C28: =[4]SCENARIO1!BE31 -> 0 | D28: =[4]SCENARIO1!BF31 -> 0 | E28: =[4]SCENARIO1!BG31 -> 3205.986316 | F28: =[4]SCENARIO1!AB31 -> 0 | G28: =[4]SCENARIO1!AC31 -> 0 | H28: =[4]SCENARIO1!AD31 -> 0 | I28: =[4]SCENARIO1!AE31 -> 0 | J28: 3205.986316 | K28: 0 | L28: 0 | M28: 3205.986316 | N28: =[4]SCENARIO1!AW31 -> 908.296681 | O28: =[4]SCENARIO1!AY31 -> 0
A29: LMDR-SL | B29: =[4]SCENARIO1!BD32 -> 3245.797154 | C29: =[4]SCENARIO1!BE32 -> 0 | D29: =[4]SCENARIO1!BF32 -> 0 | E29: =[4]SCENARIO1!BG32 -> 3245.797154 | F29: =[4]SCENARIO1!AB32 -> 0 | G29: =[4]SCENARIO1!AC32 -> 0 | H29: =[4]SCENARIO1!AD32 -> 0 | I29: =[4]SCENARIO1!AE32 -> 0 | J29: 3245.797154 | K29: 0 | L29: 0 | M29: 3245.797154 | N29: =[4]SCENARIO1!AW32 -> 455.926933 | O29: =[4]SCENARIO1!AY32 -> 0
A30: MDR | B30: =[4]SCENARIO1!BD33 -> 7243.382978 | C30: =[4]SCENARIO1!BE33 -> 0 | D30: =[4]SCENARIO1!BF33 -> 6577.057872 | E30: =[4]SCENARIO1!BG33 -> 666.3251061 | F30: =[4]SCENARIO1!AB33 -> 589 | G30: =[4]SCENARIO1!AC33 -> 485 | H30: =[4]SCENARIO1!AD33 -> 59 | I30: =[4]SCENARIO1!AE33 -> 45 | J30: 6654.382978 | K30: -485 | L30: 6518.057872 | M30: 621.3251061 | N30: =[4]SCENARIO1!AW33 -> 371.411781 | O30: =[4]SCENARIO1!AY33 -> 169.771122
A31: MHDR | B31: =[4]SCENARIO1!BD34 -> 11798.14817 | C31: =[4]SCENARIO1!BE34 -> 7933.352784 | D31: =[4]SCENARIO1!BF34 -> 3864.795388 | E31: =[4]SCENARIO1!BG34 -> 0 | F31: =[4]SCENARIO1!AB34 -> 2118 | G31: =[4]SCENARIO1!AC34 -> 1869 | H31: =[4]SCENARIO1!AD34 -> 227 | I31: =[4]SCENARIO1!AE34 -> 22 | J31: 9680.148173 | K31: 6064.352784 | L31: 3637.795388 | M31: -22 | N31: =[4]SCENARIO1!AW34 -> 379.341286 | O31: =[4]SCENARIO1!AY34 -> 209.440583
A32: HDR | B32: =[4]SCENARIO1!BD35 -> 18558.92796 | C32: =[4]SCENARIO1!BE35 -> 17312.09054 | D32: =[4]SCENARIO1!BF35 -> 864.5603246 | E32: =[4]SCENARIO1!BG35 -> 382.2771012 | F32: =[4]SCENARIO1!AB35 -> 1896 | G32: =[4]SCENARIO1!AC35 -> 1769 | H32: =[4]SCENARIO1!AD35 -> 85 | I32: =[4]SCENARIO1!AE35 -> 42 | J32: 16662.92796 | K32: 15543.09054 | L32: 779.5603246 | M32: 340.2771012 | N32: =[4]SCENARIO1!AW35 -> 411.187037 | O32: =[4]SCENARIO1!AY35 -> 190.169052
A33: VHDR | B33: =[4]SCENARIO1!BD36 -> 1753.468032 | C33: =[4]SCENARIO1!BE36 -> 1753.468032 | D33: =[4]SCENARIO1!BF36 -> 0 | E33: =[4]SCENARIO1!BG36 -> 0 | F33: =[4]SCENARIO1!AB36 -> 326 | G33: =[4]SCENARIO1!AC36 -> 326 | H33: =[4]SCENARIO1!AD36 -> 0 | I33: =[4]SCENARIO1!AE36 -> 0 | J33: 1427.468032 | K33: 1427.468032 | L33: 0 | M33: 0 | N33: =[4]SCENARIO1!AW36 -> 2.646673 | O33: =[4]SCENARIO1!AY36 -> 18.823826
A34: MHP | B34: =[4]SCENARIO1!BD37 -> 0 | C34: =[4]SCENARIO1!BE37 -> 0 | D34: =[4]SCENARIO1!BF37 -> 0 | E34: =[4]SCENARIO1!BG37 -> 0 | F34: =[4]SCENARIO1!AB37 -> 0 | G34: =[4]SCENARIO1!AC37 -> 0 | H34: =[4]SCENARIO1!AD37 -> 0 | I34: =[4]SCENARIO1!AE37 -> 0 | J34: 0 | K34: 0 | L34: 0 | M34: 0 | N34: =[4]SCENARIO1!AW37 -> 46.590938 | O34: =[4]SCENARIO1!AY37 -> 0
A35: NC-L | B35: =[4]SCENARIO1!BD38 -> 0 | C35: =[4]SCENARIO1!BE38 -> 0 | D35: =[4]SCENARIO1!BF38 -> 0 | E35: =[4]SCENARIO1!BG38 -> 0 | F35: =[4]SCENARIO1!AB38 -> 33 | G35: =[4]SCENARIO1!AC38 -> 33 | H35: =[4]SCENARIO1!AD38 -> 0 | I35: =[4]SCENARIO1!AE38 -> 0 | J35: -33 | K35: -33 | L35: 0 | M35: 0 | N35: =[4]SCENARIO1!AW38 -> 472.983695 | O35: =[4]SCENARIO1!AY38 -> 90.873707
A36: NC-O | B36: =[4]SCENARIO1!BD39 -> 1267.836477 | C36: =[4]SCENARIO1!BE39 -> 488.4790489 | D36: =[4]SCENARIO1!BF39 -> 779.3574285 | E36: =[4]SCENARIO1!BG39 -> 0 | F36: =[4]SCENARIO1!AB39 -> 88 | G36: =[4]SCENARIO1!AC39 -> 69 | H36: =[4]SCENARIO1!AD39 -> 1 | I36: =[4]SCENARIO1!AE39 -> 18 | J36: 1179.836477 | K36: 419.4790489 | L36: 778.3574285 | M36: -18 | N36: =[4]SCENARIO1!AW39 -> 113.177485 | O36: =[4]SCENARIO1!AY39 -> 19.959223
A37: LC-L | B37: =[4]SCENARIO1!BD40 -> 0 | C37: =[4]SCENARIO1!BE40 -> 0 | D37: =[4]SCENARIO1!BF40 -> 0 | E37: =[4]SCENARIO1!BG40 -> 0 | F37: =[4]SCENARIO1!AB40 -> 1 | G37: =[4]SCENARIO1!AC40 -> 1 | H37: =[4]SCENARIO1!AD40 -> 0 | I37: =[4]SCENARIO1!AE40 -> 0 | J37: -1 | K37: -1 | L37: 0 | M37: 0 | N37: =[4]SCENARIO1!AW40 -> 265.602622 | O37: =[4]SCENARIO1!AY40 -> 1.784685
A38: LC-O | B38: =[4]SCENARIO1!BD41 -> 2547.25291 | C38: =[4]SCENARIO1!BE41 -> 1627.109204 | D38: =[4]SCENARIO1!BF41 -> 920.1437055 | E38: =[4]SCENARIO1!BG41 -> 0 | F38: =[4]SCENARIO1!AB41 -> 14 | G38: =[4]SCENARIO1!AC41 -> 0 | H38: =[4]SCENARIO1!AD41 -> 11 | I38: =[4]SCENARIO1!AE41 -> 3 | J38: 2533.25291 | K38: 1627.109204 | L38: 909.1437055 | M38: -3 | N38: =[4]SCENARIO1!AW41 -> 144.223292 | O38: =[4]SCENARIO1!AY41 -> 7.839072
A39: GC-L | B39: =[4]SCENARIO1!BD42 -> 0 | C39: =[4]SCENARIO1!BE42 -> 0 | D39: =[4]SCENARIO1!BF42 -> 0 | E39: =[4]SCENARIO1!BG42 -> 0 | F39: =[4]SCENARIO1!AB42 -> 51 | G39: =[4]SCENARIO1!AC42 -> 49 | H39: =[4]SCENARIO1!AD42 -> 2 | I39: =[4]SCENARIO1!AE42 -> 0 | J39: -51 | K39: -49 | L39: -2 | M39: 0 | N39: =[4]SCENARIO1!AW42 -> 661.281205 | O39: =[4]SCENARIO1!AY42 -> 84.813906
A40: GC-O | B40: =[4]SCENARIO1!BD43 -> 16108.80779 | C40: =[4]SCENARIO1!BE43 -> 10033.57905 | D40: =[4]SCENARIO1!BF43 -> 6075.228741 | E40: =[4]SCENARIO1!BG43 -> 0 | F40: =[4]SCENARIO1!AB43 -> 200 | G40: =[4]SCENARIO1!AC43 -> 154 | H40: =[4]SCENARIO1!AD43 -> 16 | I40: =[4]SCENARIO1!AE43 -> 30 | J40: 15908.80779 | K40: 9879.579047 | L40: 6059.228741 | M40: -30 | N40: =[4]SCENARIO1!AW43 -> 913.033942 | O40: =[4]SCENARIO1!AY43 -> 86.665731
A41: RC | B41: =[4]SCENARIO1!BD44 -> 0 | C41: =[4]SCENARIO1!BE44 -> 0 | D41: =[4]SCENARIO1!BF44 -> 0 | E41: =[4]SCENARIO1!BG44 -> 0 | F41: =[4]SCENARIO1!AB44 -> 0 | G41: =[4]SCENARIO1!AC44 -> 0 | H41: =[4]SCENARIO1!AD44 -> 0 | I41: =[4]SCENARIO1!AE44 -> 0 | J41: 0 | K41: 0 | L41: 0 | M41: 0 | N41: =[4]SCENARIO1!AW44 -> 270.60602 | O41: =[4]SCENARIO1!AY44 -> 0
A42: CC | B42: =[4]SCENARIO1!BD45 -> 155.0412661 | C42: =[4]SCENARIO1!BE45 -> 155.0412661 | D42: =[4]SCENARIO1!BF45 -> 0 | E42: =[4]SCENARIO1!BG45 -> 0 | F42: =[4]SCENARIO1!AB45 -> 2 | G42: =[4]SCENARIO1!AC45 -> 0 | H42: =[4]SCENARIO1!AD45 -> 0 | I42: =[4]SCENARIO1!AE45 -> 2 | J42: 153.0412661 | K42: 155.0412661 | L42: 0 | M42: -2 | N42: =[4]SCENARIO1!AW45 -> 0 | O42: =[4]SCENARIO1!AY45 -> 1.258876
A43: DC | B43: =[4]SCENARIO1!BD46 -> 2176.791711 | C43: =[4]SCENARIO1!BE46 -> 2176.791711 | D43: =[4]SCENARIO1!BF46 -> 0 | E43: =[4]SCENARIO1!BG46 -> 0 | F43: =[4]SCENARIO1!AB46 -> 3 | G43: =[4]SCENARIO1!AC46 -> 0 | H43: =[4]SCENARIO1!AD46 -> 0 | I43: =[4]SCENARIO1!AE46 -> 3 | J43: 2173.791711 | K43: 2176.791711 | L43: 0 | M43: -3 | N43: =[4]SCENARIO1!AW46 -> 2.653712 | O43: =[4]SCENARIO1!AY46 -> 10.254913
A44: WC | B44: =[4]SCENARIO1!BD47 -> 0 | C44: =[4]SCENARIO1!BE47 -> 0 | D44: =[4]SCENARIO1!BF47 -> 0 | E44: =[4]SCENARIO1!BG47 -> 0 | F44: =[4]SCENARIO1!AB47 -> 0 | G44: =[4]SCENARIO1!AC47 -> 0 | H44: =[4]SCENARIO1!AD47 -> 0 | I44: =[4]SCENARIO1!AE47 -> 0 | J44: 0 | K44: 0 | L44: 0 | M44: 0 | N44: =[4]SCENARIO1!AW47 -> 135.944434 | O44: =[4]SCENARIO1!AY47 -> 0
A45: SC-L | B45: =[4]SCENARIO1!BD48 -> 0 | C45: =[4]SCENARIO1!BE48 -> 0 | D45: =[4]SCENARIO1!BF48 -> 0 | E45: =[4]SCENARIO1!BG48 -> 0 | F45: =[4]SCENARIO1!AB48 -> 247 | G45: =[4]SCENARIO1!AC48 -> 154 | H45: =[4]SCENARIO1!AD48 -> 2 | I45: =[4]SCENARIO1!AE48 -> 0 | J45: -247 | K45: -154 | L45: -2 | M45: 0 | N45: =[4]SCENARIO1!AW48 -> 661.621339 | O45: =[4]SCENARIO1!AY48 -> 113.188159
A46: SC-O | B46: =[4]SCENARIO1!BD49 -> 11313.81912 | C46: =[4]SCENARIO1!BE49 -> 11313.81912 | D46: =[4]SCENARIO1!BF49 -> 0 | E46: =[4]SCENARIO1!BG49 -> 0 | F46: =[4]SCENARIO1!AB49 -> 363 | G46: =[4]SCENARIO1!AC49 -> 319 | H46: =[4]SCENARIO1!AD49 -> 2 | I46: =[4]SCENARIO1!AE49 -> 41 | J46: 10950.81912 | K46: 10994.81912 | L46: -2 | M46: -41 | N46: =[4]SCENARIO1!AW49 -> 440.776544 | O46: =[4]SCENARIO1!AY49 -> 180.602487
A47: HC | B47: =[4]SCENARIO1!BD50 -> 8083.404934 | C47: =[4]SCENARIO1!BE50 -> 8083.404934 | D47: =[4]SCENARIO1!BF50 -> 0 | E47: =[4]SCENARIO1!BG50 -> 0 | F47: =[4]SCENARIO1!AB50 -> 0 | G47: =[4]SCENARIO1!AC50 -> 0 | H47: =[4]SCENARIO1!AD50 -> 0 | I47: =[4]SCENARIO1!AE50 -> 0 | J47: 8083.404934 | K47: 8083.404934 | L47: 0 | M47: 0 | N47: =[4]SCENARIO1!AW50 -> 476.92332 | O47: =[4]SCENARIO1!AY50 -> 4.41796
A48: CR | B48: =[4]SCENARIO1!BD51 -> 0 | C48: =[4]SCENARIO1!BE51 -> 0 | D48: =[4]SCENARIO1!BF51 -> 0 | E48: =[4]SCENARIO1!BG51 -> 0 | F48: =[4]SCENARIO1!AB51 -> 0 | G48: =[4]SCENARIO1!AC51 -> 0 | H48: =[4]SCENARIO1!AD51 -> 0 | I48: =[4]SCENARIO1!AE51 -> 0 | J48: 0 | K48: 0 | L48: 0 | M48: 0 | N48: =[4]SCENARIO1!AW51 -> 93.448285 | O48: =[4]SCENARIO1!AY51 -> 0
A49: FI | B49: =[4]SCENARIO1!BD52 -> 0 | C49: =[4]SCENARIO1!BE52 -> 0 | D49: =[4]SCENARIO1!BF52 -> 0 | E49: =[4]SCENARIO1!BG52 -> 0 | F49: =[4]SCENARIO1!AB52 -> 0 | G49: =[4]SCENARIO1!AC52 -> 0 | H49: =[4]SCENARIO1!AD52 -> 0 | I49: =[4]SCENARIO1!AE52 -> 0 | J49: 0 | K49: 0 | L49: 0 | M49: 0 | N49: =[4]SCENARIO1!AW52 -> 1050.618449 | O49: =[4]SCENARIO1!AY52 -> 0
A50: GI | B50: =[4]SCENARIO1!BD53 -> 0 | C50: =[4]SCENARIO1!BE53 -> 0 | D50: =[4]SCENARIO1!BF53 -> 0 | E50: =[4]SCENARIO1!BG53 -> 0 | F50: =[4]SCENARIO1!AB53 -> 0 | G50: =[4]SCENARIO1!AC53 -> 0 | H50: =[4]SCENARIO1!AD53 -> 0 | I50: =[4]SCENARIO1!AE53 -> 0 | J50: 0 | K50: 0 | L50: 0 | M50: 0 | N50: =[4]SCENARIO1!AW53 -> 82.750299 | O50: =[4]SCENARIO1!AY53 -> 0
A51: HI | B51: =[4]SCENARIO1!BD54 -> 0 | C51: =[4]SCENARIO1!BE54 -> 0 | D51: =[4]SCENARIO1!BF54 -> 0 | E51: =[4]SCENARIO1!BG54 -> 0 | F51: =[4]SCENARIO1!AB54 -> 0 | G51: =[4]SCENARIO1!AC54 -> 0 | H51: =[4]SCENARIO1!AD54 -> 0 | I51: =[4]SCENARIO1!AE54 -> 0 | J51: 0 | K51: 0 | L51: 0 | M51: 0 | N51: =[4]SCENARIO1!AW54 -> 0 | O51: =[4]SCENARIO1!AY54 -> 0
A52: R&D | B52: =[4]SCENARIO1!BD55 -> 0 | C52: =[4]SCENARIO1!BE55 -> 0 | D52: =[4]SCENARIO1!BF55 -> 0 | E52: =[4]SCENARIO1!BG55 -> 0 | F52: =[4]SCENARIO1!AB55 -> 0 | G52: =[4]SCENARIO1!AC55 -> 0 | H52: =[4]SCENARIO1!AD55 -> 0 | I52: =[4]SCENARIO1!AE55 -> 0 | J52: 0 | K52: 0 | L52: 0 | M52: 0 | N52: =[4]SCENARIO1!AW55 -> 91.52053 | O52: =[4]SCENARIO1!AY55 -> 0
A53: CC120 | B53: =[4]SCENARIO1!BD56 -> 1174.728059 | C53: =[4]SCENARIO1!BE56 -> 1174.728059 | D53: =[4]SCENARIO1!BF56 -> 0 | E53: =[4]SCENARIO1!BG56 -> 0 | F53: =[4]SCENARIO1!AB56 -> 32 | G53: =[4]SCENARIO1!AC56 -> 30 | H53: =[4]SCENARIO1!AD56 -> 0 | I53: =[4]SCENARIO1!AE56 -> 2 | J53: 1142.728059 | K53: 1144.728059 | L53: 0 | M53: -2 | N53: =[4]SCENARIO1!AW56 -> 0.484725 | O53: =[4]SCENARIO1!AY56 -> 6.991908
A54: CC80 | B54: =[4]SCENARIO1!BD57 -> 0 | C54: =[4]SCENARIO1!BE57 -> 0 | D54: =[4]SCENARIO1!BF57 -> 0 | E54: =[4]SCENARIO1!BG57 -> 0 | F54: =[4]SCENARIO1!AB57 -> 0 | G54: =[4]SCENARIO1!AC57 -> 0 | H54: =[4]SCENARIO1!AD57 -> 0 | I54: =[4]SCENARIO1!AE57 -> 0 | J54: 0 | K54: 0 | L54: 0 | M54: 0 | N54: =[4]SCENARIO1!AW57 -> 0 | O54: =[4]SCENARIO1!AY57 -> 0
A55: CC60 | B55: =[4]SCENARIO1!BD58 -> 153.8160383 | C55: =[4]SCENARIO1!BE58 -> 153.8160383 | D55: =[4]SCENARIO1!BF58 -> 0 | E55: =[4]SCENARIO1!BG58 -> 0 | F55: =[4]SCENARIO1!AB58 -> 10 | G55: =[4]SCENARIO1!AC58 -> 10 | H55: =[4]SCENARIO1!AD58 -> 0 | I55: =[4]SCENARIO1!AE58 -> 0 | J55: 143.8160383 | K55: 143.8160383 | L55: 0 | M55: 0 | N55: =[4]SCENARIO1!AW58 -> 0 | O55: =[4]SCENARIO1!AY58 -> 7.362177
A56: CC40 | B56: =[4]SCENARIO1!BD59 -> 59.7788953 | C56: =[4]SCENARIO1!BE59 -> 59.7788953 | D56: =[4]SCENARIO1!BF59 -> 0 | E56: =[4]SCENARIO1!BG59 -> 0 | F56: =[4]SCENARIO1!AB59 -> 0 | G56: =[4]SCENARIO1!AC59 -> 0 | H56: =[4]SCENARIO1!AD59 -> 0 | I56: =[4]SCENARIO1!AE59 -> 0 | J56: 59.7788953 | K56: 59.7788953 | L56: 0 | M56: 0 | N56: =[4]SCENARIO1!AW59 -> 0.344385 | O56: =[4]SCENARIO1!AY59 -> 2.668957
A57: P | B57: =[4]SCENARIO1!BD60 -> 0 | C57: =[4]SCENARIO1!BE60 -> 0 | D57: =[4]SCENARIO1!BF60 -> 0 | E57: =[4]SCENARIO1!BG60 -> 0 | F57: =[4]SCENARIO1!AB60 -> 0 | G57: =[4]SCENARIO1!AC60 -> 0 | H57: =[4]SCENARIO1!AD60 -> 0 | I57: =[4]SCENARIO1!AE60 -> 0 | J57: 0 | K57: 0 | L57: 0 | M57: 0 | N57: =[4]SCENARIO1!AW60 -> 345.56256 | O57: =[4]SCENARIO1!AY60 -> 0
A58: T3MS | B58: =[4]SCENARIO1!BD61 -> 751.990558 | C58: =[4]SCENARIO1!BE61 -> 545.8162752 | D58: =[4]SCENARIO1!BF61 -> 0 | E58: =[4]SCENARIO1!BG61 -> 206.1742829 | F58: =[4]SCENARIO1!AB61 -> 34 | G58: =[4]SCENARIO1!AC61 -> 7 | H58: =[4]SCENARIO1!AD61 -> 6 | I58: =[4]SCENARIO1!AE61 -> 21 | J58: 717.990558 | K58: 538.8162752 | L58: -6 | M58: 185.1742829 | N58: =[4]SCENARIO1!AW61 -> 1.887049 | O58: =[4]SCENARIO1!AY61 -> 30.514118
A59: T4N.DS | B59: =[4]SCENARIO1!BD62 -> 212.5097021 | C59: =[4]SCENARIO1!BE62 -> 64.78955944 | D59: =[4]SCENARIO1!BF62 -> 0 | E59: =[4]SCENARIO1!BG62 -> 147.7201426 | F59: =[4]SCENARIO1!AB62 -> 185 | G59: =[4]SCENARIO1!AC62 -> 116 | H59: =[4]SCENARIO1!AD62 -> 49 | I59: =[4]SCENARIO1!AE62 -> 20 | J59: 27.50970207 | K59: -51.21044056 | L59: -49 | M59: 127.7201426 | N59: =[4]SCENARIO1!AW62 -> 0.454464 | O59: =[4]SCENARIO1!AY62 -> 14.490833
A60: T4N.DS-O | B60: =[4]SCENARIO1!BD63 -> 1.867242378 | C60: =[4]SCENARIO1!BE63 -> 0.5692813544 | D60: =[4]SCENARIO1!BF63 -> 0 | E60: =[4]SCENARIO1!BG63 -> 1.297961023 | F60: =[4]SCENARIO1!AB63 -> 0 | G60: =[4]SCENARIO1!AC63 -> 0 | H60: =[4]SCENARIO1!AD63 -> 0 | I60: =[4]SCENARIO1!AE63 -> 0 | J60: 1.867242378 | K60: 0.5692813544 | L60: 0 | M60: 1.297961023 | N60: =[4]SCENARIO1!AW63 -> 0.155154 | O60: =[4]SCENARIO1!AY63 -> 0
A61: T4N | B61: =[4]SCENARIO1!BD64 -> 1255.736587 | C61: =[4]SCENARIO1!BE64 -> 1163.403015 | D61: =[4]SCENARIO1!BF64 -> 92.3335726 | E61: =[4]SCENARIO1!BG64 -> 0 | F61: =[4]SCENARIO1!AB64 -> 961 | G61: =[4]SCENARIO1!AC64 -> 885 | H61: =[4]SCENARIO1!AD64 -> 56 | I61: =[4]SCENARIO1!AE64 -> 20 | J61: 294.7365873 | K61: 278.4030147 | L61: 36.3335726 | M61: -20 | N61: =[4]SCENARIO1!AW64 -> 0.754367 | O61: =[4]SCENARIO1!AY64 -> 52.356762
A62: T4N-O | B62: =[4]SCENARIO1!BD65 -> 538.3316461 | C62: =[4]SCENARIO1!BE65 -> 413.1382401 | D62: =[4]SCENARIO1!BF65 -> 125.1934061 | E62: =[4]SCENARIO1!BG65 -> 0 | F62: =[4]SCENARIO1!AB65 -> 70 | G62: =[4]SCENARIO1!AC65 -> 62 | H62: =[4]SCENARIO1!AD65 -> 0 | I62: =[4]SCENARIO1!AE65 -> 8 | J62: 468.3316461 | K62: 351.1382401 | L62: 125.1934061 | M62: -8 | N62: =[4]SCENARIO1!AW65 -> 3.241434 | O62: =[4]SCENARIO1!AY65 -> 22.12058
A63: PUD | B63: =[4]SCENARIO1!BD66 -> 0 | C63: =[4]SCENARIO1!BE66 -> 0 | D63: =[4]SCENARIO1!BF66 -> 0 | E63: =[4]SCENARIO1!BG66 -> 0 | F63: =[4]SCENARIO1!AB66 -> 0 | G63: =[4]SCENARIO1!AC66 -> 0 | H63: =[4]SCENARIO1!AD66 -> 0 | I63: =[4]SCENARIO1!AE66 -> 0 | J63: 0 | K63: 0 | L63: 0 | M63: 0 | N63: =[4]SCENARIO1!AW66 -> 202.890188 | O63: =[4]SCENARIO1!AY66 -> 0
A64: AV | B64: =[4]SCENARIO1!BD67 -> 0 | C64: =[4]SCENARIO1!BE67 -> 0 | D64: =[4]SCENARIO1!BF67 -> 0 | E64: =[4]SCENARIO1!BG67 -> 0 | F64: =[4]SCENARIO1!AB67 -> 0 | G64: =[4]SCENARIO1!AC67 -> 0 | H64: =[4]SCENARIO1!AD67 -> 0 | I64: =[4]SCENARIO1!AE67 -> 0 | J64: 0 | K64: 0 | L64: 0 | M64: 0 | N64: =[4]SCENARIO1!AW67 -> 1.975144 | O64: =[4]SCENARIO1!AY67 -> 0
A65: AG | B65: =[4]SCENARIO1!BD68 -> 0 | C65: =[4]SCENARIO1!BE68 -> 0 | D65: =[4]SCENARIO1!BF68 -> 0 | E65: =[4]SCENARIO1!BG68 -> 0 | F65: =[4]SCENARIO1!AB68 -> 0 | G65: =[4]SCENARIO1!AC68 -> 0 | H65: =[4]SCENARIO1!AD68 -> 0 | I65: =[4]SCENARIO1!AE68 -> 0 | J65: 0 | K65: 0 | L65: 0 | M65: 0 | N65: =[4]SCENARIO1!AW68 -> 0.610254 | O65: =[4]SCENARIO1!AY68 -> 0
A66: DR | B66: =[4]SCENARIO1!BD69 -> 0 | C66: =[4]SCENARIO1!BE69 -> 0 | D66: =[4]SCENARIO1!BF69 -> 0 | E66: =[4]SCENARIO1!BG69 -> 0 | F66: =[4]SCENARIO1!AB69 -> 0 | G66: =[4]SCENARIO1!AC69 -> 0 | H66: =[4]SCENARIO1!AD69 -> 0 | I66: =[4]SCENARIO1!AE69 -> 0 | J66: 0 | K66: 0 | L66: 0 | M66: 0 | N66: =[4]SCENARIO1!AW69 -> 394.435381 | O66: =[4]SCENARIO1!AY69 -> 0
A67: ERC | B67: =[4]SCENARIO1!BD70 -> 0 | C67: =[4]SCENARIO1!BE70 -> 0 | D67: =[4]SCENARIO1!BF70 -> 0 | E67: =[4]SCENARIO1!BG70 -> 0 | F67: =[4]SCENARIO1!AB70 -> 0 | G67: =[4]SCENARIO1!AC70 -> 0 | H67: =[4]SCENARIO1!AD70 -> 0 | I67: =[4]SCENARIO1!AE70 -> 0 | J67: 0 | K67: 0 | L67: 0 | M67: 0 | N67: =[4]SCENARIO1!AW70 -> 0 | O67: =[4]SCENARIO1!AY70 -> 0
A68: NBG | B68: =[4]SCENARIO1!BD71 -> 0 | C68: =[4]SCENARIO1!BE71 -> 0 | D68: =[4]SCENARIO1!BF71 -> 0 | E68: =[4]SCENARIO1!BG71 -> 0 | F68: =[4]SCENARIO1!AB71 -> 0 | G68: =[4]SCENARIO1!AC71 -> 0 | H68: =[4]SCENARIO1!AD71 -> 0 | I68: =[4]SCENARIO1!AE71 -> 0 | J68: 0 | K68: 0 | L68: 0 | M68: 0 | N68: =[4]SCENARIO1!AW71 -> 0 | O68: =[4]SCENARIO1!AY71 -> 0
A69: UNZ | B69: =[4]SCENARIO1!BD72 -> 0 | C69: =[4]SCENARIO1!BE72 -> 0 | D69: =[4]SCENARIO1!BF72 -> 0 | E69: =[4]SCENARIO1!BG72 -> 0 | F69: =[4]SCENARIO1!AB72 -> 0 | G69: =[4]SCENARIO1!AC72 -> 0 | H69: =[4]SCENARIO1!AD72 -> 0 | I69: =[4]SCENARIO1!AE72 -> 0 | J69: =B69-F69 -> 0 | K69: 0 | L69: 0 | M69: 0 | N69: =[4]SCENARIO1!AW72 -> 0 | O69: =[4]SCENARIO1!AY72 -> 0
A70: TOD | B70: =[4]SCENARIO1!BD73 -> 0 | C70: =[4]SCENARIO1!BE73 -> 0 | D70: =[4]SCENARIO1!BF73 -> 0 | E70: =[4]SCENARIO1!BG73 -> 0 | F70: =[4]SCENARIO1!AB73 -> 580 | G70: =[4]SCENARIO1!AC73 -> 561 | H70: =[4]SCENARIO1!AD73 -> 10 | I70: =[4]SCENARIO1!AE73 -> 9 | J70: -580 | K70: =C70-G70 -> -561 | L70: =D70-H70 -> -10 | M70: =E70-I70 -> -9 | N70: =[4]SCENARIO1!AW73 -> 42.06101 | O70: =[4]SCENARIO1!AY73 -> 86.584956
A71: T3N.DS-O | B71: =[4]SCENARIO1!BD74 -> 0 | C71: =[4]SCENARIO1!BE74 -> 0 | D71: =[4]SCENARIO1!BF74 -> 0 | E71: =[4]SCENARIO1!BG74 -> 0 | F71: =[4]SCENARIO1!AB74 -> 0 | G71: =[4]SCENARIO1!AC74 -> 0 | H71: =[4]SCENARIO1!AD74 -> 0 | I71: =[4]SCENARIO1!AE74 -> 0 | J71: 0 | K71: 0 | L71: 0 | M71: 0 | N71: =[4]SCENARIO1!AW74 -> 0 | O71: =[4]SCENARIO1!AY74 -> 0
A72: Whisper Valley PUD | B72: =[4]SCENARIO1!BD75 -> 6135.151336 | C72: =[4]SCENARIO1!BE75 -> 851.2240251 | D72: =[4]SCENARIO1!BF75 -> 543.4452522 | E72: =[4]SCENARIO1!BG75 -> 4740.482059 | F72: =[4]SCENARIO1!AB75 -> 0 | G72: =[4]SCENARIO1!AC75 -> 0 | H72: =[4]SCENARIO1!AD75 -> 0 | I72: =[4]SCENARIO1!AE75 -> 0 | J72: 6135.151336 | K72: 851.2240251 | L72: 543.4452522 | M72: 4740.482059 | N72: =[4]SCENARIO1!AW75 -> 2066.022682 | O72: =[4]SCENARIO1!AY75 -> 0
A73: Wildhorse Ranch PUD | B73: =[4]SCENARIO1!BD76 -> 5824.620295 | C73: =[4]SCENARIO1!BE76 -> 0 | D73: =[4]SCENARIO1!BF76 -> 0 | E73: =[4]SCENARIO1!BG76 -> 5824.620295 | F73: =[4]SCENARIO1!AB76 -> 0 | G73: =[4]SCENARIO1!AC76 -> 0 | H73: =[4]SCENARIO1!AD76 -> 0 | I73: =[4]SCENARIO1!AE76 -> 0 | J73: 5824.620295 | K73: 0 | L73: 0 | M73: 5824.620295 | N73: =[4]SCENARIO1!AW76 -> 1677.39501 | O73: =[4]SCENARIO1!AY76 -> 0
A74: Waters Edge PUD | B74: =[4]SCENARIO1!BD77 -> 1619.978334 | C74: =[4]SCENARIO1!BE77 -> 166.8787128 | D74: =[4]SCENARIO1!BF77 -> 1231.129385 | E74: =[4]SCENARIO1!BG77 -> 221.9702361 | F74: =[4]SCENARIO1!AB77 -> 0 | G74: =[4]SCENARIO1!AC77 -> 0 | H74: =[4]SCENARIO1!AD77 -> 0 | I74: =[4]SCENARIO1!AE77 -> 0 | J74: 1619.978334 | K74: 166.8787128 | L74: 1231.129385 | M74: 221.9702361 | N74: =[4]SCENARIO1!AW77 -> 282.144465 | O74: =[4]SCENARIO1!AY77 -> 0
A75: Robinson Ranch PUD | B75: =[4]SCENARIO1!BD78 -> 0 | C75: =[4]SCENARIO1!BE78 -> 0 | D75: =[4]SCENARIO1!BF78 -> 0 | E75: =[4]SCENARIO1!BG78 -> 0 | F75: =[4]SCENARIO1!AB78 -> 0 | G75: =[4]SCENARIO1!AC78 -> 0 | H75: =[4]SCENARIO1!AD78 -> 0 | I75: =[4]SCENARIO1!AE78 -> 0 | J75: 0 | K75: 0 | L75: 0 | M75: 0 | N75: =[4]SCENARIO1!AW78 -> 0 | O75: =[4]SCENARIO1!AY78 -> 0
A76: Goodnight Ranch PUD | B76: =[4]SCENARIO1!BD79 -> 4969.845377 | C76: =[4]SCENARIO1!BE79 -> 970.1702008 | D76: =[4]SCENARIO1!BF79 -> 0 | E76: =[4]SCENARIO1!BG79 -> 3999.675176 | F76: =[4]SCENARIO1!AB79 -> 1 | G76: =[4]SCENARIO1!AC79 -> 0 | H76: =[4]SCENARIO1!AD79 -> 0 | I76: =[4]SCENARIO1!AE79 -> 1 | J76: 4968.845377 | K76: 970.1702008 | L76: 0 | M76: 3998.675176 | N76: =[4]SCENARIO1!AW79 -> 588.397776 | O76: =[4]SCENARIO1!AY79 -> 0.246241
A77: UNO | B77: =[4]SCENARIO1!BD80 -> 1707.836042 | C77: =[4]SCENARIO1!BE80 -> 1707.836042 | D77: =[4]SCENARIO1!BF80 -> 0 | E77: =[4]SCENARIO1!BG80 -> 0 | F77: =[4]SCENARIO1!AB80 -> 245 | G77: =[4]SCENARIO1!AC80 -> 238 | H77: =[4]SCENARIO1!AD80 -> 6 | I77: =[4]SCENARIO1!AE80 -> 1 | J77: 1462.836042 | K77: 1469.836042 | L77: -6 | M77: -1 | N77: =[4]SCENARIO1!AW80 -> 0.538058 | O77: =[4]SCENARIO1!AY80 -> 12.09862
A78: Estancia PUD | B78: =[4]SCENARIO1!BD81 -> 1393.59578 | C78: =[4]SCENARIO1!BE81 -> 0 | D78: =[4]SCENARIO1!BF81 -> 0 | E78: =[4]SCENARIO1!BG81 -> 1393.59578 | F78: =[4]SCENARIO1!AB81 -> 0 | G78: =[4]SCENARIO1!AC81 -> 0 | H78: =[4]SCENARIO1!AD81 -> 0 | I78: =[4]SCENARIO1!AE81 -> 0 | J78: 1393.59578 | K78: 0 | L78: 0 | M78: 1393.59578 | N78: =[4]SCENARIO1!AW81 -> 401.332703 | O78: =[4]SCENARIO1!AY81 -> 0
A79: TOD - Medium Density Residential (TODMDR) | B79: =[4]SCENARIO1!BD82 -> 0 | C79: =[4]SCENARIO1!BE82 -> 0 | D79: =[4]SCENARIO1!BF82 -> 0 | E79: =[4]SCENARIO1!BG82 -> 0 | F79: =[4]SCENARIO1!AB82 -> 0 | G79: =[4]SCENARIO1!AC82 -> 0 | H79: =[4]SCENARIO1!AD82 -> 0 | I79: =[4]SCENARIO1!AE82 -> 0 | J79: 0 | K79: 0 | L79: 0 | M79: 0 | N79: =[4]SCENARIO1!AW82 -> 0 | O79: =[4]SCENARIO1!AY82 -> 0
A80: TOD – Low Density Residential (TODLDR) | B80: =[4]SCENARIO1!BD83 -> 0 | C80: =[4]SCENARIO1!BE83 -> 0 | D80: =[4]SCENARIO1!BF83 -> 0 | E80: =[4]SCENARIO1!BG83 -> 0 | F80: =[4]SCENARIO1!AB83 -> 0 | G80: =[4]SCENARIO1!AC83 -> 0 | H80: =[4]SCENARIO1!AD83 -> 0 | I80: =[4]SCENARIO1!AE83 -> 0 | J80: 0 | K80: 0 | L80: 0 | M80: 0 | N80: =[4]SCENARIO1!AW83 -> 0 | O80: =[4]SCENARIO1!AY83 -> 0
A81: TOD – TOD Mixed Use | B81: =[4]SCENARIO1!BD84 -> 5416.736321 | C81: =[4]SCENARIO1!BE84 -> 5416.736321 | D81: =[4]SCENARIO1!BF84 -> 0 | E81: =[4]SCENARIO1!BG84 -> 0 | F81: =[4]SCENARIO1!AB84 -> 122 | G81: =[4]SCENARIO1!AC84 -> 122 | H81: =[4]SCENARIO1!AD84 -> 0 | I81: =[4]SCENARIO1!AE84 -> 0 | J81: 5294.736321 | K81: 5294.736321 | L81: 0 | M81: 0 | N81: =[4]SCENARIO1!AW84 -> 163.412445 | O81: =[4]SCENARIO1!AY84 -> 64.366115
A82: TOD – Corridor Mixed Use (TODCMU) | B82: =[4]SCENARIO1!BD85 -> 0 | C82: =[4]SCENARIO1!BE85 -> 0 | D82: =[4]SCENARIO1!BF85 -> 0 | E82: =[4]SCENARIO1!BG85 -> 0 | F82: =[4]SCENARIO1!AB85 -> 0 | G82: =[4]SCENARIO1!AC85 -> 0 | H82: =[4]SCENARIO1!AD85 -> 0 | I82: =[4]SCENARIO1!AE85 -> 0 | J82: 0 | K82: 0 | L82: 0 | M82: 0 | N82: =[4]SCENARIO1!AW85 -> 0 | O82: =[4]SCENARIO1!AY85 -> 0
A83: South Shore PUD | B83: =[4]SCENARIO1!BD86 -> 4468.404018 | C83: =[4]SCENARIO1!BE86 -> 4348.002974 | D83: =[4]SCENARIO1!BF86 -> 120.4010437 | E83: =[4]SCENARIO1!BG86 -> 0 | F83: =[4]SCENARIO1!AB86 -> 457 | G83: =[4]SCENARIO1!AC86 -> 457 | H83: =[4]SCENARIO1!AD86 -> 0 | I83: =[4]SCENARIO1!AE86 -> 0 | J83: 4011.404018 | K83: 3891.002974 | L83: 120.4010437 | M83: 0 | N83: =[4]SCENARIO1!AW86 -> 0 | O83: =[4]SCENARIO1!AY86 -> 34.195053
A84: Total | B84: =SUM(B3:B83) -> 148215.8022 | C84: =SUM(C3:C83) -> 95697.34875 | D84: 21778.26936 | E84: 30740.18408 | F84: 10483 | G84: 9197 | H84: 687 | I84: 502 | J84: 137732.8022 | K84: 86500.34875 | L84: 21091.26936 | M84: 30238.18408 | N84: =SUM(N3:N83) -> 17967.84791 | O84: =SUM(O3:O83) -> 1974.563376

Sheet Draft 2
B1: New | F1: Units assumed to redevelop | J1: Net Growth | N1: Acres
A2: CodeNEXT2 | B2: Units | C2: Multifamily | D2: Townhome | E2: Single Family | F2: Units | G2: Multifamily | H2: Townhome | I2: Single Family | J2: Units | K2: Multifamily | L2: Townhome | M2: Single Family | N2: Vacant Developed | O2: Developed Redeveloped
A3: Rural Residential | B3: =[1]SCENARIO1!BD6 -> 912.2075191 | C3: =[1]SCENARIO1!BE6 -> 0 | D3: =[1]SCENARIO1!BF6 -> 0 | E3: =[1]SCENARIO1!BG6 -> 912.2075191 | F3: =[1]SCENARIO1!AB6 -> 0 | G3: =[1]SCENARIO1!AC6 -> 0 | H3: =[1]SCENARIO1!AD6 -> 0 | I3: =[1]SCENARIO1!AE6 -> 0 | J3: =B3-F3 -> 912.2075191 | K3: =C3-G3 -> 0 | L3: =D3-H3 -> 0 | M3: =E3-I3 -> 912.2075191 | N3: =[1]SCENARIO1!AW6 -> 1614.413721 | O3: =[1]SCENARIO1!AY6 -> 0
A4: Lake Austin | B4: =[1]SCENARIO1!BD7 -> 399.5563136 | C4: =[1]SCENARIO1!BE7 -> 0 | D4: =[1]SCENARIO1!BF7 -> 48.95851901 | E4: =[1]SCENARIO1!BG7 -> 350.5977946 | F4: =[1]SCENARIO1!AB7 -> 1 | G4: =[1]SCENARIO1!AC7 -> 0 | H4: =[1]SCENARIO1!AD7 -> 0 | I4: =[1]SCENARIO1!AE7 -> 1 | J4: 398.5563136 | K4: 0 | L4: 48.95851901 | M4: 349.5977946 | N4: =[1]SCENARIO1!AW7 -> 326.529309 | O4: =[1]SCENARIO1!AY7 -> 1.024338
A5: R1A | B5: =[1]SCENARIO1!BD8 -> 322.8172075 | C5: =[1]SCENARIO1!BE8 -> 0 | D5: =[1]SCENARIO1!BF8 -> 0 | E5: =[1]SCENARIO1!BG8 -> 322.8172075 | F5: =[1]SCENARIO1!AB8 -> 2 | G5: =[1]SCENARIO1!AC8 -> 0 | H5: =[1]SCENARIO1!AD8 -> 0 | I5: =[1]SCENARIO1!AE8 -> 2 | J5: 320.8172075 | K5: 0 | L5: 0 | M5: 320.8172075 | N5: =[1]SCENARIO1!AW8 -> 161.607966 | O5: =[1]SCENARIO1!AY8 -> 1.601186
A6: R1B | B6: =[1]SCENARIO1!BD9 -> 3075.064768 | C6: =[1]SCENARIO1!BE9 -> 0 | D6: =[1]SCENARIO1!BF9 -> 0 | E6: =[1]SCENARIO1!BG9 -> 3075.064768 | F6: =[1]SCENARIO1!AB9 -> 5 | G6: =[1]SCENARIO1!AC9 -> 0 | H6: =[1]SCENARIO1!AD9 -> 0 | I6: =[1]SCENARIO1!AE9 -> 5 | J6: 3070.064768 | K6: 0 | L6: 0 | M6: 3070.064768 | N6: =[1]SCENARIO1!AW9 -> 850.290855 | O6: =[1]SCENARIO1!AY9 -> 14.943158
A7: R1C | B7: =[1]SCENARIO1!BD10 -> 572.7934665 | C7: =[1]SCENARIO1!BE10 -> 0 | D7: =[1]SCENARIO1!BF10 -> 0 | E7: =[1]SCENARIO1!BG10 -> 572.7934665 | F7: =[1]SCENARIO1!AB10 -> 0 | G7: =[1]SCENARIO1!AC10 -> 0 | H7: =[1]SCENARIO1!AD10 -> 0 | I7: =[1]SCENARIO1!AE10 -> 0 | J7: 572.7934665 | K7: 0 | L7: 0 | M7: 572.7934665 | N7: =[1]SCENARIO1!AW10 -> 162.279671 | O7: =[1]SCENARIO1!AY10 -> 0
A8: R2A | B8: =[1]SCENARIO1!BD11 -> 4.552611893 | C8: =[1]SCENARIO1!BE11 -> 0 | D8: =[1]SCENARIO1!BF11 -> 0.4999874477 | E8: =[1]SCENARIO1!BG11 -> 4.052624445 | F8: =[1]SCENARIO1!AB11 -> 0 | G8: =[1]SCENARIO1!AC11 -> 0 | H8: =[1]SCENARIO1!AD11 -> 0 | I8: =[1]SCENARIO1!AE11 -> 0 | J8: 4.552611893 | K8: 0 | L8: 0.4999874477 | M8: 4.052624445 | N8: =[1]SCENARIO1!AW11 -> 1.204839 | O8: =[1]SCENARIO1!AY11 -> 0
A9: R2B | B9: =[1]SCENARIO1!BD12 -> 976.3308384 | C9: =[1]SCENARIO1!BE12 -> 0 | D9: =[1]SCENARIO1!BF12 -> 202.3792038 | E9: =[1]SCENARIO1!BG12 -> 773.9516346 | F9: =[1]SCENARIO1!AB12 -> 0 | G9: =[1]SCENARIO1!AC12 -> 0 | H9: =[1]SCENARIO1!AD12 -> 0 | I9: =[1]SCENARIO1!AE12 -> 0 | J9: 976.3308384 | K9: 0 | L9: 202.3792038 | M9: 773.9516346 | N9: =[1]SCENARIO1!AW12 -> 243.840479 | O9: =[1]SCENARIO1!AY12 -> 0
A10: R2C | B10: =[1]SCENARIO1!BD13 -> 1298.736493 | C10: =[1]SCENARIO1!BE13 -> 0 | D10: =[1]SCENARIO1!BF13 -> 269.2092137 | E10: =[1]SCENARIO1!BG13 -> 1029.527279 | F10: =[1]SCENARIO1!AB13 -> 45 | G10: =[1]SCENARIO1!AC13 -> 6 | H10: =[1]SCENARIO1!AD13 -> 12 | I10: =[1]SCENARIO1!AE13 -> 27 | J10: 1253.736493 | K10: -6 | L10: 257.2092137 | M10: 1002.527279 | N10: =[1]SCENARIO1!AW13 -> 300.637103 | O10: =[1]SCENARIO1!AY13 -> 16.951418
A11: R2D | B11: =[1]SCENARIO1!BD14 -> 2021.919789 | C11: =[1]SCENARIO1!BE14 -> 0 | D11: =[1]SCENARIO1!BF14 -> 0 | E11: =[1]SCENARIO1!BG14 -> 2021.919789 | F11: =[1]SCENARIO1!AB14 -> 0 | G11: =[1]SCENARIO1!AC14 -> 0 | H11: =[1]SCENARIO1!AD14 -> 0 | I11: =[1]SCENARIO1!AE14 -> 0 | J11: 2021.919789 | K11: 0 | L11: 0 | M11: 2021.919789 | N11: =[1]SCENARIO1!AW14 -> 284.012723 | O11: =[1]SCENARIO1!AY14 -> 0
A12: R2E | B12: =[1]SCENARIO1!BD15 -> 1035.830156 | C12: =[1]SCENARIO1!BE15 -> 0 | D12: =[1]SCENARIO1!BF15 -> 0 | E12: =[1]SCENARIO1!BG15 -> 1035.830156 | F12: =[1]SCENARIO1!AB15 -> 0 | G12: =[1]SCENARIO1!AC15 -> 0 | H12: =[1]SCENARIO1!AD15 -> 0 | I12: =[1]SCENARIO1!AE15 -> 0 | J12: 1035.830156 | K12: 0 | L12: 0 | M12: 1035.830156 | N12: =[1]SCENARIO1!AW15 -> 145.499809 | O12: =[1]SCENARIO1!AY15 -> 0
A13: R3A | B13: =[1]SCENARIO1!BD16 -> 17.89514871 | C13: =[1]SCENARIO1!BE16 -> 0 | D13: =[1]SCENARIO1!BF16 -> 5.965049571 | E13: =[1]SCENARIO1!BG16 -> 11.93009914 | F13: =[1]SCENARIO1!AB16 -> 0 | G13: =[1]SCENARIO1!AC16 -> 0 | H13: =[1]SCENARIO1!AD16 -> 0 | I13: =[1]SCENARIO1!AE16 -> 0 | J13: 17.89514871 | K13: 0 | L13: 5.965049571 | M13: 11.93009914 | N13: =[1]SCENARIO1!AW16 -> 3.815857 | O13: =[1]SCENARIO1!AY16 -> 0
A14: R3B | B14: =[1]SCENARIO1!BD17 -> 0 | C14: =[1]SCENARIO1!BE17 -> 0 | D14: =[1]SCENARIO1!BF17 -> 0 | E14: =[1]SCENARIO1!BG17 -> 0 | F14: =[1]SCENARIO1!AB17 -> 0 | G14: =[1]SCENARIO1!AC17 -> 0 | H14: =[1]SCENARIO1!AD17 -> 0 | I14: =[1]SCENARIO1!AE17 -> 0 | J14: 0 | K14: 0 | L14: 0 | M14: 0 | N14: =[1]SCENARIO1!AW17 -> 0 | O14: =[1]SCENARIO1!AY17 -> 0
A15: R3C | B15: =[1]SCENARIO1!BD18 -> 1262.20784 | C15: =[1]SCENARIO1!BE18 -> 0 | D15: =[1]SCENARIO1!BF18 -> 717.1639538 | E15: =[1]SCENARIO1!BG18 -> 545.043886 | F15: =[1]SCENARIO1!AB18 -> 394 | G15: =[1]SCENARIO1!AC18 -> 81 | H15: =[1]SCENARIO1!AD18 -> 109 | I15: =[1]SCENARIO1!AE18 -> 204 | J15: 868.2078398 | K15: -81 | L15: 608.1639538 | M15: 341.043886 | N15: =[1]SCENARIO1!AW18 -> 52.983681 | O15: =[1]SCENARIO1!AY18 -> 80.696873
A16: R3D | B16: =[1]SCENARIO1!BD19 -> 0 | C16: =[1]SCENARIO1!BE19 -> 0 | D16: =[1]SCENARIO1!BF19 -> 0 | E16: =[1]SCENARIO1!BG19 -> 0 | F16: =[1]SCENARIO1!AB19 -> 0 | G16: =[1]SCENARIO1!AC19 -> 0 | H16: =[1]SCENARIO1!AD19 -> 0 | I16: =[1]SCENARIO1!AE19 -> 0 | J16: 0 | K16: 0 | L16: 0 | M16: 0 | N16: =[1]SCENARIO1!AW19 -> 0 | O16: =[1]SCENARIO1!AY19 -> 0
A17: R4A | B17: =[1]SCENARIO1!BD20 -> 487.4504258 | C17: =[1]SCENARIO1!BE20 -> 304.6565161 | D17: =[1]SCENARIO1!BF20 -> 121.8626064 | E17: =[1]SCENARIO1!BG20 -> 60.93130322 | F17: =[1]SCENARIO1!AB20 -> 336 | G17: =[1]SCENARIO1!AC20 -> 197 | H17: =[1]SCENARIO1!AD20 -> 103 | I17: =[1]SCENARIO1!AE20 -> 36 | J17: 151.4504258 | K17: 107.6565161 | L17: 18.86260644 | M17: 24.93130322 | N17: =[1]SCENARIO1!AW20 -> 6.023802 | O17: =[1]SCENARIO1!AY20 -> 29.895799
A18: R4B | B18: =[1]SCENARIO1!BD21 -> 80.28563161 | C18: =[1]SCENARIO1!BE21 -> 42.70512629 | D18: =[1]SCENARIO1!BF21 -> 21.35256314 | E18: =[1]SCENARIO1!BG21 -> 16.22794218 | F18: =[1]SCENARIO1!AB21 -> 51 | G18: =[1]SCENARIO1!AC21 -> 34 | H18: =[1]SCENARIO1!AD21 -> 12 | I18: =[1]SCENARIO1!AE21 -> 5 | J18: 29.28563161 | K18: 8.705126288 | L18: 9.352563144 | M18: 11.22794218 | N18: =[1]SCENARIO1!AW21 -> 0 | O18: =[1]SCENARIO1!AY21 -> 4.084895
A19: R4C | B19: =[1]SCENARIO1!BD22 -> 0 | C19: =[1]SCENARIO1!BE22 -> 0 | D19: =[1]SCENARIO1!BF22 -> 0 | E19: =[1]SCENARIO1!BG22 -> 0 | F19: =[1]SCENARIO1!AB22 -> 0 | G19: =[1]SCENARIO1!AC22 -> 0 | H19: =[1]SCENARIO1!AD22 -> 0 | I19: =[1]SCENARIO1!AE22 -> 0 | J19: 0 | K19: 0 | L19: 0 | M19: 0 | N19: =[1]SCENARIO1!AW22 -> 0 | O19: =[1]SCENARIO1!AY22 -> 0
A20: RM1A | B20: =[1]SCENARIO1!BD23 -> 7266.141089 | C20: =[1]SCENARIO1!BE23 -> 0 | D20: =[1]SCENARIO1!BF23 -> 6597.722444 | E20: =[1]SCENARIO1!BG23 -> 668.4186445 | F20: =[1]SCENARIO1!AB23 -> 573 | G20: =[1]SCENARIO1!AC23 -> 485 | H20: =[1]SCENARIO1!AD23 -> 45 | I20: =[1]SCENARIO1!AE23 -> 43 | J20: 6693.141089 | K20: -485 | L20: 6552.722444 | M20: 625.4186445 | N20: =[1]SCENARIO1!AW23 -> 375.733268 | O20: =[1]SCENARIO1!AY23 -> 168.051164
A21: RM1B | B21: =[1]SCENARIO1!BD24 -> 1540.850476 | C21: =[1]SCENARIO1!BE24 -> 1427.552647 | D21: =[1]SCENARIO1!BF24 -> 113.2978291 | E21: =[1]SCENARIO1!BG24 -> 0 | F21: =[1]SCENARIO1!AB24 -> 1098 | G21: =[1]SCENARIO1!AC24 -> 1016 | H21: =[1]SCENARIO1!AD24 -> 65 | I21: =[1]SCENARIO1!AE24 -> 17 | J21: 442.8504757 | K21: 411.5526466 | L21: 48.2978291 | M21: -17 | N21: =[1]SCENARIO1!AW24 -> 0.445786 | O21: =[1]SCENARIO1!AY24 -> 64.648513
A22: RM2A | B22: =[1]SCENARIO1!BD25 -> 8562.823719 | C22: =[1]SCENARIO1!BE25 -> 5757.844401 | D22: =[1]SCENARIO1!BF25 -> 2804.979318 | E22: =[1]SCENARIO1!BG25 -> 0 | F22: =[1]SCENARIO1!AB25 -> 1419 | G22: =[1]SCENARIO1!AC25 -> 1404 | H22: =[1]SCENARIO1!AD25 -> 5 | I22: =[1]SCENARIO1!AE25 -> 10 | J22: 7143.823719 | K22: 4353.844401 | L22: 2799.979318 | M22: -10 | N22: =[1]SCENARIO1!AW25 -> 314.162912 | O22: =[1]SCENARIO1!AY25 -> 121.977672
A23: RM2B | B23: =[1]SCENARIO1!BD26 -> 753.2343346 | C23: =[1]SCENARIO1!BE26 -> 470.7714591 | D23: =[1]SCENARIO1!BF26 -> 0 | E23: =[1]SCENARIO1!BG26 -> 282.4628755 | F23: =[1]SCENARIO1!AB26 -> 349 | G23: =[1]SCENARIO1!AC26 -> 345 | H23: =[1]SCENARIO1!AD26 -> 0 | I23: =[1]SCENARIO1!AE26 -> 4 | J23: 404.2343346 | K23: 125.7714591 | L23: 0 | M23: 278.4628755 | N23: =[1]SCENARIO1!AW26 -> 0 | O23: =[1]SCENARIO1!AY26 -> 27.018564
A24: RM3A | B24: =[1]SCENARIO1!BD27 -> 15099.62581 | C24: =[1]SCENARIO1!BE27 -> 14085.19337 | D24: =[1]SCENARIO1!BF27 -> 703.4101009 | E24: =[1]SCENARIO1!BG27 -> 311.022339 | F24: =[1]SCENARIO1!AB27 -> 1835 | G24: =[1]SCENARIO1!AC27 -> 1761 | H24: =[1]SCENARIO1!AD27 -> 49 | I24: =[1]SCENARIO1!AE27 -> 25 | J24: 13264.62581 | K24: 12324.19337 | L24: 654.4101009 | M24: 286.022339 | N24: =[1]SCENARIO1!AW27 -> 303.039265 | O24: =[1]SCENARIO1!AY27 -> 178.254068
A25: RM4A | B25: =[1]SCENARIO1!BD28 -> 1249.440648 | C25: =[1]SCENARIO1!BE28 -> 1204.756418 | D25: =[1]SCENARIO1!BF28 -> 0 | E25: =[1]SCENARIO1!BG28 -> 44.68422962 | F25: =[1]SCENARIO1!AB28 -> 473 | G25: =[1]SCENARIO1!AC28 -> 473 | H25: =[1]SCENARIO1!AD28 -> 0 | I25: =[1]SCENARIO1!AE28 -> 0 | J25: 776.440648 | K25: 731.7564184 | L25: 0 | M25: 44.68422962 | N25: =[1]SCENARIO1!AW28 -> 0.694173 | O25: =[1]SCENARIO1!AY28 -> 16.575329
A26: RM5A | B26: =[1]SCENARIO1!BD29 -> 1682.252455 | C26: =[1]SCENARIO1!BE29 -> 1682.252455 | D26: =[1]SCENARIO1!BF29 -> 0 | E26: =[1]SCENARIO1!BG29 -> 0 | F26: =[1]SCENARIO1!AB29 -> 310 | G26: =[1]SCENARIO1!AC29 -> 310 | H26: =[1]SCENARIO1!AD29 -> 0 | I26: =[1]SCENARIO1!AE29 -> 0 | J26: 1372.252455 | K26: 1372.252455 | L26: 0 | M26: 0 | N26: =[1]SCENARIO1!AW29 -> 2.125216 | O26: =[1]SCENARIO1!AY29 -> 18.31487
A27: MHP | B27: =[1]SCENARIO1!BD30 -> 0 | C27: =[1]SCENARIO1!BE30 -> 0 | D27: =[1]SCENARIO1!BF30 -> 0 | E27: =[1]SCENARIO1!BG30 -> 0 | F27: =[1]SCENARIO1!AB30 -> 0 | G27: =[1]SCENARIO1!AC30 -> 0 | H27: =[1]SCENARIO1!AD30 -> 0 | I27: =[1]SCENARIO1!AE30 -> 0 | J27: 0 | K27: 0 | L27: 0 | M27: 0 | N27: =[1]SCENARIO1!AW30 -> 36.697426 | O27: =[1]SCENARIO1!AY30 -> 0
A28: MU1A | B28: =[1]SCENARIO1!BD31 -> 159.0009473 | C28: =[1]SCENARIO1!BE31 -> 88.49775101 | D28: =[1]SCENARIO1!BF31 -> 44.2488755 | E28: =[1]SCENARIO1!BG31 -> 26.25432076 | F28: =[1]SCENARIO1!AB31 -> 38 | G28: =[1]SCENARIO1!AC31 -> 30 | H28: =[1]SCENARIO1!AD31 -> 6 | I28: =[1]SCENARIO1!AE31 -> 2 | J28: 121.0009473 | K28: 58.49775101 | L28: 38.2488755 | M28: 24.25432076 | N28: =[1]SCENARIO1!AW31 -> 2.639262 | O28: =[1]SCENARIO1!AY31 -> 6.242022
A29: MU1B | B29: =[1]SCENARIO1!BD32 -> 222.100921 | C29: =[1]SCENARIO1!BE32 -> 123.6183328 | D29: =[1]SCENARIO1!BF32 -> 61.80916638 | E29: =[1]SCENARIO1!BG32 -> 36.6734219 | F29: =[1]SCENARIO1!AB32 -> 53 | G29: =[1]SCENARIO1!AC32 -> 39 | H29: =[1]SCENARIO1!AD32 -> 4 | I29: =[1]SCENARIO1!AE32 -> 10 | J29: 169.100921 | K29: 84.61833276 | L29: 57.80916638 | M29: 26.6734219 | N29: =[1]SCENARIO1!AW32 -> 0.515888 | O29: =[1]SCENARIO1!AY32 -> 11.389985
A30: MU1C | B30: =[1]SCENARIO1!BD33 -> 186.2560747 | C30: =[1]SCENARIO1!BE33 -> 170.8630107 | D30: =[1]SCENARIO1!BF33 -> 15.39306402 | E30: =[1]SCENARIO1!BG33 -> 0 | F30: =[1]SCENARIO1!AB33 -> 4 | G30: =[1]SCENARIO1!AC33 -> 0 | H30: =[1]SCENARIO1!AD33 -> 1 | I30: =[1]SCENARIO1!AE33 -> 3 | J30: 182.2560747 | K30: 170.8630107 | L30: 14.39306402 | M30: -3 | N30: =[1]SCENARIO1!AW33 -> 1.642933 | O30: =[1]SCENARIO1!AY33 -> 7.450531
A31: MU1D | B31: =[1]SCENARIO1!BD34 -> 352.2242421 | C31: =[1]SCENARIO1!BE34 -> 323.1148006 | D31: =[1]SCENARIO1!BF34 -> 29.1094415 | E31: =[1]SCENARIO1!BG34 -> 0 | F31: =[1]SCENARIO1!AB34 -> 58 | G31: =[1]SCENARIO1!AC34 -> 55 | H31: =[1]SCENARIO1!AD34 -> 0 | I31: =[1]SCENARIO1!AE34 -> 3 | J31: 294.2242421 | K31: 268.1148006 | L31: 29.1094415 | M31: -3 | N31: =[1]SCENARIO1!AW34 -> 3.546864 | O31: =[1]SCENARIO1!AY34 -> 13.718933
A32: MU2A | B32: =[1]SCENARIO1!BD35 -> 7184.249043 | C32: =[1]SCENARIO1!BE35 -> 2767.987199 | D32: =[1]SCENARIO1!BF35 -> 4416.261844 | E32: =[1]SCENARIO1!BG35 -> 0 | F32: =[1]SCENARIO1!AB35 -> 321 | G32: =[1]SCENARIO1!AC35 -> 286 | H32: =[1]SCENARIO1!AD35 -> 6 | I32: =[1]SCENARIO1!AE35 -> 29 | J32: 6863.249043 | K32: 2481.987199 | L32: 4410.261844 | M32: -29 | N32: =[1]SCENARIO1!AW35 -> 569.343566 | O32: =[1]SCENARIO1!AY35 -> 165.883048
A33: MU2B | B33: =[1]SCENARIO1!BD36 -> 6315.4681 | C33: =[1]SCENARIO1!BE36 -> 4034.132706 | D33: =[1]SCENARIO1!BF36 -> 2281.335394 | E33: =[1]SCENARIO1!BG36 -> 0 | F33: =[1]SCENARIO1!AB36 -> 39 | G33: =[1]SCENARIO1!AC36 -> 19 | H33: =[1]SCENARIO1!AD36 -> 10 | I33: =[1]SCENARIO1!AE36 -> 10 | J33: 6276.4681 | K33: 4015.132706 | L33: 2271.335394 | M33: -10 | N33: =[1]SCENARIO1!AW36 -> 357.394258 | O33: =[1]SCENARIO1!AY36 -> 19.573627
A34: MU3A | B34: =[1]SCENARIO1!BD37 -> 21213.13436 | C34: =[1]SCENARIO1!BE37 -> 13212.8748 | D34: =[1]SCENARIO1!BF37 -> 8000.259563 | E34: =[1]SCENARIO1!BG37 -> 0 | F34: =[1]SCENARIO1!AB37 -> 247 | G34: =[1]SCENARIO1!AC37 -> 213 | H34: =[1]SCENARIO1!AD37 -> 12 | I34: =[1]SCENARIO1!AE37 -> 21 | J34: 20966.13436 | K34: 12999.8748 | L34: 7988.259563 | M34: -21 | N34: =[1]SCENARIO1!AW37 -> 1088.862208 | O34: =[1]SCENARIO1!AY37 -> 200.526341
A35: MU4A | B35: =[1]SCENARIO1!BD38 -> 1265.928912 | C35: =[1]SCENARIO1!BE38 -> 788.5001779 | D35: =[1]SCENARIO1!BF38 -> 477.4287341 | E35: =[1]SCENARIO1!BG38 -> 0 | F35: =[1]SCENARIO1!AB38 -> 0 | G35: =[1]SCENARIO1!AC38 -> 0 | H35: =[1]SCENARIO1!AD38 -> 0 | I35: =[1]SCENARIO1!AE38 -> 0 | J35: =B35-F35 -> 1265.928912 | K35: =C35-G35 -> 788.5001779 | L35: =D35-H35 -> 477.4287341 | M35: =E35-I35 -> 0 | N35: =[1]SCENARIO1!AW38 -> 92.827112 | O35: =[1]SCENARIO1!AY38 -> 0.835637
A36: MU4B | B36: =[1]SCENARIO1!BD39 -> 21994.36876 | C36: =[1]SCENARIO1!BE39 -> 21994.36876 | D36: =[1]SCENARIO1!BF39 -> 0 | E36: =[1]SCENARIO1!BG39 -> 0 | F36: =[1]SCENARIO1!AB39 -> 556 | G36: =[1]SCENARIO1!AC39 -> 426 | H36: =[1]SCENARIO1!AD39 -> 4 | I36: =[1]SCENARIO1!AE39 -> 34 | J36: 21438.36876 | K36: 21568.36876 | L36: -4 | M36: -34 | N36: =[1]SCENARIO1!AW39 -> 926.861864 | O36: =[1]SCENARIO1!AY39 -> 304.624182
A37: MU5A | B37: =[1]SCENARIO1!BD40 -> 2535.677219 | C37: =[1]SCENARIO1!BE40 -> 2535.677219 | D37: =[1]SCENARIO1!BF40 -> 0 | E37: =[1]SCENARIO1!BG40 -> 0 | F37: =[1]SCENARIO1!AB40 -> 0 | G37: =[1]SCENARIO1!AC40 -> 0 | H37: =[1]SCENARIO1!AD40 -> 0 | I37: =[1]SCENARIO1!AE40 -> 0 | J37: 2535.677219 | K37: 2535.677219 | L37: 0 | M37: 0 | N37: =[1]SCENARIO1!AW40 -> 144.871333 | O37: =[1]SCENARIO1!AY40 -> 4.41796
A38: MS1A | B38: =[1]SCENARIO1!BD41 -> 54.40577737 | C38: =[1]SCENARIO1!BE41 -> 39.48927075 | D38: =[1]SCENARIO1!BF41 -> 0 | E38: =[1]SCENARIO1!BG41 -> 14.91650661 | F38: =[1]SCENARIO1!AB41 -> 3 | G38: =[1]SCENARIO1!AC41 -> 0 | H38: =[1]SCENARIO1!AD41 -> 0 | I38: =[1]SCENARIO1!AE41 -> 3 | J38: 51.40577737 | K38: 39.48927075 | L38: 0 | M38: 11.91650661 | N38: =[1]SCENARIO1!AW41 -> 0 | O38: =[1]SCENARIO1!AY41 -> 2.294004
A39: MS1B | B39: =[1]SCENARIO1!BD42 -> 531.2532492 | C39: =[1]SCENARIO1!BE42 -> 385.5988171 | D39: =[1]SCENARIO1!BF42 -> 0 | E39: =[1]SCENARIO1!BG42 -> 145.6544321 | F39: =[1]SCENARIO1!AB42 -> 28 | G39: =[1]SCENARIO1!AC42 -> 7 | H39: =[1]SCENARIO1!AD42 -> 8 | I39: =[1]SCENARIO1!AE42 -> 13 | J39: 503.2532492 | K39: 378.5988171 | L39: -8 | M39: 132.6544321 | N39: =[1]SCENARIO1!AW42 -> 0.433409 | O39: =[1]SCENARIO1!AY42 -> 22.126058
A40: MS2A | B40: =[1]SCENARIO1!BD43 -> 491.1763793 | C40: =[1]SCENARIO1!BE43 -> 464.3656796 | D40: =[1]SCENARIO1!BF43 -> 0 | E40: =[1]SCENARIO1!BG43 -> 26.81069967 | F40: =[1]SCENARIO1!AB43 -> 57 | G40: =[1]SCENARIO1!AC43 -> 54 | H40: =[1]SCENARIO1!AD43 -> 2 | I40: =[1]SCENARIO1!AE43 -> 1 | J40: 434.1763793 | K40: 410.3656796 | L40: -2 | M40: 25.81069967 | N40: =[1]SCENARIO1!AW43 -> 3.916749 | O40: =[1]SCENARIO1!AY43 -> 13.795391
A41: MS2B | B41: =[1]SCENARIO1!BD44 -> 3764.713349 | C41: =[1]SCENARIO1!BE44 -> 3559.21772 | D41: =[1]SCENARIO1!BF44 -> 0 | E41: =[1]SCENARIO1!BG44 -> 205.4956289 | F41: =[1]SCENARIO1!AB44 -> 63 | G41: =[1]SCENARIO1!AC44 -> 47 | H41: =[1]SCENARIO1!AD44 -> 4 | I41: =[1]SCENARIO1!AE44 -> 12 | J41: 3701.713349 | K41: 3512.21772 | L41: -4 | M41: 193.4956289 | N41: =[1]SCENARIO1!AW44 -> 18.766282 | O41: =[1]SCENARIO1!AY44 -> 113.488171
A42: MS2C | B42: =[1]SCENARIO1!BD45 -> 462.5221656 | C42: =[1]SCENARIO1!BE45 -> 437.2755467 | D42: =[1]SCENARIO1!BF45 -> 0 | E42: =[1]SCENARIO1!BG45 -> 25.24661893 | F42: =[1]SCENARIO1!AB45 -> 7 | G42: =[1]SCENARIO1!AC45 -> 0 | H42: =[1]SCENARIO1!AD45 -> 4 | I42: =[1]SCENARIO1!AE45 -> 3 | J42: 455.5221656 | K42: 437.2755467 | L42: -4 | M42: 22.24661893 | N42: =[1]SCENARIO1!AW45 -> 2.585006 | O42: =[1]SCENARIO1!AY45 -> 13.750396
A43: MS3A | B43: =[1]SCENARIO1!BD46 -> 11035.11128 | C43: =[1]SCENARIO1!BE46 -> 11035.11128 | D43: =[1]SCENARIO1!BF46 -> 0 | E43: =[1]SCENARIO1!BG46 -> 0 | F43: =[1]SCENARIO1!AB46 -> 211 | G43: =[1]SCENARIO1!AC46 -> 206 | H43: =[1]SCENARIO1!AD46 -> 0 | I43: =[1]SCENARIO1!AE46 -> 0 | J43: 10824.11128 | K43: 10829.11128 | L43: 0 | M43: 0 | N43: =[1]SCENARIO1!AW46 -> 4.301366 | O43: =[1]SCENARIO1!AY46 -> 160.512236
A44: MS3B | B44: =[1]SCENARIO1!BD47 -> 5859.671824 | C44: =[1]SCENARIO1!BE47 -> 5859.671824 | D44: =[1]SCENARIO1!BF47 -> 0 | E44: =[1]SCENARIO1!BG47 -> 0 | F44: =[1]SCENARIO1!AB47 -> 264 | G44: =[1]SCENARIO1!AC47 -> 263 | H44: =[1]SCENARIO1!AD47 -> 0 | I44: =[1]SCENARIO1!AE47 -> 1 | J44: 5595.671824 | K44: 5596.671824 | L44: 0 | M44: -1 | N44: =[1]SCENARIO1!AW47 -> 3.201155 | O44: =[1]SCENARIO1!AY47 -> 81.081377
A45: UC | B45: =[1]SCENARIO1!BD48 -> 0 | C45: =[1]SCENARIO1!BE48 -> 0 | D45: =[1]SCENARIO1!BF48 -> 0 | E45: =[1]SCENARIO1!BG48 -> 0 | F45: =[1]SCENARIO1!AB48 -> 0 | G45: =[1]SCENARIO1!AC48 -> 0 | H45: =[1]SCENARIO1!AD48 -> 0 | I45: =[1]SCENARIO1!AE48 -> 0 | J45: 0 | K45: 0 | L45: 0 | M45: 0 | N45: =[1]SCENARIO1!AW48 -> 0 | O45: =[1]SCENARIO1!AY48 -> 0
A46: CC40 | B46: =[1]SCENARIO1!BD49 -> 53.91183828 | C46: =[1]SCENARIO1!BE49 -> 53.91183828 | D46: =[1]SCENARIO1!BF49 -> 0 | E46: =[1]SCENARIO1!BG49 -> 0 | F46: =[1]SCENARIO1!AB49 -> 0 | G46: =[1]SCENARIO1!AC49 -> 0 | H46: =[1]SCENARIO1!AD49 -> 0 | I46: =[1]SCENARIO1!AE49 -> 0 | J46: 53.91183828 | K46: 53.91183828 | L46: 0 | M46: 0 | N46: =[1]SCENARIO1!AW49 -> 0.344385 | O46: =[1]SCENARIO1!AY49 -> 2.388139
A47: CC60 | B47: =[1]SCENARIO1!BD50 -> 162.0569004 | C47: =[1]SCENARIO1!BE50 -> 162.0569004 | D47: =[1]SCENARIO1!BF50 -> 0 | E47: =[1]SCENARIO1!BG50 -> 0 | F47: =[1]SCENARIO1!AB50 -> 10 | G47: =[1]SCENARIO1!AC50 -> 10 | H47: =[1]SCENARIO1!AD50 -> 0 | I47: =[1]SCENARIO1!AE50 -> 0 | J47: 152.0569004 | K47: 152.0569004 | L47: 0 | M47: 0 | N47: =[1]SCENARIO1!AW50 -> 0.203507 | O47: =[1]SCENARIO1!AY50 -> 7.642995
A48: CC80 | B48: =[1]SCENARIO1!BD51 -> 71.35681964 | C48: =[1]SCENARIO1!BE51 -> 71.35681964 | D48: =[1]SCENARIO1!BF51 -> 0 | E48: =[1]SCENARIO1!BG51 -> 0 | F48: =[1]SCENARIO1!AB51 -> 2 | G48: =[1]SCENARIO1!AC51 -> 0 | H48: =[1]SCENARIO1!AD51 -> 0 | I48: =[1]SCENARIO1!AE51 -> 2 | J48: 69.35681964 | K48: 71.35681964 | L48: 0 | M48: -2 | N48: =[1]SCENARIO1!AW51 -> 0 | O48: =[1]SCENARIO1!AY51 -> 1.258876
A49: CC120 | B49: =[1]SCENARIO1!BD52 -> 1197.183938 | C49: =[1]SCENARIO1!BE52 -> 1197.183938 | D49: =[1]SCENARIO1!BF52 -> 0 | E49: =[1]SCENARIO1!BG52 -> 0 | F49: =[1]SCENARIO1!AB52 -> 32 | G49: =[1]SCENARIO1!AC52 -> 30 | H49: =[1]SCENARIO1!AD52 -> 0 | I49: =[1]SCENARIO1!AE52 -> 2 | J49: 1165.183938 | K49: 1167.183938 | L49: 0 | M49: -2 | N49: =[1]SCENARIO1!AW52 -> 0.558017 | O49: =[1]SCENARIO1!AY52 -> 7.089818
A50: DC | B50: =[1]SCENARIO1!BD53 -> 2969.923372 | C50: =[1]SCENARIO1!BE53 -> 2969.923372 | D50: =[1]SCENARIO1!BF53 -> 0 | E50: =[1]SCENARIO1!BG53 -> 0 | F50: =[1]SCENARIO1!AB53 -> 3 | G50: =[1]SCENARIO1!AC53 -> 0 | H50: =[1]SCENARIO1!AD53 -> 0 | I50: =[1]SCENARIO1!AE53 -> 3 | J50: 2966.923372 | K50: 2969.923372 | L50: 0 | M50: -3 | N50: =[1]SCENARIO1!AW53 -> 2.58042 | O50: =[1]SCENARIO1!AY53 -> 14.520438
A51: CR | B51: =[1]SCENARIO1!BD54 -> 0 | C51: =[1]SCENARIO1!BE54 -> 0 | D51: =[1]SCENARIO1!BF54 -> 0 | E51: =[1]SCENARIO1!BG54 -> 0 | F51: =[1]SCENARIO1!AB54 -> 0 | G51: =[1]SCENARIO1!AC54 -> 0 | H51: =[1]SCENARIO1!AD54 -> 0 | I51: =[1]SCENARIO1!AE54 -> 0 | J51: 0 | K51: 0 | L51: 0 | M51: 0 | N51: =[1]SCENARIO1!AW54 -> 91.443314 | O51: =[1]SCENARIO1!AY54 -> 0
A52: CW | B52: =[1]SCENARIO1!BD55 -> 0 | C52: =[1]SCENARIO1!BE55 -> 0 | D52: =[1]SCENARIO1!BF55 -> 0 | E52: =[1]SCENARIO1!BG55 -> 0 | F52: =[1]SCENARIO1!AB55 -> 1 | G52: =[1]SCENARIO1!AC55 -> 0 | H52: =[1]SCENARIO1!AD55 -> 0 | I52: =[1]SCENARIO1!AE55 -> 1 | J52: -1 | K52: 0 | L52: 0 | M52: -1 | N52: =[1]SCENARIO1!AW55 -> 138.984021 | O52: =[1]SCENARIO1!AY55 -> 1.79267
A53: IF | B53: =[1]SCENARIO1!BD56 -> 1314.201302 | C53: =[1]SCENARIO1!BE56 -> 0 | D53: =[1]SCENARIO1!BF56 -> 0 | E53: =[1]SCENARIO1!BG56 -> 1314.201302 | F53: =[1]SCENARIO1!AB56 -> 0 | G53: =[1]SCENARIO1!AC56 -> 0 | H53: =[1]SCENARIO1!AD56 -> 0 | I53: =[1]SCENARIO1!AE56 -> 0 | J53: 1314.201302 | K53: 0 | L53: 0 | M53: 1314.201302 | N53: =[1]SCENARIO1!AW56 -> 971.929772 | O53: =[1]SCENARIO1!AY56 -> 0
A54: IG | B54: =[1]SCENARIO1!BD57 -> 0 | C54: =[1]SCENARIO1!BE57 -> 0 | D54: =[1]SCENARIO1!BF57 -> 0 | E54: =[1]SCENARIO1!BG57 -> 0 | F54: =[1]SCENARIO1!AB57 -> 0 | G54: =[1]SCENARIO1!AC57 -> 0 | H54: =[1]SCENARIO1!AD57 -> 0 | I54: =[1]SCENARIO1!AE57 -> 0 | J54: 0 | K54: 0 | L54: 0 | M54: 0 | N54: =[1]SCENARIO1!AW57 -> 88.172602 | O54: =[1]SCENARIO1!AY57 -> 0
A55: IH | B55: =[1]SCENARIO1!BD58 -> 0 | C55: =[1]SCENARIO1!BE58 -> 0 | D55: =[1]SCENARIO1!BF58 -> 0 | E55: =[1]SCENARIO1!BG58 -> 0 | F55: =[1]SCENARIO1!AB58 -> 0 | G55: =[1]SCENARIO1!AC58 -> 0 | H55: =[1]SCENARIO1!AD58 -> 0 | I55: =[1]SCENARIO1!AE58 -> 0 | J55: 0 | K55: 0 | L55: 0 | M55: 0 | N55: =[1]SCENARIO1!AW58 -> 0 | O55: =[1]SCENARIO1!AY58 -> 0
A56: R&D | B56: =[1]SCENARIO1!BD59 -> 0 | C56: =[1]SCENARIO1!BE59 -> 0 | D56: =[1]SCENARIO1!BF59 -> 0 | E56: =[1]SCENARIO1!BG59 -> 0 | F56: =[1]SCENARIO1!AB59 -> 0 | G56: =[1]SCENARIO1!AC59 -> 0 | H56: =[1]SCENARIO1!AD59 -> 0 | I56: =[1]SCENARIO1!AE59 -> 0 | J56: 0 | K56: 0 | L56: 0 | M56: 0 | N56: =[1]SCENARIO1!AW59 -> 19.527721 | O56: =[1]SCENARIO1!AY59 -> 0
A57: P | B57: =[1]SCENARIO1!BD60 -> 0 | C57: =[1]SCENARIO1!BE60 -> 0 | D57: =[1]SCENARIO1!BF60 -> 0 | E57: =[1]SCENARIO1!BG60 -> 0 | F57: =[1]SCENARIO1!AB60 -> 0 | G57: =[1]SCENARIO1!AC60 -> 0 | H57: =[1]SCENARIO1!AD60 -> 0 | I57: =[1]SCENARIO1!AE60 -> 0 | J57: 0 | K57: 0 | L57: 0 | M57: 0 | N57: =[1]SCENARIO1!AW60 -> 213.999518 | O57: =[1]SCENARIO1!AY60 -> 0
A58: PUD | B58: =[1]SCENARIO1!BD61 -> 0 | C58: =[1]SCENARIO1!BE61 -> 0 | D58: =[1]SCENARIO1!BF61 -> 0 | E58: =[1]SCENARIO1!BG61 -> 0 | F58: =[1]SCENARIO1!AB61 -> 671 | G58: =[1]SCENARIO1!AC61 -> 457 | H58: =[1]SCENARIO1!AD61 -> 214 | I58: =[1]SCENARIO1!AE61 -> 0 | J58: -671 | K58: -457 | L58: -214 | M58: 0 | N58: =[1]SCENARIO1!AW61 -> 2315.479652 | O58: =[1]SCENARIO1!AY61 -> 78.578064
A59: ERC | B59: =[1]SCENARIO1!BD62 -> 0 | C59: =[1]SCENARIO1!BE62 -> 0 | D59: =[1]SCENARIO1!BF62 -> 0 | E59: =[1]SCENARIO1!BG62 -> 0 | F59: =[1]SCENARIO1!AB62 -> 0 | G59: =[1]SCENARIO1!AC62 -> 0 | H59: =[1]SCENARIO1!AD62 -> 0 | I59: =[1]SCENARIO1!AE62 -> 0 | J59: 0 | K59: 0 | L59: 0 | M59: 0 | N59: =[1]SCENARIO1!AW62 -> 0 | O59: =[1]SCENARIO1!AY62 -> 0
A60: NBG | B60: =[1]SCENARIO1!BD63 -> 0 | C60: =[1]SCENARIO1!BE63 -> 0 | D60: =[1]SCENARIO1!BF63 -> 0 | E60: =[1]SCENARIO1!BG63 -> 0 | F60: =[1]SCENARIO1!AB63 -> 0 | G60: =[1]SCENARIO1!AC63 -> 0 | H60: =[1]SCENARIO1!AD63 -> 0 | I60: =[1]SCENARIO1!AE63 -> 0 | J60: 0 | K60: 0 | L60: 0 | M60: 0 | N60: =[1]SCENARIO1!AW63 -> 0 | O60: =[1]SCENARIO1!AY63 -> 0
A61: UNZ | B61: =[1]SCENARIO1!BD64 -> 0 | C61: =[1]SCENARIO1!BE64 -> 0 | D61: =[1]SCENARIO1!BF64 -> 0 | E61: =[1]SCENARIO1!BG64 -> 0 | F61: =[1]SCENARIO1!AB64 -> 0 | G61: =[1]SCENARIO1!AC64 -> 0 | H61: =[1]SCENARIO1!AD64 -> 0 | I61: =[1]SCENARIO1!AE64 -> 0 | J61: 0 | K61: 0 | L61: 0 | M61: 0 | N61: =[1]SCENARIO1!AW64 -> 0 | O61: =[1]SCENARIO1!AY64 -> 0
A62: TOD | B62: =[1]SCENARIO1!BD65 -> 0 | C62: =[1]SCENARIO1!BE65 -> 0 | D62: =[1]SCENARIO1!BF65 -> 0 | E62: =[1]SCENARIO1!BG65 -> 0 | F62: =[1]SCENARIO1!AB65 -> 0 | G62: =[1]SCENARIO1!AC65 -> 0 | H62: =[1]SCENARIO1!AD65 -> 0 | I62: =[1]SCENARIO1!AE65 -> 0 | J62: 0 | K62: 0 | L62: 0 | M62: 0 | N62: =[1]SCENARIO1!AW65 -> 0 | O62: =[1]SCENARIO1!AY65 -> 0
A63: Whisper Valley PUD | B63: =[1]SCENARIO1!BD66 -> 5590.482854 | C63: =[1]SCENARIO1!BE66 -> 775.6537788 | D63: =[1]SCENARIO1!BF66 -> 495.1990909 | E63: =[1]SCENARIO1!BG66 -> 4319.629984 | F63: =[1]SCENARIO1!AB66 -> 0 | G63: =[1]SCENARIO1!AC66 -> 0 | H63: =[1]SCENARIO1!AD66 -> 0 | I63: =[1]SCENARIO1!AE66 -> 0 | J63: 5590.482854 | K63: 775.6537788 | L63: 495.1990909 | M63: 4319.629984 | N63: =[1]SCENARIO1!AW66 -> 2066.022682 | O63: =[1]SCENARIO1!AY66 -> 0
A64: Wildhorse Ranch PUD | B64: =[1]SCENARIO1!BD67 -> 6117.485363 | C64: =[1]SCENARIO1!BE67 -> 0 | D64: =[1]SCENARIO1!BF67 -> 0 | E64: =[1]SCENARIO1!BG67 -> 6117.485363 | F64: =[1]SCENARIO1!AB67 -> 0 | G64: =[1]SCENARIO1!AC67 -> 0 | H64: =[1]SCENARIO1!AD67 -> 0 | I64: =[1]SCENARIO1!AE67 -> 0 | J64: 6117.485363 | K64: 0 | L64: 0 | M64: 6117.485363 | N64: =[1]SCENARIO1!AW67 -> 1677.39501 | O64: =[1]SCENARIO1!AY67 -> 0
A65: Waters Edge PUD | B65: =[1]SCENARIO1!BD68 -> 1692.699424 | C65: =[1]SCENARIO1!BE68 -> 174.3699253 | D65: =[1]SCENARIO1!BF68 -> 1286.394983 | E65: =[1]SCENARIO1!BG68 -> 231.9345161 | F65: =[1]SCENARIO1!AB68 -> 0 | G65: =[1]SCENARIO1!AC68 -> 0 | H65: =[1]SCENARIO1!AD68 -> 0 | I65: =[1]SCENARIO1!AE68 -> 0 | J65: 1692.699424 | K65: 174.3699253 | L65: 1286.394983 | M65: 231.9345161 | N65: =[1]SCENARIO1!AW68 -> 282.144465 | O65: =[1]SCENARIO1!AY68 -> 0
A66: Goodnight Ranch PUD | B66: =[1]SCENARIO1!BD69 -> 4969.845377 | C66: =[1]SCENARIO1!BE69 -> 970.1702008 | D66: =[1]SCENARIO1!BF69 -> 0 | E66: =[1]SCENARIO1!BG69 -> 3999.675176 | F66: =[1]SCENARIO1!AB69 -> 1 | G66: =[1]SCENARIO1!AC69 -> 0 | H66: =[1]SCENARIO1!AD69 -> 0 | I66: =[1]SCENARIO1!AE69 -> 1 | J66: 4968.845377 | K66: 970.1702008 | L66: 0 | M66: 3998.675176 | N66: =[1]SCENARIO1!AW69 -> 588.397776 | O66: =[1]SCENARIO1!AY69 -> 0.246241
A67: UNO | B67: =[1]SCENARIO1!BD70 -> 34.33092731 | C67: =[1]SCENARIO1!BE70 -> 34.33092731 | D67: =[1]SCENARIO1!BF70 -> 0 | E67: =[1]SCENARIO1!BG70 -> 0 | F67: =[1]SCENARIO1!AB70 -> 0 | G67: =[1]SCENARIO1!AC70 -> 0 | H67: =[1]SCENARIO1!AD70 -> 0 | I67: =[1]SCENARIO1!AE70 -> 0 | J67: =B67-F67 -> 34.33092731 | K67: =C67-G67 -> 34.33092731 | L67: =D67-H67 -> 0 | M67: =E67-I67 -> 0 | N67: =[1]SCENARIO1!AW70 -> 0.340902 | O67: =[1]SCENARIO1!AY70 -> 0
A68: Estancia PUD | B68: =[1]SCENARIO1!BD71 -> 1393.59578 | C68: =[1]SCENARIO1!BE71 -> 0 | D68: =[1]SCENARIO1!BF71 -> 0 | E68: =[1]SCENARIO1!BG71 -> 1393.59578 | F68: =[1]SCENARIO1!AB71 -> 0 | G68: =[1]SCENARIO1!AC71 -> 0 | H68: =[1]SCENARIO1!AD71 -> 0 | I68: =[1]SCENARIO1!AE71 -> 0 | J68: 1393.59578 | K68: 0 | L68: 0 | M68: 1393.59578 | N68: =[1]SCENARIO1!AW71 -> 401.332703 | O68: =[1]SCENARIO1!AY71 -> 0
A69: TOD - Medium Density Residential (TODMDR) | B69: =[1]SCENARIO1!BD72 -> 0 | C69: =[1]SCENARIO1!BE72 -> 0 | D69: =[1]SCENARIO1!BF72 -> 0 | E69: =[1]SCENARIO1!BG72 -> 0 | F69: =[1]SCENARIO1!AB72 -> 0 | G69: =[1]SCENARIO1!AC72 -> 0 | H69: =[1]SCENARIO1!AD72 -> 0 | I69: =[1]SCENARIO1!AE72 -> 0 | J69: 0 | K69: 0 | L69: 0 | M69: 0 | N69: =[1]SCENARIO1!AW72 -> 0 | O69: =[1]SCENARIO1!AY72 -> 0
A70: TOD – Low Density Residential (TODLDR) | B70: =[1]SCENARIO1!BD73 -> 0 | C70: =[1]SCENARIO1!BE73 -> 0 | D70: =[1]SCENARIO1!BF73 -> 0 | E70: =[1]SCENARIO1!BG73 -> 0 | F70: =[1]SCENARIO1!AB73 -> 0 | G70: =[1]SCENARIO1!AC73 -> 0 | H70: =[1]SCENARIO1!AD73 -> 0 | I70: =[1]SCENARIO1!AE73 -> 0 | J70: 0 | K70: 0 | L70: 0 | M70: 0 | N70: =[1]SCENARIO1!AW73 -> 0 | O70: =[1]SCENARIO1!AY73 -> 0
A71: TOD – TOD Mixed Use | B71: =[1]SCENARIO1!BD74 -> 9126.873247 | C71: =[1]SCENARIO1!BE74 -> 9126.873247 | D71: =[1]SCENARIO1!BF74 -> 0 | E71: =[1]SCENARIO1!BG74 -> 0 | F71: =[1]SCENARIO1!AB74 -> 702 | G71: =[1]SCENARIO1!AC74 -> 683 | H71: =[1]SCENARIO1!AD74 -> 10 | I71: =[1]SCENARIO1!AE74 -> 9 | J71: 8424.873247 | K71: 8443.873247 | L71: -10 | M71: -9 | N71: =[1]SCENARIO1!AW74 -> 203.028319 | O71: =[1]SCENARIO1!AY74 -> 148.824926
A72: TOD – Corridor Mixed Use (TODCMU) | B72: =[1]SCENARIO1!BD75 -> 0 | C72: =[1]SCENARIO1!BE75 -> 0 | D72: =[1]SCENARIO1!BF75 -> 0 | E72: =[1]SCENARIO1!BG75 -> 0 | F72: =[1]SCENARIO1!AB75 -> 0 | G72: =[1]SCENARIO1!AC75 -> 0 | H72: =[1]SCENARIO1!AD75 -> 0 | I72: =[1]SCENARIO1!AE75 -> 0 | J72: 0 | K72: 0 | L72: 0 | M72: 0 | N72: =[1]SCENARIO1!AW75 -> 0 | O72: =[1]SCENARIO1!AY75 -> 0
A73: South Shore PUD | B73: =[1]SCENARIO1!BD76 -> 4364.300231 | C73: =[1]SCENARIO1!BE76 -> 4246.704262 | D73: =[1]SCENARIO1!BF76 -> 117.5959696 | E73: =[1]SCENARIO1!BG76 -> 0 | F73: =[1]SCENARIO1!AB76 -> 457 | G73: =[1]SCENARIO1!AC76 -> 457 | H73: =[1]SCENARIO1!AD76 -> 0 | I73: =[1]SCENARIO1!AE76 -> 0 | J73: 3907.300231 | K73: 3789.704262 | L73: 117.5959696 | M73: 0 | N73: =[1]SCENARIO1!AW76 -> 0 | O73: =[1]SCENARIO1!AY76 -> 33.398385
A74: Total | B74: =SUM(B3:B73) -> 171307.5267 | C74: =SUM(C3:C73) -> 112578.6325 | D74: 28831.83692 | E74: 29897.05731 | F74: =SUM(F3:F73) -> 10719 | G74: =SUM(G3:G73) -> 9394 | H74: 685 | I74: 542 | J74: =SUM(J3:J73) -> 160588.5267 | K74: =SUM(K3:K73) -> 103184.6325 | L74: =SUM(L3:L73) -> 28146.83692 | M74: 29355.05731 | N74: 17469.6319 | O74: 2181.488298

Sheet Draft 2 CD 1
B1: New | F1: Units assumed to redevelop | J1: Net Growth | N1: Acres
A2: CodeNEXT2 | B2: Units | C2: Multifamily | D2: Townhome | E2: Single Family | F2: Units | G2: Multifamily | H2: Townhome | I2: Single Family | J2: Units | K2: Multifamily | L2: Townhome | M2: Single Family | N2: Vacant Developed | O2: Developed Redeveloped
A3: Rural Residential | B3: =[5]SCENARIO1!BD6 -> 5.652339285 | C3: =[5]SCENARIO1!BE6 -> 0 | D3: =[5]SCENARIO1!BF6 -> 0 | E3: =[5]SCENARIO1!BG6 -> 5.652339285 | F3: =[5]SCENARIO1!AB6 -> 0 | G3: =[5]SCENARIO1!AC6 -> 0 | H3: =[5]SCENARIO1!AD6 -> 0 | I3: =[5]SCENARIO1!AE6 -> 0 | J3: =B3-F3 -> 5.652339285 | K3: 0 | L3: 0 | M3: 5.652339285 | N3: =[5]SCENARIO1!AW6 -> 10.003441 | O3: =[5]SCENARIO1!AX7 -> 0
A4: Lake Austin | B4: =[5]SCENARIO1!BD7 -> 0 | C4: =[5]SCENARIO1!BE7 -> 0 | D4: =[5]SCENARIO1!BF7 -> 0 | E4: =[5]SCENARIO1!BG7 -> 0 | F4: =[5]SCENARIO1!AB7 -> 0 | G4: =[5]SCENARIO1!AC7 -> 0 | H4: =[5]SCENARIO1!AD7 -> 0 | I4: =[5]SCENARIO1!AE7 -> 0 | J4: 0 | K4: 0 | L4: 0 | M4: 0 | N4: =[5]SCENARIO1!AW7 -> 0 | O4: =[5]SCENARIO1!AX8 -> 0
A5: R1A | B5: =[5]SCENARIO1!BD8 -> 3.852089229 | C5: =[5]SCENARIO1!BE8 -> 0 | D5: =[5]SCENARIO1!BF8 -> 0 | E5: =[5]SCENARIO1!BG8 -> 3.852089229 | F5: =[5]SCENARIO1!AB8 -> 0 | G5: =[5]SCENARIO1!AC8 -> 0 | H5: =[5]SCENARIO1!AD8 -> 0 | I5: =[5]SCENARIO1!AE8 -> 0 | J5: 3.852089229 | K5: 0 | L5: 0 | M5: 3.852089229 | N5: =[5]SCENARIO1!AW8 -> 1.953456 | O5: =[5]SCENARIO1!AX9 -> 0
A6: R1B | B6: =[5]SCENARIO1!BD9 -> 423.6496863 | C6: =[5]SCENARIO1!BE9 -> 0 | D6: =[5]SCENARIO1!BF9 -> 0 | E6: =[5]SCENARIO1!BG9 -> 423.6496863 | F6: =[5]SCENARIO1!AB9 -> 0 | G6: =[5]SCENARIO1!AC9 -> 0 | H6: =[5]SCENARIO1!AD9 -> 0 | I6: =[5]SCENARIO1!AE9 -> 0 | J6: 423.6496863 | K6: 0 | L6: 0 | M6: 423.6496863 | N6: =[5]SCENARIO1!AW9 -> 120.025342 | O6: =[5]SCENARIO1!AX10 -> 0
A7: R1C | B7: =[5]SCENARIO1!BD10 -> 30.95459398 | C7: =[5]SCENARIO1!BE10 -> 0 | D7: =[5]SCENARIO1!BF10 -> 0 | E7: =[5]SCENARIO1!BG10 -> 30.95459398 | F7: =[5]SCENARIO1!AB10 -> 0 | G7: =[5]SCENARIO1!AC10 -> 0 | H7: =[5]SCENARIO1!AD10 -> 0 | I7: =[5]SCENARIO1!AE10 -> 0 | J7: 30.95459398 | K7: 0 | L7: 0 | M7: 30.95459398 | N7: =[5]SCENARIO1!AW10 -> 8.76983 | O7: =[5]SCENARIO1!AX11 -> 0
A8: R2A | B8: =[5]SCENARIO1!BD11 -> 0 | C8: =[5]SCENARIO1!BE11 -> 0 | D8: =[5]SCENARIO1!BF11 -> 0 | E8: =[5]SCENARIO1!BG11 -> 0 | F8: =[5]SCENARIO1!AB11 -> 0 | G8: =[5]SCENARIO1!AC11 -> 0 | H8: =[5]SCENARIO1!AD11 -> 0 | I8: =[5]SCENARIO1!AE11 -> 0 | J8: 0 | K8: 0 | L8: 0 | M8: 0 | N8: =[5]SCENARIO1!AW11 -> 0 | O8: =[5]SCENARIO1!AX12 -> 0
A9: R2B | B9: =[5]SCENARIO1!BD12 -> 448.4572463 | C9: =[5]SCENARIO1!BE12 -> 0 | D9: =[5]SCENARIO1!BF12 -> 92.95867432 | E9: =[5]SCENARIO1!BG12 -> 355.498572 | F9: =[5]SCENARIO1!AB12 -> 0 | G9: =[5]SCENARIO1!AC12 -> 0 | H9: =[5]SCENARIO1!AD12 -> 0 | I9: =[5]SCENARIO1!AE12 -> 0 | J9: 448.4572463 | K9: 0 | L9: 92.95867432 | M9: 355.498572 | N9: =[5]SCENARIO1!AW12 -> 112.003048 | O9: =[5]SCENARIO1!AX13 -> 2.095418
A10: R2C | B10: =[5]SCENARIO1!BD13 -> 614.5900545 | C10: =[5]SCENARIO1!BE13 -> 0 | D10: =[5]SCENARIO1!BF13 -> 127.3955927 | E10: =[5]SCENARIO1!BG13 -> 487.1944617 | F10: =[5]SCENARIO1!AB13 -> 5 | G10: =[5]SCENARIO1!AC13 -> 0 | H10: =[5]SCENARIO1!AD13 -> 2 | I10: =[5]SCENARIO1!AE13 -> 3 | J10: 609.5900545 | K10: 0 | L10: 125.3955927 | M10: 484.1944617 | N10: =[5]SCENARIO1!AW13 -> 150.562335 | O10: =[5]SCENARIO1!AX14 -> 0
A11: R2D | B11: =[5]SCENARIO1!BD14 -> 429.127135 | C11: =[5]SCENARIO1!BE14 -> 0 | D11: =[5]SCENARIO1!BF14 -> 0 | E11: =[5]SCENARIO1!BG14 -> 429.127135 | F11: =[5]SCENARIO1!AB14 -> 0 | G11: =[5]SCENARIO1!AC14 -> 0 | H11: =[5]SCENARIO1!AD14 -> 0 | I11: =[5]SCENARIO1!AE14 -> 0 | J11: 429.127135 | K11: 0 | L11: 0 | M11: 429.127135 | N11: =[5]SCENARIO1!AW14 -> 60.278141 | O11: =[5]SCENARIO1!AX15 -> 0
A12: R2E | B12: =[5]SCENARIO1!BD15 -> 154.6057417 | C12: =[5]SCENARIO1!BE15 -> 0 | D12: =[5]SCENARIO1!BF15 -> 0 | E12: =[5]SCENARIO1!BG15 -> 154.6057417 | F12: =[5]SCENARIO1!AB15 -> 0 | G12: =[5]SCENARIO1!AC15 -> 0 | H12: =[5]SCENARIO1!AD15 -> 0 | I12: =[5]SCENARIO1!AE15 -> 0 | J12: 154.6057417 | K12: 0 | L12: 0 | M12: 154.6057417 | N12: =[5]SCENARIO1!AW15 -> 21.716983 | O12: =[5]SCENARIO1!AX16 -> 0
A13: R3A | B13: =[5]SCENARIO1!BD16 -> 2.643403855 | C13: =[5]SCENARIO1!BE16 -> 0 | D13: =[5]SCENARIO1!BF16 -> 0.8811346184 | E13: =[5]SCENARIO1!BG16 -> 1.762269237 | F13: =[5]SCENARIO1!AB16 -> 0 | G13: =[5]SCENARIO1!AC16 -> 0 | H13: =[5]SCENARIO1!AD16 -> 0 | I13: =[5]SCENARIO1!AE16 -> 0 | J13: 2.643403855 | K13: 0 | L13: 0.8811346184 | M13: 1.762269237 | N13: =[5]SCENARIO1!AW16 -> 0.563664 | O13: =[5]SCENARIO1!AX17 -> 0
A14: R3B | B14: =[5]SCENARIO1!BD17 -> 0 | C14: =[5]SCENARIO1!BE17 -> 0 | D14: =[5]SCENARIO1!BF17 -> 0 | E14: =[5]SCENARIO1!BG17 -> 0 | F14: =[5]SCENARIO1!AB17 -> 0 | G14: =[5]SCENARIO1!AC17 -> 0 | H14: =[5]SCENARIO1!AD17 -> 0 | I14: =[5]SCENARIO1!AE17 -> 0 | J14: 0 | K14: 0 | L14: 0 | M14: 0 | N14: =[5]SCENARIO1!AW17 -> 0 | O14: =[5]SCENARIO1!AX18 -> 16.291275
A15: R3C | B15: =[5]SCENARIO1!BD18 -> 359.1317763 | C15: =[5]SCENARIO1!BE18 -> 0 | D15: =[5]SCENARIO1!BF18 -> 204.0522618 | E15: =[5]SCENARIO1!BG18 -> 155.0795144 | F15: =[5]SCENARIO1!AB18 -> 59 | G15: =[5]SCENARIO1!AC18 -> 0 | H15: =[5]SCENARIO1!AD18 -> 6 | I15: =[5]SCENARIO1!AE18 -> 53 | J15: 300.1317763 | K15: 0 | L15: 198.0522618 | M15: 102.0795144 | N15: =[5]SCENARIO1!AW18 -> 23.334755 | O15: =[5]SCENARIO1!AX19 -> 0
A16: R3D | B16: =[5]SCENARIO1!BD19 -> 0 | C16: =[5]SCENARIO1!BE19 -> 0 | D16: =[5]SCENARIO1!BF19 -> 0 | E16: =[5]SCENARIO1!BG19 -> 0 | F16: =[5]SCENARIO1!AB19 -> 0 | G16: =[5]SCENARIO1!AC19 -> 0 | H16: =[5]SCENARIO1!AD19 -> 0 | I16: =[5]SCENARIO1!AE19 -> 0 | J16: 0 | K16: 0 | L16: 0 | M16: 0 | N16: =[5]SCENARIO1!AW19 -> 0 | O16: =[5]SCENARIO1!AX20 -> 1.452869
A17: R4A | B17: =[5]SCENARIO1!BD20 -> 29.8646782 | C17: =[5]SCENARIO1!BE20 -> 18.66542387 | D17: =[5]SCENARIO1!BF20 -> 7.466169549 | E17: =[5]SCENARIO1!BG20 -> 3.733084774 | F17: =[5]SCENARIO1!AB20 -> 7 | G17: =[5]SCENARIO1!AC20 -> 0 | H17: =[5]SCENARIO1!AD20 -> 4 | I17: =[5]SCENARIO1!AE20 -> 3 | J17: 22.8646782 | K17: 18.66542387 | L17: 3.466169549 | M17: 0.7330847744 | N17: =[5]SCENARIO1!AW20 -> 0.818725 | O17: =[5]SCENARIO1!AX21 -> 0
A18: R4B | B18: =[5]SCENARIO1!BD21 -> 0 | C18: =[5]SCENARIO1!BE21 -> 0 | D18: =[5]SCENARIO1!BF21 -> 0 | E18: =[5]SCENARIO1!BG21 -> 0 | F18: =[5]SCENARIO1!AB21 -> 0 | G18: =[5]SCENARIO1!AC21 -> 0 | H18: =[5]SCENARIO1!AD21 -> 0 | I18: =[5]SCENARIO1!AE21 -> 0 | J18: 0 | K18: 0 | L18: 0 | M18: 0 | N18: =[5]SCENARIO1!AW21 -> 0 | O18: =[5]SCENARIO1!AX22 -> 0
A19: R4C | B19: =[5]SCENARIO1!BD22 -> 0 | C19: =[5]SCENARIO1!BE22 -> 0 | D19: =[5]SCENARIO1!BF22 -> 0 | E19: =[5]SCENARIO1!BG22 -> 0 | F19: =[5]SCENARIO1!AB22 -> 0 | G19: =[5]SCENARIO1!AC22 -> 0 | H19: =[5]SCENARIO1!AD22 -> 0 | I19: =[5]SCENARIO1!AE22 -> 0 | J19: 0 | K19: 0 | L19: 0 | M19: 0 | N19: =[5]SCENARIO1!AW22 -> 0 | O19: =[5]SCENARIO1!AX23 -> 13.542335
A20: RM1A | B20: =[5]SCENARIO1!BD23 -> 1336.45002 | C20: =[5]SCENARIO1!BE23 -> 0 | D20: =[5]SCENARIO1!BF23 -> 1213.508819 | E20: =[5]SCENARIO1!BG23 -> 122.9412008 | F20: =[5]SCENARIO1!AB23 -> 8 | G20: =[5]SCENARIO1!AC23 -> 0 | H20: =[5]SCENARIO1!AD23 -> 1 | I20: =[5]SCENARIO1!AE23 -> 7 | J20: 1328.45002 | K20: 0 | L20: 1212.508819 | M20: 115.9412008 | N20: =[5]SCENARIO1!AW23 -> 93.420609 | O20: =[5]SCENARIO1!AX24 -> 6.095179
A21: RM1B | B21: =[5]SCENARIO1!BD24 -> 144.4352625 | C21: =[5]SCENARIO1!BE24 -> 133.8150226 | D21: =[5]SCENARIO1!BF24 -> 10.62023989 | E21: =[5]SCENARIO1!BG24 -> 0 | F21: =[5]SCENARIO1!AB24 -> 122 | G21: =[5]SCENARIO1!AC24 -> 121 | H21: =[5]SCENARIO1!AD24 -> 0 | I21: =[5]SCENARIO1!AE24 -> 1 | J21: 22.4352625 | K21: 12.81502261 | L21: 10.62023989 | M21: -1 | N21: =[5]SCENARIO1!AW24 -> 0 | O21: =[5]SCENARIO1!AX25 -> 23.98745
A22: RM2A | B22: =[5]SCENARIO1!BD25 -> 1492.014829 | C22: =[5]SCENARIO1!BE25 -> 1003.265922 | D22: =[5]SCENARIO1!BF25 -> 488.7489077 | E22: =[5]SCENARIO1!BG25 -> 0 | F22: =[5]SCENARIO1!AB25 -> 311 | G22: =[5]SCENARIO1!AC25 -> 309 | H22: =[5]SCENARIO1!AD25 -> 0 | I22: =[5]SCENARIO1!AE25 -> 2 | J22: 1181.014829 | K22: 694.2659217 | L22: 488.7489077 | M22: -2 | N22: =[5]SCENARIO1!AW25 -> 51.204565 | O22: =[5]SCENARIO1!AX26 -> 5.103513
A23: RM2B | B23: =[5]SCENARIO1!BD26 -> 142.2777768 | C23: =[5]SCENARIO1!BE26 -> 88.92361051 | D23: =[5]SCENARIO1!BF26 -> 0 | E23: =[5]SCENARIO1!BG26 -> 53.35416631 | F23: =[5]SCENARIO1!AB26 -> 54 | G23: =[5]SCENARIO1!AC26 -> 54 | H23: =[5]SCENARIO1!AD26 -> 0 | I23: =[5]SCENARIO1!AE26 -> 0 | J23: 88.27777682 | K23: 34.92361051 | L23: 0 | M23: 53.35416631 | N23: =[5]SCENARIO1!AW26 -> 0 | O23: =[5]SCENARIO1!AX27 -> 36.480942
A24: RM3A | B24: =[5]SCENARIO1!BD27 -> 2006.471633 | C24: =[5]SCENARIO1!BE27 -> 1871.67161 | D24: =[5]SCENARIO1!BF27 -> 93.47068808 | E24: =[5]SCENARIO1!BG27 -> 41.32933547 | F24: =[5]SCENARIO1!AB27 -> 511 | G24: =[5]SCENARIO1!AC27 -> 503 | H24: =[5]SCENARIO1!AD27 -> 4 | I24: =[5]SCENARIO1!AE27 -> 4 | J24: 1495.471633 | K24: 1368.67161 | L24: 89.47068808 | M24: 37.32933547 | N24: =[5]SCENARIO1!AW27 -> 23.139666 | O24: =[5]SCENARIO1!AX28 -> 2.278738
A25: RM4A | B25: =[5]SCENARIO1!BD28 -> 166.5309164 | C25: =[5]SCENARIO1!BE28 -> 160.5752068 | D25: =[5]SCENARIO1!BF28 -> 0 | E25: =[5]SCENARIO1!BG28 -> 5.955709637 | F25: =[5]SCENARIO1!AB28 -> 100 | G25: =[5]SCENARIO1!AC28 -> 100 | H25: =[5]SCENARIO1!AD28 -> 0 | I25: =[5]SCENARIO1!AE28 -> 0 | J25: 66.53091641 | K25: 60.57520678 | L25: 0 | M25: 5.955709637 | N25: =[5]SCENARIO1!AW28 -> 0 | O25: =[5]SCENARIO1!AX29 -> 0
A26: RM5A | B26: =[5]SCENARIO1!BD29 -> 0 | C26: =[5]SCENARIO1!BE29 -> 0 | D26: =[5]SCENARIO1!BF29 -> 0 | E26: =[5]SCENARIO1!BG29 -> 0 | F26: =[5]SCENARIO1!AB29 -> 0 | G26: =[5]SCENARIO1!AC29 -> 0 | H26: =[5]SCENARIO1!AD29 -> 0 | I26: =[5]SCENARIO1!AE29 -> 0 | J26: 0 | K26: 0 | L26: 0 | M26: 0 | N26: =[5]SCENARIO1!AW29 -> 0 | O26: =[5]SCENARIO1!AX30 -> 0
A27: MHP | B27: =[5]SCENARIO1!BD30 -> 0 | C27: =[5]SCENARIO1!BE30 -> 0 | D27: =[5]SCENARIO1!BF30 -> 0 | E27: =[5]SCENARIO1!BG30 -> 0 | F27: =[5]SCENARIO1!AB30 -> 0 | G27: =[5]SCENARIO1!AC30 -> 0 | H27: =[5]SCENARIO1!AD30 -> 0 | I27: =[5]SCENARIO1!AE30 -> 0 | J27: 0 | K27: 0 | L27: 0 | M27: 0 | N27: =[5]SCENARIO1!AW30 -> 0 | O27: =[5]SCENARIO1!AX31 -> 0.6391
A28: MU1A | B28: =[5]SCENARIO1!BD31 -> 20.52062358 | C28: =[5]SCENARIO1!BE31 -> 11.42149822 | D28: =[5]SCENARIO1!BF31 -> 5.71074911 | E28: =[5]SCENARIO1!BG31 -> 3.388376251 | F28: =[5]SCENARIO1!AB31 -> 0 | G28: =[5]SCENARIO1!AC31 -> 0 | H28: =[5]SCENARIO1!AD31 -> 0 | I28: =[5]SCENARIO1!AE31 -> 0 | J28: 20.52062358 | K28: 11.42149822 | L28: 5.71074911 | M28: 3.388376251 | N28: =[5]SCENARIO1!AW31 -> 0.538284 | O28: =[5]SCENARIO1!AX32 -> 0.728275
A29: MU1B | B29: =[5]SCENARIO1!BD32 -> 17.45273619 | C29: =[5]SCENARIO1!BE32 -> 9.713954087 | D29: =[5]SCENARIO1!BF32 -> 4.856977044 | E29: =[5]SCENARIO1!BG32 -> 2.881805058 | F29: =[5]SCENARIO1!AB32 -> 3 | G29: =[5]SCENARIO1!AC32 -> 0 | H29: =[5]SCENARIO1!AD32 -> 2 | I29: =[5]SCENARIO1!AE32 -> 1 | J29: 14.45273619 | K29: 9.713954087 | L29: 2.856977044 | M29: 1.881805058 | N29: =[5]SCENARIO1!AW32 -> 0.238507 | O29: =[5]SCENARIO1!AX33 -> 2.606897
A30: MU1C | B30: =[5]SCENARIO1!BD33 -> 56.01495073 | C30: =[5]SCENARIO1!BE33 -> 51.38561596 | D30: =[5]SCENARIO1!BF33 -> 4.629334771 | E30: =[5]SCENARIO1!BG33 -> 0 | F30: =[5]SCENARIO1!AB33 -> 2 | G30: =[5]SCENARIO1!AC33 -> 0 | H30: =[5]SCENARIO1!AD33 -> 0 | I30: =[5]SCENARIO1!AE33 -> 2 | J30: 54.01495073 | K30: 51.38561596 | L30: 4.629334771 | M30: -2 | N30: =[5]SCENARIO1!AW33 -> 0.059331 | O30: =[5]SCENARIO1!AX34 -> 3.212595
A31: MU1D | B31: =[5]SCENARIO1!BD34 -> 85.57969959 | C31: =[5]SCENARIO1!BE34 -> 78.50699715 | D31: =[5]SCENARIO1!BF34 -> 7.072702446 | E31: =[5]SCENARIO1!BG34 -> 0 | F31: =[5]SCENARIO1!AB34 -> 41 | G31: =[5]SCENARIO1!AC34 -> 39 | H31: =[5]SCENARIO1!AD34 -> 0 | I31: =[5]SCENARIO1!AE34 -> 2 | J31: 44.57969959 | K31: 39.50699715 | L31: 7.072702446 | M31: -2 | N31: =[5]SCENARIO1!AW34 -> 1.005057 | O31: =[5]SCENARIO1!AX35 -> 3.786235
A32: MU2A | B32: =[5]SCENARIO1!BD35 -> 646.9333392 | C32: =[5]SCENARIO1!BE35 -> 249.2540543 | D32: =[5]SCENARIO1!BF35 -> 397.6792848 | E32: =[5]SCENARIO1!BG35 -> 0 | F32: =[5]SCENARIO1!AB35 -> 4 | G32: =[5]SCENARIO1!AC35 -> 0 | H32: =[5]SCENARIO1!AD35 -> 0 | I32: =[5]SCENARIO1!AE35 -> 4 | J32: 642.9333392 | K32: 249.2540543 | L32: 397.6792848 | M32: -4 | N32: =[5]SCENARIO1!AW35 -> 66.476007 | O32: =[5]SCENARIO1!AX36 -> 2.714248
A33: MU2B | B33: =[5]SCENARIO1!BD36 -> 818.9908913 | C33: =[5]SCENARIO1!BE36 -> 523.1469605 | D33: =[5]SCENARIO1!BF36 -> 295.8439308 | E33: =[5]SCENARIO1!BG36 -> 0 | F33: =[5]SCENARIO1!AB36 -> 1 | G33: =[5]SCENARIO1!AC36 -> 0 | H33: =[5]SCENARIO1!AD36 -> 0 | I33: =[5]SCENARIO1!AE36 -> 1 | J33: 817.9908913 | K33: 523.1469605 | L33: 295.8439308 | M33: -1 | N33: =[5]SCENARIO1!AW36 -> 46.114724 | O33: =[5]SCENARIO1!AX37 -> 22.560694
A34: MU3A | B34: =[5]SCENARIO1!BD37 -> 4650.732963 | C34: =[5]SCENARIO1!BE37 -> 2896.769111 | D34: =[5]SCENARIO1!BF37 -> 1753.963852 | E34: =[5]SCENARIO1!BG37 -> 0 | F34: =[5]SCENARIO1!AB37 -> 41 | G34: =[5]SCENARIO1!AC37 -> 24 | H34: =[5]SCENARIO1!AD37 -> 6 | I34: =[5]SCENARIO1!AE37 -> 11 | J34: 4609.732963 | K34: 2872.769111 | L34: 1747.963852 | M34: -11 | N34: =[5]SCENARIO1!AW37 -> 266.831246 | O34: =[5]SCENARIO1!AX38 -> 0
A35: MU4A | B35: =[5]SCENARIO1!BD38 -> 685.6298844 | C35: =[5]SCENARIO1!BE38 -> 427.0534314 | D35: =[5]SCENARIO1!BF38 -> 258.576453 | E35: =[5]SCENARIO1!BG38 -> 0 | F35: =[5]SCENARIO1!AB38 -> 0 | G35: =[5]SCENARIO1!AC38 -> 0 | H35: =[5]SCENARIO1!AD38 -> 0 | I35: =[5]SCENARIO1!AE38 -> 0 | J35: =B35-F35 -> 685.6298844 | K35: 427.0534314 | L35: 258.576453 | M35: 0 | N35: =[5]SCENARIO1!AW38 -> 50.968592 | O35: =[5]SCENARIO1!AX39 -> 32.308862
A36: MU4B | B36: =[5]SCENARIO1!BD39 -> 2322.625754 | C36: =[5]SCENARIO1!BE39 -> 2322.625754 | D36: =[5]SCENARIO1!BF39 -> 0 | E36: =[5]SCENARIO1!BG39 -> 0 | F36: =[5]SCENARIO1!AB39 -> 52 | G36: =[5]SCENARIO1!AC39 -> 20 | H36: =[5]SCENARIO1!AD39 -> 2 | I36: =[5]SCENARIO1!AE39 -> 27 | J36: 2270.625754 | K36: 2302.625754 | L36: -2 | M36: -27 | N36: =[5]SCENARIO1!AW39 -> 97.666252 | O36: =[5]SCENARIO1!AX40 -> 4.41796
A37: MU5A | B37: =[5]SCENARIO1!BD40 -> 674.9710888 | C37: =[5]SCENARIO1!BE40 -> 674.9710888 | D37: =[5]SCENARIO1!BF40 -> 0 | E37: =[5]SCENARIO1!BG40 -> 0 | F37: =[5]SCENARIO1!AB40 -> 0 | G37: =[5]SCENARIO1!AC40 -> 0 | H37: =[5]SCENARIO1!AD40 -> 0 | I37: =[5]SCENARIO1!AE40 -> 0 | J37: 674.9710888 | K37: 674.9710888 | L37: 0 | M37: 0 | N37: =[5]SCENARIO1!AW40 -> 33.501201 | O37: =[5]SCENARIO1!AX41 -> 0
A38: MS1A | B38: =[5]SCENARIO1!BD41 -> 0 | C38: =[5]SCENARIO1!BE41 -> 0 | D38: =[5]SCENARIO1!BF41 -> 0 | E38: =[5]SCENARIO1!BG41 -> 0 | F38: =[5]SCENARIO1!AB41 -> 0 | G38: =[5]SCENARIO1!AC41 -> 0 | H38: =[5]SCENARIO1!AD41 -> 0 | I38: =[5]SCENARIO1!AE41 -> 0 | J38: 0 | K38: 0 | L38: 0 | M38: 0 | N38: =[5]SCENARIO1!AW41 -> 0 | O38: =[5]SCENARIO1!AX42 -> 1.057904
A39: MS1B | B39: =[5]SCENARIO1!BD42 -> 28.53786195 | C39: =[5]SCENARIO1!BE42 -> 20.71359719 | D39: =[5]SCENARIO1!BF42 -> 0 | E39: =[5]SCENARIO1!BG42 -> 7.824264759 | F39: =[5]SCENARIO1!AB42 -> 0 | G39: =[5]SCENARIO1!AC42 -> 0 | H39: =[5]SCENARIO1!AD42 -> 0 | I39: =[5]SCENARIO1!AE42 -> 0 | J39: 28.53786195 | K39: 20.71359719 | L39: 0 | M39: 7.824264759 | N39: =[5]SCENARIO1!AW42 -> 0.229901 | O39: =[5]SCENARIO1!AX43 -> 0.97278
A40: MS2A | B40: =[5]SCENARIO1!BD43 -> 61.85242699 | C40: =[5]SCENARIO1!BE43 -> 58.47623278 | D40: =[5]SCENARIO1!BF43 -> 0 | E40: =[5]SCENARIO1!BG43 -> 3.376194202 | F40: =[5]SCENARIO1!AB43 -> 0 | G40: =[5]SCENARIO1!AC43 -> 0 | H40: =[5]SCENARIO1!AD43 -> 0 | I40: =[5]SCENARIO1!AE43 -> 0 | J40: 61.85242699 | K40: 58.47623278 | L40: 0 | M40: 3.376194202 | N40: =[5]SCENARIO1!AW43 -> 1.603202 | O40: =[5]SCENARIO1!AX44 -> 26.7261
A41: MS2B | B41: =[5]SCENARIO1!BD44 -> 1008.365766 | C41: =[5]SCENARIO1!BE44 -> 953.3244556 | D41: =[5]SCENARIO1!BF44 -> 0 | E41: =[5]SCENARIO1!BG44 -> 55.04131074 | F41: =[5]SCENARIO1!AB44 -> 4 | G41: =[5]SCENARIO1!AC44 -> 0 | H41: =[5]SCENARIO1!AD44 -> 2 | I41: =[5]SCENARIO1!AE44 -> 2 | J41: 1004.365766 | K41: 953.3244556 | L41: -2 | M41: 53.04131074 | N41: =[5]SCENARIO1!AW44 -> 10.357339 | O41: =[5]SCENARIO1!AX45 -> 3.702052
A42: MS2C | B42: =[5]SCENARIO1!BD45 -> 117.5922906 | C42: =[5]SCENARIO1!BE45 -> 111.1735544 | D42: =[5]SCENARIO1!BF45 -> 0 | E42: =[5]SCENARIO1!BG45 -> 6.418736161 | F42: =[5]SCENARIO1!AB45 -> 2 | G42: =[5]SCENARIO1!AC45 -> 0 | H42: =[5]SCENARIO1!AD45 -> 2 | I42: =[5]SCENARIO1!AE45 -> 0 | J42: 115.5922906 | K42: 111.1735544 | L42: -2 | M42: 6.418736161 | N42: =[5]SCENARIO1!AW45 -> 0.357907 | O42: =[5]SCENARIO1!AX46 -> 7.879916
A43: MS3A | B43: =[5]SCENARIO1!BD46 -> 532.0619037 | C43: =[5]SCENARIO1!BE46 -> 532.0619037 | D43: =[5]SCENARIO1!BF46 -> 0 | E43: =[5]SCENARIO1!BG46 -> 0 | F43: =[5]SCENARIO1!AB46 -> 0 | G43: =[5]SCENARIO1!AC46 -> 0 | H43: =[5]SCENARIO1!AD46 -> 0 | I43: =[5]SCENARIO1!AE46 -> 0 | J43: 532.0619037 | K43: 532.0619037 | L43: 0 | M43: 0 | N43: =[5]SCENARIO1!AW46 -> 0 | O43: =[5]SCENARIO1!AX47 -> 0
A44: MS3B | B44: =[5]SCENARIO1!BD47 -> 0 | C44: =[5]SCENARIO1!BE47 -> 0 | D44: =[5]SCENARIO1!BF47 -> 0 | E44: =[5]SCENARIO1!BG47 -> 0 | F44: =[5]SCENARIO1!AB47 -> 0 | G44: =[5]SCENARIO1!AC47 -> 0 | H44: =[5]SCENARIO1!AD47 -> 0 | I44: =[5]SCENARIO1!AE47 -> 0 | J44: 0 | K44: 0 | L44: 0 | M44: 0 | N44: =[5]SCENARIO1!AW47 -> 0 | O44: =[5]SCENARIO1!AX48 -> 0
A45: UC | B45: =[5]SCENARIO1!BD48 -> 0 | C45: =[5]SCENARIO1!BE48 -> 0 | D45: =[5]SCENARIO1!BF48 -> 0 | E45: =[5]SCENARIO1!BG48 -> 0 | F45: =[5]SCENARIO1!AB48 -> 0 | G45: =[5]SCENARIO1!AC48 -> 0 | H45: =[5]SCENARIO1!AD48 -> 0 | I45: =[5]SCENARIO1!AE48 -> 0 | J45: 0 | K45: 0 | L45: 0 | M45: 0 | N45: =[5]SCENARIO1!AW48 -> 0 | O45: =[5]SCENARIO1!AX49 -> 0
A46: CC40 | B46: =[5]SCENARIO1!BD49 -> 0 | C46: =[5]SCENARIO1!BE49 -> 0 | D46: =[5]SCENARIO1!BF49 -> 0 | E46: =[5]SCENARIO1!BG49 -> 0 | F46: =[5]SCENARIO1!AB49 -> 0 | G46: =[5]SCENARIO1!AC49 -> 0 | H46: =[5]SCENARIO1!AD49 -> 0 | I46: =[5]SCENARIO1!AE49 -> 0 | J46: 0 | K46: 0 | L46: 0 | M46: 0 | N46: =[5]SCENARIO1!AW49 -> 0 | O46: =[5]SCENARIO1!AX50 -> 0
A47: CC60 | B47: =[5]SCENARIO1!BD50 -> 0 | C47: =[5]SCENARIO1!BE50 -> 0 | D47: =[5]SCENARIO1!BF50 -> 0 | E47: =[5]SCENARIO1!BG50 -> 0 | F47: =[5]SCENARIO1!AB50 -> 0 | G47: =[5]SCENARIO1!AC50 -> 0 | H47: =[5]SCENARIO1!AD50 -> 0 | I47: =[5]SCENARIO1!AE50 -> 0 | J47: 0 | K47: 0 | L47: 0 | M47: 0 | N47: =[5]SCENARIO1!AW50 -> 0 | O47: =[5]SCENARIO1!AX51 -> 0
A48: CC80 | B48: =[5]SCENARIO1!BD51 -> 0 | C48: =[5]SCENARIO1!BE51 -> 0 | D48: =[5]SCENARIO1!BF51 -> 0 | E48: =[5]SCENARIO1!BG51 -> 0 | F48: =[5]SCENARIO1!AB51 -> 0 | G48: =[5]SCENARIO1!AC51 -> 0 | H48: =[5]SCENARIO1!AD51 -> 0 | I48: =[5]SCENARIO1!AE51 -> 0 | J48: 0 | K48: 0 | L48: 0 | M48: 0 | N48: =[5]SCENARIO1!AW51 -> 0 | O48: =[5]SCENARIO1!AX52 -> 0.982983
A49: CC120 | B49: =[5]SCENARIO1!BD52 -> 158.9993362 | C49: =[5]SCENARIO1!BE52 -> 158.9993362 | D49: =[5]SCENARIO1!BF52 -> 0 | E49: =[5]SCENARIO1!BG52 -> 0 | F49: =[5]SCENARIO1!AB52 -> 0 | G49: =[5]SCENARIO1!AC52 -> 0 | H49: =[5]SCENARIO1!AD52 -> 0 | I49: =[5]SCENARIO1!AE52 -> 0 | J49: 158.9993362 | K49: 158.9993362 | L49: 0 | M49: 0 | N49: =[5]SCENARIO1!AW52 -> 0 | O49: =[5]SCENARIO1!AX53 -> 3.812041
A50: DC | B50: =[5]SCENARIO1!BD53 -> 715.0600045 | C50: =[5]SCENARIO1!BE53 -> 715.0600045 | D50: =[5]SCENARIO1!BF53 -> 0 | E50: =[5]SCENARIO1!BG53 -> 0 | F50: =[5]SCENARIO1!AB53 -> 0 | G50: =[5]SCENARIO1!AC53 -> 0 | H50: =[5]SCENARIO1!AD53 -> 0 | I50: =[5]SCENARIO1!AE53 -> 0 | J50: 715.0600045 | K50: 715.0600045 | L50: 0 | M50: 0 | N50: =[5]SCENARIO1!AW53 -> 0 | O50: =[5]SCENARIO1!AX54 -> 0
A51: CR | B51: =[5]SCENARIO1!BD54 -> 0 | C51: =[5]SCENARIO1!BE54 -> 0 | D51: =[5]SCENARIO1!BF54 -> 0 | E51: =[5]SCENARIO1!BG54 -> 0 | F51: =[5]SCENARIO1!AB54 -> 0 | G51: =[5]SCENARIO1!AC54 -> 0 | H51: =[5]SCENARIO1!AD54 -> 0 | I51: =[5]SCENARIO1!AE54 -> 0 | J51: 0 | K51: 0 | L51: 0 | M51: 0 | N51: =[5]SCENARIO1!AW54 -> 0 | O51: =[5]SCENARIO1!AX55 -> 0
A52: CW | B52: =[5]SCENARIO1!BD55 -> 0 | C52: =[5]SCENARIO1!BE55 -> 0 | D52: =[5]SCENARIO1!BF55 -> 0 | E52: =[5]SCENARIO1!BG55 -> 0 | F52: =[5]SCENARIO1!AB55 -> 0 | G52: =[5]SCENARIO1!AC55 -> 0 | H52: =[5]SCENARIO1!AD55 -> 0 | I52: =[5]SCENARIO1!AE55 -> 0 | J52: 0 | K52: 0 | L52: 0 | M52: 0 | N52: =[5]SCENARIO1!AW55 -> 25.932329 | O52: =[5]SCENARIO1!AX56 -> 0
A53: IF | B53: =[5]SCENARIO1!BD56 -> 374.0507604 | C53: =[5]SCENARIO1!BE56 -> 0 | D53: =[5]SCENARIO1!BF56 -> 0 | E53: =[5]SCENARIO1!BG56 -> 374.0507604 | F53: =[5]SCENARIO1!AB56 -> 0 | G53: =[5]SCENARIO1!AC56 -> 0 | H53: =[5]SCENARIO1!AD56 -> 0 | I53: =[5]SCENARIO1!AE56 -> 0 | J53: 374.0507604 | K53: 0 | L53: 0 | M53: 374.0507604 | N53: =[5]SCENARIO1!AW56 -> 276.632712 | O53: =[5]SCENARIO1!AX57 -> 0
A54: IG | B54: =[5]SCENARIO1!BD57 -> 0 | C54: =[5]SCENARIO1!BE57 -> 0 | D54: =[5]SCENARIO1!BF57 -> 0 | E54: =[5]SCENARIO1!BG57 -> 0 | F54: =[5]SCENARIO1!AB57 -> 0 | G54: =[5]SCENARIO1!AC57 -> 0 | H54: =[5]SCENARIO1!AD57 -> 0 | I54: =[5]SCENARIO1!AE57 -> 0 | J54: 0 | K54: 0 | L54: 0 | M54: 0 | N54: =[5]SCENARIO1!AW57 -> 52.348992 | O54: =[5]SCENARIO1!AX58 -> 0
A55: IH | B55: =[5]SCENARIO1!BD58 -> 0 | C55: =[5]SCENARIO1!BE58 -> 0 | D55: =[5]SCENARIO1!BF58 -> 0 | E55: =[5]SCENARIO1!BG58 -> 0 | F55: =[5]SCENARIO1!AB58 -> 0 | G55: =[5]SCENARIO1!AC58 -> 0 | H55: =[5]SCENARIO1!AD58 -> 0 | I55: =[5]SCENARIO1!AE58 -> 0 | J55: 0 | K55: 0 | L55: 0 | M55: 0 | N55: =[5]SCENARIO1!AW58 -> 0 | O55: =[5]SCENARIO1!AX59 -> 0
A56: R&D | B56: =[5]SCENARIO1!BD59 -> 0 | C56: =[5]SCENARIO1!BE59 -> 0 | D56: =[5]SCENARIO1!BF59 -> 0 | E56: =[5]SCENARIO1!BG59 -> 0 | F56: =[5]SCENARIO1!AB59 -> 0 | G56: =[5]SCENARIO1!AC59 -> 0 | H56: =[5]SCENARIO1!AD59 -> 0 | I56: =[5]SCENARIO1!AE59 -> 0 | J56: 0 | K56: 0 | L56: 0 | M56: 0 | N56: =[5]SCENARIO1!AW59 -> 0 | O56: =[5]SCENARIO1!AX60 -> 0
A57: P | B57: =[5]SCENARIO1!BD60 -> 0 | C57: =[5]SCENARIO1!BE60 -> 0 | D57: =[5]SCENARIO1!BF60 -> 0 | E57: =[5]SCENARIO1!BG60 -> 0 | F57: =[5]SCENARIO1!AB60 -> 0 | G57: =[5]SCENARIO1!AC60 -> 0 | H57: =[5]SCENARIO1!AD60 -> 0 | I57: =[5]SCENARIO1!AE60 -> 0 | J57: 0 | K57: 0 | L57: 0 | M57: 0 | N57: =[5]SCENARIO1!AW60 -> 28.717704 | O57: =[5]SCENARIO1!AX61 -> 0.893286
A58: PUD | B58: =[5]SCENARIO1!BD61 -> 0 | C58: =[5]SCENARIO1!BE61 -> 0 | D58: =[5]SCENARIO1!BF61 -> 0 | E58: =[5]SCENARIO1!BG61 -> 0 | F58: =[5]SCENARIO1!AB61 -> 0 | G58: =[5]SCENARIO1!AC61 -> 0 | H58: =[5]SCENARIO1!AD61 -> 0 | I58: =[5]SCENARIO1!AE61 -> 0 | J58: 0 | K58: 0 | L58: 0 | M58: 0 | N58: =[5]SCENARIO1!AW61 -> 897.367719 | O58: =[5]SCENARIO1!AX62 -> 0
A59: ERC | B59: =[5]SCENARIO1!BD62 -> 0 | C59: =[5]SCENARIO1!BE62 -> 0 | D59: =[5]SCENARIO1!BF62 -> 0 | E59: =[5]SCENARIO1!BG62 -> 0 | F59: =[5]SCENARIO1!AB62 -> 0 | G59: =[5]SCENARIO1!AC62 -> 0 | H59: =[5]SCENARIO1!AD62 -> 0 | I59: =[5]SCENARIO1!AE62 -> 0 | J59: 0 | K59: 0 | L59: 0 | M59: 0 | N59: =[5]SCENARIO1!AW62 -> 0 | O59: =[5]SCENARIO1!AX63 -> 0
A60: NBG | B60: =[5]SCENARIO1!BD63 -> 0 | C60: =[5]SCENARIO1!BE63 -> 0 | D60: =[5]SCENARIO1!BF63 -> 0 | E60: =[5]SCENARIO1!BG63 -> 0 | F60: =[5]SCENARIO1!AB63 -> 0 | G60: =[5]SCENARIO1!AC63 -> 0 | H60: =[5]SCENARIO1!AD63 -> 0 | I60: =[5]SCENARIO1!AE63 -> 0 | J60: 0 | K60: 0 | L60: 0 | M60: 0 | N60: =[5]SCENARIO1!AW63 -> 0 | O60: =[5]SCENARIO1!AX64 -> 0
A61: UNZ | B61: =[5]SCENARIO1!BD64 -> 0 | C61: =[5]SCENARIO1!BE64 -> 0 | D61: =[5]SCENARIO1!BF64 -> 0 | E61: =[5]SCENARIO1!BG64 -> 0 | F61: =[5]SCENARIO1!AB64 -> 0 | G61: =[5]SCENARIO1!AC64 -> 0 | H61: =[5]SCENARIO1!AD64 -> 0 | I61: =[5]SCENARIO1!AE64 -> 0 | J61: 0 | K61: 0 | L61: 0 | M61: 0 | N61: =[5]SCENARIO1!AW64 -> 0 | O61: =[5]SCENARIO1!AX65 -> 0
A62: TOD | B62: =[5]SCENARIO1!BD65 -> 0 | C62: =[5]SCENARIO1!BE65 -> 0 | D62: =[5]SCENARIO1!BF65 -> 0 | E62: =[5]SCENARIO1!BG65 -> 0 | F62: =[5]SCENARIO1!AB65 -> 0 | G62: =[5]SCENARIO1!AC65 -> 0 | H62: =[5]SCENARIO1!AD65 -> 0 | I62: =[5]SCENARIO1!AE65 -> 0 | J62: 0 | K62: 0 | L62: 0 | M62: 0 | N62: =[5]SCENARIO1!AW65 -> 0 | O62: =[5]SCENARIO1!AX66 -> 0
A63: Whisper Valley PUD | B63: =[5]SCENARIO1!BD66 -> 5590.482854 | C63: =[5]SCENARIO1!BE66 -> 775.6537788 | D63: =[5]SCENARIO1!BF66 -> 495.1990909 | E63: =[5]SCENARIO1!BG66 -> 4319.629984 | F63: =[5]SCENARIO1!AB66 -> 0 | G63: =[5]SCENARIO1!AC66 -> 0 | H63: =[5]SCENARIO1!AD66 -> 0 | I63: =[5]SCENARIO1!AE66 -> 0 | J63: 5590.482854 | K63: 775.6537788 | L63: 495.1990909 | M63: 4319.629984 | N63: =[5]SCENARIO1!AW66 -> 2066.022682 | O63: =[5]SCENARIO1!AX67 -> 0
A64: Wildhorse Ranch PUD | B64: =[5]SCENARIO1!BD67 -> 6087.71923 | C64: =[5]SCENARIO1!BE67 -> 0 | D64: =[5]SCENARIO1!BF67 -> 0 | E64: =[5]SCENARIO1!BG67 -> 6087.71923 | F64: =[5]SCENARIO1!AB67 -> 0 | G64: =[5]SCENARIO1!AC67 -> 0 | H64: =[5]SCENARIO1!AD67 -> 0 | I64: =[5]SCENARIO1!AE67 -> 0 | J64: 6087.71923 | K64: 0 | L64: 0 | M64: 6087.71923 | N64: =[5]SCENARIO1!AW67 -> 1669.233231 | O64: =[5]SCENARIO1!AX68 -> 0
A65: Waters Edge PUD | B65: =[5]SCENARIO1!BD68 -> 0 | C65: =[5]SCENARIO1!BE68 -> 0 | D65: =[5]SCENARIO1!BF68 -> 0 | E65: =[5]SCENARIO1!BG68 -> 0 | F65: =[5]SCENARIO1!AB68 -> 0 | G65: =[5]SCENARIO1!AC68 -> 0 | H65: =[5]SCENARIO1!AD68 -> 0 | I65: =[5]SCENARIO1!AE68 -> 0 | J65: 0 | K65: 0 | L65: 0 | M65: 0 | N65: =[5]SCENARIO1!AW68 -> 0 | O65: =[5]SCENARIO1!AX69 -> 0
A66: Goodnight Ranch PUD | B66: =[5]SCENARIO1!BD69 -> 0 | C66: =[5]SCENARIO1!BE69 -> 0 | D66: =[5]SCENARIO1!BF69 -> 0 | E66: =[5]SCENARIO1!BG69 -> 0 | F66: =[5]SCENARIO1!AB69 -> 0 | G66: =[5]SCENARIO1!AC69 -> 0 | H66: =[5]SCENARIO1!AD69 -> 0 | I66: =[5]SCENARIO1!AE69 -> 0 | J66: 0 | K66: 0 | L66: 0 | M66: 0 | N66: =[5]SCENARIO1!AW69 -> 0 | O66: =[5]SCENARIO1!AX70 -> 0
A67: UNO | B67: =[5]SCENARIO1!BD70 -> 0 | C67: =[5]SCENARIO1!BE70 -> 0 | D67: =[5]SCENARIO1!BF70 -> 0 | E67: =[5]SCENARIO1!BG70 -> 0 | F67: =[5]SCENARIO1!AB70 -> 0 | G67: =[5]SCENARIO1!AC70 -> 0 | H67: =[5]SCENARIO1!AD70 -> 0 | I67: =[5]SCENARIO1!AE70 -> 0 | J67: =B67-F67 -> 0 | K67: 0 | L67: 0 | M67: 0 | N67: =[5]SCENARIO1!AW70 -> 0 | O67: =[5]SCENARIO1!AX71 -> 0
A68: Estancia PUD | B68: =[5]SCENARIO1!BD71 -> 0 | C68: =[5]SCENARIO1!BE71 -> 0 | D68: =[5]SCENARIO1!BF71 -> 0 | E68: =[5]SCENARIO1!BG71 -> 0 | F68: =[5]SCENARIO1!AB71 -> 0 | G68: =[5]SCENARIO1!AC71 -> 0 | H68: =[5]SCENARIO1!AD71 -> 0 | I68: =[5]SCENARIO1!AE71 -> 0 | J68: 0 | K68: 0 | L68: 0 | M68: 0 | N68: =[5]SCENARIO1!AW71 -> 0 | O68: =[5]SCENARIO1!AX72 -> 0
A69: TOD - Medium Density Residential (TODMDR) | B69: =[5]SCENARIO1!BD72 -> 0 | C69: =[5]SCENARIO1!BE72 -> 0 | D69: =[5]SCENARIO1!BF72 -> 0 | E69: =[5]SCENARIO1!BG72 -> 0 | F69: =[5]SCENARIO1!AB72 -> 0 | G69: =[5]SCENARIO1!AC72 -> 0 | H69: =[5]SCENARIO1!AD72 -> 0 | I69: =[5]SCENARIO1!AE72 -> 0 | J69: 0 | K69: 0 | L69: 0 | M69: 0 | N69: =[5]SCENARIO1!AW72 -> 0 | O69: =[5]SCENARIO1!AX73 -> 0
A70: TOD – Low Density Residential (TODLDR) | B70: =[5]SCENARIO1!BD73 -> 0 | C70: =[5]SCENARIO1!BE73 -> 0 | D70: =[5]SCENARIO1!BF73 -> 0 | E70: =[5]SCENARIO1!BG73 -> 0 | F70: =[5]SCENARIO1!AB73 -> 0 | G70: =[5]SCENARIO1!AC73 -> 0 | H70: =[5]SCENARIO1!AD73 -> 0 | I70: =[5]SCENARIO1!AE73 -> 0 | J70: 0 | K70: 0 | L70: 0 | M70: 0 | N70: =[5]SCENARIO1!AW73 -> 0 | O70: =[5]SCENARIO1!AX74 -> 41.560391
A71: TOD – TOD Mixed Use | B71: =[5]SCENARIO1!BD74 -> 1632.945626 | C71: =[5]SCENARIO1!BE74 -> 1632.945626 | D71: =[5]SCENARIO1!BF74 -> 0 | E71: =[5]SCENARIO1!BG74 -> 0 | F71: =[5]SCENARIO1!AB74 -> 520 | G71: =[5]SCENARIO1!AC74 -> 516 | H71: =[5]SCENARIO1!AD74 -> 2 | I71: =[5]SCENARIO1!AE74 -> 2 | J71: 1112.945626 | K71: 1116.945626 | L71: -2 | M71: -2 | N71: =[5]SCENARIO1!AW74 -> 9.577601 | O71: =[5]SCENARIO1!AX75 -> 0
A72: TOD – Corridor Mixed Use (TODCMU) | B72: =[5]SCENARIO1!BD75 -> 0 | C72: =[5]SCENARIO1!BE75 -> 0 | D72: =[5]SCENARIO1!BF75 -> 0 | E72: =[5]SCENARIO1!BG75 -> 0 | F72: =[5]SCENARIO1!AB75 -> 0 | G72: =[5]SCENARIO1!AC75 -> 0 | H72: =[5]SCENARIO1!AD75 -> 0 | I72: =[5]SCENARIO1!AE75 -> 0 | J72: 0 | K72: 0 | L72: 0 | M72: 0 | N72: =[5]SCENARIO1!AW75 -> 0 | O72: =[5]SCENARIO1!AX76 -> 0
A73: South Shore PUD | B73: =[5]SCENARIO1!BD76 -> 0 | C73: =[5]SCENARIO1!BE76 -> 0 | D73: =[5]SCENARIO1!BF76 -> 0 | E73: =[5]SCENARIO1!BG76 -> 0 | F73: =[5]SCENARIO1!AB76 -> 0 | G73: =[5]SCENARIO1!AC76 -> 0 | H73: =[5]SCENARIO1!AD76 -> 0 | I73: =[5]SCENARIO1!AE76 -> 0 | J73: 0 | K73: 0 | L73: 0 | M73: 0 | N73: =[5]SCENARIO1!AW76 -> 0 | O73: =[1]SCENARIO1!AY76 -> 33.398385
A74: Total | B74: =SUM(B3:B73) -> 34077.82918 | C74: =SUM(C3:C73) -> 15480.17375 | D74: 5462.634863 | E74: 13135.02056 | F74: =SUM(F3:F73) -> 1847 | G74: =SUM(G3:G73) -> 1686 | H74: 33 | I74: 125 | J74: =SUM(J3:J73) -> 32230.82918 | K74: =SUM(K3:K73) -> 13794.17375 | L74: =SUM(L3:L73) -> 5429.634863 | M74: 13010.02056 | N74: 6279.57508 | O74: 301.288423

Sheet Draft 2 CD 2
B1: New | F1: Units assumed to redevelop | J1: Net Growth | N1: Acres
A2: CodeNEXT2 | B2: Units | C2: Multifamily | D2: Townhome | E2: Single Family | F2: Units | G2: Multifamily | H2: Townhome | I2: Single Family | J2: Units | K2: Multifamily | L2: Townhome | M2: Single Family | N2: Vacant Developed | O2: Developed Redeveloped
A3: Rural Residential | B3: =[6]!'!SCENARIO1!R6C56:R76C59' -> 40.12809771 | C3: 0 | D3: 0 | E3: 40.12809771 | F3: =[6]!'!SCENARIO1!R6C28:R76C31' -> 0 | G3: 0 | H3: 0 | I3: 0 | J3: =B3-F3 -> 40.12809771 | K3: 0 | L3: 0 | M3: 40.12809771 | N3: =[6]!'!SCENARIO1!R6C49:R76C49' -> 71.018217 | O3: =[6]!'!SCENARIO1!R6C50:R76C50' -> 0
A4: Lake Austin | B4: 0 | C4: 0 | D4: 0 | E4: 0 | F4: 0 | G4: 0 | H4: 0 | I4: 0 | J4: 0 | K4: 0 | L4: 0 | M4: 0 | N4: 0 | O4: 0
A5: R1A | B5: 0 | C5: 0 | D5: 0 | E5: 0 | F5: 0 | G5: 0 | H5: 0 | I5: 0 | J5: 0 | K5: 0 | L5: 0 | M5: 0 | N5: 0 | O5: 0
A6: R1B | B6: 357.9970518 | C6: 0 | D6: 0 | E6: 357.9970518 | F6: 0 | G6: 0 | H6: 0 | I6: 0 | J6: 357.9970518 | K6: 0 | L6: 0 | M6: 357.9970518 | N6: 101.425116 | O6: 0
A7: R1C | B7: 0.7768165348 | C7: 0 | D7: 0 | E7: 0.7768165348 | F7: 0 | G7: 0 | H7: 0 | I7: 0 | J7: 0.7768165348 | K7: 0 | L7: 0 | M7: 0.7768165348 | N7: 0.220082 | O7: 0
A8: R2A | B8: 0 | C8: 0 | D8: 0 | E8: 0 | F8: 0 | G8: 0 | H8: 0 | I8: 0 | J8: 0 | K8: 0 | L8: 0 | M8: 0 | N8: 0 | O8: 0
A9: R2B | B9: 65.01157026 | C9: 0 | D9: 13.47595437 | E9: 51.53561589 | F9: 0 | G9: 0 | H9: 0 | I9: 0 | J9: 65.01157026 | K9: 0 | L9: 13.47595437 | M9: 51.53561589 | N9: 16.236763 | O9: 0
A10: R2C | B10: 6.072682603 | C10: 0 | D10: 1.258778911 | E10: 4.813903691 | F10: 0 | G10: 0 | H10: 0 | I10: 0 | J10: 6.072682603 | K10: 0 | L10: 1.258778911 | M10: 4.813903691 | N10: 1.516664 | O10: 0
A11: R2D | B11: 682.0672314 | C11: 0 | D11: 0 | E11: 682.0672314 | F11: 0 | G11: 0 | H11: 0 | I11: 0 | J11: 682.0672314 | K11: 0 | L11: 0 | M11: 682.0672314 | N11: 95.807842 | O11: 0
A12: R2E | B12: 844.379524 | C12: 0 | D12: 0 | E12: 844.379524 | F12: 0 | G12: 0 | H12: 0 | I12: 0 | J12: 844.379524 | K12: 0 | L12: 0 | M12: 844.379524 | N12: 118.60734 | O12: 0
A13: R3A | B13: 0 | C13: 0 | D13: 0 | E13: 0 | F13: 0 | G13: 0 | H13: 0 | I13: 0 | J13: 0 | K13: 0 | L13: 0 | M13: 0 | N13: 0 | O13: 0
A14: R3B | B14: 0 | C14: 0 | D14: 0 | E14: 0 | F14: 0 | G14: 0 | H14: 0 | I14: 0 | J14: 0 | K14: 0 | L14: 0 | M14: 0 | N14: 0 | O14: 0
A15: R3C | B15: 0 | C15: 0 | D15: 0 | E15: 0 | F15: 0 | G15: 0 | H15: 0 | I15: 0 | J15: 0 | K15: 0 | L15: 0 | M15: 0 | N15: 0 | O15: 0
A16: R3D | B16: 0 | C16: 0 | D16: 0 | E16: 0 | F16: 0 | G16: 0 | H16: 0 | I16: 0 | J16: 0 | K16: 0 | L16: 0 | M16: 0 | N16: 0 | O16: 0
A17: R4A | B17: 2.121172399 | C17: 1.325732749 | D17: 0.5302930997 | E17: 0.2651465499 | F17: 0 | G17: 0 | H17: 0 | I17: 0 | J17: 2.121172399 | K17: 1.325732749 | L17: 0.5302930997 | M17: 0.2651465499 | N17: 0.18066 | O17: 0
A18: R4B | B18: 0 | C18: 0 | D18: 0 | E18: 0 | F18: 0 | G18: 0 | H18: 0 | I18: 0 | J18: 0 | K18: 0 | L18: 0 | M18: 0 | N18: 0 | O18: 0
A19: R4C | B19: 0 | C19: 0 | D19: 0 | E19: 0 | F19: 0 | G19: 0 | H19: 0 | I19: 0 | J19: 0 | K19: 0 | L19: 0 | M19: 0 | N19: 0 | O19: 0
A20: RM1A | B20: 609.1372036 | C20: 0 | D20: 553.1021419 | E20: 56.03506166 | F20: 5 | G20: 0 | H20: 0 | I20: 5 | J20: 604.1372036 | K20: 0 | L20: 553.1021419 | M20: 51.03506166 | N20: 29.592055 | O20: 15.449988
A21: RM1B | B21: 0 | C21: 0 | D21: 0 | E21: 0 | F21: 0 | G21: 0 | H21: 0 | I21: 0 | J21: 0 | K21: 0 | L21: 0 | M21: 0 | N21: 0 | O21: 0
A22: RM2A | B22: 1271.508999 | C22: 854.9926062 | D22: 416.5163924 | E22: 0 | F22: 0 | G22: 0 | H22: 0 | I22: 0 | J22: 1271.508999 | K22: 854.9926062 | L22: 416.5163924 | M22: 0 | N22: 70.080959 | O22: 0
A23: RM2B | B23: 0 | C23: 0 | D23: 0 | E23: 0 | F23: 0 | G23: 0 | H23: 0 | I23: 0 | J23: 0 | K23: 0 | L23: 0 | M23: 0 | N23: 0 | O23: 0
A24: RM3A | B24: 1901.316624 | C24: 1773.58119 | D24: 88.57208355 | E24: 39.16335088 | F24: 0 | G24: 0 | H24: 0 | I24: 0 | J24: 1901.316624 | K24: 1773.58119 | L24: 88.57208355 | M24: 39.16335088 | N24: 68.208162 | O24: 0
A25: RM4A | B25: 0 | C25: 0 | D25: 0 | E25: 0 | F25: 0 | G25: 0 | H25: 0 | I25: 0 | J25: 0 | K25: 0 | L25: 0 | M25: 0 | N25: 0 | O25: 0
A26: RM5A | B26: 0 | C26: 0 | D26: 0 | E26: 0 | F26: 0 | G26: 0 | H26: 0 | I26: 0 | J26: 0 | K26: 0 | L26: 0 | M26: 0 | N26: 0 | O26: 0
A27: MHP | B27: 0 | C27: 0 | D27: 0 | E27: 0 | F27: 0 | G27: 0 | H27: 0 | I27: 0 | J27: 0 | K27: 0 | L27: 0 | M27: 0 | N27: 36.697426 | O27: 0
A28: MU1A | B28: 0 | C28: 0 | D28: 0 | E28: 0 | F28: 0 | G28: 0 | H28: 0 | I28: 0 | J28: 0 | K28: 0 | L28: 0 | M28: 0 | N28: 0 | O28: 0
A29: MU1B | B29: 0 | C29: 0 | D29: 0 | E29: 0 | F29: 0 | G29: 0 | H29: 0 | I29: 0 | J29: 0 | K29: 0 | L29: 0 | M29: 0 | N29: 0 | O29: 0
A30: MU1C | B30: 0 | C30: 0 | D30: 0 | E30: 0 | F30: 0 | G30: 0 | H30: 0 | I30: 0 | J30: 0 | K30: 0 | L30: 0 | M30: 0 | N30: 0 | O30: 0
A31: MU1D | B31: 0 | C31: 0 | D31: 0 | E31: 0 | F31: 0 | G31: 0 | H31: 0 | I31: 0 | J31: 0 | K31: 0 | L31: 0 | M31: 0 | N31: 0 | O31: 0
A32: MU2A | B32: 347.0492335 | C32: 133.7130478 | D32: 213.3361857 | E32: 0 | F32: 0 | G32: 0 | H32: 0 | I32: 0 | J32: 347.0492335 | K32: 133.7130478 | L32: 213.3361857 | M32: 0 | N32: 38.431139 | O32: 0
A33: MU2B | B33: 115.7266104 | C33: 73.92270794 | D33: 41.80390243 | E33: 0 | F33: 0 | G33: 0 | H33: 0 | I33: 0 | J33: 115.7266104 | K33: 73.92270794 | L33: 41.80390243 | M33: 0 | N33: 7.022417 | O33: 0
A34: MU3A | B34: 1358.307475 | C34: 846.0393595 | D34: 512.2681158 | E34: 0 | F34: 0 | G34: 0 | H34: 0 | I34: 0 | J34: 1358.307475 | K34: 846.0393595 | L34: 512.2681158 | M34: 0 | N34: 86.586051 | O34: 0
A35: MU4A | B35: 78.88235704 | C35: 49.1328952 | D35: 29.74946184 | E35: 0 | F35: 0 | G35: 0 | H35: 0 | I35: 0 | J35: =B35-F35 -> 78.88235704 | K35: 49.1328952 | L35: 29.74946184 | M35: 0 | N35: 5.863984 | O35: 0
A36: MU4B | B36: 4009.145688 | C36: 4009.145688 | D36: 0 | E36: 0 | F36: 0 | G36: 0 | H36: 0 | I36: 0 | J36: 4009.145688 | K36: 4009.145688 | L36: 0 | M36: 0 | N36: 252.565129 | O36: 0
A37: MU5A | B37: 0 | C37: 0 | D37: 0 | E37: 0 | F37: 0 | G37: 0 | H37: 0 | I37: 0 | J37: 0 | K37: 0 | L37: 0 | M37: 0 | N37: 0 | O37: 0
A38: MS1A | B38: 0 | C38: 0 | D38: 0 | E38: 0 | F38: 0 | G38: 0 | H38: 0 | I38: 0 | J38: 0 | K38: 0 | L38: 0 | M38: 0 | N38: 0 | O38: 0
A39: MS1B | B39: 0 | C39: 0 | D39: 0 | E39: 0 | F39: 0 | G39: 0 | H39: 0 | I39: 0 | J39: 0 | K39: 0 | L39: 0 | M39: 0 | N39: 0 | O39: 0
A40: MS2A | B40: 0 | C40: 0 | D40: 0 | E40: 0 | F40: 0 | G40: 0 | H40: 0 | I40: 0 | J40: 0 | K40: 0 | L40: 0 | M40: 0 | N40: 0 | O40: 0
A41: MS2B | B41: 0 | C41: 0 | D41: 0 | E41: 0 | F41: 0 | G41: 0 | H41: 0 | I41: 0 | J41: 0 | K41: 0 | L41: 0 | M41: 0 | N41: 0 | O41: 0
A42: MS2C | B42: 0 | C42: 0 | D42: 0 | E42: 0 | F42: 0 | G42: 0 | H42: 0 | I42: 0 | J42: 0 | K42: 0 | L42: 0 | M42: 0 | N42: 0 | O42: 0
A43: MS3A | B43: 0 | C43: 0 | D43: 0 | E43: 0 | F43: 0 | G43: 0 | H43: 0 | I43: 0 | J43: 0 | K43: 0 | L43: 0 | M43: 0 | N43: 0 | O43: 0
A44: MS3B | B44: 0 | C44: 0 | D44: 0 | E44: 0 | F44: 0 | G44: 0 | H44: 0 | I44: 0 | J44: 0 | K44: 0 | L44: 0 | M44: 0 | N44: 0 | O44: 0
A45: UC | B45: 0 | C45: 0 | D45: 0 | E45: 0 | F45: 0 | G45: 0 | H45: 0 | I45: 0 | J45: 0 | K45: 0 | L45: 0 | M45: 0 | N45: 0 | O45: 0
A46: CC40 | B46: 0 | C46: 0 | D46: 0 | E46: 0 | F46: 0 | G46: 0 | H46: 0 | I46: 0 | J46: 0 | K46: 0 | L46: 0 | M46: 0 | N46: 0 | O46: 0
A47: CC60 | B47: 0 | C47: 0 | D47: 0 | E47: 0 | F47: 0 | G47: 0 | H47: 0 | I47: 0 | J47: 0 | K47: 0 | L47: 0 | M47: 0 | N47: 0 | O47: 0
A48: CC80 | B48: 0 | C48: 0 | D48: 0 | E48: 0 | F48: 0 | G48: 0 | H48: 0 | I48: 0 | J48: 0 | K48: 0 | L48: 0 | M48: 0 | N48: 0 | O48: 0
A49: CC120 | B49: 0 | C49: 0 | D49: 0 | E49: 0 | F49: 0 | G49: 0 | H49: 0 | I49: 0 | J49: 0 | K49: 0 | L49: 0 | M49: 0 | N49: 0 | O49: 0
A50: DC | B50: 0 | C50: 0 | D50: 0 | E50: 0 | F50: 0 | G50: 0 | H50: 0 | I50: 0 | J50: 0 | K50: 0 | L50: 0 | M50: 0 | N50: 0 | O50: 0
A51: CR | B51: 0 | C51: 0 | D51: 0 | E51: 0 | F51: 0 | G51: 0 | H51: 0 | I51: 0 | J51: 0 | K51: 0 | L51: 0 | M51: 0 | N51: 88.694166 | O51: 0
A52: CW | B52: 0 | C52: 0 | D52: 0 | E52: 0 | F52: 0 | G52: 0 | H52: 0 | I52: 0 | J52: 0 | K52: 0 | L52: 0 | M52: 0 | N52: 106.495326 | O52: 0
A53: IF | B53: 448.1107219 | C53: 0 | D53: 0 | E53: 448.1107219 | F53: 0 | G53: 0 | H53: 0 | I53: 0 | J53: 448.1107219 | K53: 0 | L53: 0 | M53: 448.1107219 | N53: 331.404444 | O53: 0
A54: IG | B54: 0 | C54: 0 | D54: 0 | E54: 0 | F54: 0 | G54: 0 | H54: 0 | I54: 0 | J54: 0 | K54: 0 | L54: 0 | M54: 0 | N54: 22.36371 | O54: 0
A55: IH | B55: 0 | C55: 0 | D55: 0 | E55: 0 | F55: 0 | G55: 0 | H55: 0 | I55: 0 | J55: 0 | K55: 0 | L55: 0 | M55: 0 | N55: 0 | O55: 0
A56: R&D | B56: 0 | C56: 0 | D56: 0 | E56: 0 | F56: 0 | G56: 0 | H56: 0 | I56: 0 | J56: 0 | K56: 0 | L56: 0 | M56: 0 | N56: 0 | O56: 0
A57: P | B57: 0 | C57: 0 | D57: 0 | E57: 0 | F57: 0 | G57: 0 | H57: 0 | I57: 0 | J57: 0 | K57: 0 | L57: 0 | M57: 0 | N57: 7.434123 | O57: 0
A58: PUD | B58: 0 | C58: 0 | D58: 0 | E58: 0 | F58: 0 | G58: 0 | H58: 0 | I58: 0 | J58: 0 | K58: 0 | L58: 0 | M58: 0 | N58: 108.552748 | O58: 0
A59: ERC | B59: 0 | C59: 0 | D59: 0 | E59: 0 | F59: 0 | G59: 0 | H59: 0 | I59: 0 | J59: 0 | K59: 0 | L59: 0 | M59: 0 | N59: 0 | O59: 0
A60: NBG | B60: 0 | C60: 0 | D60: 0 | E60: 0 | F60: 0 | G60: 0 | H60: 0 | I60: 0 | J60: 0 | K60: 0 | L60: 0 | M60: 0 | N60: 0 | O60: 0
A61: UNZ | B61: 0 | C61: 0 | D61: 0 | E61: 0 | F61: 0 | G61: 0 | H61: 0 | I61: 0 | J61: 0 | K61: 0 | L61: 0 | M61: 0 | N61: 0 | O61: 0
A62: TOD | B62: 0 | C62: 0 | D62: 0 | E62: 0 | F62: 0 | G62: 0 | H62: 0 | I62: 0 | J62: 0 | K62: 0 | L62: 0 | M62: 0 | N62: 0 | O62: 0
A63: Whisper Valley PUD | B63: 0 | C63: 0 | D63: 0 | E63: 0 | F63: 0 | G63: 0 | H63: 0 | I63: 0 | J63: 0 | K63: 0 | L63: 0 | M63: 0 | N63: 0 | O63: 0
A64: Wildhorse Ranch PUD | B64: 0 | C64: 0 | D64: 0 | E64: 0 | F64: 0 | G64: 0 | H64: 0 | I64: 0 | J64: 0 | K64: 0 | L64: 0 | M64: 0 | N64: 0 | O64: 0
A65: Waters Edge PUD | B65: 1692.699424 | C65: 174.3699253 | D65: 1286.394983 | E65: 231.9345161 | F65: 0 | G65: 0 | H65: 0 | I65: 0 | J65: 1692.699424 | K65: 174.3699253 | L65: 1286.394983 | M65: 231.9345161 | N65: 282.144465 | O65: 0
A66: Goodnight Ranch PUD | B66: 4969.845377 | C66: 970.1702008 | D66: 0 | E66: 3999.675176 | F66: 1 | G66: 0 | H66: 0 | I66: 1 | J66: 4968.845377 | K66: 970.1702008 | L66: 0 | M66: 3998.675176 | N66: 588.397776 | O66: 0.246241
A67: UNO | B67: 0 | C67: 0 | D67: 0 | E67: 0 | F67: 0 | G67: 0 | H67: 0 | I67: 0 | J67: =B67-F67 -> 0 | K67: 0 | L67: 0 | M67: 0 | N67: 0 | O67: 0
A68: Estancia PUD | B68: 0 | C68: 0 | D68: 0 | E68: 0 | F68: 0 | G68: 0 | H68: 0 | I68: 0 | J68: 0 | K68: 0 | L68: 0 | M68: 0 | N68: 0 | O68: 0
A69: TOD - Medium Density Residential (TODMDR) | B69: 0 | C69: 0 | D69: 0 | E69: 0 | F69: 0 | G69: 0 | H69: 0 | I69: 0 | J69: 0 | K69: 0 | L69: 0 | M69: 0 | N69: 0 | O69: 0
A70: TOD – Low Density Residential (TODLDR) | B70: 0 | C70: 0 | D70: 0 | E70: 0 | F70: 0 | G70: 0 | H70: 0 | I70: 0 | J70: 0 | K70: 0 | L70: 0 | M70: 0 | N70: 0 | O70: 0
A71: TOD – TOD Mixed Use | B71: 0 | C71: 0 | D71: 0 | E71: 0 | F71: 0 | G71: 0 | H71: 0 | I71: 0 | J71: 0 | K71: 0 | L71: 0 | M71: 0 | N71: 0 | O71: 0
A72: TOD – Corridor Mixed Use (TODCMU) | B72: 0 | C72: 0 | D72: 0 | E72: 0 | F72: 0 | G72: 0 | H72: 0 | I72: 0 | J72: 0 | K72: 0 | L72: 0 | M72: 0 | N72: 0 | O72: 0
A73: South Shore PUD | B73: 0 | C73: 0 | D73: 0 | E73: 0 | F73: 0 | G73: 0 | H73: 0 | I73: 0 | J73: 0 | K73: 0 | L73: 0 | M73: 0 | N73: 0 | O73: 0
A74: Total | B74: =SUM(B3:B73) -> 18800.28386 | C74: =SUM(C3:C73) -> 8886.393353 | D74: 3157.008293 | E74: 6756.882214 | F74: =SUM(F3:F73) -> 6 | G74: =SUM(G3:G73) -> 0 | H74: 0 | I74: 6 | J74: =SUM(J3:J73) -> 18794.28386 | K74: =SUM(K3:K73) -> 8886.393353 | L74: =SUM(L3:L73) -> 3157.008293 | M74: 6750.882214 | N74: =SUM(N3:N73) -> 2535.546764 | O74: 15.696229

Sheet Draft 2 CD 3
B1: New | F1: Units assumed to redevelop | J1: Net Growth | N1: Acres
A2: CodeNEXT2 | B2: Units | C2: Multifamily | D2: Townhome | E2: Single Family | F2: Units | G2: Multifamily | H2: Townhome | I2: Single Family | J2: Units | K2: Multifamily | L2: Townhome | M2: Single Family | N2: Vacant Developed | O2: Developed Redeveloped
A3: Rural Residential | B3: =[7]SCENARIO1!BD6 -> 43.65386225 | C3: =[7]SCENARIO1!BE6 -> 0 | D3: =[7]SCENARIO1!BF6 -> 0 | E3: =[7]SCENARIO1!BG6 -> 43.65386225 | F3: =[7]SCENARIO1!AB6 -> 0 | G3: =[7]SCENARIO1!AC6 -> 0 | H3: =[7]SCENARIO1!AD6 -> 0 | I3: =[7]SCENARIO1!AE6 -> 0 | J3: =B3-F3 -> 43.65386225 | K3: 0 | L3: 0 | M3: 43.65386225 | N3: =[7]SCENARIO1!AW6 -> 77.258072 | O3: =[7]SCENARIO1!AY6 -> 0
A4: Lake Austin | B4: =[7]SCENARIO1!BD7 -> 0 | C4: =[7]SCENARIO1!BE7 -> 0 | D4: =[7]SCENARIO1!BF7 -> 0 | E4: =[7]SCENARIO1!BG7 -> 0 | F4: =[7]SCENARIO1!AB7 -> 0 | G4: =[7]SCENARIO1!AC7 -> 0 | H4: =[7]SCENARIO1!AD7 -> 0 | I4: =[7]SCENARIO1!AE7 -> 0 | J4: 0 | K4: 0 | L4: 0 | M4: 0 | N4: =[7]SCENARIO1!AW7 -> 0 | O4: =[7]SCENARIO1!AY7 -> 0
A5: R1A | B5: =[7]SCENARIO1!BD8 -> 2.897457508 | C5: =[7]SCENARIO1!BE8 -> 0 | D5: =[7]SCENARIO1!BF8 -> 0 | E5: =[7]SCENARIO1!BG8 -> 2.897457508 | F5: =[7]SCENARIO1!AB8 -> 0 | G5: =[7]SCENARIO1!AC8 -> 0 | H5: =[7]SCENARIO1!AD8 -> 0 | I5: =[7]SCENARIO1!AE8 -> 0 | J5: 2.897457508 | K5: 0 | L5: 0 | M5: 2.897457508 | N5: =[7]SCENARIO1!AW8 -> 1.469347 | O5: =[7]SCENARIO1!AY8 -> 0
A6: R1B | B6: =[7]SCENARIO1!BD9 -> 146.4132074 | C6: =[7]SCENARIO1!BE9 -> 0 | D6: =[7]SCENARIO1!BF9 -> 0 | E6: =[7]SCENARIO1!BG9 -> 146.4132074 | F6: =[7]SCENARIO1!AB9 -> 0 | G6: =[7]SCENARIO1!AC9 -> 0 | H6: =[7]SCENARIO1!AD9 -> 0 | I6: =[7]SCENARIO1!AE9 -> 0 | J6: 146.4132074 | K6: 0 | L6: 0 | M6: 146.4132074 | N6: =[7]SCENARIO1!AW9 -> 41.480723 | O6: =[7]SCENARIO1!AY9 -> 0
A7: R1C | B7: =[7]SCENARIO1!BD10 -> 95.10721814 | C7: =[7]SCENARIO1!BE10 -> 0 | D7: =[7]SCENARIO1!BF10 -> 0 | E7: =[7]SCENARIO1!BG10 -> 95.10721814 | F7: =[7]SCENARIO1!AB10 -> 0 | G7: =[7]SCENARIO1!AC10 -> 0 | H7: =[7]SCENARIO1!AD10 -> 0 | I7: =[7]SCENARIO1!AE10 -> 0 | J7: 95.10721814 | K7: 0 | L7: 0 | M7: 95.10721814 | N7: =[7]SCENARIO1!AW10 -> 26.945084 | O7: =[7]SCENARIO1!AY10 -> 0
A8: R2A | B8: =[7]SCENARIO1!BD11 -> 0 | C8: =[7]SCENARIO1!BE11 -> 0 | D8: =[7]SCENARIO1!BF11 -> 0 | E8: =[7]SCENARIO1!BG11 -> 0 | F8: =[7]SCENARIO1!AB11 -> 0 | G8: =[7]SCENARIO1!AC11 -> 0 | H8: =[7]SCENARIO1!AD11 -> 0 | I8: =[7]SCENARIO1!AE11 -> 0 | J8: 0 | K8: 0 | L8: 0 | M8: 0 | N8: =[7]SCENARIO1!AW11 -> 0 | O8: =[7]SCENARIO1!AY11 -> 0
A9: R2B | B9: =[7]SCENARIO1!BD12 -> 42.35252315 | C9: =[7]SCENARIO1!BE12 -> 0 | D9: =[7]SCENARIO1!BF12 -> 8.779062973 | E9: =[7]SCENARIO1!BG12 -> 33.57346018 | F9: =[7]SCENARIO1!AB12 -> 0 | G9: =[7]SCENARIO1!AC12 -> 0 | H9: =[7]SCENARIO1!AD12 -> 0 | I9: =[7]SCENARIO1!AE12 -> 0 | J9: 42.35252315 | K9: 0 | L9: 8.779062973 | M9: 33.57346018 | N9: =[7]SCENARIO1!AW12 -> 10.577623 | O9: =[7]SCENARIO1!AY12 -> 0
A10: R2C | B10: =[7]SCENARIO1!BD13 -> 427.7046139 | C10: =[7]SCENARIO1!BE13 -> 0 | D10: =[7]SCENARIO1!BF13 -> 88.65695501 | E10: =[7]SCENARIO1!BG13 -> 339.0476589 | F10: =[7]SCENARIO1!AB13 -> 11 | G10: =[7]SCENARIO1!AC13 -> 0 | H10: =[7]SCENARIO1!AD13 -> 0 | I10: =[7]SCENARIO1!AE13 -> 11 | J10: 416.7046139 | K10: 0 | L10: 88.65695501 | M10: 328.0476589 | N10: =[7]SCENARIO1!AW13 -> 95.576376 | O10: =[7]SCENARIO1!AY13 -> 8.03362
A11: R2D | B11: =[7]SCENARIO1!BD14 -> 0 | C11: =[7]SCENARIO1!BE14 -> 0 | D11: =[7]SCENARIO1!BF14 -> 0 | E11: =[7]SCENARIO1!BG14 -> 0 | F11: =[7]SCENARIO1!AB14 -> 0 | G11: =[7]SCENARIO1!AC14 -> 0 | H11: =[7]SCENARIO1!AD14 -> 0 | I11: =[7]SCENARIO1!AE14 -> 0 | J11: 0 | K11: 0 | L11: 0 | M11: 0 | N11: =[7]SCENARIO1!AW14 -> 0 | O11: =[7]SCENARIO1!AY14 -> 0
A12: R2E | B12: =[7]SCENARIO1!BD15 -> 25.11891425 | C12: =[7]SCENARIO1!BE15 -> 0 | D12: =[7]SCENARIO1!BF15 -> 0 | E12: =[7]SCENARIO1!BG15 -> 25.11891425 | F12: =[7]SCENARIO1!AB15 -> 0 | G12: =[7]SCENARIO1!AC15 -> 0 | H12: =[7]SCENARIO1!AD15 -> 0 | I12: =[7]SCENARIO1!AE15 -> 0 | J12: 25.11891425 | K12: 0 | L12: 0 | M12: 25.11891425 | N12: =[7]SCENARIO1!AW15 -> 3.528375 | O12: =[7]SCENARIO1!AY15 -> 0
A13: R3A | B13: =[7]SCENARIO1!BD16 -> 0 | C13: =[7]SCENARIO1!BE16 -> 0 | D13: =[7]SCENARIO1!BF16 -> 0 | E13: =[7]SCENARIO1!BG16 -> 0 | F13: =[7]SCENARIO1!AB16 -> 0 | G13: =[7]SCENARIO1!AC16 -> 0 | H13: =[7]SCENARIO1!AD16 -> 0 | I13: =[7]SCENARIO1!AE16 -> 0 | J13: 0 | K13: 0 | L13: 0 | M13: 0 | N13: =[7]SCENARIO1!AW16 -> 0 | O13: =[7]SCENARIO1!AY16 -> 0
A14: R3B | B14: =[7]SCENARIO1!BD17 -> 0 | C14: =[7]SCENARIO1!BE17 -> 0 | D14: =[7]SCENARIO1!BF17 -> 0 | E14: =[7]SCENARIO1!BG17 -> 0 | F14: =[7]SCENARIO1!AB17 -> 0 | G14: =[7]SCENARIO1!AC17 -> 0 | H14: =[7]SCENARIO1!AD17 -> 0 | I14: =[7]SCENARIO1!AE17 -> 0 | J14: 0 | K14: 0 | L14: 0 | M14: 0 | N14: =[7]SCENARIO1!AW17 -> 0 | O14: =[7]SCENARIO1!AY17 -> 0
A15: R3C | B15: =[7]SCENARIO1!BD18 -> 137.7292292 | C15: =[7]SCENARIO1!BE18 -> 0 | D15: =[7]SCENARIO1!BF18 -> 78.25528843 | E15: =[7]SCENARIO1!BG18 -> 59.47394076 | F15: =[7]SCENARIO1!AB18 -> 34 | G15: =[7]SCENARIO1!AC18 -> 10 | H15: =[7]SCENARIO1!AD18 -> 2 | I15: =[7]SCENARIO1!AE18 -> 22 | J15: 103.7292292 | K15: -10 | L15: 76.25528843 | M15: 37.47394076 | N15: =[7]SCENARIO1!AW18 -> 6.91425 | O15: =[7]SCENARIO1!AY18 -> 7.890783
A16: R3D | B16: =[7]SCENARIO1!BD19 -> 0 | C16: =[7]SCENARIO1!BE19 -> 0 | D16: =[7]SCENARIO1!BF19 -> 0 | E16: =[7]SCENARIO1!BG19 -> 0 | F16: =[7]SCENARIO1!AB19 -> 0 | G16: =[7]SCENARIO1!AC19 -> 0 | H16: =[7]SCENARIO1!AD19 -> 0 | I16: =[7]SCENARIO1!AE19 -> 0 | J16: 0 | K16: 0 | L16: 0 | M16: 0 | N16: =[7]SCENARIO1!AW19 -> 0 | O16: =[7]SCENARIO1!AY19 -> 0
A17: R4A | B17: =[7]SCENARIO1!BD20 -> 10.16957896 | C17: =[7]SCENARIO1!BE20 -> 6.355986847 | D17: =[7]SCENARIO1!BF20 -> 2.542394739 | E17: =[7]SCENARIO1!BG20 -> 1.271197369 | F17: =[7]SCENARIO1!AB20 -> 0 | G17: =[7]SCENARIO1!AC20 -> 0 | H17: =[7]SCENARIO1!AD20 -> 0 | I17: =[7]SCENARIO1!AE20 -> 0 | J17: 10.16957896 | K17: 6.355986847 | L17: 2.542394739 | M17: 1.271197369 | N17: =[7]SCENARIO1!AW20 -> 0.081405 | O17: =[7]SCENARIO1!AY20 -> 0.660998
A18: R4B | B18: =[7]SCENARIO1!BD21 -> 33.79225565 | C18: =[7]SCENARIO1!BE21 -> 17.97460537 | D18: =[7]SCENARIO1!BF21 -> 8.987302685 | E18: =[7]SCENARIO1!BG21 -> 6.830347595 | F18: =[7]SCENARIO1!AB21 -> 36 | G18: =[7]SCENARIO1!AC21 -> 24 | H18: =[7]SCENARIO1!AD21 -> 12 | I18: =[7]SCENARIO1!AE21 -> 0 | J18: -2.207744351 | K18: -6.02539463 | L18: -3.012697315 | M18: 6.830347595 | N18: =[7]SCENARIO1!AW21 -> 0 | O18: =[7]SCENARIO1!AY21 -> 1.719334
A19: R4C | B19: =[7]SCENARIO1!BD22 -> 0 | C19: =[7]SCENARIO1!BE22 -> 0 | D19: =[7]SCENARIO1!BF22 -> 0 | E19: =[7]SCENARIO1!BG22 -> 0 | F19: =[7]SCENARIO1!AB22 -> 0 | G19: =[7]SCENARIO1!AC22 -> 0 | H19: =[7]SCENARIO1!AD22 -> 0 | I19: =[7]SCENARIO1!AE22 -> 0 | J19: 0 | K19: 0 | L19: 0 | M19: 0 | N19: =[7]SCENARIO1!AW22 -> 0 | O19: =[7]SCENARIO1!AY22 -> 0
A20: RM1A | B20: =[7]SCENARIO1!BD23 -> 122.9183147 | C20: =[7]SCENARIO1!BE23 -> 0 | D20: =[7]SCENARIO1!BF23 -> 111.610952 | E20: =[7]SCENARIO1!BG23 -> 11.30736278 | F20: =[7]SCENARIO1!AB23 -> 0 | G20: =[7]SCENARIO1!AC23 -> 0 | H20: =[7]SCENARIO1!AD23 -> 0 | I20: =[7]SCENARIO1!AE23 -> 0 | J20: 122.9183147 | K20: 0 | L20: 111.610952 | M20: 11.30736278 | N20: =[7]SCENARIO1!AW23 -> 10.335905 | O20: =[7]SCENARIO1!AY23 -> 0
A21: RM1B | B21: =[7]SCENARIO1!BD24 -> 75.0022513 | C21: =[7]SCENARIO1!BE24 -> 69.48737988 | D21: =[7]SCENARIO1!BF24 -> 5.514871419 | E21: =[7]SCENARIO1!BG24 -> 0 | F21: =[7]SCENARIO1!AB24 -> 3 | G21: =[7]SCENARIO1!AC24 -> 0 | H21: =[7]SCENARIO1!AD24 -> 0 | I21: =[7]SCENARIO1!AE24 -> 3 | J21: 72.0022513 | K21: 69.48737988 | L21: 5.514871419 | M21: -3 | N21: =[7]SCENARIO1!AW24 -> 0.140944 | O21: =[7]SCENARIO1!AY24 -> 3.046381
A22: RM2A | B22: =[7]SCENARIO1!BD25 -> 690.2219119 | C22: =[7]SCENARIO1!BE25 -> 464.1214745 | D22: =[7]SCENARIO1!BF25 -> 226.1004374 | E22: =[7]SCENARIO1!BG25 -> 0 | F22: =[7]SCENARIO1!AB25 -> 294 | G22: =[7]SCENARIO1!AC25 -> 291 | H22: =[7]SCENARIO1!AD25 -> 0 | I22: =[7]SCENARIO1!AE25 -> 3 | J22: 396.2219119 | K22: 173.1214745 | L22: 226.1004374 | M22: -3 | N22: =[7]SCENARIO1!AW25 -> 13.460158 | O22: =[7]SCENARIO1!AY25 -> 19.003245
A23: RM2B | B23: =[7]SCENARIO1!BD26 -> 441.9091049 | C23: =[7]SCENARIO1!BE26 -> 276.1931906 | D23: =[7]SCENARIO1!BF26 -> 0 | E23: =[7]SCENARIO1!BG26 -> 165.7159144 | F23: =[7]SCENARIO1!AB26 -> 75 | G23: =[7]SCENARIO1!AC26 -> 75 | H23: =[7]SCENARIO1!AD26 -> 0 | I23: =[7]SCENARIO1!AE26 -> 0 | J23: 366.9091049 | K23: 201.1931906 | L23: 0 | M23: 165.7159144 | N23: =[7]SCENARIO1!AW26 -> 0 | O23: =[7]SCENARIO1!AY26 -> 15.851308
A24: RM3A | B24: =[7]SCENARIO1!BD27 -> 723.8375896 | C24: =[7]SCENARIO1!BE27 -> 675.2082831 | D24: =[7]SCENARIO1!BF27 -> 33.71968805 | E24: =[7]SCENARIO1!BG27 -> 14.90961849 | F24: =[7]SCENARIO1!AB27 -> 346 | G24: =[7]SCENARIO1!AC27 -> 343 | H24: =[7]SCENARIO1!AD27 -> 2 | I24: =[7]SCENARIO1!AE27 -> 1 | J24: 377.8375896 | K24: 332.2082831 | L24: 31.71968805 | M24: 13.90961849 | N24: =[7]SCENARIO1!AW27 -> 4.056631 | O24: =[7]SCENARIO1!AY27 -> 16.36568
A25: RM4A | B25: =[7]SCENARIO1!BD28 -> 0 | C25: =[7]SCENARIO1!BE28 -> 0 | D25: =[7]SCENARIO1!BF28 -> 0 | E25: =[7]SCENARIO1!BG28 -> 0 | F25: =[7]SCENARIO1!AB28 -> 0 | G25: =[7]SCENARIO1!AC28 -> 0 | H25: =[7]SCENARIO1!AD28 -> 0 | I25: =[7]SCENARIO1!AE28 -> 0 | J25: 0 | K25: 0 | L25: 0 | M25: 0 | N25: =[7]SCENARIO1!AW28 -> 0 | O25: =[7]SCENARIO1!AY28 -> 0
A26: RM5A | B26: =[7]SCENARIO1!BD29 -> 0 | C26: =[7]SCENARIO1!BE29 -> 0 | D26: =[7]SCENARIO1!BF29 -> 0 | E26: =[7]SCENARIO1!BG29 -> 0 | F26: =[7]SCENARIO1!AB29 -> 0 | G26: =[7]SCENARIO1!AC29 -> 0 | H26: =[7]SCENARIO1!AD29 -> 0 | I26: =[7]SCENARIO1!AE29 -> 0 | J26: 0 | K26: 0 | L26: 0 | M26: 0 | N26: =[7]SCENARIO1!AW29 -> 0 | O26: =[7]SCENARIO1!AY29 -> 0
A27: MHP | B27: =[7]SCENARIO1!BD30 -> 0 | C27: =[7]SCENARIO1!BE30 -> 0 | D27: =[7]SCENARIO1!BF30 -> 0 | E27: =[7]SCENARIO1!BG30 -> 0 | F27: =[7]SCENARIO1!AB30 -> 0 | G27: =[7]SCENARIO1!AC30 -> 0 | H27: =[7]SCENARIO1!AD30 -> 0 | I27: =[7]SCENARIO1!AE30 -> 0 | J27: 0 | K27: 0 | L27: 0 | M27: 0 | N27: =[7]SCENARIO1!AW30 -> 0 | O27: =[7]SCENARIO1!AY30 -> 0
A28: MU1A | B28: =[7]SCENARIO1!BD31 -> 4.707965882 | C28: =[7]SCENARIO1!BE31 -> 2.620389372 | D28: =[7]SCENARIO1!BF31 -> 1.310194686 | E28: =[7]SCENARIO1!BG31 -> 0.7773818238 | F28: =[7]SCENARIO1!AB31 -> 0 | G28: =[7]SCENARIO1!AC31 -> 0 | H28: =[7]SCENARIO1!AD31 -> 0 | I28: =[7]SCENARIO1!AE31 -> 0 | J28: 4.707965882 | K28: 2.620389372 | L28: 1.310194686 | M28: 0.7773818238 | N28: =[7]SCENARIO1!AW31 -> 0.297571 | O28: =[7]SCENARIO1!AY31 -> 0
A29: MU1B | B29: =[7]SCENARIO1!BD32 -> 27.42485745 | C29: =[7]SCENARIO1!BE32 -> 15.2643003 | D29: =[7]SCENARIO1!BF32 -> 7.632150148 | E29: =[7]SCENARIO1!BG32 -> 4.528407011 | F29: =[7]SCENARIO1!AB32 -> 0 | G29: =[7]SCENARIO1!AC32 -> 0 | H29: =[7]SCENARIO1!AD32 -> 0 | I29: =[7]SCENARIO1!AE32 -> 0 | J29: 27.42485745 | K29: 15.2643003 | L29: 7.632150148 | M29: 4.528407011 | N29: =[7]SCENARIO1!AW32 -> 0.161903 | O29: =[7]SCENARIO1!AY32 -> 1.32371
A30: MU1C | B30: =[7]SCENARIO1!BD33 -> 0 | C30: =[7]SCENARIO1!BE33 -> 0 | D30: =[7]SCENARIO1!BF33 -> 0 | E30: =[7]SCENARIO1!BG33 -> 0 | F30: =[7]SCENARIO1!AB33 -> 0 | G30: =[7]SCENARIO1!AC33 -> 0 | H30: =[7]SCENARIO1!AD33 -> 0 | I30: =[7]SCENARIO1!AE33 -> 0 | J30: 0 | K30: 0 | L30: 0 | M30: 0 | N30: =[7]SCENARIO1!AW33 -> 0 | O30: =[7]SCENARIO1!AY33 -> 0
A31: MU1D | B31: =[7]SCENARIO1!BD34 -> 0 | C31: =[7]SCENARIO1!BE34 -> 0 | D31: =[7]SCENARIO1!BF34 -> 0 | E31: =[7]SCENARIO1!BG34 -> 0 | F31: =[7]SCENARIO1!AB34 -> 0 | G31: =[7]SCENARIO1!AC34 -> 0 | H31: =[7]SCENARIO1!AD34 -> 0 | I31: =[7]SCENARIO1!AE34 -> 0 | J31: 0 | K31: 0 | L31: 0 | M31: 0 | N31: =[7]SCENARIO1!AW34 -> 0 | O31: =[7]SCENARIO1!AY34 -> 0
A32: MU2A | B32: =[7]SCENARIO1!BD35 -> 223.5254898 | C32: =[7]SCENARIO1!BE35 -> 86.12113677 | D32: =[7]SCENARIO1!BF35 -> 137.404353 | E32: =[7]SCENARIO1!BG35 -> 0 | F32: =[7]SCENARIO1!AB35 -> 4 | G32: =[7]SCENARIO1!AC35 -> 0 | H32: =[7]SCENARIO1!AD35 -> 0 | I32: =[7]SCENARIO1!AE35 -> 4 | J32: 219.5254898 | K32: 86.12113677 | L32: 137.404353 | M32: -4 | N32: =[7]SCENARIO1!AW35 -> 9.868471 | O32: =[7]SCENARIO1!AY35 -> 10.914315
A33: MU2B | B33: =[7]SCENARIO1!BD36 -> 106.5897727 | C33: =[7]SCENARIO1!BE36 -> 68.08636846 | D33: =[7]SCENARIO1!BF36 -> 38.50340421 | E33: =[7]SCENARIO1!BG36 -> 0 | F33: =[7]SCENARIO1!AB36 -> 0 | G33: =[7]SCENARIO1!AC36 -> 0 | H33: =[7]SCENARIO1!AD36 -> 0 | I33: =[7]SCENARIO1!AE36 -> 0 | J33: 106.5897727 | K33: 68.08636846 | L33: 38.50340421 | M33: 0 | N33: =[7]SCENARIO1!AW36 -> 5.75722 | O33: =[7]SCENARIO1!AY36 -> 0.538498
A34: MU3A | B34: =[7]SCENARIO1!BD37 -> 1984.069079 | C34: =[7]SCENARIO1!BE37 -> 1235.803059 | D34: =[7]SCENARIO1!BF37 -> 748.2660202 | E34: =[7]SCENARIO1!BG37 -> 0 | F34: =[7]SCENARIO1!AB37 -> 5 | G34: =[7]SCENARIO1!AC37 -> 0 | H34: =[7]SCENARIO1!AD37 -> 0 | I34: =[7]SCENARIO1!AE37 -> 5 | J34: 1979.069079 | K34: 1235.803059 | L34: 748.2660202 | M34: -5 | N34: =[7]SCENARIO1!AW37 -> 82.277027 | O34: =[7]SCENARIO1!AY37 -> 33.650811
A35: MU4A | B35: =[7]SCENARIO1!BD38 -> 31.49430794 | C35: =[7]SCENARIO1!BE38 -> 19.61663659 | D35: =[7]SCENARIO1!BF38 -> 11.87767135 | E35: =[7]SCENARIO1!BG38 -> 0 | F35: =[7]SCENARIO1!AB38 -> 0 | G35: =[7]SCENARIO1!AC38 -> 0 | H35: =[7]SCENARIO1!AD38 -> 0 | I35: =[7]SCENARIO1!AE38 -> 0 | J35: =B35-F35 -> 31.49430794 | K35: 19.61663659 | L35: 11.87767135 | M35: 0 | N35: =[7]SCENARIO1!AW38 -> 1.970856 | O35: =[7]SCENARIO1!AY38 -> 0.241808
A36: MU4B | B36: =[7]SCENARIO1!BD39 -> 5396.8122 | C36: =[7]SCENARIO1!BE39 -> 5396.8122 | D36: =[7]SCENARIO1!BF39 -> 0 | E36: =[7]SCENARIO1!BG39 -> 0 | F36: =[7]SCENARIO1!AB39 -> 192 | G36: =[7]SCENARIO1!AC39 -> 100 | H36: =[7]SCENARIO1!AD39 -> 0 | I36: =[7]SCENARIO1!AE39 -> 3 | J36: 5204.8122 | K36: 5296.8122 | L36: 0 | M36: -3 | N36: =[7]SCENARIO1!AW39 -> 154.597037 | O36: =[7]SCENARIO1!AY39 -> 123.110183
A37: MU5A | B37: =[7]SCENARIO1!BD40 -> 1002.03516 | C37: =[7]SCENARIO1!BE40 -> 1002.03516 | D37: =[7]SCENARIO1!BF40 -> 0 | E37: =[7]SCENARIO1!BG40 -> 0 | F37: =[7]SCENARIO1!AB40 -> 0 | G37: =[7]SCENARIO1!AC40 -> 0 | H37: =[7]SCENARIO1!AD40 -> 0 | I37: =[7]SCENARIO1!AE40 -> 0 | J37: 1002.03516 | K37: 1002.03516 | L37: 0 | M37: 0 | N37: =[7]SCENARIO1!AW40 -> 59.975504 | O37: =[7]SCENARIO1!AY40 -> 0
A38: MS1A | B38: =[7]SCENARIO1!BD41 -> 0 | C38: =[7]SCENARIO1!BE41 -> 0 | D38: =[7]SCENARIO1!BF41 -> 0 | E38: =[7]SCENARIO1!BG41 -> 0 | F38: =[7]SCENARIO1!AB41 -> 0 | G38: =[7]SCENARIO1!AC41 -> 0 | H38: =[7]SCENARIO1!AD41 -> 0 | I38: =[7]SCENARIO1!AE41 -> 0 | J38: 0 | K38: 0 | L38: 0 | M38: 0 | N38: =[7]SCENARIO1!AW41 -> 0 | O38: =[7]SCENARIO1!AY41 -> 0
A39: MS1B | B39: =[7]SCENARIO1!BD42 -> 16.02012556 | C39: =[7]SCENARIO1!BE42 -> 11.62786576 | D39: =[7]SCENARIO1!BF42 -> 0 | E39: =[7]SCENARIO1!BG42 -> 4.392259802 | F39: =[7]SCENARIO1!AB42 -> 0 | G39: =[7]SCENARIO1!AC42 -> 0 | H39: =[7]SCENARIO1!AD42 -> 0 | I39: =[7]SCENARIO1!AE42 -> 0 | J39: 16.02012556 | K39: 11.62786576 | L39: 0 | M39: 4.392259802 | N39: =[7]SCENARIO1!AW42 -> 0 | O39: =[7]SCENARIO1!AY42 -> 0.675484
A40: MS2A | B40: =[7]SCENARIO1!BD43 -> 27.86906937 | C40: =[7]SCENARIO1!BE43 -> 26.34784546 | D40: =[7]SCENARIO1!BF43 -> 0 | E40: =[7]SCENARIO1!BG43 -> 1.521223903 | F40: =[7]SCENARIO1!AB43 -> 0 | G40: =[7]SCENARIO1!AC43 -> 0 | H40: =[7]SCENARIO1!AD43 -> 0 | I40: =[7]SCENARIO1!AE43 -> 0 | J40: 27.86906937 | K40: 26.34784546 | L40: 0 | M40: 1.521223903 | N40: =[7]SCENARIO1!AW43 -> 0.054169 | O40: =[7]SCENARIO1!AY43 -> 0.898488
A41: MS2B | B41: =[7]SCENARIO1!BD44 -> 777.6261431 | C41: =[7]SCENARIO1!BE44 -> 735.1796781 | D41: =[7]SCENARIO1!BF44 -> 0 | E41: =[7]SCENARIO1!BG44 -> 42.44646497 | F41: =[7]SCENARIO1!AB44 -> 43 | G41: =[7]SCENARIO1!AC44 -> 38 | H41: =[7]SCENARIO1!AD44 -> 2 | I41: =[7]SCENARIO1!AE44 -> 3 | J41: 734.6261431 | K41: 697.1796781 | L41: -2 | M41: 39.44646497 | N41: =[7]SCENARIO1!AW44 -> 4.11695 | O41: =[7]SCENARIO1!AY44 -> 23.275988
A42: MS2C | B42: =[7]SCENARIO1!BD45 -> 90.67618985 | C42: =[7]SCENARIO1!BE45 -> 85.72666012 | D42: =[7]SCENARIO1!BF45 -> 0 | E42: =[7]SCENARIO1!BG45 -> 4.949529733 | F42: =[7]SCENARIO1!AB45 -> 2 | G42: =[7]SCENARIO1!AC45 -> 0 | H42: =[7]SCENARIO1!AD45 -> 0 | I42: =[7]SCENARIO1!AE45 -> 2 | J42: 88.67618985 | K42: 85.72666012 | L42: 0 | M42: 2.949529733 | N42: =[7]SCENARIO1!AW45 -> 0.562242 | O42: =[7]SCENARIO1!AY45 -> 2.657533
A43: MS3A | B43: =[7]SCENARIO1!BD46 -> 1126.167951 | C43: =[7]SCENARIO1!BE46 -> 1126.167951 | D43: =[7]SCENARIO1!BF46 -> 0 | E43: =[7]SCENARIO1!BG46 -> 0 | F43: =[7]SCENARIO1!AB46 -> 160 | G43: =[7]SCENARIO1!AC46 -> 160 | H43: =[7]SCENARIO1!AD46 -> 0 | I43: =[7]SCENARIO1!AE46 -> 0 | J43: 966.1679507 | K43: 966.1679507 | L43: 0 | M43: 0 | N43: =[7]SCENARIO1!AW46 -> 0 | O43: =[7]SCENARIO1!AY46 -> 16.678715
A44: MS3B | B44: =[7]SCENARIO1!BD47 -> 938.6108235 | C44: =[7]SCENARIO1!BE47 -> 938.6108235 | D44: =[7]SCENARIO1!BF47 -> 0 | E44: =[7]SCENARIO1!BG47 -> 0 | F44: =[7]SCENARIO1!AB47 -> 172 | G44: =[7]SCENARIO1!AC47 -> 172 | H44: =[7]SCENARIO1!AD47 -> 0 | I44: =[7]SCENARIO1!AE47 -> 0 | J44: 766.6108235 | K44: 766.6108235 | L44: 0 | M44: 0 | N44: =[7]SCENARIO1!AW47 -> 0 | O44: =[7]SCENARIO1!AY47 -> 13.335756
A45: UC | B45: =[7]SCENARIO1!BD48 -> 0 | C45: =[7]SCENARIO1!BE48 -> 0 | D45: =[7]SCENARIO1!BF48 -> 0 | E45: =[7]SCENARIO1!BG48 -> 0 | F45: =[7]SCENARIO1!AB48 -> 0 | G45: =[7]SCENARIO1!AC48 -> 0 | H45: =[7]SCENARIO1!AD48 -> 0 | I45: =[7]SCENARIO1!AE48 -> 0 | J45: 0 | K45: 0 | L45: 0 | M45: 0 | N45: =[7]SCENARIO1!AW48 -> 0 | O45: =[7]SCENARIO1!AY48 -> 0
A46: CC40 | B46: =[7]SCENARIO1!BD49 -> 0 | C46: =[7]SCENARIO1!BE49 -> 0 | D46: =[7]SCENARIO1!BF49 -> 0 | E46: =[7]SCENARIO1!BG49 -> 0 | F46: =[7]SCENARIO1!AB49 -> 0 | G46: =[7]SCENARIO1!AC49 -> 0 | H46: =[7]SCENARIO1!AD49 -> 0 | I46: =[7]SCENARIO1!AE49 -> 0 | J46: 0 | K46: 0 | L46: 0 | M46: 0 | N46: =[7]SCENARIO1!AW49 -> 0 | O46: =[7]SCENARIO1!AY49 -> 0
A47: CC60 | B47: =[7]SCENARIO1!BD50 -> 0 | C47: =[7]SCENARIO1!BE50 -> 0 | D47: =[7]SCENARIO1!BF50 -> 0 | E47: =[7]SCENARIO1!BG50 -> 0 | F47: =[7]SCENARIO1!AB50 -> 0 | G47: =[7]SCENARIO1!AC50 -> 0 | H47: =[7]SCENARIO1!AD50 -> 0 | I47: =[7]SCENARIO1!AE50 -> 0 | J47: 0 | K47: 0 | L47: 0 | M47: 0 | N47: =[7]SCENARIO1!AW50 -> 0 | O47: =[7]SCENARIO1!AY50 -> 0
A48: CC80 | B48: =[7]SCENARIO1!BD51 -> 0 | C48: =[7]SCENARIO1!BE51 -> 0 | D48: =[7]SCENARIO1!BF51 -> 0 | E48: =[7]SCENARIO1!BG51 -> 0 | F48: =[7]SCENARIO1!AB51 -> 0 | G48: =[7]SCENARIO1!AC51 -> 0 | H48: =[7]SCENARIO1!AD51 -> 0 | I48: =[7]SCENARIO1!AE51 -> 0 | J48: 0 | K48: 0 | L48: 0 | M48: 0 | N48: =[7]SCENARIO1!AW51 -> 0 | O48: =[7]SCENARIO1!AY51 -> 0
A49: CC120 | B49: =[7]SCENARIO1!BD52 -> 0 | C49: =[7]SCENARIO1!BE52 -> 0 | D49: =[7]SCENARIO1!BF52 -> 0 | E49: =[7]SCENARIO1!BG52 -> 0 | F49: =[7]SCENARIO1!AB52 -> 0 | G49: =[7]SCENARIO1!AC52 -> 0 | H49: =[7]SCENARIO1!AD52 -> 0 | I49: =[7]SCENARIO1!AE52 -> 0 | J49: 0 | K49: 0 | L49: 0 | M49: 0 | N49: =[7]SCENARIO1!AW52 -> 0 | O49: =[7]SCENARIO1!AY52 -> 0
A50: DC | B50: =[7]SCENARIO1!BD53 -> 0 | C50: =[7]SCENARIO1!BE53 -> 0 | D50: =[7]SCENARIO1!BF53 -> 0 | E50: =[7]SCENARIO1!BG53 -> 0 | F50: =[7]SCENARIO1!AB53 -> 0 | G50: =[7]SCENARIO1!AC53 -> 0 | H50: =[7]SCENARIO1!AD53 -> 0 | I50: =[7]SCENARIO1!AE53 -> 0 | J50: 0 | K50: 0 | L50: 0 | M50: 0 | N50: =[7]SCENARIO1!AW53 -> 0 | O50: =[7]SCENARIO1!AY53 -> 0
A51: CR | B51: =[7]SCENARIO1!BD54 -> 0 | C51: =[7]SCENARIO1!BE54 -> 0 | D51: =[7]SCENARIO1!BF54 -> 0 | E51: =[7]SCENARIO1!BG54 -> 0 | F51: =[7]SCENARIO1!AB54 -> 0 | G51: =[7]SCENARIO1!AC54 -> 0 | H51: =[7]SCENARIO1!AD54 -> 0 | I51: =[7]SCENARIO1!AE54 -> 0 | J51: 0 | K51: 0 | L51: 0 | M51: 0 | N51: =[7]SCENARIO1!AW54 -> 0 | O51: =[7]SCENARIO1!AY54 -> 0
A52: CW | B52: =[7]SCENARIO1!BD55 -> 0 | C52: =[7]SCENARIO1!BE55 -> 0 | D52: =[7]SCENARIO1!BF55 -> 0 | E52: =[7]SCENARIO1!BG55 -> 0 | F52: =[7]SCENARIO1!AB55 -> 1 | G52: =[7]SCENARIO1!AC55 -> 0 | H52: =[7]SCENARIO1!AD55 -> 0 | I52: =[7]SCENARIO1!AE55 -> 1 | J52: -1 | K52: 0 | L52: 0 | M52: -1 | N52: =[7]SCENARIO1!AW55 -> 1.052798 | O52: =[7]SCENARIO1!AY55 -> 1.79267
A53: IF | B53: =[7]SCENARIO1!BD56 -> 146.6529169 | C53: =[7]SCENARIO1!BE56 -> 0 | D53: =[7]SCENARIO1!BF56 -> 0 | E53: =[7]SCENARIO1!BG56 -> 146.6529169 | F53: =[7]SCENARIO1!AB56 -> 0 | G53: =[7]SCENARIO1!AC56 -> 0 | H53: =[7]SCENARIO1!AD56 -> 0 | I53: =[7]SCENARIO1!AE56 -> 0 | J53: 146.6529169 | K53: 0 | L53: 0 | M53: 146.6529169 | N53: =[7]SCENARIO1!AW56 -> 108.458526 | O53: =[7]SCENARIO1!AY56 -> 0
A54: IG | B54: =[7]SCENARIO1!BD57 -> 0 | C54: =[7]SCENARIO1!BE57 -> 0 | D54: =[7]SCENARIO1!BF57 -> 0 | E54: =[7]SCENARIO1!BG57 -> 0 | F54: =[7]SCENARIO1!AB57 -> 0 | G54: =[7]SCENARIO1!AC57 -> 0 | H54: =[7]SCENARIO1!AD57 -> 0 | I54: =[7]SCENARIO1!AE57 -> 0 | J54: 0 | K54: 0 | L54: 0 | M54: 0 | N54: =[7]SCENARIO1!AW57 -> 0 | O54: =[7]SCENARIO1!AY57 -> 0
A55: IH | B55: =[7]SCENARIO1!BD58 -> 0 | C55: =[7]SCENARIO1!BE58 -> 0 | D55: =[7]SCENARIO1!BF58 -> 0 | E55: =[7]SCENARIO1!BG58 -> 0 | F55: =[7]SCENARIO1!AB58 -> 0 | G55: =[7]SCENARIO1!AC58 -> 0 | H55: =[7]SCENARIO1!AD58 -> 0 | I55: =[7]SCENARIO1!AE58 -> 0 | J55: 0 | K55: 0 | L55: 0 | M55: 0 | N55: =[7]SCENARIO1!AW58 -> 0 | O55: =[7]SCENARIO1!AY58 -> 0
A56: R&D | B56: =[7]SCENARIO1!BD59 -> 0 | C56: =[7]SCENARIO1!BE59 -> 0 | D56: =[7]SCENARIO1!BF59 -> 0 | E56: =[7]SCENARIO1!BG59 -> 0 | F56: =[7]SCENARIO1!AB59 -> 0 | G56: =[7]SCENARIO1!AC59 -> 0 | H56: =[7]SCENARIO1!AD59 -> 0 | I56: =[7]SCENARIO1!AE59 -> 0 | J56: 0 | K56: 0 | L56: 0 | M56: 0 | N56: =[7]SCENARIO1!AW59 -> 0 | O56: =[7]SCENARIO1!AY59 -> 0
A57: P | B57: =[7]SCENARIO1!BD60 -> 0 | C57: =[7]SCENARIO1!BE60 -> 0 | D57: =[7]SCENARIO1!BF60 -> 0 | E57: =[7]SCENARIO1!BG60 -> 0 | F57: =[7]SCENARIO1!AB60 -> 0 | G57: =[7]SCENARIO1!AC60 -> 0 | H57: =[7]SCENARIO1!AD60 -> 0 | I57: =[7]SCENARIO1!AE60 -> 0 | J57: 0 | K57: 0 | L57: 0 | M57: 0 | N57: =[7]SCENARIO1!AW60 -> 16.097255 | O57: =[7]SCENARIO1!AY60 -> 0
A58: PUD | B58: =[7]SCENARIO1!BD61 -> 0 | C58: =[7]SCENARIO1!BE61 -> 0 | D58: =[7]SCENARIO1!BF61 -> 0 | E58: =[7]SCENARIO1!BG61 -> 0 | F58: =[7]SCENARIO1!AB61 -> 207 | G58: =[7]SCENARIO1!AC61 -> 207 | H58: =[7]SCENARIO1!AD61 -> 0 | I58: =[7]SCENARIO1!AE61 -> 0 | J58: -207 | K58: -207 | L58: 0 | M58: 0 | N58: =[7]SCENARIO1!AW61 -> 20.62551 | O58: =[7]SCENARIO1!AY61 -> 24.720635
A59: ERC | B59: =[7]SCENARIO1!BD62 -> 0 | C59: =[7]SCENARIO1!BE62 -> 0 | D59: =[7]SCENARIO1!BF62 -> 0 | E59: =[7]SCENARIO1!BG62 -> 0 | F59: =[7]SCENARIO1!AB62 -> 0 | G59: =[7]SCENARIO1!AC62 -> 0 | H59: =[7]SCENARIO1!AD62 -> 0 | I59: =[7]SCENARIO1!AE62 -> 0 | J59: 0 | K59: 0 | L59: 0 | M59: 0 | N59: =[7]SCENARIO1!AW62 -> 0 | O59: =[7]SCENARIO1!AY62 -> 0
A60: NBG | B60: =[7]SCENARIO1!BD63 -> 0 | C60: =[7]SCENARIO1!BE63 -> 0 | D60: =[7]SCENARIO1!BF63 -> 0 | E60: =[7]SCENARIO1!BG63 -> 0 | F60: =[7]SCENARIO1!AB63 -> 0 | G60: =[7]SCENARIO1!AC63 -> 0 | H60: =[7]SCENARIO1!AD63 -> 0 | I60: =[7]SCENARIO1!AE63 -> 0 | J60: 0 | K60: 0 | L60: 0 | M60: 0 | N60: =[7]SCENARIO1!AW63 -> 0 | O60: =[7]SCENARIO1!AY63 -> 0
A61: UNZ | B61: =[7]SCENARIO1!BD64 -> 0 | C61: =[7]SCENARIO1!BE64 -> 0 | D61: =[7]SCENARIO1!BF64 -> 0 | E61: =[7]SCENARIO1!BG64 -> 0 | F61: =[7]SCENARIO1!AB64 -> 0 | G61: =[7]SCENARIO1!AC64 -> 0 | H61: =[7]SCENARIO1!AD64 -> 0 | I61: =[7]SCENARIO1!AE64 -> 0 | J61: 0 | K61: 0 | L61: 0 | M61: 0 | N61: =[7]SCENARIO1!AW64 -> 0 | O61: =[7]SCENARIO1!AY64 -> 0
A62: TOD | B62: =[7]SCENARIO1!BD65 -> 0 | C62: =[7]SCENARIO1!BE65 -> 0 | D62: =[7]SCENARIO1!BF65 -> 0 | E62: =[7]SCENARIO1!BG65 -> 0 | F62: =[7]SCENARIO1!AB65 -> 0 | G62: =[7]SCENARIO1!AC65 -> 0 | H62: =[7]SCENARIO1!AD65 -> 0 | I62: =[7]SCENARIO1!AE65 -> 0 | J62: 0 | K62: 0 | L62: 0 | M62: 0 | N62: =[7]SCENARIO1!AW65 -> 0 | O62: =[7]SCENARIO1!AY65 -> 0
A63: Whisper Valley PUD | B63: =[7]SCENARIO1!BD66 -> 0 | C63: =[7]SCENARIO1!BE66 -> 0 | D63: =[7]SCENARIO1!BF66 -> 0 | E63: =[7]SCENARIO1!BG66 -> 0 | F63: =[7]SCENARIO1!AB66 -> 0 | G63: =[7]SCENARIO1!AC66 -> 0 | H63: =[7]SCENARIO1!AD66 -> 0 | I63: =[7]SCENARIO1!AE66 -> 0 | J63: 0 | K63: 0 | L63: 0 | M63: 0 | N63: =[7]SCENARIO1!AW66 -> 0 | O63: =[7]SCENARIO1!AY66 -> 0
A64: Wildhorse Ranch PUD | B64: =[7]SCENARIO1!BD67 -> 0 | C64: =[7]SCENARIO1!BE67 -> 0 | D64: =[7]SCENARIO1!BF67 -> 0 | E64: =[7]SCENARIO1!BG67 -> 0 | F64: =[7]SCENARIO1!AB67 -> 0 | G64: =[7]SCENARIO1!AC67 -> 0 | H64: =[7]SCENARIO1!AD67 -> 0 | I64: =[7]SCENARIO1!AE67 -> 0 | J64: 0 | K64: 0 | L64: 0 | M64: 0 | N64: =[7]SCENARIO1!AW67 -> 0 | O64: =[7]SCENARIO1!AY67 -> 0
A65: Waters Edge PUD | B65: =[7]SCENARIO1!BD68 -> 0 | C65: =[7]SCENARIO1!BE68 -> 0 | D65: =[7]SCENARIO1!BF68 -> 0 | E65: =[7]SCENARIO1!BG68 -> 0 | F65: =[7]SCENARIO1!AB68 -> 0 | G65: =[7]SCENARIO1!AC68 -> 0 | H65: =[7]SCENARIO1!AD68 -> 0 | I65: =[7]SCENARIO1!AE68 -> 0 | J65: 0 | K65: 0 | L65: 0 | M65: 0 | N65: =[7]SCENARIO1!AW68 -> 0 | O65: =[7]SCENARIO1!AY68 -> 0
A66: Goodnight Ranch PUD | B66: =[7]SCENARIO1!BD69 -> 0 | C66: =[7]SCENARIO1!BE69 -> 0 | D66: =[7]SCENARIO1!BF69 -> 0 | E66: =[7]SCENARIO1!BG69 -> 0 | F66: =[7]SCENARIO1!AB69 -> 0 | G66: =[7]SCENARIO1!AC69 -> 0 | H66: =[7]SCENARIO1!AD69 -> 0 | I66: =[7]SCENARIO1!AE69 -> 0 | J66: 0 | K66: 0 | L66: 0 | M66: 0 | N66: =[7]SCENARIO1!AW69 -> 0 | O66: =[7]SCENARIO1!AY69 -> 0
A67: UNO | B67: =[7]SCENARIO1!BD70 -> 0 | C67: =[7]SCENARIO1!BE70 -> 0 | D67: =[7]SCENARIO1!BF70 -> 0 | E67: =[7]SCENARIO1!BG70 -> 0 | F67: =[7]SCENARIO1!AB70 -> 0 | G67: =[7]SCENARIO1!AC70 -> 0 | H67: =[7]SCENARIO1!AD70 -> 0 | I67: =[7]SCENARIO1!AE70 -> 0 | J67: =B67-F67 -> 0 | K67: 0 | L67: 0 | M67: 0 | N67: =[7]SCENARIO1!AW70 -> 0 | O67: =[7]SCENARIO1!AY70 -> 0
A68: Estancia PUD | B68: =[7]SCENARIO1!BD71 -> 0 | C68: =[7]SCENARIO1!BE71 -> 0 | D68: =[7]SCENARIO1!BF71 -> 0 | E68: =[7]SCENARIO1!BG71 -> 0 | F68: =[7]SCENARIO1!AB71 -> 0 | G68: =[7]SCENARIO1!AC71 -> 0 | H68: =[7]SCENARIO1!AD71 -> 0 | I68: =[7]SCENARIO1!AE71 -> 0 | J68: 0 | K68: 0 | L68: 0 | M68: 0 | N68: =[7]SCENARIO1!AW71 -> 0 | O68: =[7]SCENARIO1!AY71 -> 0
A69: TOD - Medium Density Residential (TODMDR) | B69: =[7]SCENARIO1!BD72 -> 0 | C69: =[7]SCENARIO1!BE72 -> 0 | D69: =[7]SCENARIO1!BF72 -> 0 | E69: =[7]SCENARIO1!BG72 -> 0 | F69: =[7]SCENARIO1!AB72 -> 0 | G69: =[7]SCENARIO1!AC72 -> 0 | H69: =[7]SCENARIO1!AD72 -> 0 | I69: =[7]SCENARIO1!AE72 -> 0 | J69: 0 | K69: 0 | L69: 0 | M69: 0 | N69: =[7]SCENARIO1!AW72 -> 0 | O69: =[7]SCENARIO1!AY72 -> 0
A70: TOD – Low Density Residential (TODLDR) | B70: =[7]SCENARIO1!BD73 -> 0 | C70: =[7]SCENARIO1!BE73 -> 0 | D70: =[7]SCENARIO1!BF73 -> 0 | E70: =[7]SCENARIO1!BG73 -> 0 | F70: =[7]SCENARIO1!AB73 -> 0 | G70: =[7]SCENARIO1!AC73 -> 0 | H70: =[7]SCENARIO1!AD73 -> 0 | I70: =[7]SCENARIO1!AE73 -> 0 | J70: 0 | K70: 0 | L70: 0 | M70: 0 | N70: =[7]SCENARIO1!AW73 -> 0 | O70: =[7]SCENARIO1!AY73 -> 0
A71: TOD – TOD Mixed Use | B71: =[7]SCENARIO1!BD74 -> 4888.153616 | C71: =[7]SCENARIO1!BE74 -> 4888.153616 | D71: =[7]SCENARIO1!BF74 -> 0 | E71: =[7]SCENARIO1!BG74 -> 0 | F71: =[7]SCENARIO1!AB74 -> 101 | G71: =[7]SCENARIO1!AC74 -> 99 | H71: =[7]SCENARIO1!AD74 -> 0 | I71: =[7]SCENARIO1!AE74 -> 2 | J71: 4787.153616 | K71: 4789.153616 | L71: 0 | M71: -2 | N71: =[7]SCENARIO1!AW74 -> 126.688469 | O71: =[7]SCENARIO1!AY74 -> 69.6853
A72: TOD – Corridor Mixed Use (TODCMU) | B72: =[7]SCENARIO1!BD75 -> 0 | C72: =[7]SCENARIO1!BE75 -> 0 | D72: =[7]SCENARIO1!BF75 -> 0 | E72: =[7]SCENARIO1!BG75 -> 0 | F72: =[7]SCENARIO1!AB75 -> 0 | G72: =[7]SCENARIO1!AC75 -> 0 | H72: =[7]SCENARIO1!AD75 -> 0 | I72: =[7]SCENARIO1!AE75 -> 0 | J72: 0 | K72: 0 | L72: 0 | M72: 0 | N72: =[7]SCENARIO1!AW75 -> 0 | O72: =[7]SCENARIO1!AY75 -> 0
A73: South Shore PUD | B73: =[7]SCENARIO1!BD76 -> 0 | C73: =[7]SCENARIO1!BE76 -> 0 | D73: =[7]SCENARIO1!BF76 -> 0 | E73: =[7]SCENARIO1!BG76 -> 0 | F73: =[7]SCENARIO1!AB76 -> 0 | G73: =[7]SCENARIO1!AC76 -> 0 | H73: =[7]SCENARIO1!AD76 -> 0 | I73: =[7]SCENARIO1!AE76 -> 0 | J73: 0 | K73: 0 | L73: 0 | M73: 0 | N73: =[7]SCENARIO1!AW76 -> 0 | O73: =[7]SCENARIO1!AY76 -> 0
A74: Total | B74: =SUM(B3:B73) -> 19807.2637 | C74: =SUM(C3:C73) -> 17147.51461 | D74: 1509.160746 | E74: 1150.588344 | F74: =SUM(F3:F73) -> 1686 | G74: =SUM(G3:G73) -> 1519 | H74: 18 | I74: =SUM(I3:I73) -> 60 | J74: =SUM(J3:J73) -> 18121.2637 | K74: =SUM(K3:K73) -> 15628.51461 | L74: =SUM(L3:L73) -> 1491.160746 | M74: 1090.588344 | N74: =SUM(N3:N73) -> 884.386401 | O74: 396.071243

Sheet Draft 2 CD 4
B1: New | F1: Units assumed to redevelop | J1: Net Growth | N1: Acres
A2: CodeNEXT2 | B2: Units | C2: Multifamily | D2: Townhome | E2: Single Family | F2: Units | G2: Multifamily | H2: Townhome | I2: Single Family | J2: Units | K2: Multifamily | L2: Townhome | M2: Single Family | N2: Vacant Developed | O2: Developed Redeveloped
A3: Rural Residential | B3: =[8]SCENARIO1!BD6 -> 0 | C3: =[8]SCENARIO1!BE6 -> 0 | D3: =[8]SCENARIO1!BF6 -> 0 | E3: =[8]SCENARIO1!BG6 -> 0 | F3: =[8]SCENARIO1!AB6 -> 0 | G3: =[8]SCENARIO1!AC6 -> 0 | H3: =[8]SCENARIO1!AD6 -> 0 | I3: =[8]SCENARIO1!AE6 -> 0 | J3: =B3-F3 -> 0 | K3: 0 | L3: 0 | M3: 0 | N3: =[8]SCENARIO1!AW6 -> 0 | O3: =[8]SCENARIO1!AY6 -> 0
A4: Lake Austin | B4: =[8]SCENARIO1!BD7 -> 0 | C4: =[8]SCENARIO1!BE7 -> 0 | D4: =[8]SCENARIO1!BF7 -> 0 | E4: =[8]SCENARIO1!BG7 -> 0 | F4: =[8]SCENARIO1!AB7 -> 0 | G4: =[8]SCENARIO1!AC7 -> 0 | H4: =[8]SCENARIO1!AD7 -> 0 | I4: =[8]SCENARIO1!AE7 -> 0 | J4: 0 | K4: 0 | L4: 0 | M4: 0 | N4: =[8]SCENARIO1!AW7 -> 0 | O4: =[8]SCENARIO1!AY7 -> 0
A5: R1A | B5: =[8]SCENARIO1!BD8 -> 3.765424636 | C5: =[8]SCENARIO1!BE8 -> 0 | D5: =[8]SCENARIO1!BF8 -> 0 | E5: =[8]SCENARIO1!BG8 -> 3.765424636 | F5: =[8]SCENARIO1!AB8 -> 0 | G5: =[8]SCENARIO1!AC8 -> 0 | H5: =[8]SCENARIO1!AD8 -> 0 | I5: =[8]SCENARIO1!AE8 -> 0 | J5: 3.765424636 | K5: 0 | L5: 0 | M5: 3.765424636 | N5: =[8]SCENARIO1!AW8 -> 1.909507 | O5: =[8]SCENARIO1!AY8 -> 0
A6: R1B | B6: =[8]SCENARIO1!BD9 -> 5.972312297 | C6: =[8]SCENARIO1!BE9 -> 0 | D6: =[8]SCENARIO1!BF9 -> 0 | E6: =[8]SCENARIO1!BG9 -> 5.972312297 | F6: =[8]SCENARIO1!AB9 -> 0 | G6: =[8]SCENARIO1!AC9 -> 0 | H6: =[8]SCENARIO1!AD9 -> 0 | I6: =[8]SCENARIO1!AE9 -> 0 | J6: 5.972312297 | K6: 0 | L6: 0 | M6: 5.972312297 | N6: =[8]SCENARIO1!AW9 -> 1.692032 | O6: =[8]SCENARIO1!AY9 -> 0
A7: R1C | B7: =[8]SCENARIO1!BD10 -> 0 | C7: =[8]SCENARIO1!BE10 -> 0 | D7: =[8]SCENARIO1!BF10 -> 0 | E7: =[8]SCENARIO1!BG10 -> 0 | F7: =[8]SCENARIO1!AB10 -> 0 | G7: =[8]SCENARIO1!AC10 -> 0 | H7: =[8]SCENARIO1!AD10 -> 0 | I7: =[8]SCENARIO1!AE10 -> 0 | J7: 0 | K7: 0 | L7: 0 | M7: 0 | N7: =[8]SCENARIO1!AW10 -> 0 | O7: =[8]SCENARIO1!AY10 -> 0
A8: R2A | B8: =[8]SCENARIO1!BD11 -> 0 | C8: =[8]SCENARIO1!BE11 -> 0 | D8: =[8]SCENARIO1!BF11 -> 0 | E8: =[8]SCENARIO1!BG11 -> 0 | F8: =[8]SCENARIO1!AB11 -> 0 | G8: =[8]SCENARIO1!AC11 -> 0 | H8: =[8]SCENARIO1!AD11 -> 0 | I8: =[8]SCENARIO1!AE11 -> 0 | J8: 0 | K8: 0 | L8: 0 | M8: 0 | N8: =[8]SCENARIO1!AW11 -> 0 | O8: =[8]SCENARIO1!AY11 -> 0
A9: R2B | B9: =[8]SCENARIO1!BD12 -> 174.8228883 | C9: =[8]SCENARIO1!BE12 -> 0 | D9: =[8]SCENARIO1!BF12 -> 36.23824584 | E9: =[8]SCENARIO1!BG12 -> 138.5846425 | F9: =[8]SCENARIO1!AB12 -> 0 | G9: =[8]SCENARIO1!AC12 -> 0 | H9: =[8]SCENARIO1!AD12 -> 0 | I9: =[8]SCENARIO1!AE12 -> 0 | J9: 174.8228883 | K9: 0 | L9: 36.23824584 | M9: 138.5846425 | N9: =[8]SCENARIO1!AW12 -> 43.662348 | O9: =[8]SCENARIO1!AY12 -> 0
A10: R2C | B10: =[8]SCENARIO1!BD13 -> 50.43822349 | C10: =[8]SCENARIO1!BE13 -> 0 | D10: =[8]SCENARIO1!BF13 -> 10.45511123 | E10: =[8]SCENARIO1!BG13 -> 39.98311227 | F10: =[8]SCENARIO1!AB13 -> 0 | G10: =[8]SCENARIO1!AC13 -> 0 | H10: =[8]SCENARIO1!AD13 -> 0 | I10: =[8]SCENARIO1!AE13 -> 0 | J10: 50.43822349 | K10: 0 | L10: 10.45511123 | M10: 39.98311227 | N10: =[8]SCENARIO1!AW13 -> 12.597042 | O10: =[8]SCENARIO1!AY13 -> 0
A11: R2D | B11: =[8]SCENARIO1!BD14 -> 0 | C11: =[8]SCENARIO1!BE14 -> 0 | D11: =[8]SCENARIO1!BF14 -> 0 | E11: =[8]SCENARIO1!BG14 -> 0 | F11: =[8]SCENARIO1!AB14 -> 0 | G11: =[8]SCENARIO1!AC14 -> 0 | H11: =[8]SCENARIO1!AD14 -> 0 | I11: =[8]SCENARIO1!AE14 -> 0 | J11: 0 | K11: 0 | L11: 0 | M11: 0 | N11: =[8]SCENARIO1!AW14 -> 0 | O11: =[8]SCENARIO1!AY14 -> 0
A12: R2E | B12: =[8]SCENARIO1!BD15 -> 0 | C12: =[8]SCENARIO1!BE15 -> 0 | D12: =[8]SCENARIO1!BF15 -> 0 | E12: =[8]SCENARIO1!BG15 -> 0 | F12: =[8]SCENARIO1!AB15 -> 0 | G12: =[8]SCENARIO1!AC15 -> 0 | H12: =[8]SCENARIO1!AD15 -> 0 | I12: =[8]SCENARIO1!AE15 -> 0 | J12: 0 | K12: 0 | L12: 0 | M12: 0 | N12: =[8]SCENARIO1!AW15 -> 0 | O12: =[8]SCENARIO1!AY15 -> 0
A13: R3A | B13: =[8]SCENARIO1!BD16 -> 1.067638507 | C13: =[8]SCENARIO1!BE16 -> 0 | D13: =[8]SCENARIO1!BF16 -> 0.3558795024 | E13: =[8]SCENARIO1!BG16 -> 0.7117590047 | F13: =[8]SCENARIO1!AB16 -> 0 | G13: =[8]SCENARIO1!AC16 -> 0 | H13: =[8]SCENARIO1!AD16 -> 0 | I13: =[8]SCENARIO1!AE16 -> 0 | J13: 1.067638507 | K13: 0 | L13: 0.3558795024 | M13: 0.7117590047 | N13: =[8]SCENARIO1!AW16 -> 0.227657 | O13: =[8]SCENARIO1!AY16 -> 0
A14: R3B | B14: =[8]SCENARIO1!BD17 -> 0 | C14: =[8]SCENARIO1!BE17 -> 0 | D14: =[8]SCENARIO1!BF17 -> 0 | E14: =[8]SCENARIO1!BG17 -> 0 | F14: =[8]SCENARIO1!AB17 -> 0 | G14: =[8]SCENARIO1!AC17 -> 0 | H14: =[8]SCENARIO1!AD17 -> 0 | I14: =[8]SCENARIO1!AE17 -> 0 | J14: 0 | K14: 0 | L14: 0 | M14: 0 | N14: =[8]SCENARIO1!AW17 -> 0 | O14: =[8]SCENARIO1!AY17 -> 0
A15: R3C | B15: =[8]SCENARIO1!BD18 -> 93.91478625 | C15: =[8]SCENARIO1!BE18 -> 0 | D15: =[8]SCENARIO1!BF18 -> 53.3607044 | E15: =[8]SCENARIO1!BG18 -> 40.55408185 | F15: =[8]SCENARIO1!AB18 -> 37 | G15: =[8]SCENARIO1!AC18 -> 7 | H15: =[8]SCENARIO1!AD18 -> 15 | I15: =[8]SCENARIO1!AE18 -> 15 | J15: 56.91478625 | K15: -7 | L15: 38.3607044 | M15: 25.55408185 | N15: =[8]SCENARIO1!AW18 -> 2.763718 | O15: =[8]SCENARIO1!AY18 -> 6.95588
A16: R3D | B16: =[8]SCENARIO1!BD19 -> 0 | C16: =[8]SCENARIO1!BE19 -> 0 | D16: =[8]SCENARIO1!BF19 -> 0 | E16: =[8]SCENARIO1!BG19 -> 0 | F16: =[8]SCENARIO1!AB19 -> 0 | G16: =[8]SCENARIO1!AC19 -> 0 | H16: =[8]SCENARIO1!AD19 -> 0 | I16: =[8]SCENARIO1!AE19 -> 0 | J16: 0 | K16: 0 | L16: 0 | M16: 0 | N16: =[8]SCENARIO1!AW19 -> 0 | O16: =[8]SCENARIO1!AY19 -> 0
A17: R4A | B17: =[8]SCENARIO1!BD20 -> 56.50902893 | C17: =[8]SCENARIO1!BE20 -> 35.31814308 | D17: =[8]SCENARIO1!BF20 -> 14.12725723 | E17: =[8]SCENARIO1!BG20 -> 7.063628616 | F17: =[8]SCENARIO1!AB20 -> 29 | G17: =[8]SCENARIO1!AC20 -> 0 | H17: =[8]SCENARIO1!AD20 -> 22 | I17: =[8]SCENARIO1!AE20 -> 7 | J17: 27.50902893 | K17: 35.31814308 | L17: -7.872742768 | M17: 0.063628616 | N17: =[8]SCENARIO1!AW20 -> 0 | O17: =[8]SCENARIO1!AY20 -> 4.053965
A18: R4B | B18: =[8]SCENARIO1!BD21 -> 0 | C18: =[8]SCENARIO1!BE21 -> 0 | D18: =[8]SCENARIO1!BF21 -> 0 | E18: =[8]SCENARIO1!BG21 -> 0 | F18: =[8]SCENARIO1!AB21 -> 0 | G18: =[8]SCENARIO1!AC21 -> 0 | H18: =[8]SCENARIO1!AD21 -> 0 | I18: =[8]SCENARIO1!AE21 -> 0 | J18: 0 | K18: 0 | L18: 0 | M18: 0 | N18: =[8]SCENARIO1!AW21 -> 0 | O18: =[8]SCENARIO1!AY21 -> 0
A19: R4C | B19: =[8]SCENARIO1!BD22 -> 0 | C19: =[8]SCENARIO1!BE22 -> 0 | D19: =[8]SCENARIO1!BF22 -> 0 | E19: =[8]SCENARIO1!BG22 -> 0 | F19: =[8]SCENARIO1!AB22 -> 0 | G19: =[8]SCENARIO1!AC22 -> 0 | H19: =[8]SCENARIO1!AD22 -> 0 | I19: =[8]SCENARIO1!AE22 -> 0 | J19: 0 | K19: 0 | L19: 0 | M19: 0 | N19: =[8]SCENARIO1!AW22 -> 0 | O19: =[8]SCENARIO1!AY22 -> 0
A20: RM1A | B20: =[8]SCENARIO1!BD23 -> 18.80197753 | C20: =[8]SCENARIO1!BE23 -> 0 | D20: =[8]SCENARIO1!BF23 -> 17.07236725 | E20: =[8]SCENARIO1!BG23 -> 1.729610282 | F20: =[8]SCENARIO1!AB23 -> 0 | G20: =[8]SCENARIO1!AC23 -> 0 | H20: =[8]SCENARIO1!AD23 -> 0 | I20: =[8]SCENARIO1!AE23 -> 0 | J20: 18.80197753 | K20: 0 | L20: 17.07236725 | M20: 1.729610282 | N20: =[8]SCENARIO1!AW23 -> 1.581013 | O20: =[8]SCENARIO1!AY23 -> 0
A21: RM1B | B21: =[8]SCENARIO1!BD24 -> 13.32447849 | C21: =[8]SCENARIO1!BE24 -> 12.34473743 | D21: =[8]SCENARIO1!BF24 -> 0.9797410656 | E21: =[8]SCENARIO1!BG24 -> 0 | F21: =[8]SCENARIO1!AB24 -> 2 | G21: =[8]SCENARIO1!AC24 -> 0 | H21: =[8]SCENARIO1!AD24 -> 0 | I21: =[8]SCENARIO1!AE24 -> 2 | J21: 11.32447849 | K21: 12.34473743 | L21: 0.9797410656 | M21: -2 | N21: =[8]SCENARIO1!AW24 -> 0 | O21: =[8]SCENARIO1!AY24 -> 0.562294
A22: RM2A | B22: =[8]SCENARIO1!BD25 -> 0 | C22: =[8]SCENARIO1!BE25 -> 0 | D22: =[8]SCENARIO1!BF25 -> 0 | E22: =[8]SCENARIO1!BG25 -> 0 | F22: =[8]SCENARIO1!AB25 -> 0 | G22: =[8]SCENARIO1!AC25 -> 0 | H22: =[8]SCENARIO1!AD25 -> 0 | I22: =[8]SCENARIO1!AE25 -> 0 | J22: 0 | K22: 0 | L22: 0 | M22: 0 | N22: =[8]SCENARIO1!AW25 -> 0 | O22: =[8]SCENARIO1!AY25 -> 0
A23: RM2B | B23: =[8]SCENARIO1!BD26 -> 0 | C23: =[8]SCENARIO1!BE26 -> 0 | D23: =[8]SCENARIO1!BF26 -> 0 | E23: =[8]SCENARIO1!BG26 -> 0 | F23: =[8]SCENARIO1!AB26 -> 0 | G23: =[8]SCENARIO1!AC26 -> 0 | H23: =[8]SCENARIO1!AD26 -> 0 | I23: =[8]SCENARIO1!AE26 -> 0 | J23: 0 | K23: 0 | L23: 0 | M23: 0 | N23: =[8]SCENARIO1!AW26 -> 0 | O23: =[8]SCENARIO1!AY26 -> 0
A24: RM3A | B24: =[8]SCENARIO1!BD27 -> 141.1972888 | C24: =[8]SCENARIO1!BE27 -> 131.7112848 | D24: =[8]SCENARIO1!BF27 -> 6.577619895 | E24: =[8]SCENARIO1!BG27 -> 2.90838406 | F24: =[8]SCENARIO1!AB27 -> 0 | G24: =[8]SCENARIO1!AC27 -> 0 | H24: =[8]SCENARIO1!AD27 -> 0 | I24: =[8]SCENARIO1!AE27 -> 0 | J24: 141.1972888 | K24: 131.7112848 | L24: 6.577619895 | M24: 2.90838406 | N24: =[8]SCENARIO1!AW27 -> 5.065336 | O24: =[8]SCENARIO1!AY27 -> 0
A25: RM4A | B25: =[8]SCENARIO1!BD28 -> 0 | C25: =[8]SCENARIO1!BE28 -> 0 | D25: =[8]SCENARIO1!BF28 -> 0 | E25: =[8]SCENARIO1!BG28 -> 0 | F25: =[8]SCENARIO1!AB28 -> 0 | G25: =[8]SCENARIO1!AC28 -> 0 | H25: =[8]SCENARIO1!AD28 -> 0 | I25: =[8]SCENARIO1!AE28 -> 0 | J25: 0 | K25: 0 | L25: 0 | M25: 0 | N25: =[8]SCENARIO1!AW28 -> 0 | O25: =[8]SCENARIO1!AY28 -> 0
A26: RM5A | B26: =[8]SCENARIO1!BD29 -> 0 | C26: =[8]SCENARIO1!BE29 -> 0 | D26: =[8]SCENARIO1!BF29 -> 0 | E26: =[8]SCENARIO1!BG29 -> 0 | F26: =[8]SCENARIO1!AB29 -> 0 | G26: =[8]SCENARIO1!AC29 -> 0 | H26: =[8]SCENARIO1!AD29 -> 0 | I26: =[8]SCENARIO1!AE29 -> 0 | J26: 0 | K26: 0 | L26: 0 | M26: 0 | N26: =[8]SCENARIO1!AW29 -> 0 | O26: =[8]SCENARIO1!AY29 -> 0
A27: MHP | B27: =[8]SCENARIO1!BD30 -> 0 | C27: =[8]SCENARIO1!BE30 -> 0 | D27: =[8]SCENARIO1!BF30 -> 0 | E27: =[8]SCENARIO1!BG30 -> 0 | F27: =[8]SCENARIO1!AB30 -> 0 | G27: =[8]SCENARIO1!AC30 -> 0 | H27: =[8]SCENARIO1!AD30 -> 0 | I27: =[8]SCENARIO1!AE30 -> 0 | J27: 0 | K27: 0 | L27: 0 | M27: 0 | N27: =[8]SCENARIO1!AW30 -> 0 | O27: =[8]SCENARIO1!AY30 -> 0
A28: MU1A | B28: =[8]SCENARIO1!BD31 -> 13.62088203 | C28: =[8]SCENARIO1!BE31 -> 7.581196508 | D28: =[8]SCENARIO1!BF31 -> 3.790598254 | E28: =[8]SCENARIO1!BG31 -> 2.249087266 | F28: =[8]SCENARIO1!AB31 -> 2 | G28: =[8]SCENARIO1!AC31 -> 0 | H28: =[8]SCENARIO1!AD31 -> 0 | I28: =[8]SCENARIO1!AE31 -> 2 | J28: 11.62088203 | K28: 7.581196508 | L28: 3.790598254 | M28: 0.249087266 | N28: =[8]SCENARIO1!AW31 -> 0.155154 | O28: =[8]SCENARIO1!AY31 -> 0.594479
A29: MU1B | B29: =[8]SCENARIO1!BD32 -> 22.27067356 | C29: =[8]SCENARIO1!BE32 -> 12.39555208 | D29: =[8]SCENARIO1!BF32 -> 6.197776042 | E29: =[8]SCENARIO1!BG32 -> 3.677345432 | F29: =[8]SCENARIO1!AB32 -> 12 | G29: =[8]SCENARIO1!AC32 -> 9 | H29: =[8]SCENARIO1!AD32 -> 0 | I29: =[8]SCENARIO1!AE32 -> 3 | J29: 10.27067356 | K29: 3.395552083 | L29: 6.197776042 | M29: 0.6773454315 | N29: =[8]SCENARIO1!AW32 -> 0 | O29: =[8]SCENARIO1!AY32 -> 1.185678
A30: MU1C | B30: =[8]SCENARIO1!BD33 -> 0 | C30: =[8]SCENARIO1!BE33 -> 0 | D30: =[8]SCENARIO1!BF33 -> 0 | E30: =[8]SCENARIO1!BG33 -> 0 | F30: =[8]SCENARIO1!AB33 -> 0 | G30: =[8]SCENARIO1!AC33 -> 0 | H30: =[8]SCENARIO1!AD33 -> 0 | I30: =[8]SCENARIO1!AE33 -> 0 | J30: 0 | K30: 0 | L30: 0 | M30: 0 | N30: =[8]SCENARIO1!AW33 -> 0 | O30: =[8]SCENARIO1!AY33 -> 0
A31: MU1D | B31: =[8]SCENARIO1!BD34 -> 0 | C31: =[8]SCENARIO1!BE34 -> 0 | D31: =[8]SCENARIO1!BF34 -> 0 | E31: =[8]SCENARIO1!BG34 -> 0 | F31: =[8]SCENARIO1!AB34 -> 0 | G31: =[8]SCENARIO1!AC34 -> 0 | H31: =[8]SCENARIO1!AD34 -> 0 | I31: =[8]SCENARIO1!AE34 -> 0 | J31: 0 | K31: 0 | L31: 0 | M31: 0 | N31: =[8]SCENARIO1!AW34 -> 0 | O31: =[8]SCENARIO1!AY34 -> 0
A32: MU2A | B32: =[8]SCENARIO1!BD35 -> 154.2926441 | C32: =[8]SCENARIO1!BE35 -> 59.44672312 | D32: =[8]SCENARIO1!BF35 -> 94.84592095 | E32: =[8]SCENARIO1!BG35 -> 0 | F32: =[8]SCENARIO1!AB35 -> 0 | G32: =[8]SCENARIO1!AC35 -> 0 | H32: =[8]SCENARIO1!AD35 -> 0 | I32: =[8]SCENARIO1!AE35 -> 0 | J32: 154.2926441 | K32: 59.44672312 | L32: 94.84592095 | M32: 0 | N32: =[8]SCENARIO1!AW35 -> 14.759271 | O32: =[8]SCENARIO1!AY35 -> 1.70608
A33: MU2B | B33: =[8]SCENARIO1!BD36 -> 131.1976571 | C33: =[8]SCENARIO1!BE36 -> 83.8051513 | D33: =[8]SCENARIO1!BF36 -> 47.39250584 | E33: =[8]SCENARIO1!BG36 -> 0 | F33: =[8]SCENARIO1!AB36 -> 0 | G33: =[8]SCENARIO1!AC36 -> 0 | H33: =[8]SCENARIO1!AD36 -> 0 | I33: =[8]SCENARIO1!AE36 -> 0 | J33: 131.1976571 | K33: 83.8051513 | L33: 47.39250584 | M33: 0 | N33: =[8]SCENARIO1!AW36 -> 7.961217 | O33: =[8]SCENARIO1!AY36 -> 0
A34: MU3A | B34: =[8]SCENARIO1!BD37 -> 310.702769 | C34: =[8]SCENARIO1!BE37 -> 193.5252338 | D34: =[8]SCENARIO1!BF37 -> 117.1775352 | E34: =[8]SCENARIO1!BG37 -> 0 | F34: =[8]SCENARIO1!AB37 -> 0 | G34: =[8]SCENARIO1!AC37 -> 0 | H34: =[8]SCENARIO1!AD37 -> 0 | I34: =[8]SCENARIO1!AE37 -> 0 | J34: 310.702769 | K34: 193.5252338 | L34: 117.1775352 | M34: 0 | N34: =[8]SCENARIO1!AW37 -> 16.53736 | O34: =[8]SCENARIO1!AY37 -> 2.488535
A35: MU4A | B35: =[8]SCENARIO1!BD38 -> 156.3517018 | C35: =[8]SCENARIO1!BE38 -> 97.38567741 | D35: =[8]SCENARIO1!BF38 -> 58.96602434 | E35: =[8]SCENARIO1!BG38 -> 0 | F35: =[8]SCENARIO1!AB38 -> 0 | G35: =[8]SCENARIO1!AC38 -> 0 | H35: =[8]SCENARIO1!AD38 -> 0 | I35: =[8]SCENARIO1!AE38 -> 0 | J35: =B35-F35 -> 156.3517018 | K35: 97.38567741 | L35: 58.96602434 | M35: 0 | N35: =[8]SCENARIO1!AW38 -> 11.622927 | O35: =[8]SCENARIO1!AY38 -> 0
A36: MU4B | B36: =[8]SCENARIO1!BD39 -> 948.2318855 | C36: =[8]SCENARIO1!BE39 -> 948.2318855 | D36: =[8]SCENARIO1!BF39 -> 0 | E36: =[8]SCENARIO1!BG39 -> 0 | F36: =[8]SCENARIO1!AB39 -> 0 | G36: =[8]SCENARIO1!AC39 -> 0 | H36: =[8]SCENARIO1!AD39 -> 0 | I36: =[8]SCENARIO1!AE39 -> 0 | J36: 948.2318855 | K36: 948.2318855 | L36: 0 | M36: 0 | N36: =[8]SCENARIO1!AW39 -> 46.053373 | O36: =[8]SCENARIO1!AY39 -> 9.086224
A37: MU5A | B37: =[8]SCENARIO1!BD40 -> 92.54840925 | C37: =[8]SCENARIO1!BE40 -> 92.54840925 | D37: =[8]SCENARIO1!BF40 -> 0 | E37: =[8]SCENARIO1!BG40 -> 0 | F37: =[8]SCENARIO1!AB40 -> 0 | G37: =[8]SCENARIO1!AC40 -> 0 | H37: =[8]SCENARIO1!AD40 -> 0 | I37: =[8]SCENARIO1!AE40 -> 0 | J37: 92.54840925 | K37: 92.54840925 | L37: 0 | M37: 0 | N37: =[8]SCENARIO1!AW40 -> 5.539364 | O37: =[8]SCENARIO1!AY40 -> 0
A38: MS1A | B38: =[8]SCENARIO1!BD41 -> 0 | C38: =[8]SCENARIO1!BE41 -> 0 | D38: =[8]SCENARIO1!BF41 -> 0 | E38: =[8]SCENARIO1!BG41 -> 0 | F38: =[8]SCENARIO1!AB41 -> 0 | G38: =[8]SCENARIO1!AC41 -> 0 | H38: =[8]SCENARIO1!AD41 -> 0 | I38: =[8]SCENARIO1!AE41 -> 0 | J38: 0 | K38: 0 | L38: 0 | M38: 0 | N38: =[8]SCENARIO1!AW41 -> 0 | O38: =[8]SCENARIO1!AY41 -> 0
A39: MS1B | B39: =[8]SCENARIO1!BD42 -> 0 | C39: =[8]SCENARIO1!BE42 -> 0 | D39: =[8]SCENARIO1!BF42 -> 0 | E39: =[8]SCENARIO1!BG42 -> 0 | F39: =[8]SCENARIO1!AB42 -> 0 | G39: =[8]SCENARIO1!AC42 -> 0 | H39: =[8]SCENARIO1!AD42 -> 0 | I39: =[8]SCENARIO1!AE42 -> 0 | J39: 0 | K39: 0 | L39: 0 | M39: 0 | N39: =[8]SCENARIO1!AW42 -> 0 | O39: =[8]SCENARIO1!AY42 -> 0
A40: MS2A | B40: =[8]SCENARIO1!BD43 -> 39.19424392 | C40: =[8]SCENARIO1!BE43 -> 37.05483912 | D40: =[8]SCENARIO1!BF43 -> 0 | E40: =[8]SCENARIO1!BG43 -> 2.139404798 | F40: =[8]SCENARIO1!AB43 -> 0 | G40: =[8]SCENARIO1!AC43 -> 0 | H40: =[8]SCENARIO1!AD43 -> 0 | I40: =[8]SCENARIO1!AE43 -> 0 | J40: 39.19424392 | K40: 37.05483912 | L40: 0 | M40: 2.139404798 | N40: =[8]SCENARIO1!AW43 -> 1.910971 | O40: =[8]SCENARIO1!AY43 -> 0
A41: MS2B | B41: =[8]SCENARIO1!BD44 -> 299.5492373 | C41: =[8]SCENARIO1!BE44 -> 283.1984416 | D41: =[8]SCENARIO1!BF44 -> 0 | E41: =[8]SCENARIO1!BG44 -> 16.35079572 | F41: =[8]SCENARIO1!AB44 -> 0 | G41: =[8]SCENARIO1!AC44 -> 0 | H41: =[8]SCENARIO1!AD44 -> 0 | I41: =[8]SCENARIO1!AE44 -> 0 | J41: 299.5492373 | K41: 283.1984416 | L41: 0 | M41: 16.35079572 | N41: =[8]SCENARIO1!AW44 -> 0.220875 | O41: =[8]SCENARIO1!AY44 -> 9.906216
A42: MS2C | B42: =[8]SCENARIO1!BD45 -> 15.9424457 | C42: =[8]SCENARIO1!BE45 -> 15.07223259 | D42: =[8]SCENARIO1!BF45 -> 0 | E42: =[8]SCENARIO1!BG45 -> 0.8702131082 | F42: =[8]SCENARIO1!AB45 -> 3 | G42: =[8]SCENARIO1!AC45 -> 0 | H42: =[8]SCENARIO1!AD45 -> 2 | I42: =[8]SCENARIO1!AE45 -> 1 | J42: 12.9424457 | K42: 15.07223259 | L42: -2 | M42: -0.1297868918 | N42: =[8]SCENARIO1!AW45 -> 0 | O42: =[8]SCENARIO1!AY45 -> 0.535319
A43: MS3A | B43: =[8]SCENARIO1!BD46 -> 1145.713015 | C43: =[8]SCENARIO1!BE46 -> 1145.713015 | D43: =[8]SCENARIO1!BF46 -> 0 | E43: =[8]SCENARIO1!BG46 -> 0 | F43: =[8]SCENARIO1!AB46 -> 0 | G43: =[8]SCENARIO1!AC46 -> 0 | H43: =[8]SCENARIO1!AD46 -> 0 | I43: =[8]SCENARIO1!AE46 -> 0 | J43: 1145.713015 | K43: 1145.713015 | L43: 0 | M43: 0 | N43: =[8]SCENARIO1!AW46 -> 1.563795 | O43: =[8]SCENARIO1!AY46 -> 15.906808
A44: MS3B | B44: =[8]SCENARIO1!BD47 -> 3326.937478 | C44: =[8]SCENARIO1!BE47 -> 3326.937478 | D44: =[8]SCENARIO1!BF47 -> 0 | E44: =[8]SCENARIO1!BG47 -> 0 | F44: =[8]SCENARIO1!AB47 -> 1 | G44: =[8]SCENARIO1!AC47 -> 0 | H44: =[8]SCENARIO1!AD47 -> 0 | I44: =[8]SCENARIO1!AE47 -> 1 | J44: 3325.937478 | K44: 3326.937478 | L44: 0 | M44: -1 | N44: =[8]SCENARIO1!AW47 -> 1.701053 | O44: =[8]SCENARIO1!AY47 -> 46.114502
A45: UC | B45: =[8]SCENARIO1!BD48 -> 0 | C45: =[8]SCENARIO1!BE48 -> 0 | D45: =[8]SCENARIO1!BF48 -> 0 | E45: =[8]SCENARIO1!BG48 -> 0 | F45: =[8]SCENARIO1!AB48 -> 0 | G45: =[8]SCENARIO1!AC48 -> 0 | H45: =[8]SCENARIO1!AD48 -> 0 | I45: =[8]SCENARIO1!AE48 -> 0 | J45: 0 | K45: 0 | L45: 0 | M45: 0 | N45: =[8]SCENARIO1!AW48 -> 0 | O45: =[8]SCENARIO1!AY48 -> 0
A46: CC40 | B46: =[8]SCENARIO1!BD49 -> 0 | C46: =[8]SCENARIO1!BE49 -> 0 | D46: =[8]SCENARIO1!BF49 -> 0 | E46: =[8]SCENARIO1!BG49 -> 0 | F46: =[8]SCENARIO1!AB49 -> 0 | G46: =[8]SCENARIO1!AC49 -> 0 | H46: =[8]SCENARIO1!AD49 -> 0 | I46: =[8]SCENARIO1!AE49 -> 0 | J46: 0 | K46: 0 | L46: 0 | M46: 0 | N46: =[8]SCENARIO1!AW49 -> 0 | O46: =[8]SCENARIO1!AY49 -> 0
A47: CC60 | B47: =[8]SCENARIO1!BD50 -> 0 | C47: =[8]SCENARIO1!BE50 -> 0 | D47: =[8]SCENARIO1!BF50 -> 0 | E47: =[8]SCENARIO1!BG50 -> 0 | F47: =[8]SCENARIO1!AB50 -> 0 | G47: =[8]SCENARIO1!AC50 -> 0 | H47: =[8]SCENARIO1!AD50 -> 0 | I47: =[8]SCENARIO1!AE50 -> 0 | J47: 0 | K47: 0 | L47: 0 | M47: 0 | N47: =[8]SCENARIO1!AW50 -> 0 | O47: =[8]SCENARIO1!AY50 -> 0
A48: CC80 | B48: =[8]SCENARIO1!BD51 -> 0 | C48: =[8]SCENARIO1!BE51 -> 0 | D48: =[8]SCENARIO1!BF51 -> 0 | E48: =[8]SCENARIO1!BG51 -> 0 | F48: =[8]SCENARIO1!AB51 -> 0 | G48: =[8]SCENARIO1!AC51 -> 0 | H48: =[8]SCENARIO1!AD51 -> 0 | I48: =[8]SCENARIO1!AE51 -> 0 | J48: 0 | K48: 0 | L48: 0 | M48: 0 | N48: =[8]SCENARIO1!AW51 -> 0 | O48: =[8]SCENARIO1!AY51 -> 0
A49: CC120 | B49: =[8]SCENARIO1!BD52 -> 0 | C49: =[8]SCENARIO1!BE52 -> 0 | D49: =[8]SCENARIO1!BF52 -> 0 | E49: =[8]SCENARIO1!BG52 -> 0 | F49: =[8]SCENARIO1!AB52 -> 0 | G49: =[8]SCENARIO1!AC52 -> 0 | H49: =[8]SCENARIO1!AD52 -> 0 | I49: =[8]SCENARIO1!AE52 -> 0 | J49: 0 | K49: 0 | L49: 0 | M49: 0 | N49: =[8]SCENARIO1!AW52 -> 0 | O49: =[8]SCENARIO1!AY52 -> 0
A50: DC | B50: =[8]SCENARIO1!BD53 -> 0 | C50: =[8]SCENARIO1!BE53 -> 0 | D50: =[8]SCENARIO1!BF53 -> 0 | E50: =[8]SCENARIO1!BG53 -> 0 | F50: =[8]SCENARIO1!AB53 -> 0 | G50: =[8]SCENARIO1!AC53 -> 0 | H50: =[8]SCENARIO1!AD53 -> 0 | I50: =[8]SCENARIO1!AE53 -> 0 | J50: 0 | K50: 0 | L50: 0 | M50: 0 | N50: =[8]SCENARIO1!AW53 -> 0 | O50: =[8]SCENARIO1!AY53 -> 0
A51: CR | B51: =[8]SCENARIO1!BD54 -> 0 | C51: =[8]SCENARIO1!BE54 -> 0 | D51: =[8]SCENARIO1!BF54 -> 0 | E51: =[8]SCENARIO1!BG54 -> 0 | F51: =[8]SCENARIO1!AB54 -> 0 | G51: =[8]SCENARIO1!AC54 -> 0 | H51: =[8]SCENARIO1!AD54 -> 0 | I51: =[8]SCENARIO1!AE54 -> 0 | J51: 0 | K51: 0 | L51: 0 | M51: 0 | N51: =[8]SCENARIO1!AW54 -> 0 | O51: =[8]SCENARIO1!AY54 -> 0
A52: CW | B52: =[8]SCENARIO1!BD55 -> 0 | C52: =[8]SCENARIO1!BE55 -> 0 | D52: =[8]SCENARIO1!BF55 -> 0 | E52: =[8]SCENARIO1!BG55 -> 0 | F52: =[8]SCENARIO1!AB55 -> 0 | G52: =[8]SCENARIO1!AC55 -> 0 | H52: =[8]SCENARIO1!AD55 -> 0 | I52: =[8]SCENARIO1!AE55 -> 0 | J52: 0 | K52: 0 | L52: 0 | M52: 0 | N52: =[8]SCENARIO1!AW55 -> 1.188737 | O52: =[8]SCENARIO1!AY55 -> 0
A53: IF | B53: =[8]SCENARIO1!BD56 -> 37.05193031 | C53: =[8]SCENARIO1!BE56 -> 0 | D53: =[8]SCENARIO1!BF56 -> 0 | E53: =[8]SCENARIO1!BG56 -> 37.05193031 | F53: =[8]SCENARIO1!AB56 -> 0 | G53: =[8]SCENARIO1!AC56 -> 0 | H53: =[8]SCENARIO1!AD56 -> 0 | I53: =[8]SCENARIO1!AE56 -> 0 | J53: 37.05193031 | K53: 0 | L53: 0 | M53: 37.05193031 | N53: =[8]SCENARIO1!AW56 -> 27.402099 | O53: =[8]SCENARIO1!AY56 -> 0
A54: IG | B54: =[8]SCENARIO1!BD57 -> 0 | C54: =[8]SCENARIO1!BE57 -> 0 | D54: =[8]SCENARIO1!BF57 -> 0 | E54: =[8]SCENARIO1!BG57 -> 0 | F54: =[8]SCENARIO1!AB57 -> 0 | G54: =[8]SCENARIO1!AC57 -> 0 | H54: =[8]SCENARIO1!AD57 -> 0 | I54: =[8]SCENARIO1!AE57 -> 0 | J54: 0 | K54: 0 | L54: 0 | M54: 0 | N54: =[8]SCENARIO1!AW57 -> 12.701652 | O54: =[8]SCENARIO1!AY57 -> 0
A55: IH | B55: =[8]SCENARIO1!BD58 -> 0 | C55: =[8]SCENARIO1!BE58 -> 0 | D55: =[8]SCENARIO1!BF58 -> 0 | E55: =[8]SCENARIO1!BG58 -> 0 | F55: =[8]SCENARIO1!AB58 -> 0 | G55: =[8]SCENARIO1!AC58 -> 0 | H55: =[8]SCENARIO1!AD58 -> 0 | I55: =[8]SCENARIO1!AE58 -> 0 | J55: 0 | K55: 0 | L55: 0 | M55: 0 | N55: =[8]SCENARIO1!AW58 -> 0 | O55: =[8]SCENARIO1!AY58 -> 0
A56: R&D | B56: =[8]SCENARIO1!BD59 -> 0 | C56: =[8]SCENARIO1!BE59 -> 0 | D56: =[8]SCENARIO1!BF59 -> 0 | E56: =[8]SCENARIO1!BG59 -> 0 | F56: =[8]SCENARIO1!AB59 -> 0 | G56: =[8]SCENARIO1!AC59 -> 0 | H56: =[8]SCENARIO1!AD59 -> 0 | I56: =[8]SCENARIO1!AE59 -> 0 | J56: 0 | K56: 0 | L56: 0 | M56: 0 | N56: =[8]SCENARIO1!AW59 -> 0 | O56: =[8]SCENARIO1!AY59 -> 0
A57: P | B57: =[8]SCENARIO1!BD60 -> 0 | C57: =[8]SCENARIO1!BE60 -> 0 | D57: =[8]SCENARIO1!BF60 -> 0 | E57: =[8]SCENARIO1!BG60 -> 0 | F57: =[8]SCENARIO1!AB60 -> 0 | G57: =[8]SCENARIO1!AC60 -> 0 | H57: =[8]SCENARIO1!AD60 -> 0 | I57: =[8]SCENARIO1!AE60 -> 0 | J57: 0 | K57: 0 | L57: 0 | M57: 0 | N57: =[8]SCENARIO1!AW60 -> 0.200009 | O57: =[8]SCENARIO1!AY60 -> 0
A58: PUD | B58: =[8]SCENARIO1!BD61 -> 0 | C58: =[8]SCENARIO1!BE61 -> 0 | D58: =[8]SCENARIO1!BF61 -> 0 | E58: =[8]SCENARIO1!BG61 -> 0 | F58: =[8]SCENARIO1!AB61 -> 0 | G58: =[8]SCENARIO1!AC61 -> 0 | H58: =[8]SCENARIO1!AD61 -> 0 | I58: =[8]SCENARIO1!AE61 -> 0 | J58: 0 | K58: 0 | L58: 0 | M58: 0 | N58: =[8]SCENARIO1!AW61 -> 0 | O58: =[8]SCENARIO1!AY61 -> 0
A59: ERC | B59: =[8]SCENARIO1!BD62 -> 0 | C59: =[8]SCENARIO1!BE62 -> 0 | D59: =[8]SCENARIO1!BF62 -> 0 | E59: =[8]SCENARIO1!BG62 -> 0 | F59: =[8]SCENARIO1!AB62 -> 0 | G59: =[8]SCENARIO1!AC62 -> 0 | H59: =[8]SCENARIO1!AD62 -> 0 | I59: =[8]SCENARIO1!AE62 -> 0 | J59: 0 | K59: 0 | L59: 0 | M59: 0 | N59: =[8]SCENARIO1!AW62 -> 0 | O59: =[8]SCENARIO1!AY62 -> 0
A60: NBG | B60: =[8]SCENARIO1!BD63 -> 0 | C60: =[8]SCENARIO1!BE63 -> 0 | D60: =[8]SCENARIO1!BF63 -> 0 | E60: =[8]SCENARIO1!BG63 -> 0 | F60: =[8]SCENARIO1!AB63 -> 0 | G60: =[8]SCENARIO1!AC63 -> 0 | H60: =[8]SCENARIO1!AD63 -> 0 | I60: =[8]SCENARIO1!AE63 -> 0 | J60: 0 | K60: 0 | L60: 0 | M60: 0 | N60: =[8]SCENARIO1!AW63 -> 0 | O60: =[8]SCENARIO1!AY63 -> 0
A61: UNZ | B61: =[8]SCENARIO1!BD64 -> 0 | C61: =[8]SCENARIO1!BE64 -> 0 | D61: =[8]SCENARIO1!BF64 -> 0 | E61: =[8]SCENARIO1!BG64 -> 0 | F61: =[8]SCENARIO1!AB64 -> 0 | G61: =[8]SCENARIO1!AC64 -> 0 | H61: =[8]SCENARIO1!AD64 -> 0 | I61: =[8]SCENARIO1!AE64 -> 0 | J61: 0 | K61: 0 | L61: 0 | M61: 0 | N61: =[8]SCENARIO1!AW64 -> 0 | O61: =[8]SCENARIO1!AY64 -> 0
A62: TOD | B62: =[8]SCENARIO1!BD65 -> 0 | C62: =[8]SCENARIO1!BE65 -> 0 | D62: =[8]SCENARIO1!BF65 -> 0 | E62: =[8]SCENARIO1!BG65 -> 0 | F62: =[8]SCENARIO1!AB65 -> 0 | G62: =[8]SCENARIO1!AC65 -> 0 | H62: =[8]SCENARIO1!AD65 -> 0 | I62: =[8]SCENARIO1!AE65 -> 0 | J62: 0 | K62: 0 | L62: 0 | M62: 0 | N62: =[8]SCENARIO1!AW65 -> 0 | O62: =[8]SCENARIO1!AY65 -> 0
A63: Whisper Valley PUD | B63: =[8]SCENARIO1!BD66 -> 0 | C63: =[8]SCENARIO1!BE66 -> 0 | D63: =[8]SCENARIO1!BF66 -> 0 | E63: =[8]SCENARIO1!BG66 -> 0 | F63: =[8]SCENARIO1!AB66 -> 0 | G63: =[8]SCENARIO1!AC66 -> 0 | H63: =[8]SCENARIO1!AD66 -> 0 | I63: =[8]SCENARIO1!AE66 -> 0 | J63: 0 | K63: 0 | L63: 0 | M63: 0 | N63: =[8]SCENARIO1!AW66 -> 0 | O63: =[8]SCENARIO1!AY66 -> 0
A64: Wildhorse Ranch PUD | B64: =[8]SCENARIO1!BD67 -> 0 | C64: =[8]SCENARIO1!BE67 -> 0 | D64: =[8]SCENARIO1!BF67 -> 0 | E64: =[8]SCENARIO1!BG67 -> 0 | F64: =[8]SCENARIO1!AB67 -> 0 | G64: =[8]SCENARIO1!AC67 -> 0 | H64: =[8]SCENARIO1!AD67 -> 0 | I64: =[8]SCENARIO1!AE67 -> 0 | J64: 0 | K64: 0 | L64: 0 | M64: 0 | N64: =[8]SCENARIO1!AW67 -> 0 | O64: =[8]SCENARIO1!AY67 -> 0
A65: Waters Edge PUD | B65: =[8]SCENARIO1!BD68 -> 0 | C65: =[8]SCENARIO1!BE68 -> 0 | D65: =[8]SCENARIO1!BF68 -> 0 | E65: =[8]SCENARIO1!BG68 -> 0 | F65: =[8]SCENARIO1!AB68 -> 0 | G65: =[8]SCENARIO1!AC68 -> 0 | H65: =[8]SCENARIO1!AD68 -> 0 | I65: =[8]SCENARIO1!AE68 -> 0 | J65: 0 | K65: 0 | L65: 0 | M65: 0 | N65: =[8]SCENARIO1!AW68 -> 0 | O65: =[8]SCENARIO1!AY68 -> 0
A66: Goodnight Ranch PUD | B66: =[8]SCENARIO1!BD69 -> 0 | C66: =[8]SCENARIO1!BE69 -> 0 | D66: =[8]SCENARIO1!BF69 -> 0 | E66: =[8]SCENARIO1!BG69 -> 0 | F66: =[8]SCENARIO1!AB69 -> 0 | G66: =[8]SCENARIO1!AC69 -> 0 | H66: =[8]SCENARIO1!AD69 -> 0 | I66: =[8]SCENARIO1!AE69 -> 0 | J66: 0 | K66: 0 | L66: 0 | M66: 0 | N66: =[8]SCENARIO1!AW69 -> 0 | O66: =[8]SCENARIO1!AY69 -> 0
A67: UNO | B67: =[8]SCENARIO1!BD70 -> 0 | C67: =[8]SCENARIO1!BE70 -> 0 | D67: =[8]SCENARIO1!BF70 -> 0 | E67: =[8]SCENARIO1!BG70 -> 0 | F67: =[8]SCENARIO1!AB70 -> 0 | G67: =[8]SCENARIO1!AC70 -> 0 | H67: =[8]SCENARIO1!AD70 -> 0 | I67: =[8]SCENARIO1!AE70 -> 0 | J67: =B67-F67 -> 0 | K67: 0 | L67: 0 | M67: 0 | N67: =[8]SCENARIO1!AW70 -> 0 | O67: =[8]SCENARIO1!AY70 -> 0
A68: Estancia PUD | B68: =[8]SCENARIO1!BD71 -> 0 | C68: =[8]SCENARIO1!BE71 -> 0 | D68: =[8]SCENARIO1!BF71 -> 0 | E68: =[8]SCENARIO1!BG71 -> 0 | F68: =[8]SCENARIO1!AB71 -> 0 | G68: =[8]SCENARIO1!AC71 -> 0 | H68: =[8]SCENARIO1!AD71 -> 0 | I68: =[8]SCENARIO1!AE71 -> 0 | J68: 0 | K68: 0 | L68: 0 | M68: 0 | N68: =[8]SCENARIO1!AW71 -> 0 | O68: =[8]SCENARIO1!AY71 -> 0
A69: TOD - Medium Density Residential (TODMDR) | B69: =[8]SCENARIO1!BD72 -> 0 | C69: =[8]SCENARIO1!BE72 -> 0 | D69: =[8]SCENARIO1!BF72 -> 0 | E69: =[8]SCENARIO1!BG72 -> 0 | F69: =[8]SCENARIO1!AB72 -> 0 | G69: =[8]SCENARIO1!AC72 -> 0 | H69: =[8]SCENARIO1!AD72 -> 0 | I69: =[8]SCENARIO1!AE72 -> 0 | J69: 0 | K69: 0 | L69: 0 | M69: 0 | N69: =[8]SCENARIO1!AW72 -> 0 | O69: =[8]SCENARIO1!AY72 -> 0
A70: TOD – Low Density Residential (TODLDR) | B70: =[8]SCENARIO1!BD73 -> 0 | C70: =[8]SCENARIO1!BE73 -> 0 | D70: =[8]SCENARIO1!BF73 -> 0 | E70: =[8]SCENARIO1!BG73 -> 0 | F70: =[8]SCENARIO1!AB73 -> 0 | G70: =[8]SCENARIO1!AC73 -> 0 | H70: =[8]SCENARIO1!AD73 -> 0 | I70: =[8]SCENARIO1!AE73 -> 0 | J70: 0 | K70: 0 | L70: 0 | M70: 0 | N70: =[8]SCENARIO1!AW73 -> 0 | O70: =[8]SCENARIO1!AY73 -> 0
A71: TOD – TOD Mixed Use | B71: =[8]SCENARIO1!BD74 -> 588.8424078 | C71: =[8]SCENARIO1!BE74 -> 588.8424078 | D71: =[8]SCENARIO1!BF74 -> 0 | E71: =[8]SCENARIO1!BG74 -> 0 | F71: =[8]SCENARIO1!AB74 -> 21 | G71: =[8]SCENARIO1!AC74 -> 8 | H71: =[8]SCENARIO1!AD74 -> 8 | I71: =[8]SCENARIO1!AE74 -> 5 | J71: 567.8424078 | K71: 580.8424078 | L71: -8 | M71: -5 | N71: =[8]SCENARIO1!AW74 -> 6.325486 | O71: =[8]SCENARIO1!AY74 -> 13.383403
A72: TOD – Corridor Mixed Use (TODCMU) | B72: =[8]SCENARIO1!BD75 -> 0 | C72: =[8]SCENARIO1!BE75 -> 0 | D72: =[8]SCENARIO1!BF75 -> 0 | E72: =[8]SCENARIO1!BG75 -> 0 | F72: =[8]SCENARIO1!AB75 -> 0 | G72: =[8]SCENARIO1!AC75 -> 0 | H72: =[8]SCENARIO1!AD75 -> 0 | I72: =[8]SCENARIO1!AE75 -> 0 | J72: 0 | K72: 0 | L72: 0 | M72: 0 | N72: =[8]SCENARIO1!AW75 -> 0 | O72: =[8]SCENARIO1!AY75 -> 0
A73: South Shore PUD | B73: =[8]SCENARIO1!BD76 -> 0 | C73: =[8]SCENARIO1!BE76 -> 0 | D73: =[8]SCENARIO1!BF76 -> 0 | E73: =[8]SCENARIO1!BG76 -> 0 | F73: =[8]SCENARIO1!AB76 -> 0 | G73: =[8]SCENARIO1!AC76 -> 0 | H73: =[8]SCENARIO1!AD76 -> 0 | I73: =[8]SCENARIO1!AE76 -> 0 | J73: 0 | K73: 0 | L73: 0 | M73: 0 | N73: =[8]SCENARIO1!AW76 -> 0 | O73: =[8]SCENARIO1!AY76 -> 0
A74: Total | B74: =SUM(B3:B73) -> 7842.261427 | C74: =SUM(C3:C73) -> 7071.112408 | D74: 467.5372871 | E74: 303.6117321 | F74: =SUM(F3:F73) -> 107 | G74: =SUM(G3:G73) -> 24 | H74: 47 | I74: =SUM(I3:I73) -> 36 | J74: =SUM(J3:J73) -> 7735.261427 | K74: =SUM(K3:K73) -> 7047.112408 | L74: =SUM(L3:L73) -> 420.5372871 | M74: 267.6117321 | N74: =SUM(N3:N73) -> 225.341996 | O74: 112.479383

Sheet Draft 2 CD 5
B1: New | F1: Units assumed to redevelop | J1: Net Growth | N1: Acres
A2: CodeNEXT2 | B2: Units | C2: Multifamily | D2: Townhome | E2: Single Family | F2: Units | G2: Multifamily | H2: Townhome | I2: Single Family | J2: Units | K2: Multifamily | L2: Townhome | M2: Single Family | N2: Vacant Developed | O2: Developed Redeveloped
A3: Rural Residential | B3: =[9]SCENARIO1!BD6 -> 29.35741932 | C3: =[9]SCENARIO1!BE6 -> 0 | D3: =[9]SCENARIO1!BF6 -> 0 | E3: =[9]SCENARIO1!BG6 -> 29.35741932 | F3: =[9]SCENARIO1!AB6 -> 0 | G3: =[9]SCENARIO1!AC6 -> 0 | H3: =[9]SCENARIO1!AD6 -> 0 | I3: =[9]SCENARIO1!AE6 -> 0 | J3: =B3-F3 -> 29.35741932 | K3: 0 | L3: 0 | M3: 29.35741932 | N3: =[9]SCENARIO1!AW6 -> 51.956402 | O3: =[9]SCENARIO1!AY6 -> 0
A4: Lake Austin | B4: =[9]SCENARIO1!BD7 -> 0 | C4: =[9]SCENARIO1!BE7 -> 0 | D4: =[9]SCENARIO1!BF7 -> 0 | E4: =[9]SCENARIO1!BG7 -> 0 | F4: =[9]SCENARIO1!AB7 -> 0 | G4: =[9]SCENARIO1!AC7 -> 0 | H4: =[9]SCENARIO1!AD7 -> 0 | I4: =[9]SCENARIO1!AE7 -> 0 | J4: 0 | K4: 0 | L4: 0 | M4: 0 | N4: =[9]SCENARIO1!AW7 -> 0 | O4: =[9]SCENARIO1!AY7 -> 0
A5: R1A | B5: =[9]SCENARIO1!BD8 -> 9.129814862 | C5: =[9]SCENARIO1!BE8 -> 0 | D5: =[9]SCENARIO1!BF8 -> 0 | E5: =[9]SCENARIO1!BG8 -> 9.129814862 | F5: =[9]SCENARIO1!AB8 -> 0 | G5: =[9]SCENARIO1!AC8 -> 0 | H5: =[9]SCENARIO1!AD8 -> 0 | I5: =[9]SCENARIO1!AE8 -> 0 | J5: 9.129814862 | K5: 0 | L5: 0 | M5: 9.129814862 | N5: =[9]SCENARIO1!AW8 -> 4.629875 | O5: =[9]SCENARIO1!AY8 -> 0
A6: R1B | B6: =[9]SCENARIO1!BD9 -> 147.0767815 | C6: =[9]SCENARIO1!BE9 -> 0 | D6: =[9]SCENARIO1!BF9 -> 0 | E6: =[9]SCENARIO1!BG9 -> 147.0767815 | F6: =[9]SCENARIO1!AB9 -> 0 | G6: =[9]SCENARIO1!AC9 -> 0 | H6: =[9]SCENARIO1!AD9 -> 0 | I6: =[9]SCENARIO1!AE9 -> 0 | J6: 147.0767815 | K6: 0 | L6: 0 | M6: 147.0767815 | N6: =[9]SCENARIO1!AW9 -> 41.668722 | O6: =[9]SCENARIO1!AY9 -> 0
A7: R1C | B7: =[9]SCENARIO1!BD10 -> 0 | C7: =[9]SCENARIO1!BE10 -> 0 | D7: =[9]SCENARIO1!BF10 -> 0 | E7: =[9]SCENARIO1!BG10 -> 0 | F7: =[9]SCENARIO1!AB10 -> 0 | G7: =[9]SCENARIO1!AC10 -> 0 | H7: =[9]SCENARIO1!AD10 -> 0 | I7: =[9]SCENARIO1!AE10 -> 0 | J7: 0 | K7: 0 | L7: 0 | M7: 0 | N7: =[9]SCENARIO1!AW10 -> 0 | O7: =[9]SCENARIO1!AY10 -> 0
A8: R2A | B8: =[9]SCENARIO1!BD11 -> 2.828974309 | C8: =[9]SCENARIO1!BE11 -> 0 | D8: =[9]SCENARIO1!BF11 -> 0.3106901439 | E8: =[9]SCENARIO1!BG11 -> 2.518284165 | F8: =[9]SCENARIO1!AB11 -> 0 | G8: =[9]SCENARIO1!AC11 -> 0 | H8: =[9]SCENARIO1!AD11 -> 0 | I8: =[9]SCENARIO1!AE11 -> 0 | J8: 2.828974309 | K8: 0 | L8: 0.3106901439 | M8: 2.518284165 | N8: =[9]SCENARIO1!AW11 -> 0.748682 | O8: =[9]SCENARIO1!AY11 -> 0
A9: R2B | B9: =[9]SCENARIO1!BD12 -> 83.04247234 | C9: =[9]SCENARIO1!BE12 -> 0 | D9: =[9]SCENARIO1!BF12 -> 17.21349851 | E9: =[9]SCENARIO1!BG12 -> 65.82897383 | F9: =[9]SCENARIO1!AB12 -> 0 | G9: =[9]SCENARIO1!AC12 -> 0 | H9: =[9]SCENARIO1!AD12 -> 0 | I9: =[9]SCENARIO1!AE12 -> 0 | J9: 83.04247234 | K9: 0 | L9: 17.21349851 | M9: 65.82897383 | N9: =[9]SCENARIO1!AW12 -> 20.740015 | O9: =[9]SCENARIO1!AY12 -> 0
A10: R2C | B10: =[9]SCENARIO1!BD13 -> 79.87928266 | C10: =[9]SCENARIO1!BE13 -> 0 | D10: =[9]SCENARIO1!BF13 -> 16.55781523 | E10: =[9]SCENARIO1!BG13 -> 63.32146743 | F10: =[9]SCENARIO1!AB13 -> 8 | G10: =[9]SCENARIO1!AC13 -> 0 | H10: =[9]SCENARIO1!AD13 -> 2 | I10: =[9]SCENARIO1!AE13 -> 6 | J10: 71.87928266 | K10: 0 | L10: 14.55781523 | M10: 57.32146743 | N10: =[9]SCENARIO1!AW13 -> 15.258055 | O10: =[9]SCENARIO1!AY13 -> 3.352406
A11: R2D | B11: =[9]SCENARIO1!BD14 -> 132.6303518 | C11: =[9]SCENARIO1!BE14 -> 0 | D11: =[9]SCENARIO1!BF14 -> 0 | E11: =[9]SCENARIO1!BG14 -> 132.6303518 | F11: =[9]SCENARIO1!AB14 -> 0 | G11: =[9]SCENARIO1!AC14 -> 0 | H11: =[9]SCENARIO1!AD14 -> 0 | I11: =[9]SCENARIO1!AE14 -> 0 | J11: 132.6303518 | K11: 0 | L11: 0 | M11: 132.6303518 | N11: =[9]SCENARIO1!AW14 -> 18.630169 | O11: =[9]SCENARIO1!AY14 -> 0
A12: R2E | B12: =[9]SCENARIO1!BD15 -> 9.636600436 | C12: =[9]SCENARIO1!BE15 -> 0 | D12: =[9]SCENARIO1!BF15 -> 0 | E12: =[9]SCENARIO1!BG15 -> 9.636600436 | F12: =[9]SCENARIO1!AB15 -> 0 | G12: =[9]SCENARIO1!AC15 -> 0 | H12: =[9]SCENARIO1!AD15 -> 0 | I12: =[9]SCENARIO1!AE15 -> 0 | J12: 9.636600436 | K12: 0 | L12: 0 | M12: 9.636600436 | N12: =[9]SCENARIO1!AW15 -> 1.353623 | O12: =[9]SCENARIO1!AY15 -> 0
A13: R3A | B13: =[9]SCENARIO1!BD16 -> 6.579874451 | C13: =[9]SCENARIO1!BE16 -> 0 | D13: =[9]SCENARIO1!BF16 -> 2.193291484 | E13: =[9]SCENARIO1!BG16 -> 4.386582967 | F13: =[9]SCENARIO1!AB16 -> 0 | G13: =[9]SCENARIO1!AC16 -> 0 | H13: =[9]SCENARIO1!AD16 -> 0 | I13: =[9]SCENARIO1!AE16 -> 0 | J13: 6.579874451 | K13: 0 | L13: 2.193291484 | M13: 4.386582967 | N13: =[9]SCENARIO1!AW16 -> 1.403054 | O13: =[9]SCENARIO1!AY16 -> 0
A14: R3B | B14: =[9]SCENARIO1!BD17 -> 0 | C14: =[9]SCENARIO1!BE17 -> 0 | D14: =[9]SCENARIO1!BF17 -> 0 | E14: =[9]SCENARIO1!BG17 -> 0 | F14: =[9]SCENARIO1!AB17 -> 0 | G14: =[9]SCENARIO1!AC17 -> 0 | H14: =[9]SCENARIO1!AD17 -> 0 | I14: =[9]SCENARIO1!AE17 -> 0 | J14: 0 | K14: 0 | L14: 0 | M14: 0 | N14: =[9]SCENARIO1!AW17 -> 0 | O14: =[9]SCENARIO1!AY17 -> 0
A15: R3C | B15: =[9]SCENARIO1!BD18 -> 49.94549128 | C15: =[9]SCENARIO1!BE18 -> 0 | D15: =[9]SCENARIO1!BF18 -> 28.37813621 | E15: =[9]SCENARIO1!BG18 -> 21.56735507 | F15: =[9]SCENARIO1!AB18 -> 9 | G15: =[9]SCENARIO1!AC18 -> 0 | H15: =[9]SCENARIO1!AD18 -> 6 | I15: =[9]SCENARIO1!AE18 -> 3 | J15: 40.94549128 | K15: 0 | L15: 22.37813621 | M15: 18.56735507 | N15: =[9]SCENARIO1!AW18 -> 2.804276 | O15: =[9]SCENARIO1!AY18 -> 2.621725
A16: R3D | B16: =[9]SCENARIO1!BD19 -> 0 | C16: =[9]SCENARIO1!BE19 -> 0 | D16: =[9]SCENARIO1!BF19 -> 0 | E16: =[9]SCENARIO1!BG19 -> 0 | F16: =[9]SCENARIO1!AB19 -> 0 | G16: =[9]SCENARIO1!AC19 -> 0 | H16: =[9]SCENARIO1!AD19 -> 0 | I16: =[9]SCENARIO1!AE19 -> 0 | J16: 0 | K16: 0 | L16: 0 | M16: 0 | N16: =[9]SCENARIO1!AW19 -> 0 | O16: =[9]SCENARIO1!AY19 -> 0
A17: R4A | B17: =[9]SCENARIO1!BD20 -> 46.9406552 | C17: =[9]SCENARIO1!BE20 -> 29.3379095 | D17: =[9]SCENARIO1!BF20 -> 11.7351638 | E17: =[9]SCENARIO1!BG20 -> 5.8675819 | F17: =[9]SCENARIO1!AB20 -> 0 | G17: =[9]SCENARIO1!AC20 -> 0 | H17: =[9]SCENARIO1!AD20 -> 0 | I17: =[9]SCENARIO1!AE20 -> 0 | J17: 46.9406552 | K17: 29.3379095 | L17: 11.7351638 | M17: 5.8675819 | N17: =[9]SCENARIO1!AW20 -> 3.99793 | O17: =[9]SCENARIO1!AY20 -> 0
A18: R4B | B18: =[9]SCENARIO1!BD21 -> 0 | C18: =[9]SCENARIO1!BE21 -> 0 | D18: =[9]SCENARIO1!BF21 -> 0 | E18: =[9]SCENARIO1!BG21 -> 0 | F18: =[9]SCENARIO1!AB21 -> 0 | G18: =[9]SCENARIO1!AC21 -> 0 | H18: =[9]SCENARIO1!AD21 -> 0 | I18: =[9]SCENARIO1!AE21 -> 0 | J18: 0 | K18: 0 | L18: 0 | M18: 0 | N18: =[9]SCENARIO1!AW21 -> 0 | O18: =[9]SCENARIO1!AY21 -> 0
A19: R4C | B19: =[9]SCENARIO1!BD22 -> 0 | C19: =[9]SCENARIO1!BE22 -> 0 | D19: =[9]SCENARIO1!BF22 -> 0 | E19: =[9]SCENARIO1!BG22 -> 0 | F19: =[9]SCENARIO1!AB22 -> 0 | G19: =[9]SCENARIO1!AC22 -> 0 | H19: =[9]SCENARIO1!AD22 -> 0 | I19: =[9]SCENARIO1!AE22 -> 0 | J19: 0 | K19: 0 | L19: 0 | M19: 0 | N19: =[9]SCENARIO1!AW22 -> 0 | O19: =[9]SCENARIO1!AY22 -> 0
A20: RM1A | B20: =[9]SCENARIO1!BD23 -> 1871.117052 | C20: =[9]SCENARIO1!BE23 -> 0 | D20: =[9]SCENARIO1!BF23 -> 1698.991365 | E20: =[9]SCENARIO1!BG23 -> 172.1256866 | F20: =[9]SCENARIO1!AB23 -> 20 | G20: =[9]SCENARIO1!AC23 -> 13 | H20: =[9]SCENARIO1!AD23 -> 0 | I20: =[9]SCENARIO1!AE23 -> 7 | J20: 1851.117052 | K20: -13 | L20: 1698.991365 | M20: 165.1256866 | N20: =[9]SCENARIO1!AW23 -> 113.505045 | O20: =[9]SCENARIO1!AY23 -> 31.310734
A21: RM1B | B21: =[9]SCENARIO1!BD24 -> 384.3359937 | C21: =[9]SCENARIO1!BE24 -> 356.0759942 | D21: =[9]SCENARIO1!BF24 -> 28.25999954 | E21: =[9]SCENARIO1!BG24 -> 0 | F21: =[9]SCENARIO1!AB24 -> 343 | G21: =[9]SCENARIO1!AC24 -> 312 | H21: =[9]SCENARIO1!AD24 -> 31 | I21: =[9]SCENARIO1!AE24 -> 0 | J21: 41.33599373 | K21: 44.07599419 | L21: -2.740000461 | M21: 0 | N21: =[9]SCENARIO1!AW24 -> 0 | O21: =[9]SCENARIO1!AY24 -> 16.219008
A22: RM2A | B22: =[9]SCENARIO1!BD25 -> 1358.390581 | C22: =[9]SCENARIO1!BE25 -> 913.4138291 | D22: =[9]SCENARIO1!BF25 -> 444.976752 | E22: =[9]SCENARIO1!BG25 -> 0 | F22: =[9]SCENARIO1!AB25 -> 49 | G22: =[9]SCENARIO1!AC25 -> 44 | H22: =[9]SCENARIO1!AD25 -> 0 | I22: =[9]SCENARIO1!AE25 -> 5 | J22: 1309.390581 | K22: 869.4138291 | L22: 444.976752 | M22: -5 | N22: =[9]SCENARIO1!AW25 -> 55.540316 | O22: =[9]SCENARIO1!AY25 -> 14.942348
A23: RM2B | B23: =[9]SCENARIO1!BD26 -> 0 | C23: =[9]SCENARIO1!BE26 -> 0 | D23: =[9]SCENARIO1!BF26 -> 0 | E23: =[9]SCENARIO1!BG26 -> 0 | F23: =[9]SCENARIO1!AB26 -> 0 | G23: =[9]SCENARIO1!AC26 -> 0 | H23: =[9]SCENARIO1!AD26 -> 0 | I23: =[9]SCENARIO1!AE26 -> 0 | J23: 0 | K23: 0 | L23: 0 | M23: 0 | N23: =[9]SCENARIO1!AW26 -> 0 | O23: =[9]SCENARIO1!AY26 -> 0
A24: RM3A | B24: =[9]SCENARIO1!BD27 -> 1618.27706 | C24: =[9]SCENARIO1!BE27 -> 1509.556966 | D24: =[9]SCENARIO1!BF27 -> 75.3867973 | E24: =[9]SCENARIO1!BG27 -> 33.33329731 | F24: =[9]SCENARIO1!AB27 -> 333 | G24: =[9]SCENARIO1!AC27 -> 311 | H24: =[9]SCENARIO1!AD27 -> 20 | I24: =[9]SCENARIO1!AE27 -> 2 | J24: 1285.27706 | K24: 1198.556966 | L24: 55.3867973 | M24: 31.33329731 | N24: =[9]SCENARIO1!AW27 -> 27.883771 | O24: =[9]SCENARIO1!AY27 -> 22.535466
A25: RM4A | B25: =[9]SCENARIO1!BD28 -> 30.97948109 | C25: =[9]SCENARIO1!BE28 -> 29.87154991 | D25: =[9]SCENARIO1!BF28 -> 0 | E25: =[9]SCENARIO1!BG28 -> 1.107931176 | F25: =[9]SCENARIO1!AB28 -> 44 | G25: =[9]SCENARIO1!AC28 -> 44 | H25: =[9]SCENARIO1!AD28 -> 0 | I25: =[9]SCENARIO1!AE28 -> 0 | J25: -13.02051891 | K25: -14.12845009 | L25: 0 | M25: 1.107931176 | N25: =[9]SCENARIO1!AW28 -> 0 | O25: =[9]SCENARIO1!AY28 -> 0.42391
A26: RM5A | B26: =[9]SCENARIO1!BD29 -> 72.54182149 | C26: =[9]SCENARIO1!BE29 -> 72.54182149 | D26: =[9]SCENARIO1!BF29 -> 0 | E26: =[9]SCENARIO1!BG29 -> 0 | F26: =[9]SCENARIO1!AB29 -> 26 | G26: =[9]SCENARIO1!AC29 -> 26 | H26: =[9]SCENARIO1!AD29 -> 0 | I26: =[9]SCENARIO1!AE29 -> 0 | J26: 46.54182149 | K26: 46.54182149 | L26: 0 | M26: 0 | N26: =[9]SCENARIO1!AW29 -> 0 | O26: =[9]SCENARIO1!AY29 -> 0.846346
A27: MHP | B27: =[9]SCENARIO1!BD30 -> 0 | C27: =[9]SCENARIO1!BE30 -> 0 | D27: =[9]SCENARIO1!BF30 -> 0 | E27: =[9]SCENARIO1!BG30 -> 0 | F27: =[9]SCENARIO1!AB30 -> 0 | G27: =[9]SCENARIO1!AC30 -> 0 | H27: =[9]SCENARIO1!AD30 -> 0 | I27: =[9]SCENARIO1!AE30 -> 0 | J27: 0 | K27: 0 | L27: 0 | M27: 0 | N27: =[9]SCENARIO1!AW30 -> 0 | O27: =[9]SCENARIO1!AY30 -> 0
A28: MU1A | B28: =[9]SCENARIO1!BD31 -> 10.71272622 | C28: =[9]SCENARIO1!BE31 -> 5.96255679 | D28: =[9]SCENARIO1!BF31 -> 2.981278395 | E28: =[9]SCENARIO1!BG31 -> 1.768891036 | F28: =[9]SCENARIO1!AB31 -> 0 | G28: =[9]SCENARIO1!AC31 -> 0 | H28: =[9]SCENARIO1!AD31 -> 0 | I28: =[9]SCENARIO1!AE31 -> 0 | J28: 10.71272622 | K28: 5.96255679 | L28: 2.981278395 | M28: 1.768891036 | N28: =[9]SCENARIO1!AW31 -> 0.677107 | O28: =[9]SCENARIO1!AY31 -> 0
A29: MU1B | B29: =[9]SCENARIO1!BD32 -> 5.656540488 | C29: =[9]SCENARIO1!BE32 -> 3.148353014 | D29: =[9]SCENARIO1!BF32 -> 1.574176507 | E29: =[9]SCENARIO1!BG32 -> 0.9340109659 | F29: =[9]SCENARIO1!AB32 -> 1 | G29: =[9]SCENARIO1!AC32 -> 0 | H29: =[9]SCENARIO1!AD32 -> 0 | I29: =[9]SCENARIO1!AE32 -> 1 | J29: 4.656540488 | K29: 3.148353014 | L29: 1.574176507 | M29: -0.06598903408 | N29: =[9]SCENARIO1!AW32 -> 0 | O29: =[9]SCENARIO1!AY32 -> 0.301151
A30: MU1C | B30: =[9]SCENARIO1!BD33 -> 0 | C30: =[9]SCENARIO1!BE33 -> 0 | D30: =[9]SCENARIO1!BF33 -> 0 | E30: =[9]SCENARIO1!BG33 -> 0 | F30: =[9]SCENARIO1!AB33 -> 0 | G30: =[9]SCENARIO1!AC33 -> 0 | H30: =[9]SCENARIO1!AD33 -> 0 | I30: =[9]SCENARIO1!AE33 -> 0 | J30: 0 | K30: 0 | L30: 0 | M30: 0 | N30: =[9]SCENARIO1!AW33 -> 0 | O30: =[9]SCENARIO1!AY33 -> 0
A31: MU1D | B31: =[9]SCENARIO1!BD34 -> 78.23007383 | C31: =[9]SCENARIO1!BE34 -> 71.76477847 | D31: =[9]SCENARIO1!BF34 -> 6.465295358 | E31: =[9]SCENARIO1!BG34 -> 0 | F31: =[9]SCENARIO1!AB34 -> 0 | G31: =[9]SCENARIO1!AC34 -> 0 | H31: =[9]SCENARIO1!AD34 -> 0 | I31: =[9]SCENARIO1!AE34 -> 0 | J31: 78.23007383 | K31: 71.76477847 | L31: 6.465295358 | M31: 0 | N31: =[9]SCENARIO1!AW34 -> 0.694081 | O31: =[9]SCENARIO1!AY34 -> 3.125932
A32: MU2A | B32: =[9]SCENARIO1!BD35 -> 828.41766 | C32: =[9]SCENARIO1!BE35 -> 319.177337 | D32: =[9]SCENARIO1!BF35 -> 509.240323 | E32: =[9]SCENARIO1!BG35 -> 0 | F32: =[9]SCENARIO1!AB35 -> 51 | G32: =[9]SCENARIO1!AC35 -> 33 | H32: =[9]SCENARIO1!AD35 -> 2 | I32: =[9]SCENARIO1!AE35 -> 16 | J32: 777.41766 | K32: 286.177337 | L32: 507.240323 | M32: -16 | N32: =[9]SCENARIO1!AW35 -> 44.766053 | O32: =[9]SCENARIO1!AY35 -> 34.442855
A33: MU2B | B33: =[9]SCENARIO1!BD36 -> 83.21043051 | C33: =[9]SCENARIO1!BE36 -> 53.15234182 | D33: =[9]SCENARIO1!BF36 -> 30.05808869 | E33: =[9]SCENARIO1!BG36 -> 0 | F33: =[9]SCENARIO1!AB36 -> 1 | G33: =[9]SCENARIO1!AC36 -> 1 | H33: =[9]SCENARIO1!AD36 -> 0 | I33: =[9]SCENARIO1!AE36 -> 0 | J33: 82.21043051 | K33: 52.15234182 | L33: 30.05808869 | M33: 0 | N33: =[9]SCENARIO1!AW36 -> 4.206117 | O33: =[9]SCENARIO1!AY36 -> 0.638823
A34: MU3A | B34: =[9]SCENARIO1!BD37 -> 844.6644593 | C34: =[9]SCENARIO1!BE37 -> 526.1101711 | D34: =[9]SCENARIO1!BF37 -> 318.5542883 | E34: =[9]SCENARIO1!BG37 -> 0 | F34: =[9]SCENARIO1!AB37 -> 101 | G34: =[9]SCENARIO1!AC37 -> 100 | H34: =[9]SCENARIO1!AD37 -> 0 | I34: =[9]SCENARIO1!AE37 -> 1 | J34: 743.6644593 | K34: 426.1101711 | L34: 318.5542883 | M34: -1 | N34: =[9]SCENARIO1!AW37 -> 27.180334 | O34: =[9]SCENARIO1!AY37 -> 20.300228
A35: MU4A | B35: =[9]SCENARIO1!BD38 -> 92.76928145 | C35: =[9]SCENARIO1!BE38 -> 57.78254547 | D35: =[9]SCENARIO1!BF38 -> 34.98673597 | E35: =[9]SCENARIO1!BG38 -> 0 | F35: =[9]SCENARIO1!AB38 -> 0 | G35: =[9]SCENARIO1!AC38 -> 0 | H35: =[9]SCENARIO1!AD38 -> 0 | I35: =[9]SCENARIO1!AE38 -> 0 | J35: =B35-F35 -> 92.76928145 | K35: 57.78254547 | L35: 34.98673597 | M35: 0 | N35: =[9]SCENARIO1!AW38 -> 6.896315 | O35: =[9]SCENARIO1!AY38 -> 0
A36: MU4B | B36: =[9]SCENARIO1!BD39 -> 2044.774728 | C36: =[9]SCENARIO1!BE39 -> 2044.774728 | D36: =[9]SCENARIO1!BF39 -> 0 | E36: =[9]SCENARIO1!BG39 -> 0 | F36: =[9]SCENARIO1!AB39 -> 3 | G36: =[9]SCENARIO1!AC39 -> 0 | H36: =[9]SCENARIO1!AD39 -> 2 | I36: =[9]SCENARIO1!AE39 -> 1 | J36: 2041.774728 | K36: 2044.774728 | L36: -2 | M36: -1 | N36: =[9]SCENARIO1!AW39 -> 74.251028 | O36: =[9]SCENARIO1!AY39 -> 36.234431
A37: MU5A | B37: =[9]SCENARIO1!BD40 -> 0 | C37: =[9]SCENARIO1!BE40 -> 0 | D37: =[9]SCENARIO1!BF40 -> 0 | E37: =[9]SCENARIO1!BG40 -> 0 | F37: =[9]SCENARIO1!AB40 -> 0 | G37: =[9]SCENARIO1!AC40 -> 0 | H37: =[9]SCENARIO1!AD40 -> 0 | I37: =[9]SCENARIO1!AE40 -> 0 | J37: 0 | K37: 0 | L37: 0 | M37: 0 | N37: =[9]SCENARIO1!AW40 -> 0 | O37: =[9]SCENARIO1!AY40 -> 0
A38: MS1A | B38: =[9]SCENARIO1!BD41 -> 0 | C38: =[9]SCENARIO1!BE41 -> 0 | D38: =[9]SCENARIO1!BF41 -> 0 | E38: =[9]SCENARIO1!BG41 -> 0 | F38: =[9]SCENARIO1!AB41 -> 0 | G38: =[9]SCENARIO1!AC41 -> 0 | H38: =[9]SCENARIO1!AD41 -> 0 | I38: =[9]SCENARIO1!AE41 -> 0 | J38: 0 | K38: 0 | L38: 0 | M38: 0 | N38: =[9]SCENARIO1!AW41 -> 0 | O38: =[9]SCENARIO1!AY41 -> 0
A39: MS1B | B39: =[9]SCENARIO1!BD42 -> 9.321918021 | C39: =[9]SCENARIO1!BE42 -> 6.76611497 | D39: =[9]SCENARIO1!BF42 -> 0 | E39: =[9]SCENARIO1!BG42 -> 2.555803052 | F39: =[9]SCENARIO1!AB42 -> 2 | G39: =[9]SCENARIO1!AC42 -> 0 | H39: =[9]SCENARIO1!AD42 -> 2 | I39: =[9]SCENARIO1!AE42 -> 0 | J39: 7.321918021 | K39: 6.76611497 | L39: -2 | M39: 2.555803052 | N39: =[9]SCENARIO1!AW42 -> 0 | O39: =[9]SCENARIO1!AY42 -> 0.393056
A40: MS2A | B40: =[9]SCENARIO1!BD43 -> 44.87056957 | C40: =[9]SCENARIO1!BE43 -> 42.42132442 | D40: =[9]SCENARIO1!BF43 -> 0 | E40: =[9]SCENARIO1!BG43 -> 2.44924515 | F40: =[9]SCENARIO1!AB43 -> 0 | G40: =[9]SCENARIO1!AC43 -> 0 | H40: =[9]SCENARIO1!AD43 -> 0 | I40: =[9]SCENARIO1!AE43 -> 0 | J40: 44.87056957 | K40: 42.42132442 | L40: 0 | M40: 2.44924515 | N40: =[9]SCENARIO1!AW43 -> 0 | O40: =[9]SCENARIO1!AY43 -> 1.506674
A41: MS2B | B41: =[9]SCENARIO1!BD44 -> 238.1334361 | C41: =[9]SCENARIO1!BE44 -> 225.1350015 | D41: =[9]SCENARIO1!BF44 -> 0 | E41: =[9]SCENARIO1!BG44 -> 12.99843459 | F41: =[9]SCENARIO1!AB44 -> 2 | G41: =[9]SCENARIO1!AC44 -> 0 | H41: =[9]SCENARIO1!AD44 -> 0 | I41: =[9]SCENARIO1!AE44 -> 2 | J41: 236.1334361 | K41: 225.1350015 | L41: 0 | M41: 10.99843459 | N41: =[9]SCENARIO1!AW44 -> 0.606718 | O41: =[9]SCENARIO1!AY44 -> 7.578255
A42: MS2C | B42: =[9]SCENARIO1!BD45 -> 112.5141034 | C42: =[9]SCENARIO1!BE45 -> 106.3725584 | D42: =[9]SCENARIO1!BF45 -> 0 | E42: =[9]SCENARIO1!BG45 -> 6.141544999 | F42: =[9]SCENARIO1!AB45 -> 0 | G42: =[9]SCENARIO1!AC45 -> 0 | H42: =[9]SCENARIO1!AD45 -> 0 | I42: =[9]SCENARIO1!AE45 -> 0 | J42: 112.5141034 | K42: 106.3725584 | L42: 0 | M42: 6.141544999 | N42: =[9]SCENARIO1!AW45 -> 1.664858 | O42: =[9]SCENARIO1!AY45 -> 2.631447
A43: MS3A | B43: =[9]SCENARIO1!BD46 -> 3926.405731 | C43: =[9]SCENARIO1!BE46 -> 3926.405731 | D43: =[9]SCENARIO1!BF46 -> 0 | E43: =[9]SCENARIO1!BG46 -> 0 | F43: =[9]SCENARIO1!AB46 -> 51 | G43: =[9]SCENARIO1!AC46 -> 46 | H43: =[9]SCENARIO1!AD46 -> 0 | I43: =[9]SCENARIO1!AE46 -> 0 | J43: 3875.405731 | K43: 3880.405731 | L43: 0 | M43: 0 | N43: =[9]SCENARIO1!AW46 -> 0.937365 | O43: =[9]SCENARIO1!AY46 -> 57.514449
A44: MS3B | B44: =[9]SCENARIO1!BD47 -> 1031.564406 | C44: =[9]SCENARIO1!BE47 -> 1031.564406 | D44: =[9]SCENARIO1!BF47 -> 0 | E44: =[9]SCENARIO1!BG47 -> 0 | F44: =[9]SCENARIO1!AB47 -> 91 | G44: =[9]SCENARIO1!AC47 -> 91 | H44: =[9]SCENARIO1!AD47 -> 0 | I44: =[9]SCENARIO1!AE47 -> 0 | J44: 940.5644057 | K44: 940.5644057 | L44: 0 | M44: 0 | N44: =[9]SCENARIO1!AW47 -> 1.500102 | O44: =[9]SCENARIO1!AY47 -> 13.638295
A45: UC | B45: =[9]SCENARIO1!BD48 -> 0 | C45: =[9]SCENARIO1!BE48 -> 0 | D45: =[9]SCENARIO1!BF48 -> 0 | E45: =[9]SCENARIO1!BG48 -> 0 | F45: =[9]SCENARIO1!AB48 -> 0 | G45: =[9]SCENARIO1!AC48 -> 0 | H45: =[9]SCENARIO1!AD48 -> 0 | I45: =[9]SCENARIO1!AE48 -> 0 | J45: 0 | K45: 0 | L45: 0 | M45: 0 | N45: =[9]SCENARIO1!AW48 -> 0 | O45: =[9]SCENARIO1!AY48 -> 0
A46: CC40 | B46: =[9]SCENARIO1!BD49 -> 0 | C46: =[9]SCENARIO1!BE49 -> 0 | D46: =[9]SCENARIO1!BF49 -> 0 | E46: =[9]SCENARIO1!BG49 -> 0 | F46: =[9]SCENARIO1!AB49 -> 0 | G46: =[9]SCENARIO1!AC49 -> 0 | H46: =[9]SCENARIO1!AD49 -> 0 | I46: =[9]SCENARIO1!AE49 -> 0 | J46: 0 | K46: 0 | L46: 0 | M46: 0 | N46: =[9]SCENARIO1!AW49 -> 0 | O46: =[9]SCENARIO1!AY49 -> 0
A47: CC60 | B47: =[9]SCENARIO1!BD50 -> 0 | C47: =[9]SCENARIO1!BE50 -> 0 | D47: =[9]SCENARIO1!BF50 -> 0 | E47: =[9]SCENARIO1!BG50 -> 0 | F47: =[9]SCENARIO1!AB50 -> 0 | G47: =[9]SCENARIO1!AC50 -> 0 | H47: =[9]SCENARIO1!AD50 -> 0 | I47: =[9]SCENARIO1!AE50 -> 0 | J47: 0 | K47: 0 | L47: 0 | M47: 0 | N47: =[9]SCENARIO1!AW50 -> 0 | O47: =[9]SCENARIO1!AY50 -> 0
A48: CC80 | B48: =[9]SCENARIO1!BD51 -> 0 | C48: =[9]SCENARIO1!BE51 -> 0 | D48: =[9]SCENARIO1!BF51 -> 0 | E48: =[9]SCENARIO1!BG51 -> 0 | F48: =[9]SCENARIO1!AB51 -> 0 | G48: =[9]SCENARIO1!AC51 -> 0 | H48: =[9]SCENARIO1!AD51 -> 0 | I48: =[9]SCENARIO1!AE51 -> 0 | J48: 0 | K48: 0 | L48: 0 | M48: 0 | N48: =[9]SCENARIO1!AW51 -> 0 | O48: =[9]SCENARIO1!AY51 -> 0
A49: CC120 | B49: =[9]SCENARIO1!BD52 -> 0 | C49: =[9]SCENARIO1!BE52 -> 0 | D49: =[9]SCENARIO1!BF52 -> 0 | E49: =[9]SCENARIO1!BG52 -> 0 | F49: =[9]SCENARIO1!AB52 -> 0 | G49: =[9]SCENARIO1!AC52 -> 0 | H49: =[9]SCENARIO1!AD52 -> 0 | I49: =[9]SCENARIO1!AE52 -> 0 | J49: 0 | K49: 0 | L49: 0 | M49: 0 | N49: =[9]SCENARIO1!AW52 -> 0 | O49: =[9]SCENARIO1!AY52 -> 0
A50: DC | B50: =[9]SCENARIO1!BD53 -> 0 | C50: =[9]SCENARIO1!BE53 -> 0 | D50: =[9]SCENARIO1!BF53 -> 0 | E50: =[9]SCENARIO1!BG53 -> 0 | F50: =[9]SCENARIO1!AB53 -> 0 | G50: =[9]SCENARIO1!AC53 -> 0 | H50: =[9]SCENARIO1!AD53 -> 0 | I50: =[9]SCENARIO1!AE53 -> 0 | J50: 0 | K50: 0 | L50: 0 | M50: 0 | N50: =[9]SCENARIO1!AW53 -> 0 | O50: =[9]SCENARIO1!AY53 -> 0
A51: CR | B51: =[9]SCENARIO1!BD54 -> 0 | C51: =[9]SCENARIO1!BE54 -> 0 | D51: =[9]SCENARIO1!BF54 -> 0 | E51: =[9]SCENARIO1!BG54 -> 0 | F51: =[9]SCENARIO1!AB54 -> 0 | G51: =[9]SCENARIO1!AC54 -> 0 | H51: =[9]SCENARIO1!AD54 -> 0 | I51: =[9]SCENARIO1!AE54 -> 0 | J51: 0 | K51: 0 | L51: 0 | M51: 0 | N51: =[9]SCENARIO1!AW54 -> 1.749826 | O51: =[9]SCENARIO1!AY54 -> 0
A52: CW | B52: =[9]SCENARIO1!BD55 -> 0 | C52: =[9]SCENARIO1!BE55 -> 0 | D52: =[9]SCENARIO1!BF55 -> 0 | E52: =[9]SCENARIO1!BG55 -> 0 | F52: =[9]SCENARIO1!AB55 -> 0 | G52: =[9]SCENARIO1!AC55 -> 0 | H52: =[9]SCENARIO1!AD55 -> 0 | I52: =[9]SCENARIO1!AE55 -> 0 | J52: 0 | K52: 0 | L52: 0 | M52: 0 | N52: =[9]SCENARIO1!AW55 -> 0 | O52: =[9]SCENARIO1!AY55 -> 0
A53: IF | B53: =[9]SCENARIO1!BD56 -> 0 | C53: =[9]SCENARIO1!BE56 -> 0 | D53: =[9]SCENARIO1!BF56 -> 0 | E53: =[9]SCENARIO1!BG56 -> 0 | F53: =[9]SCENARIO1!AB56 -> 0 | G53: =[9]SCENARIO1!AC56 -> 0 | H53: =[9]SCENARIO1!AD56 -> 0 | I53: =[9]SCENARIO1!AE56 -> 0 | J53: 0 | K53: 0 | L53: 0 | M53: 0 | N53: =[9]SCENARIO1!AW56 -> 0 | O53: =[9]SCENARIO1!AY56 -> 0
A54: IG | B54: =[9]SCENARIO1!BD57 -> 0 | C54: =[9]SCENARIO1!BE57 -> 0 | D54: =[9]SCENARIO1!BF57 -> 0 | E54: =[9]SCENARIO1!BG57 -> 0 | F54: =[9]SCENARIO1!AB57 -> 0 | G54: =[9]SCENARIO1!AC57 -> 0 | H54: =[9]SCENARIO1!AD57 -> 0 | I54: =[9]SCENARIO1!AE57 -> 0 | J54: 0 | K54: 0 | L54: 0 | M54: 0 | N54: =[9]SCENARIO1!AW57 -> 0 | O54: =[9]SCENARIO1!AY57 -> 0
A55: IH | B55: =[9]SCENARIO1!BD58 -> 0 | C55: =[9]SCENARIO1!BE58 -> 0 | D55: =[9]SCENARIO1!BF58 -> 0 | E55: =[9]SCENARIO1!BG58 -> 0 | F55: =[9]SCENARIO1!AB58 -> 0 | G55: =[9]SCENARIO1!AC58 -> 0 | H55: =[9]SCENARIO1!AD58 -> 0 | I55: =[9]SCENARIO1!AE58 -> 0 | J55: 0 | K55: 0 | L55: 0 | M55: 0 | N55: =[9]SCENARIO1!AW58 -> 0 | O55: =[9]SCENARIO1!AY58 -> 0
A56: R&D | B56: =[9]SCENARIO1!BD59 -> 0 | C56: =[9]SCENARIO1!BE59 -> 0 | D56: =[9]SCENARIO1!BF59 -> 0 | E56: =[9]SCENARIO1!BG59 -> 0 | F56: =[9]SCENARIO1!AB59 -> 0 | G56: =[9]SCENARIO1!AC59 -> 0 | H56: =[9]SCENARIO1!AD59 -> 0 | I56: =[9]SCENARIO1!AE59 -> 0 | J56: 0 | K56: 0 | L56: 0 | M56: 0 | N56: =[9]SCENARIO1!AW59 -> 0 | O56: =[9]SCENARIO1!AY59 -> 0
A57: P | B57: =[9]SCENARIO1!BD60 -> 0 | C57: =[9]SCENARIO1!BE60 -> 0 | D57: =[9]SCENARIO1!BF60 -> 0 | E57: =[9]SCENARIO1!BG60 -> 0 | F57: =[9]SCENARIO1!AB60 -> 0 | G57: =[9]SCENARIO1!AC60 -> 0 | H57: =[9]SCENARIO1!AD60 -> 0 | I57: =[9]SCENARIO1!AE60 -> 0 | J57: 0 | K57: 0 | L57: 0 | M57: 0 | N57: =[9]SCENARIO1!AW60 -> 7.832724 | O57: =[9]SCENARIO1!AY60 -> 0
A58: PUD | B58: =[9]SCENARIO1!BD61 -> 0 | C58: =[9]SCENARIO1!BE61 -> 0 | D58: =[9]SCENARIO1!BF61 -> 0 | E58: =[9]SCENARIO1!BG61 -> 0 | F58: =[9]SCENARIO1!AB61 -> 0 | G58: =[9]SCENARIO1!AC61 -> 0 | H58: =[9]SCENARIO1!AD61 -> 0 | I58: =[9]SCENARIO1!AE61 -> 0 | J58: 0 | K58: 0 | L58: 0 | M58: 0 | N58: =[9]SCENARIO1!AW61 -> 0 | O58: =[9]SCENARIO1!AY61 -> 0
A59: ERC | B59: =[9]SCENARIO1!BD62 -> 0 | C59: =[9]SCENARIO1!BE62 -> 0 | D59: =[9]SCENARIO1!BF62 -> 0 | E59: =[9]SCENARIO1!BG62 -> 0 | F59: =[9]SCENARIO1!AB62 -> 0 | G59: =[9]SCENARIO1!AC62 -> 0 | H59: =[9]SCENARIO1!AD62 -> 0 | I59: =[9]SCENARIO1!AE62 -> 0 | J59: 0 | K59: 0 | L59: 0 | M59: 0 | N59: =[9]SCENARIO1!AW62 -> 0 | O59: =[9]SCENARIO1!AY62 -> 0
A60: NBG | B60: =[9]SCENARIO1!BD63 -> 0 | C60: =[9]SCENARIO1!BE63 -> 0 | D60: =[9]SCENARIO1!BF63 -> 0 | E60: =[9]SCENARIO1!BG63 -> 0 | F60: =[9]SCENARIO1!AB63 -> 0 | G60: =[9]SCENARIO1!AC63 -> 0 | H60: =[9]SCENARIO1!AD63 -> 0 | I60: =[9]SCENARIO1!AE63 -> 0 | J60: 0 | K60: 0 | L60: 0 | M60: 0 | N60: =[9]SCENARIO1!AW63 -> 0 | O60: =[9]SCENARIO1!AY63 -> 0
A61: UNZ | B61: =[9]SCENARIO1!BD64 -> 0 | C61: =[9]SCENARIO1!BE64 -> 0 | D61: =[9]SCENARIO1!BF64 -> 0 | E61: =[9]SCENARIO1!BG64 -> 0 | F61: =[9]SCENARIO1!AB64 -> 0 | G61: =[9]SCENARIO1!AC64 -> 0 | H61: =[9]SCENARIO1!AD64 -> 0 | I61: =[9]SCENARIO1!AE64 -> 0 | J61: 0 | K61: 0 | L61: 0 | M61: 0 | N61: =[9]SCENARIO1!AW64 -> 0 | O61: =[9]SCENARIO1!AY64 -> 0
A62: TOD | B62: =[9]SCENARIO1!BD65 -> 0 | C62: =[9]SCENARIO1!BE65 -> 0 | D62: =[9]SCENARIO1!BF65 -> 0 | E62: =[9]SCENARIO1!BG65 -> 0 | F62: =[9]SCENARIO1!AB65 -> 0 | G62: =[9]SCENARIO1!AC65 -> 0 | H62: =[9]SCENARIO1!AD65 -> 0 | I62: =[9]SCENARIO1!AE65 -> 0 | J62: 0 | K62: 0 | L62: 0 | M62: 0 | N62: =[9]SCENARIO1!AW65 -> 0 | O62: =[9]SCENARIO1!AY65 -> 0
A63: Whisper Valley PUD | B63: =[9]SCENARIO1!BD66 -> 0 | C63: =[9]SCENARIO1!BE66 -> 0 | D63: =[9]SCENARIO1!BF66 -> 0 | E63: =[9]SCENARIO1!BG66 -> 0 | F63: =[9]SCENARIO1!AB66 -> 0 | G63: =[9]SCENARIO1!AC66 -> 0 | H63: =[9]SCENARIO1!AD66 -> 0 | I63: =[9]SCENARIO1!AE66 -> 0 | J63: 0 | K63: 0 | L63: 0 | M63: 0 | N63: =[9]SCENARIO1!AW66 -> 0 | O63: =[9]SCENARIO1!AY66 -> 0
A64: Wildhorse Ranch PUD | B64: =[9]SCENARIO1!BD67 -> 0 | C64: =[9]SCENARIO1!BE67 -> 0 | D64: =[9]SCENARIO1!BF67 -> 0 | E64: =[9]SCENARIO1!BG67 -> 0 | F64: =[9]SCENARIO1!AB67 -> 0 | G64: =[9]SCENARIO1!AC67 -> 0 | H64: =[9]SCENARIO1!AD67 -> 0 | I64: =[9]SCENARIO1!AE67 -> 0 | J64: 0 | K64: 0 | L64: 0 | M64: 0 | N64: =[9]SCENARIO1!AW67 -> 0 | O64: =[9]SCENARIO1!AY67 -> 0
A65: Waters Edge PUD | B65: =[9]SCENARIO1!BD68 -> 0 | C65: =[9]SCENARIO1!BE68 -> 0 | D65: =[9]SCENARIO1!BF68 -> 0 | E65: =[9]SCENARIO1!BG68 -> 0 | F65: =[9]SCENARIO1!AB68 -> 0 | G65: =[9]SCENARIO1!AC68 -> 0 | H65: =[9]SCENARIO1!AD68 -> 0 | I65: =[9]SCENARIO1!AE68 -> 0 | J65: 0 | K65: 0 | L65: 0 | M65: 0 | N65: =[9]SCENARIO1!AW68 -> 0 | O65: =[9]SCENARIO1!AY68 -> 0
A66: Goodnight Ranch PUD | B66: =[9]SCENARIO1!BD69 -> 0 | C66: =[9]SCENARIO1!BE69 -> 0 | D66: =[9]SCENARIO1!BF69 -> 0 | E66: =[9]SCENARIO1!BG69 -> 0 | F66: =[9]SCENARIO1!AB69 -> 0 | G66: =[9]SCENARIO1!AC69 -> 0 | H66: =[9]SCENARIO1!AD69 -> 0 | I66: =[9]SCENARIO1!AE69 -> 0 | J66: 0 | K66: 0 | L66: 0 | M66: 0 | N66: =[9]SCENARIO1!AW69 -> 0 | O66: =[9]SCENARIO1!AY69 -> 0
A67: UNO | B67: =[9]SCENARIO1!BD70 -> 0 | C67: =[9]SCENARIO1!BE70 -> 0 | D67: =[9]SCENARIO1!BF70 -> 0 | E67: =[9]SCENARIO1!BG70 -> 0 | F67: =[9]SCENARIO1!AB70 -> 0 | G67: =[9]SCENARIO1!AC70 -> 0 | H67: =[9]SCENARIO1!AD70 -> 0 | I67: =[9]SCENARIO1!AE70 -> 0 | J67: =B67-F67 -> 0 | K67: 0 | L67: 0 | M67: 0 | N67: =[9]SCENARIO1!AW70 -> 0 | O67: =[9]SCENARIO1!AY70 -> 0
A68: Estancia PUD | B68: =[9]SCENARIO1!BD71 -> 1393.59578 | C68: =[9]SCENARIO1!BE71 -> 0 | D68: =[9]SCENARIO1!BF71 -> 0 | E68: =[9]SCENARIO1!BG71 -> 1393.59578 | F68: =[9]SCENARIO1!AB71 -> 0 | G68: =[9]SCENARIO1!AC71 -> 0 | H68: =[9]SCENARIO1!AD71 -> 0 | I68: =[9]SCENARIO1!AE71 -> 0 | J68: 1393.59578 | K68: 0 | L68: 0 | M68: 1393.59578 | N68: =[9]SCENARIO1!AW71 -> 401.332703 | O68: =[9]SCENARIO1!AY71 -> 0
A69: TOD - Medium Density Residential (TODMDR) | B69: =[9]SCENARIO1!BD72 -> 0 | C69: =[9]SCENARIO1!BE72 -> 0 | D69: =[9]SCENARIO1!BF72 -> 0 | E69: =[9]SCENARIO1!BG72 -> 0 | F69: =[9]SCENARIO1!AB72 -> 0 | G69: =[9]SCENARIO1!AC72 -> 0 | H69: =[9]SCENARIO1!AD72 -> 0 | I69: =[9]SCENARIO1!AE72 -> 0 | J69: 0 | K69: 0 | L69: 0 | M69: 0 | N69: =[9]SCENARIO1!AW72 -> 0 | O69: =[9]SCENARIO1!AY72 -> 0
A70: TOD – Low Density Residential (TODLDR) | B70: =[9]SCENARIO1!BD73 -> 0 | C70: =[9]SCENARIO1!BE73 -> 0 | D70: =[9]SCENARIO1!BF73 -> 0 | E70: =[9]SCENARIO1!BG73 -> 0 | F70: =[9]SCENARIO1!AB73 -> 0 | G70: =[9]SCENARIO1!AC73 -> 0 | H70: =[9]SCENARIO1!AD73 -> 0 | I70: =[9]SCENARIO1!AE73 -> 0 | J70: 0 | K70: 0 | L70: 0 | M70: 0 | N70: =[9]SCENARIO1!AW73 -> 0 | O70: =[9]SCENARIO1!AY73 -> 0
A71: TOD – TOD Mixed Use | B71: =[9]SCENARIO1!BD74 -> 0 | C71: =[9]SCENARIO1!BE74 -> 0 | D71: =[9]SCENARIO1!BF74 -> 0 | E71: =[9]SCENARIO1!BG74 -> 0 | F71: =[9]SCENARIO1!AB74 -> 0 | G71: =[9]SCENARIO1!AC74 -> 0 | H71: =[9]SCENARIO1!AD74 -> 0 | I71: =[9]SCENARIO1!AE74 -> 0 | J71: 0 | K71: 0 | L71: 0 | M71: 0 | N71: =[9]SCENARIO1!AW74 -> 0 | O71: =[9]SCENARIO1!AY74 -> 0
A72: TOD – Corridor Mixed Use (TODCMU) | B72: =[9]SCENARIO1!BD75 -> 0 | C72: =[9]SCENARIO1!BE75 -> 0 | D72: =[9]SCENARIO1!BF75 -> 0 | E72: =[9]SCENARIO1!BG75 -> 0 | F72: =[9]SCENARIO1!AB75 -> 0 | G72: =[9]SCENARIO1!AC75 -> 0 | H72: =[9]SCENARIO1!AD75 -> 0 | I72: =[9]SCENARIO1!AE75 -> 0 | J72: 0 | K72: 0 | L72: 0 | M72: 0 | N72: =[9]SCENARIO1!AW75 -> 0 | O72: =[9]SCENARIO1!AY75 -> 0
A73: South Shore PUD | B73: =[9]SCENARIO1!BD76 -> 0 | C73: =[9]SCENARIO1!BE76 -> 0 | D73: =[9]SCENARIO1!BF76 -> 0 | E73: =[9]SCENARIO1!BG76 -> 0 | F73: =[9]SCENARIO1!AB76 -> 0 | G73: =[9]SCENARIO1!AC76 -> 0 | H73: =[9]SCENARIO1!AD76 -> 0 | I73: =[9]SCENARIO1!AE76 -> 0 | J73: 0 | K73: 0 | L73: 0 | M73: 0 | N73: =[9]SCENARIO1!AW76 -> 0 | O73: =[9]SCENARIO1!AY76 -> 0
A74: Total | B74: =SUM(B3:B73) -> 16677.53155 | C74: =SUM(C3:C73) -> 11331.33602 | D74: 3227.863696 | E74: =SUM(E3:E73) -> 2118.331838 | F74: =SUM(F3:F73) -> 1135 | G74: =SUM(G3:G73) -> 1021 | H74: 65 | I74: =SUM(I3:I73) -> 44 | J74: =SUM(J3:J73) -> 15542.53155 | K74: =SUM(K3:K73) -> 10310.33602 | L74: =SUM(L3:L73) -> 3162.863696 | M74: 2074.331838 | N74: =SUM(N3:N73) -> 934.415266 | O74: 270.557539

Sheet Draft 2 CD 6
B1: New | F1: Units assumed to redevelop | J1: Net Growth | N1: Acres
A2: CodeNEXT2 | B2: Units | C2: Multifamily | D2: Townhome | E2: Single Family | F2: Units | G2: Multifamily | H2: Townhome | I2: Single Family | J2: Units | K2: Multifamily | L2: Townhome | M2: Single Family | N2: Vacant Developed | O2: Developed Redeveloped
A3: Rural Residential | B3: =[10]SCENARIO1!BD6 -> 16.0324991 | C3: =[10]SCENARIO1!BE6 -> 0 | D3: =[10]SCENARIO1!BF6 -> 0 | E3: =[10]SCENARIO1!BG6 -> 16.0324991 | F3: =[10]SCENARIO1!AB6 -> 0 | G3: =[10]SCENARIO1!AC6 -> 0 | H3: =[10]SCENARIO1!AD6 -> 0 | I3: =[10]SCENARIO1!AE6 -> 0 | J3: =B3-F3 -> 16.0324991 | K3: 0 | L3: 0 | M3: 16.0324991 | N3: =[10]SCENARIO1!AW6 -> 28.374121 | O3: =[10]SCENARIO1!AY6 -> 0
A4: Lake Austin | B4: =[10]SCENARIO1!BD7 -> 183.551458 | C4: =[10]SCENARIO1!BE7 -> 0 | D4: =[10]SCENARIO1!BF7 -> 22.49096621 | E4: =[10]SCENARIO1!BG7 -> 161.0604918 | F4: =[10]SCENARIO1!AB7 -> 0 | G4: =[10]SCENARIO1!AC7 -> 0 | H4: =[10]SCENARIO1!AD7 -> 0 | I4: =[10]SCENARIO1!AE7 -> 0 | J4: 183.551458 | K4: 0 | L4: 22.49096621 | M4: 161.0604918 | N4: =[10]SCENARIO1!AW7 -> 150.609382 | O4: =[10]SCENARIO1!AY7 -> 0
A5: R1A | B5: =[10]SCENARIO1!BD8 -> 133.814551 | C5: =[10]SCENARIO1!BE8 -> 0 | D5: =[10]SCENARIO1!BF8 -> 0 | E5: =[10]SCENARIO1!BG8 -> 133.814551 | F5: =[10]SCENARIO1!AB8 -> 0 | G5: =[10]SCENARIO1!AC8 -> 0 | H5: =[10]SCENARIO1!AD8 -> 0 | I5: =[10]SCENARIO1!AE8 -> 0 | J5: 133.814551 | K5: 0 | L5: 0 | M5: 133.814551 | N5: =[10]SCENARIO1!AW8 -> 67.859497 | O5: =[10]SCENARIO1!AY8 -> 0
A6: R1B | B6: =[10]SCENARIO1!BD9 -> 1032.575982 | C6: =[10]SCENARIO1!BE9 -> 0 | D6: =[10]SCENARIO1!BF9 -> 0 | E6: =[10]SCENARIO1!BG9 -> 1032.575982 | F6: =[10]SCENARIO1!AB9 -> 0 | G6: =[10]SCENARIO1!AC9 -> 0 | H6: =[10]SCENARIO1!AD9 -> 0 | I6: =[10]SCENARIO1!AE9 -> 0 | J6: 1032.575982 | K6: 0 | L6: 0 | M6: 1032.575982 | N6: =[10]SCENARIO1!AW9 -> 292.541903 | O6: =[10]SCENARIO1!AY9 -> 0
A7: R1C | B7: =[10]SCENARIO1!BD10 -> 1.830186138 | C7: =[10]SCENARIO1!BE10 -> 0 | D7: =[10]SCENARIO1!BF10 -> 0 | E7: =[10]SCENARIO1!BG10 -> 1.830186138 | F7: =[10]SCENARIO1!AB10 -> 0 | G7: =[10]SCENARIO1!AC10 -> 0 | H7: =[10]SCENARIO1!AD10 -> 0 | I7: =[10]SCENARIO1!AE10 -> 0 | J7: 1.830186138 | K7: 0 | L7: 0 | M7: 1.830186138 | N7: =[10]SCENARIO1!AW10 -> 0.518515 | O7: =[10]SCENARIO1!AY10 -> 0
A8: R2A | B8: =[10]SCENARIO1!BD11 -> 0 | C8: =[10]SCENARIO1!BE11 -> 0 | D8: =[10]SCENARIO1!BF11 -> 0 | E8: =[10]SCENARIO1!BG11 -> 0 | F8: =[10]SCENARIO1!AB11 -> 0 | G8: =[10]SCENARIO1!AC11 -> 0 | H8: =[10]SCENARIO1!AD11 -> 0 | I8: =[10]SCENARIO1!AE11 -> 0 | J8: 0 | K8: 0 | L8: 0 | M8: 0 | N8: =[10]SCENARIO1!AW11 -> 0 | O8: =[10]SCENARIO1!AY11 -> 0
A9: R2B | B9: =[10]SCENARIO1!BD12 -> 5.298189987 | C9: =[10]SCENARIO1!BE12 -> 0 | D9: =[10]SCENARIO1!BF12 -> 1.09823784 | E9: =[10]SCENARIO1!BG12 -> 4.199952147 | F9: =[10]SCENARIO1!AB12 -> 0 | G9: =[10]SCENARIO1!AC12 -> 0 | H9: =[10]SCENARIO1!AD12 -> 0 | I9: =[10]SCENARIO1!AE12 -> 0 | J9: 5.298189987 | K9: 0 | L9: 1.09823784 | M9: 4.199952147 | N9: =[10]SCENARIO1!AW12 -> 1.323233 | O9: =[10]SCENARIO1!AY12 -> 0
A10: R2C | B10: =[10]SCENARIO1!BD13 -> 0 | C10: =[10]SCENARIO1!BE13 -> 0 | D10: =[10]SCENARIO1!BF13 -> 0 | E10: =[10]SCENARIO1!BG13 -> 0 | F10: =[10]SCENARIO1!AB13 -> 0 | G10: =[10]SCENARIO1!AC13 -> 0 | H10: =[10]SCENARIO1!AD13 -> 0 | I10: =[10]SCENARIO1!AE13 -> 0 | J10: 0 | K10: 0 | L10: 0 | M10: 0 | N10: =[10]SCENARIO1!AW13 -> 0 | O10: =[10]SCENARIO1!AY13 -> 0
A11: R2D | B11: =[10]SCENARIO1!BD14 -> 1.044068334 | C11: =[10]SCENARIO1!BE14 -> 0 | D11: =[10]SCENARIO1!BF14 -> 0 | E11: =[10]SCENARIO1!BG14 -> 1.044068334 | F11: =[10]SCENARIO1!AB14 -> 0 | G11: =[10]SCENARIO1!AC14 -> 0 | H11: =[10]SCENARIO1!AD14 -> 0 | I11: =[10]SCENARIO1!AE14 -> 0 | J11: 1.044068334 | K11: 0 | L11: 0 | M11: 1.044068334 | N11: =[10]SCENARIO1!AW14 -> 0.146657 | O11: =[10]SCENARIO1!AY14 -> 0
A12: R2E | B12: =[10]SCENARIO1!BD15 -> 0 | C12: =[10]SCENARIO1!BE15 -> 0 | D12: =[10]SCENARIO1!BF15 -> 0 | E12: =[10]SCENARIO1!BG15 -> 0 | F12: =[10]SCENARIO1!AB15 -> 0 | G12: =[10]SCENARIO1!AC15 -> 0 | H12: =[10]SCENARIO1!AD15 -> 0 | I12: =[10]SCENARIO1!AE15 -> 0 | J12: 0 | K12: 0 | L12: 0 | M12: 0 | N12: =[10]SCENARIO1!AW15 -> 0 | O12: =[10]SCENARIO1!AY15 -> 0
A13: R3A | B13: =[10]SCENARIO1!BD16 -> 0 | C13: =[10]SCENARIO1!BE16 -> 0 | D13: =[10]SCENARIO1!BF16 -> 0 | E13: =[10]SCENARIO1!BG16 -> 0 | F13: =[10]SCENARIO1!AB16 -> 0 | G13: =[10]SCENARIO1!AC16 -> 0 | H13: =[10]SCENARIO1!AD16 -> 0 | I13: =[10]SCENARIO1!AE16 -> 0 | J13: 0 | K13: 0 | L13: 0 | M13: 0 | N13: =[10]SCENARIO1!AW16 -> 0 | O13: =[10]SCENARIO1!AY16 -> 0
A14: R3B | B14: =[10]SCENARIO1!BD17 -> 0 | C14: =[10]SCENARIO1!BE17 -> 0 | D14: =[10]SCENARIO1!BF17 -> 0 | E14: =[10]SCENARIO1!BG17 -> 0 | F14: =[10]SCENARIO1!AB17 -> 0 | G14: =[10]SCENARIO1!AC17 -> 0 | H14: =[10]SCENARIO1!AD17 -> 0 | I14: =[10]SCENARIO1!AE17 -> 0 | J14: 0 | K14: 0 | L14: 0 | M14: 0 | N14: =[10]SCENARIO1!AW17 -> 0 | O14: =[10]SCENARIO1!AY17 -> 0
A15: R3C | B15: =[10]SCENARIO1!BD18 -> 0 | C15: =[10]SCENARIO1!BE18 -> 0 | D15: =[10]SCENARIO1!BF18 -> 0 | E15: =[10]SCENARIO1!BG18 -> 0 | F15: =[10]SCENARIO1!AB18 -> 0 | G15: =[10]SCENARIO1!AC18 -> 0 | H15: =[10]SCENARIO1!AD18 -> 0 | I15: =[10]SCENARIO1!AE18 -> 0 | J15: 0 | K15: 0 | L15: 0 | M15: 0 | N15: =[10]SCENARIO1!AW18 -> 0 | O15: =[10]SCENARIO1!AY18 -> 0
A16: R3D | B16: =[10]SCENARIO1!BD19 -> 0 | C16: =[10]SCENARIO1!BE19 -> 0 | D16: =[10]SCENARIO1!BF19 -> 0 | E16: =[10]SCENARIO1!BG19 -> 0 | F16: =[10]SCENARIO1!AB19 -> 0 | G16: =[10]SCENARIO1!AC19 -> 0 | H16: =[10]SCENARIO1!AD19 -> 0 | I16: =[10]SCENARIO1!AE19 -> 0 | J16: 0 | K16: 0 | L16: 0 | M16: 0 | N16: =[10]SCENARIO1!AW19 -> 0 | O16: =[10]SCENARIO1!AY19 -> 0
A17: R4A | B17: =[10]SCENARIO1!BD20 -> 0 | C17: =[10]SCENARIO1!BE20 -> 0 | D17: =[10]SCENARIO1!BF20 -> 0 | E17: =[10]SCENARIO1!BG20 -> 0 | F17: =[10]SCENARIO1!AB20 -> 0 | G17: =[10]SCENARIO1!AC20 -> 0 | H17: =[10]SCENARIO1!AD20 -> 0 | I17: =[10]SCENARIO1!AE20 -> 0 | J17: 0 | K17: 0 | L17: 0 | M17: 0 | N17: =[10]SCENARIO1!AW20 -> 0 | O17: =[10]SCENARIO1!AY20 -> 0
A18: R4B | B18: =[10]SCENARIO1!BD21 -> 0 | C18: =[10]SCENARIO1!BE21 -> 0 | D18: =[10]SCENARIO1!BF21 -> 0 | E18: =[10]SCENARIO1!BG21 -> 0 | F18: =[10]SCENARIO1!AB21 -> 0 | G18: =[10]SCENARIO1!AC21 -> 0 | H18: =[10]SCENARIO1!AD21 -> 0 | I18: =[10]SCENARIO1!AE21 -> 0 | J18: 0 | K18: 0 | L18: 0 | M18: 0 | N18: =[10]SCENARIO1!AW21 -> 0 | O18: =[10]SCENARIO1!AY21 -> 0
A19: R4C | B19: =[10]SCENARIO1!BD22 -> 0 | C19: =[10]SCENARIO1!BE22 -> 0 | D19: =[10]SCENARIO1!BF22 -> 0 | E19: =[10]SCENARIO1!BG22 -> 0 | F19: =[10]SCENARIO1!AB22 -> 0 | G19: =[10]SCENARIO1!AC22 -> 0 | H19: =[10]SCENARIO1!AD22 -> 0 | I19: =[10]SCENARIO1!AE22 -> 0 | J19: 0 | K19: 0 | L19: 0 | M19: 0 | N19: =[10]SCENARIO1!AW22 -> 0 | O19: =[10]SCENARIO1!AY22 -> 0
A20: RM1A | B20: =[10]SCENARIO1!BD23 -> 93.89620857 | C20: =[10]SCENARIO1!BE23 -> 0 | D20: =[10]SCENARIO1!BF23 -> 85.2586146 | E20: =[10]SCENARIO1!BG23 -> 8.63759397 | F20: =[10]SCENARIO1!AB23 -> 0 | G20: =[10]SCENARIO1!AC23 -> 0 | H20: =[10]SCENARIO1!AD23 -> 0 | I20: =[10]SCENARIO1!AE23 -> 0 | J20: 93.89620857 | K20: 0 | L20: 85.2586146 | M20: 8.63759397 | N20: =[10]SCENARIO1!AW23 -> 7.895506 | O20: =[10]SCENARIO1!AY23 -> 0
A21: RM1B | B21: =[10]SCENARIO1!BD24 -> 0 | C21: =[10]SCENARIO1!BE24 -> 0 | D21: =[10]SCENARIO1!BF24 -> 0 | E21: =[10]SCENARIO1!BG24 -> 0 | F21: =[10]SCENARIO1!AB24 -> 0 | G21: =[10]SCENARIO1!AC24 -> 0 | H21: =[10]SCENARIO1!AD24 -> 0 | I21: =[10]SCENARIO1!AE24 -> 0 | J21: 0 | K21: 0 | L21: 0 | M21: 0 | N21: =[10]SCENARIO1!AW24 -> 0 | O21: =[10]SCENARIO1!AY24 -> 0
A22: RM2A | B22: =[10]SCENARIO1!BD25 -> 0 | C22: =[10]SCENARIO1!BE25 -> 0 | D22: =[10]SCENARIO1!BF25 -> 0 | E22: =[10]SCENARIO1!BG25 -> 0 | F22: =[10]SCENARIO1!AB25 -> 0 | G22: =[10]SCENARIO1!AC25 -> 0 | H22: =[10]SCENARIO1!AD25 -> 0 | I22: =[10]SCENARIO1!AE25 -> 0 | J22: 0 | K22: 0 | L22: 0 | M22: 0 | N22: =[10]SCENARIO1!AW25 -> 0 | O22: =[10]SCENARIO1!AY25 -> 0
A23: RM2B | B23: =[10]SCENARIO1!BD26 -> 0 | C23: =[10]SCENARIO1!BE26 -> 0 | D23: =[10]SCENARIO1!BF26 -> 0 | E23: =[10]SCENARIO1!BG26 -> 0 | F23: =[10]SCENARIO1!AB26 -> 0 | G23: =[10]SCENARIO1!AC26 -> 0 | H23: =[10]SCENARIO1!AD26 -> 0 | I23: =[10]SCENARIO1!AE26 -> 0 | J23: 0 | K23: 0 | L23: 0 | M23: 0 | N23: =[10]SCENARIO1!AW26 -> 0 | O23: =[10]SCENARIO1!AY26 -> 0
A24: RM3A | B24: =[10]SCENARIO1!BD27 -> 116.7720848 | C24: =[10]SCENARIO1!BE27 -> 108.92703 | D24: =[10]SCENARIO1!BF27 -> 5.43978142 | E24: =[10]SCENARIO1!BG27 -> 2.405273309 | F24: =[10]SCENARIO1!AB27 -> 0 | G24: =[10]SCENARIO1!AC27 -> 0 | H24: =[10]SCENARIO1!AD27 -> 0 | I24: =[10]SCENARIO1!AE27 -> 0 | J24: 116.7720848 | K24: 108.92703 | L24: 5.43978142 | M24: 2.405273309 | N24: =[10]SCENARIO1!AW27 -> 4.189102 | O24: =[10]SCENARIO1!AY27 -> 0
A25: RM4A | B25: =[10]SCENARIO1!BD28 -> 0 | C25: =[10]SCENARIO1!BE28 -> 0 | D25: =[10]SCENARIO1!BF28 -> 0 | E25: =[10]SCENARIO1!BG28 -> 0 | F25: =[10]SCENARIO1!AB28 -> 0 | G25: =[10]SCENARIO1!AC28 -> 0 | H25: =[10]SCENARIO1!AD28 -> 0 | I25: =[10]SCENARIO1!AE28 -> 0 | J25: 0 | K25: 0 | L25: 0 | M25: 0 | N25: =[10]SCENARIO1!AW28 -> 0 | O25: =[10]SCENARIO1!AY28 -> 0
A26: RM5A | B26: =[10]SCENARIO1!BD29 -> 0 | C26: =[10]SCENARIO1!BE29 -> 0 | D26: =[10]SCENARIO1!BF29 -> 0 | E26: =[10]SCENARIO1!BG29 -> 0 | F26: =[10]SCENARIO1!AB29 -> 0 | G26: =[10]SCENARIO1!AC29 -> 0 | H26: =[10]SCENARIO1!AD29 -> 0 | I26: =[10]SCENARIO1!AE29 -> 0 | J26: 0 | K26: 0 | L26: 0 | M26: 0 | N26: =[10]SCENARIO1!AW29 -> 0 | O26: =[10]SCENARIO1!AY29 -> 0
A27: MHP | B27: =[10]SCENARIO1!BD30 -> 0 | C27: =[10]SCENARIO1!BE30 -> 0 | D27: =[10]SCENARIO1!BF30 -> 0 | E27: =[10]SCENARIO1!BG30 -> 0 | F27: =[10]SCENARIO1!AB30 -> 0 | G27: =[10]SCENARIO1!AC30 -> 0 | H27: =[10]SCENARIO1!AD30 -> 0 | I27: =[10]SCENARIO1!AE30 -> 0 | J27: 0 | K27: 0 | L27: 0 | M27: 0 | N27: =[10]SCENARIO1!AW30 -> 0 | O27: =[10]SCENARIO1!AY30 -> 0
A28: MU1A | B28: =[10]SCENARIO1!BD31 -> 0 | C28: =[10]SCENARIO1!BE31 -> 0 | D28: =[10]SCENARIO1!BF31 -> 0 | E28: =[10]SCENARIO1!BG31 -> 0 | F28: =[10]SCENARIO1!AB31 -> 0 | G28: =[10]SCENARIO1!AC31 -> 0 | H28: =[10]SCENARIO1!AD31 -> 0 | I28: =[10]SCENARIO1!AE31 -> 0 | J28: 0 | K28: 0 | L28: 0 | M28: 0 | N28: =[10]SCENARIO1!AW31 -> 0 | O28: =[10]SCENARIO1!AY31 -> 0
A29: MU1B | B29: =[10]SCENARIO1!BD32 -> 0 | C29: =[10]SCENARIO1!BE32 -> 0 | D29: =[10]SCENARIO1!BF32 -> 0 | E29: =[10]SCENARIO1!BG32 -> 0 | F29: =[10]SCENARIO1!AB32 -> 0 | G29: =[10]SCENARIO1!AC32 -> 0 | H29: =[10]SCENARIO1!AD32 -> 0 | I29: =[10]SCENARIO1!AE32 -> 0 | J29: 0 | K29: 0 | L29: 0 | M29: 0 | N29: =[10]SCENARIO1!AW32 -> 0 | O29: =[10]SCENARIO1!AY32 -> 0
A30: MU1C | B30: =[10]SCENARIO1!BD33 -> 0 | C30: =[10]SCENARIO1!BE33 -> 0 | D30: =[10]SCENARIO1!BF33 -> 0 | E30: =[10]SCENARIO1!BG33 -> 0 | F30: =[10]SCENARIO1!AB33 -> 0 | G30: =[10]SCENARIO1!AC33 -> 0 | H30: =[10]SCENARIO1!AD33 -> 0 | I30: =[10]SCENARIO1!AE33 -> 0 | J30: 0 | K30: 0 | L30: 0 | M30: 0 | N30: =[10]SCENARIO1!AW33 -> 0 | O30: =[10]SCENARIO1!AY33 -> 0
A31: MU1D | B31: =[10]SCENARIO1!BD34 -> 0 | C31: =[10]SCENARIO1!BE34 -> 0 | D31: =[10]SCENARIO1!BF34 -> 0 | E31: =[10]SCENARIO1!BG34 -> 0 | F31: =[10]SCENARIO1!AB34 -> 0 | G31: =[10]SCENARIO1!AC34 -> 0 | H31: =[10]SCENARIO1!AD34 -> 0 | I31: =[10]SCENARIO1!AE34 -> 0 | J31: 0 | K31: 0 | L31: 0 | M31: 0 | N31: =[10]SCENARIO1!AW34 -> 0 | O31: =[10]SCENARIO1!AY34 -> 0
A32: MU2A | B32: =[10]SCENARIO1!BD35 -> 207.3757466 | C32: =[10]SCENARIO1!BE35 -> 79.89887441 | D32: =[10]SCENARIO1!BF35 -> 127.4768722 | E32: =[10]SCENARIO1!BG35 -> 0 | F32: =[10]SCENARIO1!AB35 -> 0 | G32: =[10]SCENARIO1!AC35 -> 0 | H32: =[10]SCENARIO1!AD35 -> 0 | I32: =[10]SCENARIO1!AE35 -> 0 | J32: 207.3757466 | K32: 79.89887441 | L32: 127.4768722 | M32: 0 | N32: =[10]SCENARIO1!AW35 -> 22.964137 | O32: =[10]SCENARIO1!AY35 -> 0
A33: MU2B | B33: =[10]SCENARIO1!BD36 -> 486.504089 | C33: =[10]SCENARIO1!BE36 -> 310.7643053 | D33: =[10]SCENARIO1!BF36 -> 175.7397836 | E33: =[10]SCENARIO1!BG36 -> 0 | F33: =[10]SCENARIO1!AB36 -> 0 | G33: =[10]SCENARIO1!AC36 -> 0 | H33: =[10]SCENARIO1!AD36 -> 0 | I33: =[10]SCENARIO1!AE36 -> 0 | J33: 486.504089 | K33: 310.7643053 | L33: 175.7397836 | M33: 0 | N33: =[10]SCENARIO1!AW36 -> 29.521599 | O33: =[10]SCENARIO1!AY36 -> 0
A34: MU3A | B34: =[10]SCENARIO1!BD37 -> 3012.808259 | C34: =[10]SCENARIO1!BE37 -> 1876.566548 | D34: =[10]SCENARIO1!BF37 -> 1136.241711 | E34: =[10]SCENARIO1!BG37 -> 0 | F34: =[10]SCENARIO1!AB37 -> 0 | G34: =[10]SCENARIO1!AC37 -> 0 | H34: =[10]SCENARIO1!AD37 -> 0 | I34: =[10]SCENARIO1!AE37 -> 0 | J34: 3012.808259 | K34: 1876.566548 | L34: 1136.241711 | M34: 0 | N34: =[10]SCENARIO1!AW37 -> 192.053106 | O34: =[10]SCENARIO1!AY37 -> 0
A35: MU4A | B35: =[10]SCENARIO1!BD38 -> 0 | C35: =[10]SCENARIO1!BE38 -> 0 | D35: =[10]SCENARIO1!BF38 -> 0 | E35: =[10]SCENARIO1!BG38 -> 0 | F35: =[10]SCENARIO1!AB38 -> 0 | G35: =[10]SCENARIO1!AC38 -> 0 | H35: =[10]SCENARIO1!AD38 -> 0 | I35: =[10]SCENARIO1!AE38 -> 0 | J35: =B35-F35 -> 0 | K35: 0 | L35: 0 | M35: 0 | N35: =[10]SCENARIO1!AW38 -> 0 | O35: =[10]SCENARIO1!AY38 -> 0
A36: MU4B | B36: =[10]SCENARIO1!BD39 -> 674.8168066 | C36: =[10]SCENARIO1!BE39 -> 674.8168066 | D36: =[10]SCENARIO1!BF39 -> 0 | E36: =[10]SCENARIO1!BG39 -> 0 | F36: =[10]SCENARIO1!AB39 -> 0 | G36: =[10]SCENARIO1!AC39 -> 0 | H36: =[10]SCENARIO1!AD39 -> 0 | I36: =[10]SCENARIO1!AE39 -> 0 | J36: 674.8168066 | K36: 674.8168066 | L36: 0 | M36: 0 | N36: =[10]SCENARIO1!AW39 -> 42.511599 | O36: =[10]SCENARIO1!AY39 -> 0
A37: MU5A | B37: =[10]SCENARIO1!BD40 -> 728.7152957 | C37: =[10]SCENARIO1!BE40 -> 728.7152957 | D37: =[10]SCENARIO1!BF40 -> 0 | E37: =[10]SCENARIO1!BG40 -> 0 | F37: =[10]SCENARIO1!AB40 -> 0 | G37: =[10]SCENARIO1!AC40 -> 0 | H37: =[10]SCENARIO1!AD40 -> 0 | I37: =[10]SCENARIO1!AE40 -> 0 | J37: 728.7152957 | K37: 728.7152957 | L37: 0 | M37: 0 | N37: =[10]SCENARIO1!AW40 -> 43.616301 | O37: =[10]SCENARIO1!AY40 -> 0
A38: MS1A | B38: =[10]SCENARIO1!BD41 -> 0 | C38: =[10]SCENARIO1!BE41 -> 0 | D38: =[10]SCENARIO1!BF41 -> 0 | E38: =[10]SCENARIO1!BG41 -> 0 | F38: =[10]SCENARIO1!AB41 -> 0 | G38: =[10]SCENARIO1!AC41 -> 0 | H38: =[10]SCENARIO1!AD41 -> 0 | I38: =[10]SCENARIO1!AE41 -> 0 | J38: 0 | K38: 0 | L38: 0 | M38: 0 | N38: =[10]SCENARIO1!AW41 -> 0 | O38: =[10]SCENARIO1!AY41 -> 0
A39: MS1B | B39: =[10]SCENARIO1!BD42 -> 0 | C39: =[10]SCENARIO1!BE42 -> 0 | D39: =[10]SCENARIO1!BF42 -> 0 | E39: =[10]SCENARIO1!BG42 -> 0 | F39: =[10]SCENARIO1!AB42 -> 0 | G39: =[10]SCENARIO1!AC42 -> 0 | H39: =[10]SCENARIO1!AD42 -> 0 | I39: =[10]SCENARIO1!AE42 -> 0 | J39: 0 | K39: 0 | L39: 0 | M39: 0 | N39: =[10]SCENARIO1!AW42 -> 0 | O39: =[10]SCENARIO1!AY42 -> 0
A40: MS2A | B40: =[10]SCENARIO1!BD43 -> 0 | C40: =[10]SCENARIO1!BE43 -> 0 | D40: =[10]SCENARIO1!BF43 -> 0 | E40: =[10]SCENARIO1!BG43 -> 0 | F40: =[10]SCENARIO1!AB43 -> 0 | G40: =[10]SCENARIO1!AC43 -> 0 | H40: =[10]SCENARIO1!AD43 -> 0 | I40: =[10]SCENARIO1!AE43 -> 0 | J40: 0 | K40: 0 | L40: 0 | M40: 0 | N40: =[10]SCENARIO1!AW43 -> 0 | O40: =[10]SCENARIO1!AY43 -> 0
A41: MS2B | B41: =[10]SCENARIO1!BD44 -> 0 | C41: =[10]SCENARIO1!BE44 -> 0 | D41: =[10]SCENARIO1!BF44 -> 0 | E41: =[10]SCENARIO1!BG44 -> 0 | F41: =[10]SCENARIO1!AB44 -> 0 | G41: =[10]SCENARIO1!AC44 -> 0 | H41: =[10]SCENARIO1!AD44 -> 0 | I41: =[10]SCENARIO1!AE44 -> 0 | J41: 0 | K41: 0 | L41: 0 | M41: 0 | N41: =[10]SCENARIO1!AW44 -> 0 | O41: =[10]SCENARIO1!AY44 -> 0
A42: MS2C | B42: =[10]SCENARIO1!BD45 -> 0 | C42: =[10]SCENARIO1!BE45 -> 0 | D42: =[10]SCENARIO1!BF45 -> 0 | E42: =[10]SCENARIO1!BG45 -> 0 | F42: =[10]SCENARIO1!AB45 -> 0 | G42: =[10]SCENARIO1!AC45 -> 0 | H42: =[10]SCENARIO1!AD45 -> 0 | I42: =[10]SCENARIO1!AE45 -> 0 | J42: 0 | K42: 0 | L42: 0 | M42: 0 | N42: =[10]SCENARIO1!AW45 -> 0 | O42: =[10]SCENARIO1!AY45 -> 0
A43: MS3A | B43: =[10]SCENARIO1!BD46 -> 0 | C43: =[10]SCENARIO1!BE46 -> 0 | D43: =[10]SCENARIO1!BF46 -> 0 | E43: =[10]SCENARIO1!BG46 -> 0 | F43: =[10]SCENARIO1!AB46 -> 0 | G43: =[10]SCENARIO1!AC46 -> 0 | H43: =[10]SCENARIO1!AD46 -> 0 | I43: =[10]SCENARIO1!AE46 -> 0 | J43: 0 | K43: 0 | L43: 0 | M43: 0 | N43: =[10]SCENARIO1!AW46 -> 0 | O43: =[10]SCENARIO1!AY46 -> 0
A44: MS3B | B44: =[10]SCENARIO1!BD47 -> 0 | C44: =[10]SCENARIO1!BE47 -> 0 | D44: =[10]SCENARIO1!BF47 -> 0 | E44: =[10]SCENARIO1!BG47 -> 0 | F44: =[10]SCENARIO1!AB47 -> 0 | G44: =[10]SCENARIO1!AC47 -> 0 | H44: =[10]SCENARIO1!AD47 -> 0 | I44: =[10]SCENARIO1!AE47 -> 0 | J44: 0 | K44: 0 | L44: 0 | M44: 0 | N44: =[10]SCENARIO1!AW47 -> 0 | O44: =[10]SCENARIO1!AY47 -> 0
A45: UC | B45: =[10]SCENARIO1!BD48 -> 0 | C45: =[10]SCENARIO1!BE48 -> 0 | D45: =[10]SCENARIO1!BF48 -> 0 | E45: =[10]SCENARIO1!BG48 -> 0 | F45: =[10]SCENARIO1!AB48 -> 0 | G45: =[10]SCENARIO1!AC48 -> 0 | H45: =[10]SCENARIO1!AD48 -> 0 | I45: =[10]SCENARIO1!AE48 -> 0 | J45: 0 | K45: 0 | L45: 0 | M45: 0 | N45: =[10]SCENARIO1!AW48 -> 0 | O45: =[10]SCENARIO1!AY48 -> 0
A46: CC40 | B46: =[10]SCENARIO1!BD49 -> 0 | C46: =[10]SCENARIO1!BE49 -> 0 | D46: =[10]SCENARIO1!BF49 -> 0 | E46: =[10]SCENARIO1!BG49 -> 0 | F46: =[10]SCENARIO1!AB49 -> 0 | G46: =[10]SCENARIO1!AC49 -> 0 | H46: =[10]SCENARIO1!AD49 -> 0 | I46: =[10]SCENARIO1!AE49 -> 0 | J46: 0 | K46: 0 | L46: 0 | M46: 0 | N46: =[10]SCENARIO1!AW49 -> 0 | O46: =[10]SCENARIO1!AY49 -> 0
A47: CC60 | B47: =[10]SCENARIO1!BD50 -> 0 | C47: =[10]SCENARIO1!BE50 -> 0 | D47: =[10]SCENARIO1!BF50 -> 0 | E47: =[10]SCENARIO1!BG50 -> 0 | F47: =[10]SCENARIO1!AB50 -> 0 | G47: =[10]SCENARIO1!AC50 -> 0 | H47: =[10]SCENARIO1!AD50 -> 0 | I47: =[10]SCENARIO1!AE50 -> 0 | J47: 0 | K47: 0 | L47: 0 | M47: 0 | N47: =[10]SCENARIO1!AW50 -> 0 | O47: =[10]SCENARIO1!AY50 -> 0
A48: CC80 | B48: =[10]SCENARIO1!BD51 -> 0 | C48: =[10]SCENARIO1!BE51 -> 0 | D48: =[10]SCENARIO1!BF51 -> 0 | E48: =[10]SCENARIO1!BG51 -> 0 | F48: =[10]SCENARIO1!AB51 -> 0 | G48: =[10]SCENARIO1!AC51 -> 0 | H48: =[10]SCENARIO1!AD51 -> 0 | I48: =[10]SCENARIO1!AE51 -> 0 | J48: 0 | K48: 0 | L48: 0 | M48: 0 | N48: =[10]SCENARIO1!AW51 -> 0 | O48: =[10]SCENARIO1!AY51 -> 0
A49: CC120 | B49: =[10]SCENARIO1!BD52 -> 0 | C49: =[10]SCENARIO1!BE52 -> 0 | D49: =[10]SCENARIO1!BF52 -> 0 | E49: =[10]SCENARIO1!BG52 -> 0 | F49: =[10]SCENARIO1!AB52 -> 0 | G49: =[10]SCENARIO1!AC52 -> 0 | H49: =[10]SCENARIO1!AD52 -> 0 | I49: =[10]SCENARIO1!AE52 -> 0 | J49: 0 | K49: 0 | L49: 0 | M49: 0 | N49: =[10]SCENARIO1!AW52 -> 0 | O49: =[10]SCENARIO1!AY52 -> 0
A50: DC | B50: =[10]SCENARIO1!BD53 -> 0 | C50: =[10]SCENARIO1!BE53 -> 0 | D50: =[10]SCENARIO1!BF53 -> 0 | E50: =[10]SCENARIO1!BG53 -> 0 | F50: =[10]SCENARIO1!AB53 -> 0 | G50: =[10]SCENARIO1!AC53 -> 0 | H50: =[10]SCENARIO1!AD53 -> 0 | I50: =[10]SCENARIO1!AE53 -> 0 | J50: 0 | K50: 0 | L50: 0 | M50: 0 | N50: =[10]SCENARIO1!AW53 -> 0 | O50: =[10]SCENARIO1!AY53 -> 0
A51: CR | B51: =[10]SCENARIO1!BD54 -> 0 | C51: =[10]SCENARIO1!BE54 -> 0 | D51: =[10]SCENARIO1!BF54 -> 0 | E51: =[10]SCENARIO1!BG54 -> 0 | F51: =[10]SCENARIO1!AB54 -> 0 | G51: =[10]SCENARIO1!AC54 -> 0 | H51: =[10]SCENARIO1!AD54 -> 0 | I51: =[10]SCENARIO1!AE54 -> 0 | J51: 0 | K51: 0 | L51: 0 | M51: 0 | N51: =[10]SCENARIO1!AW54 -> 0 | O51: =[10]SCENARIO1!AY54 -> 0
A52: CW | B52: =[10]SCENARIO1!BD55 -> 0 | C52: =[10]SCENARIO1!BE55 -> 0 | D52: =[10]SCENARIO1!BF55 -> 0 | E52: =[10]SCENARIO1!BG55 -> 0 | F52: =[10]SCENARIO1!AB55 -> 0 | G52: =[10]SCENARIO1!AC55 -> 0 | H52: =[10]SCENARIO1!AD55 -> 0 | I52: =[10]SCENARIO1!AE55 -> 0 | J52: 0 | K52: 0 | L52: 0 | M52: 0 | N52: =[10]SCENARIO1!AW55 -> 0 | O52: =[10]SCENARIO1!AY55 -> 0
A53: IF | B53: =[10]SCENARIO1!BD56 -> 62.48548438 | C53: =[10]SCENARIO1!BE56 -> 0 | D53: =[10]SCENARIO1!BF56 -> 0 | E53: =[10]SCENARIO1!BG56 -> 62.48548438 | F53: =[10]SCENARIO1!AB56 -> 0 | G53: =[10]SCENARIO1!AC56 -> 0 | H53: =[10]SCENARIO1!AD56 -> 0 | I53: =[10]SCENARIO1!AE56 -> 0 | J53: 62.48548438 | K53: 0 | L53: 0 | M53: 62.48548438 | N53: =[10]SCENARIO1!AW56 -> 46.21172 | O53: =[10]SCENARIO1!AY56 -> 0
A54: IG | B54: =[10]SCENARIO1!BD57 -> 0 | C54: =[10]SCENARIO1!BE57 -> 0 | D54: =[10]SCENARIO1!BF57 -> 0 | E54: =[10]SCENARIO1!BG57 -> 0 | F54: =[10]SCENARIO1!AB57 -> 0 | G54: =[10]SCENARIO1!AC57 -> 0 | H54: =[10]SCENARIO1!AD57 -> 0 | I54: =[10]SCENARIO1!AE57 -> 0 | J54: 0 | K54: 0 | L54: 0 | M54: 0 | N54: =[10]SCENARIO1!AW57 -> 0 | O54: =[10]SCENARIO1!AY57 -> 0
A55: IH | B55: =[10]SCENARIO1!BD58 -> 0 | C55: =[10]SCENARIO1!BE58 -> 0 | D55: =[10]SCENARIO1!BF58 -> 0 | E55: =[10]SCENARIO1!BG58 -> 0 | F55: =[10]SCENARIO1!AB58 -> 0 | G55: =[10]SCENARIO1!AC58 -> 0 | H55: =[10]SCENARIO1!AD58 -> 0 | I55: =[10]SCENARIO1!AE58 -> 0 | J55: 0 | K55: 0 | L55: 0 | M55: 0 | N55: =[10]SCENARIO1!AW58 -> 0 | O55: =[10]SCENARIO1!AY58 -> 0
A56: R&D | B56: =[10]SCENARIO1!BD59 -> 0 | C56: =[10]SCENARIO1!BE59 -> 0 | D56: =[10]SCENARIO1!BF59 -> 0 | E56: =[10]SCENARIO1!BG59 -> 0 | F56: =[10]SCENARIO1!AB59 -> 0 | G56: =[10]SCENARIO1!AC59 -> 0 | H56: =[10]SCENARIO1!AD59 -> 0 | I56: =[10]SCENARIO1!AE59 -> 0 | J56: 0 | K56: 0 | L56: 0 | M56: 0 | N56: =[10]SCENARIO1!AW59 -> 10.560677 | O56: =[10]SCENARIO1!AY59 -> 0
A57: P | B57: =[10]SCENARIO1!BD60 -> 0 | C57: =[10]SCENARIO1!BE60 -> 0 | D57: =[10]SCENARIO1!BF60 -> 0 | E57: =[10]SCENARIO1!BG60 -> 0 | F57: =[10]SCENARIO1!AB60 -> 0 | G57: =[10]SCENARIO1!AC60 -> 0 | H57: =[10]SCENARIO1!AD60 -> 0 | I57: =[10]SCENARIO1!AE60 -> 0 | J57: 0 | K57: 0 | L57: 0 | M57: 0 | N57: =[10]SCENARIO1!AW60 -> 0.613255 | O57: =[10]SCENARIO1!AY60 -> 0
A58: PUD | B58: =[10]SCENARIO1!BD61 -> 0 | C58: =[10]SCENARIO1!BE61 -> 0 | D58: =[10]SCENARIO1!BF61 -> 0 | E58: =[10]SCENARIO1!BG61 -> 0 | F58: =[10]SCENARIO1!AB61 -> 0 | G58: =[10]SCENARIO1!AC61 -> 0 | H58: =[10]SCENARIO1!AD61 -> 0 | I58: =[10]SCENARIO1!AE61 -> 0 | J58: 0 | K58: 0 | L58: 0 | M58: 0 | N58: =[10]SCENARIO1!AW61 -> 704.960625 | O58: =[10]SCENARIO1!AY61 -> 0
A59: ERC | B59: =[10]SCENARIO1!BD62 -> 0 | C59: =[10]SCENARIO1!BE62 -> 0 | D59: =[10]SCENARIO1!BF62 -> 0 | E59: =[10]SCENARIO1!BG62 -> 0 | F59: =[10]SCENARIO1!AB62 -> 0 | G59: =[10]SCENARIO1!AC62 -> 0 | H59: =[10]SCENARIO1!AD62 -> 0 | I59: =[10]SCENARIO1!AE62 -> 0 | J59: 0 | K59: 0 | L59: 0 | M59: 0 | N59: =[10]SCENARIO1!AW62 -> 0 | O59: =[10]SCENARIO1!AY62 -> 0
A60: NBG | B60: =[10]SCENARIO1!BD63 -> 0 | C60: =[10]SCENARIO1!BE63 -> 0 | D60: =[10]SCENARIO1!BF63 -> 0 | E60: =[10]SCENARIO1!BG63 -> 0 | F60: =[10]SCENARIO1!AB63 -> 0 | G60: =[10]SCENARIO1!AC63 -> 0 | H60: =[10]SCENARIO1!AD63 -> 0 | I60: =[10]SCENARIO1!AE63 -> 0 | J60: 0 | K60: 0 | L60: 0 | M60: 0 | N60: =[10]SCENARIO1!AW63 -> 0 | O60: =[10]SCENARIO1!AY63 -> 0
A61: UNZ | B61: =[10]SCENARIO1!BD64 -> 0 | C61: =[10]SCENARIO1!BE64 -> 0 | D61: =[10]SCENARIO1!BF64 -> 0 | E61: =[10]SCENARIO1!BG64 -> 0 | F61: =[10]SCENARIO1!AB64 -> 0 | G61: =[10]SCENARIO1!AC64 -> 0 | H61: =[10]SCENARIO1!AD64 -> 0 | I61: =[10]SCENARIO1!AE64 -> 0 | J61: 0 | K61: 0 | L61: 0 | M61: 0 | N61: =[10]SCENARIO1!AW64 -> 0 | O61: =[10]SCENARIO1!AY64 -> 0
A62: TOD | B62: =[10]SCENARIO1!BD65 -> 0 | C62: =[10]SCENARIO1!BE65 -> 0 | D62: =[10]SCENARIO1!BF65 -> 0 | E62: =[10]SCENARIO1!BG65 -> 0 | F62: =[10]SCENARIO1!AB65 -> 0 | G62: =[10]SCENARIO1!AC65 -> 0 | H62: =[10]SCENARIO1!AD65 -> 0 | I62: =[10]SCENARIO1!AE65 -> 0 | J62: 0 | K62: 0 | L62: 0 | M62: 0 | N62: =[10]SCENARIO1!AW65 -> 0 | O62: =[10]SCENARIO1!AY65 -> 0
A63: Whisper Valley PUD | B63: =[10]SCENARIO1!BD66 -> 0 | C63: =[10]SCENARIO1!BE66 -> 0 | D63: =[10]SCENARIO1!BF66 -> 0 | E63: =[10]SCENARIO1!BG66 -> 0 | F63: =[10]SCENARIO1!AB66 -> 0 | G63: =[10]SCENARIO1!AC66 -> 0 | H63: =[10]SCENARIO1!AD66 -> 0 | I63: =[10]SCENARIO1!AE66 -> 0 | J63: 0 | K63: 0 | L63: 0 | M63: 0 | N63: =[10]SCENARIO1!AW66 -> 0 | O63: =[10]SCENARIO1!AY66 -> 0
A64: Wildhorse Ranch PUD | B64: =[10]SCENARIO1!BD67 -> 0 | C64: =[10]SCENARIO1!BE67 -> 0 | D64: =[10]SCENARIO1!BF67 -> 0 | E64: =[10]SCENARIO1!BG67 -> 0 | F64: =[10]SCENARIO1!AB67 -> 0 | G64: =[10]SCENARIO1!AC67 -> 0 | H64: =[10]SCENARIO1!AD67 -> 0 | I64: =[10]SCENARIO1!AE67 -> 0 | J64: 0 | K64: 0 | L64: 0 | M64: 0 | N64: =[10]SCENARIO1!AW67 -> 0 | O64: =[10]SCENARIO1!AY67 -> 0
A65: Waters Edge PUD | B65: =[10]SCENARIO1!BD68 -> 0 | C65: =[10]SCENARIO1!BE68 -> 0 | D65: =[10]SCENARIO1!BF68 -> 0 | E65: =[10]SCENARIO1!BG68 -> 0 | F65: =[10]SCENARIO1!AB68 -> 0 | G65: =[10]SCENARIO1!AC68 -> 0 | H65: =[10]SCENARIO1!AD68 -> 0 | I65: =[10]SCENARIO1!AE68 -> 0 | J65: 0 | K65: 0 | L65: 0 | M65: 0 | N65: =[10]SCENARIO1!AW68 -> 0 | O65: =[10]SCENARIO1!AY68 -> 0
A66: Goodnight Ranch PUD | B66: =[10]SCENARIO1!BD69 -> 0 | C66: =[10]SCENARIO1!BE69 -> 0 | D66: =[10]SCENARIO1!BF69 -> 0 | E66: =[10]SCENARIO1!BG69 -> 0 | F66: =[10]SCENARIO1!AB69 -> 0 | G66: =[10]SCENARIO1!AC69 -> 0 | H66: =[10]SCENARIO1!AD69 -> 0 | I66: =[10]SCENARIO1!AE69 -> 0 | J66: 0 | K66: 0 | L66: 0 | M66: 0 | N66: =[10]SCENARIO1!AW69 -> 0 | O66: =[10]SCENARIO1!AY69 -> 0
A67: UNO | B67: =[10]SCENARIO1!BD70 -> 0 | C67: =[10]SCENARIO1!BE70 -> 0 | D67: =[10]SCENARIO1!BF70 -> 0 | E67: =[10]SCENARIO1!BG70 -> 0 | F67: =[10]SCENARIO1!AB70 -> 0 | G67: =[10]SCENARIO1!AC70 -> 0 | H67: =[10]SCENARIO1!AD70 -> 0 | I67: =[10]SCENARIO1!AE70 -> 0 | J67: =B67-F67 -> 0 | K67: 0 | L67: 0 | M67: 0 | N67: =[10]SCENARIO1!AW70 -> 0 | O67: =[10]SCENARIO1!AY70 -> 0
A68: Estancia PUD | B68: =[10]SCENARIO1!BD71 -> 0 | C68: =[10]SCENARIO1!BE71 -> 0 | D68: =[10]SCENARIO1!BF71 -> 0 | E68: =[10]SCENARIO1!BG71 -> 0 | F68: =[10]SCENARIO1!AB71 -> 0 | G68: =[10]SCENARIO1!AC71 -> 0 | H68: =[10]SCENARIO1!AD71 -> 0 | I68: =[10]SCENARIO1!AE71 -> 0 | J68: 0 | K68: 0 | L68: 0 | M68: 0 | N68: =[10]SCENARIO1!AW71 -> 0 | O68: =[10]SCENARIO1!AY71 -> 0
A69: TOD - Medium Density Residential (TODMDR) | B69: =[10]SCENARIO1!BD72 -> 0 | C69: =[10]SCENARIO1!BE72 -> 0 | D69: =[10]SCENARIO1!BF72 -> 0 | E69: =[10]SCENARIO1!BG72 -> 0 | F69: =[10]SCENARIO1!AB72 -> 0 | G69: =[10]SCENARIO1!AC72 -> 0 | H69: =[10]SCENARIO1!AD72 -> 0 | I69: =[10]SCENARIO1!AE72 -> 0 | J69: 0 | K69: 0 | L69: 0 | M69: 0 | N69: =[10]SCENARIO1!AW72 -> 0 | O69: =[10]SCENARIO1!AY72 -> 0
A70: TOD – Low Density Residential (TODLDR) | B70: =[10]SCENARIO1!BD73 -> 0 | C70: =[10]SCENARIO1!BE73 -> 0 | D70: =[10]SCENARIO1!BF73 -> 0 | E70: =[10]SCENARIO1!BG73 -> 0 | F70: =[10]SCENARIO1!AB73 -> 0 | G70: =[10]SCENARIO1!AC73 -> 0 | H70: =[10]SCENARIO1!AD73 -> 0 | I70: =[10]SCENARIO1!AE73 -> 0 | J70: 0 | K70: 0 | L70: 0 | M70: 0 | N70: =[10]SCENARIO1!AW73 -> 0 | O70: =[10]SCENARIO1!AY73 -> 0
A71: TOD – TOD Mixed Use | B71: =[10]SCENARIO1!BD74 -> 0 | C71: =[10]SCENARIO1!BE74 -> 0 | D71: =[10]SCENARIO1!BF74 -> 0 | E71: =[10]SCENARIO1!BG74 -> 0 | F71: =[10]SCENARIO1!AB74 -> 0 | G71: =[10]SCENARIO1!AC74 -> 0 | H71: =[10]SCENARIO1!AD74 -> 0 | I71: =[10]SCENARIO1!AE74 -> 0 | J71: 0 | K71: 0 | L71: 0 | M71: 0 | N71: =[10]SCENARIO1!AW74 -> 0 | O71: =[10]SCENARIO1!AY74 -> 0
A72: TOD – Corridor Mixed Use (TODCMU) | B72: =[10]SCENARIO1!BD75 -> 0 | C72: =[10]SCENARIO1!BE75 -> 0 | D72: =[10]SCENARIO1!BF75 -> 0 | E72: =[10]SCENARIO1!BG75 -> 0 | F72: =[10]SCENARIO1!AB75 -> 0 | G72: =[10]SCENARIO1!AC75 -> 0 | H72: =[10]SCENARIO1!AD75 -> 0 | I72: =[10]SCENARIO1!AE75 -> 0 | J72: 0 | K72: 0 | L72: 0 | M72: 0 | N72: =[10]SCENARIO1!AW75 -> 0 | O72: =[10]SCENARIO1!AY75 -> 0
A73: South Shore PUD | B73: =[10]SCENARIO1!BD76 -> 0 | C73: =[10]SCENARIO1!BE76 -> 0 | D73: =[10]SCENARIO1!BF76 -> 0 | E73: =[10]SCENARIO1!BG76 -> 0 | F73: =[10]SCENARIO1!AB76 -> 0 | G73: =[10]SCENARIO1!AC76 -> 0 | H73: =[10]SCENARIO1!AD76 -> 0 | I73: =[10]SCENARIO1!AE76 -> 0 | J73: 0 | K73: 0 | L73: 0 | M73: 0 | N73: =[10]SCENARIO1!AW76 -> 0 | O73: =[10]SCENARIO1!AY76 -> 0
A74: Total | B74: =SUM(B3:B73) -> 6757.520909 | C74: =SUM(C3:C73) -> 3779.68886 | D74: 1553.745967 | E74: =SUM(E3:E73) -> 1424.086083 | F74: =SUM(F3:F73) -> 0 | G74: =SUM(G3:G73) -> 0 | H74: 0 | I74: =SUM(I3:I73) -> 0 | J74: =SUM(J3:J73) -> 6757.520909 | K74: =SUM(K3:K73) -> 3779.68886 | L74: =SUM(L3:L73) -> 1553.745967 | M74: 1424.086083 | N74: =SUM(N3:N73) -> 1646.470935 | O74: 0

Sheet Draft 2 CD 7
B1: New | F1: Units assumed to redevelop | J1: Net Growth | N1: Acres
A2: CodeNEXT2 | B2: Units | C2: Multifamily | D2: Townhome | E2: Single Family | F2: Units | G2: Multifamily | H2: Townhome | I2: Single Family | J2: Units | K2: Multifamily | L2: Townhome | M2: Single Family | N2: Vacant Developed | O2: Developed Redeveloped
A3: Rural Residential | B3: =[11]SCENARIO1!BD6 -> 42.15234437 | C3: =[11]SCENARIO1!BE6 -> 0 | D3: =[11]SCENARIO1!BF6 -> 0 | E3: =[11]SCENARIO1!BG6 -> 42.15234437 | F3: =[11]SCENARIO1!AB6 -> 0 | G3: =[11]SCENARIO1!AC6 -> 0 | H3: =[11]SCENARIO1!AD6 -> 0 | I3: =[11]SCENARIO1!AE6 -> 0 | J3: =B3-F3 -> 42.15234437 | K3: 0 | L3: 0 | M3: 42.15234437 | N3: =[11]SCENARIO1!AW6 -> 74.600704 | O3: =[11]SCENARIO1!AY6 -> 0
A4: Lake Austin | B4: =[11]SCENARIO1!BD7 -> 0 | C4: =[11]SCENARIO1!BE7 -> 0 | D4: =[11]SCENARIO1!BF7 -> 0 | E4: =[11]SCENARIO1!BG7 -> 0 | F4: =[11]SCENARIO1!AB7 -> 0 | G4: =[11]SCENARIO1!AC7 -> 0 | H4: =[11]SCENARIO1!AD7 -> 0 | I4: =[11]SCENARIO1!AE7 -> 0 | J4: 0 | K4: 0 | L4: 0 | M4: 0 | N4: =[11]SCENARIO1!AW7 -> 0 | O4: =[11]SCENARIO1!AY7 -> 0
A5: R1A | B5: =[11]SCENARIO1!BD8 -> 7.514870679 | C5: =[11]SCENARIO1!BE8 -> 0 | D5: =[11]SCENARIO1!BF8 -> 0 | E5: =[11]SCENARIO1!BG8 -> 7.514870679 | F5: =[11]SCENARIO1!AB8 -> 0 | G5: =[11]SCENARIO1!AC8 -> 0 | H5: =[11]SCENARIO1!AD8 -> 0 | I5: =[11]SCENARIO1!AE8 -> 0 | J5: 7.514870679 | K5: 0 | L5: 0 | M5: 7.514870679 | N5: =[11]SCENARIO1!AW8 -> 3.810911 | O5: =[11]SCENARIO1!AY8 -> 0
A6: R1B | B6: =[11]SCENARIO1!BD9 -> 63.43018111 | C6: =[11]SCENARIO1!BE9 -> 0 | D6: =[11]SCENARIO1!BF9 -> 0 | E6: =[11]SCENARIO1!BG9 -> 63.43018111 | F6: =[11]SCENARIO1!AB9 -> 0 | G6: =[11]SCENARIO1!AC9 -> 0 | H6: =[11]SCENARIO1!AD9 -> 0 | I6: =[11]SCENARIO1!AE9 -> 0 | J6: 63.43018111 | K6: 0 | L6: 0 | M6: 63.43018111 | N6: =[11]SCENARIO1!AW9 -> 16.656775 | O6: =[11]SCENARIO1!AY9 -> 0.938714
A7: R1C | B7: =[11]SCENARIO1!BD10 -> 0 | C7: =[11]SCENARIO1!BE10 -> 0 | D7: =[11]SCENARIO1!BF10 -> 0 | E7: =[11]SCENARIO1!BG10 -> 0 | F7: =[11]SCENARIO1!AB10 -> 0 | G7: =[11]SCENARIO1!AC10 -> 0 | H7: =[11]SCENARIO1!AD10 -> 0 | I7: =[11]SCENARIO1!AE10 -> 0 | J7: 0 | K7: 0 | L7: 0 | M7: 0 | N7: =[11]SCENARIO1!AW10 -> 0 | O7: =[11]SCENARIO1!AY10 -> 0
A8: R2A | B8: =[11]SCENARIO1!BD11 -> 1.723641363 | C8: =[11]SCENARIO1!BE11 -> 0 | D8: =[11]SCENARIO1!BF11 -> 0.1892977188 | E8: =[11]SCENARIO1!BG11 -> 1.534343644 | F8: =[11]SCENARIO1!AB11 -> 0 | G8: =[11]SCENARIO1!AC11 -> 0 | H8: =[11]SCENARIO1!AD11 -> 0 | I8: =[11]SCENARIO1!AE11 -> 0 | J8: 1.723641363 | K8: 0 | L8: 0.1892977188 | M8: 1.534343644 | N8: =[11]SCENARIO1!AW11 -> 0.456158 | O8: =[11]SCENARIO1!AY11 -> 0
A9: R2B | B9: =[11]SCENARIO1!BD12 -> 4.36286576 | C9: =[11]SCENARIO1!BE12 -> 0 | D9: =[11]SCENARIO1!BF12 -> 0.9043587112 | E9: =[11]SCENARIO1!BG12 -> 3.458507049 | F9: =[11]SCENARIO1!AB12 -> 0 | G9: =[11]SCENARIO1!AC12 -> 0 | H9: =[11]SCENARIO1!AD12 -> 0 | I9: =[11]SCENARIO1!AE12 -> 0 | J9: 4.36286576 | K9: 0 | L9: 0.9043587112 | M9: 3.458507049 | N9: =[11]SCENARIO1!AW12 -> 1.089634 | O9: =[11]SCENARIO1!AY12 -> 0
A10: R2C | B10: =[11]SCENARIO1!BD13 -> 0 | C10: =[11]SCENARIO1!BE13 -> 0 | D10: =[11]SCENARIO1!BF13 -> 0 | E10: =[11]SCENARIO1!BG13 -> 0 | F10: =[11]SCENARIO1!AB13 -> 0 | G10: =[11]SCENARIO1!AC13 -> 0 | H10: =[11]SCENARIO1!AD13 -> 0 | I10: =[11]SCENARIO1!AE13 -> 0 | J10: 0 | K10: 0 | L10: 0 | M10: 0 | N10: =[11]SCENARIO1!AW13 -> 0 | O10: =[11]SCENARIO1!AY13 -> 0
A11: R2D | B11: =[11]SCENARIO1!BD14 -> 747.1696124 | C11: =[11]SCENARIO1!BE14 -> 0 | D11: =[11]SCENARIO1!BF14 -> 0 | E11: =[11]SCENARIO1!BG14 -> 747.1696124 | F11: =[11]SCENARIO1!AB14 -> 0 | G11: =[11]SCENARIO1!AC14 -> 0 | H11: =[11]SCENARIO1!AD14 -> 0 | I11: =[11]SCENARIO1!AE14 -> 0 | J11: 747.1696124 | K11: 0 | L11: 0 | M11: 747.1696124 | N11: =[11]SCENARIO1!AW14 -> 104.952569 | O11: =[11]SCENARIO1!AY14 -> 0
A12: R2E | B12: =[11]SCENARIO1!BD15 -> 0 | C12: =[11]SCENARIO1!BE15 -> 0 | D12: =[11]SCENARIO1!BF15 -> 0 | E12: =[11]SCENARIO1!BG15 -> 0 | F12: =[11]SCENARIO1!AB15 -> 0 | G12: =[11]SCENARIO1!AC15 -> 0 | H12: =[11]SCENARIO1!AD15 -> 0 | I12: =[11]SCENARIO1!AE15 -> 0 | J12: 0 | K12: 0 | L12: 0 | M12: 0 | N12: =[11]SCENARIO1!AW15 -> 0 | O12: =[11]SCENARIO1!AY15 -> 0
A13: R3A | B13: =[11]SCENARIO1!BD16 -> 7.60423659 | C13: =[11]SCENARIO1!BE16 -> 0 | D13: =[11]SCENARIO1!BF16 -> 2.53474553 | E13: =[11]SCENARIO1!BG16 -> 5.06949106 | F13: =[11]SCENARIO1!AB16 -> 0 | G13: =[11]SCENARIO1!AC16 -> 0 | H13: =[11]SCENARIO1!AD16 -> 0 | I13: =[11]SCENARIO1!AE16 -> 0 | J13: 7.60423659 | K13: 0 | L13: 2.53474553 | M13: 5.06949106 | N13: =[11]SCENARIO1!AW16 -> 1.621483 | O13: =[11]SCENARIO1!AY16 -> 0
A14: R3B | B14: =[11]SCENARIO1!BD17 -> 0 | C14: =[11]SCENARIO1!BE17 -> 0 | D14: =[11]SCENARIO1!BF17 -> 0 | E14: =[11]SCENARIO1!BG17 -> 0 | F14: =[11]SCENARIO1!AB17 -> 0 | G14: =[11]SCENARIO1!AC17 -> 0 | H14: =[11]SCENARIO1!AD17 -> 0 | I14: =[11]SCENARIO1!AE17 -> 0 | J14: 0 | K14: 0 | L14: 0 | M14: 0 | N14: =[11]SCENARIO1!AW17 -> 0 | O14: =[11]SCENARIO1!AY17 -> 0
A15: R3C | B15: =[11]SCENARIO1!BD18 -> 20.52371169 | C15: =[11]SCENARIO1!BE18 -> 0 | D15: =[11]SCENARIO1!BF18 -> 11.66120647 | E15: =[11]SCENARIO1!BG18 -> 8.862505225 | F15: =[11]SCENARIO1!AB18 -> 1 | G15: =[11]SCENARIO1!AC18 -> 0 | H15: =[11]SCENARIO1!AD18 -> 0 | I15: =[11]SCENARIO1!AE18 -> 1 | J15: 19.52371169 | K15: 0 | L15: 11.66120647 | M15: 7.862505225 | N15: =[11]SCENARIO1!AW18 -> 2.125803 | O15: =[11]SCENARIO1!AY18 -> 0.2913
A16: R3D | B16: =[11]SCENARIO1!BD19 -> 0 | C16: =[11]SCENARIO1!BE19 -> 0 | D16: =[11]SCENARIO1!BF19 -> 0 | E16: =[11]SCENARIO1!BG19 -> 0 | F16: =[11]SCENARIO1!AB19 -> 0 | G16: =[11]SCENARIO1!AC19 -> 0 | H16: =[11]SCENARIO1!AD19 -> 0 | I16: =[11]SCENARIO1!AE19 -> 0 | J16: 0 | K16: 0 | L16: 0 | M16: 0 | N16: =[11]SCENARIO1!AW19 -> 0 | O16: =[11]SCENARIO1!AY19 -> 0
A17: R4A | B17: =[11]SCENARIO1!BD20 -> 19.06172717 | C17: =[11]SCENARIO1!BE20 -> 11.91357948 | D17: =[11]SCENARIO1!BF20 -> 4.765431791 | E17: =[11]SCENARIO1!BG20 -> 2.382715896 | F17: =[11]SCENARIO1!AB20 -> 1 | G17: =[11]SCENARIO1!AC20 -> 0 | H17: =[11]SCENARIO1!AD20 -> 0 | I17: =[11]SCENARIO1!AE20 -> 1 | J17: 18.06172717 | K17: 11.91357948 | L17: 4.765431791 | M17: 1.382715896 | N17: =[11]SCENARIO1!AW20 -> 0.556844 | O17: =[11]SCENARIO1!AY20 -> 0.898451
A18: R4B | B18: =[11]SCENARIO1!BD21 -> 0 | C18: =[11]SCENARIO1!BE21 -> 0 | D18: =[11]SCENARIO1!BF21 -> 0 | E18: =[11]SCENARIO1!BG21 -> 0 | F18: =[11]SCENARIO1!AB21 -> 0 | G18: =[11]SCENARIO1!AC21 -> 0 | H18: =[11]SCENARIO1!AD21 -> 0 | I18: =[11]SCENARIO1!AE21 -> 0 | J18: 0 | K18: 0 | L18: 0 | M18: 0 | N18: =[11]SCENARIO1!AW21 -> 0 | O18: =[11]SCENARIO1!AY21 -> 0
A19: R4C | B19: =[11]SCENARIO1!BD22 -> 0 | C19: =[11]SCENARIO1!BE22 -> 0 | D19: =[11]SCENARIO1!BF22 -> 0 | E19: =[11]SCENARIO1!BG22 -> 0 | F19: =[11]SCENARIO1!AB22 -> 0 | G19: =[11]SCENARIO1!AC22 -> 0 | H19: =[11]SCENARIO1!AD22 -> 0 | I19: =[11]SCENARIO1!AE22 -> 0 | J19: 0 | K19: 0 | L19: 0 | M19: 0 | N19: =[11]SCENARIO1!AW22 -> 0 | O19: =[11]SCENARIO1!AY22 -> 0
A20: RM1A | B20: =[11]SCENARIO1!BD23 -> 1319.63612 | C20: =[11]SCENARIO1!BE23 -> 0 | D20: =[11]SCENARIO1!BF23 -> 1198.241645 | E20: =[11]SCENARIO1!BG23 -> 121.3944756 | F20: =[11]SCENARIO1!AB23 -> 7 | G20: =[11]SCENARIO1!AC23 -> 0 | H20: =[11]SCENARIO1!AD23 -> 0 | I20: =[11]SCENARIO1!AE23 -> 7 | J20: 1312.63612 | K20: 0 | L20: 1198.241645 | M20: 114.3944756 | N20: =[11]SCENARIO1!AW23 -> 96.046111 | O20: =[11]SCENARIO1!AY23 -> 10.656936
A21: RM1B | B21: =[11]SCENARIO1!BD24 -> 6.084679187 | C21: =[11]SCENARIO1!BE24 -> 5.637276306 | D21: =[11]SCENARIO1!BF24 -> 0.4474028814 | E21: =[11]SCENARIO1!BG24 -> 0 | F21: =[11]SCENARIO1!AB24 -> 0 | G21: =[11]SCENARIO1!AC24 -> 0 | H21: =[11]SCENARIO1!AD24 -> 0 | I21: =[11]SCENARIO1!AE24 -> 0 | J21: 6.084679187 | K21: 5.637276306 | L21: 0.4474028814 | M21: 0 | N21: =[11]SCENARIO1!AW24 -> 0.304842 | O21: =[11]SCENARIO1!AY24 -> 0
A22: RM2A | B22: =[11]SCENARIO1!BD25 -> 1108.732365 | C22: =[11]SCENARIO1!BE25 -> 745.5377627 | D22: =[11]SCENARIO1!BF25 -> 363.194602 | E22: =[11]SCENARIO1!BG25 -> 0 | F22: =[11]SCENARIO1!AB25 -> 0 | G22: =[11]SCENARIO1!AC25 -> 0 | H22: =[11]SCENARIO1!AD25 -> 0 | I22: =[11]SCENARIO1!AE25 -> 0 | J22: 1108.732365 | K22: 745.5377627 | L22: 363.194602 | M22: 0 | N22: =[11]SCENARIO1!AW25 -> 61.109302 | O22: =[11]SCENARIO1!AY25 -> 0
A23: RM2B | B23: =[11]SCENARIO1!BD26 -> 0 | C23: =[11]SCENARIO1!BE26 -> 0 | D23: =[11]SCENARIO1!BF26 -> 0 | E23: =[11]SCENARIO1!BG26 -> 0 | F23: =[11]SCENARIO1!AB26 -> 0 | G23: =[11]SCENARIO1!AC26 -> 0 | H23: =[11]SCENARIO1!AD26 -> 0 | I23: =[11]SCENARIO1!AE26 -> 0 | J23: 0 | K23: 0 | L23: 0 | M23: 0 | N23: =[11]SCENARIO1!AW26 -> 0 | O23: =[11]SCENARIO1!AY26 -> 0
A24: RM3A | B24: =[11]SCENARIO1!BD27 -> 3131.204024 | C24: =[11]SCENARIO1!BE27 -> 2920.84153 | D24: =[11]SCENARIO1!BF27 -> 145.865902 | E24: =[11]SCENARIO1!BG27 -> 64.49659161 | F24: =[11]SCENARIO1!AB27 -> 1 | G24: =[11]SCENARIO1!AC27 -> 0 | H24: =[11]SCENARIO1!AD27 -> 0 | I24: =[11]SCENARIO1!AE27 -> 1 | J24: 3130.204024 | K24: 2920.84153 | L24: 145.865902 | M24: 63.49659161 | N24: =[11]SCENARIO1!AW27 -> 31.785983 | O24: =[11]SCENARIO1!AY27 -> 60.160673
A25: RM4A | B25: =[11]SCENARIO1!BD28 -> 0 | C25: =[11]SCENARIO1!BE28 -> 0 | D25: =[11]SCENARIO1!BF28 -> 0 | E25: =[11]SCENARIO1!BG28 -> 0 | F25: =[11]SCENARIO1!AB28 -> 0 | G25: =[11]SCENARIO1!AC28 -> 0 | H25: =[11]SCENARIO1!AD28 -> 0 | I25: =[11]SCENARIO1!AE28 -> 0 | J25: 0 | K25: 0 | L25: 0 | M25: 0 | N25: =[11]SCENARIO1!AW28 -> 0 | O25: =[11]SCENARIO1!AY28 -> 0
A26: RM5A | B26: =[11]SCENARIO1!BD29 -> 0 | C26: =[11]SCENARIO1!BE29 -> 0 | D26: =[11]SCENARIO1!BF29 -> 0 | E26: =[11]SCENARIO1!BG29 -> 0 | F26: =[11]SCENARIO1!AB29 -> 0 | G26: =[11]SCENARIO1!AC29 -> 0 | H26: =[11]SCENARIO1!AD29 -> 0 | I26: =[11]SCENARIO1!AE29 -> 0 | J26: 0 | K26: 0 | L26: 0 | M26: 0 | N26: =[11]SCENARIO1!AW29 -> 0 | O26: =[11]SCENARIO1!AY29 -> 0
A27: MHP | B27: =[11]SCENARIO1!BD30 -> 0 | C27: =[11]SCENARIO1!BE30 -> 0 | D27: =[11]SCENARIO1!BF30 -> 0 | E27: =[11]SCENARIO1!BG30 -> 0 | F27: =[11]SCENARIO1!AB30 -> 0 | G27: =[11]SCENARIO1!AC30 -> 0 | H27: =[11]SCENARIO1!AD30 -> 0 | I27: =[11]SCENARIO1!AE30 -> 0 | J27: 0 | K27: 0 | L27: 0 | M27: 0 | N27: =[11]SCENARIO1!AW30 -> 0 | O27: =[11]SCENARIO1!AY30 -> 0
A28: MU1A | B28: =[11]SCENARIO1!BD31 -> 15.3648112 | C28: =[11]SCENARIO1!BE31 -> 8.551843617 | D28: =[11]SCENARIO1!BF31 -> 4.275921809 | E28: =[11]SCENARIO1!BG31 -> 2.537045776 | F28: =[11]SCENARIO1!AB31 -> 0 | G28: =[11]SCENARIO1!AC31 -> 0 | H28: =[11]SCENARIO1!AD31 -> 0 | I28: =[11]SCENARIO1!AE31 -> 0 | J28: 15.3648112 | K28: 8.551843617 | L28: 4.275921809 | M28: 2.537045776 | N28: =[11]SCENARIO1!AW31 -> 0.971146 | O28: =[11]SCENARIO1!AY31 -> 0
A29: MU1B | B29: =[11]SCENARIO1!BD32 -> 0 | C29: =[11]SCENARIO1!BE32 -> 0 | D29: =[11]SCENARIO1!BF32 -> 0 | E29: =[11]SCENARIO1!BG32 -> 0 | F29: =[11]SCENARIO1!AB32 -> 0 | G29: =[11]SCENARIO1!AC32 -> 0 | H29: =[11]SCENARIO1!AD32 -> 0 | I29: =[11]SCENARIO1!AE32 -> 0 | J29: 0 | K29: 0 | L29: 0 | M29: 0 | N29: =[11]SCENARIO1!AW32 -> 0 | O29: =[11]SCENARIO1!AY32 -> 0
A30: MU1C | B30: =[11]SCENARIO1!BD33 -> 23.64238038 | C30: =[11]SCENARIO1!BE33 -> 21.68846465 | D30: =[11]SCENARIO1!BF33 -> 1.953915734 | E30: =[11]SCENARIO1!BG33 -> 0 | F30: =[11]SCENARIO1!AB33 -> 0 | G30: =[11]SCENARIO1!AC33 -> 0 | H30: =[11]SCENARIO1!AD33 -> 0 | I30: =[11]SCENARIO1!AE33 -> 0 | J30: 23.64238038 | K30: 21.68846465 | L30: 1.953915734 | M30: 0 | N30: =[11]SCENARIO1!AW33 -> 0.259755 | O30: =[11]SCENARIO1!AY33 -> 0.902597
A31: MU1D | B31: =[11]SCENARIO1!BD34 -> 120.9865426 | C31: =[11]SCENARIO1!BE34 -> 110.9876547 | D31: =[11]SCENARIO1!BF34 -> 9.998887815 | E31: =[11]SCENARIO1!BG34 -> 0 | F31: =[11]SCENARIO1!AB34 -> 0 | G31: =[11]SCENARIO1!AC34 -> 0 | H31: =[11]SCENARIO1!AD34 -> 0 | I31: =[11]SCENARIO1!AE34 -> 0 | J31: 120.9865426 | K31: 110.9876547 | L31: 9.998887815 | M31: 0 | N31: =[11]SCENARIO1!AW34 -> 1.847726 | O31: =[11]SCENARIO1!AY34 -> 4.182199
A32: MU2A | B32: =[11]SCENARIO1!BD35 -> 698.5094229 | C32: =[11]SCENARIO1!BE35 -> 269.1255731 | D32: =[11]SCENARIO1!BF35 -> 429.3838498 | E32: =[11]SCENARIO1!BG35 -> 0 | F32: =[11]SCENARIO1!AB35 -> 1 | G32: =[11]SCENARIO1!AC35 -> 0 | H32: =[11]SCENARIO1!AD35 -> 0 | I32: =[11]SCENARIO1!AE35 -> 1 | J32: 697.5094229 | K32: 269.1255731 | L32: 429.3838498 | M32: -1 | N32: =[11]SCENARIO1!AW35 -> 69.274044 | O32: =[11]SCENARIO1!AY35 -> 5.922555
A33: MU2B | B33: =[11]SCENARIO1!BD36 -> 264.5714617 | C33: =[11]SCENARIO1!BE36 -> 169.0003607 | D33: =[11]SCENARIO1!BF36 -> 95.57110102 | E33: =[11]SCENARIO1!BG36 -> 0 | F33: =[11]SCENARIO1!AB36 -> 0 | G33: =[11]SCENARIO1!AC36 -> 0 | H33: =[11]SCENARIO1!AD36 -> 0 | I33: =[11]SCENARIO1!AE36 -> 0 | J33: 264.5714617 | K33: 169.0003607 | L33: 95.57110102 | M33: 0 | N33: =[11]SCENARIO1!AW36 -> 16.054485 | O33: =[11]SCENARIO1!AY36 -> 0
A34: MU3A | B34: =[11]SCENARIO1!BD37 -> 2068.666159 | C34: =[11]SCENARIO1!BE37 -> 1288.495443 | D34: =[11]SCENARIO1!BF37 -> 780.1707158 | E34: =[11]SCENARIO1!BG37 -> 0 | F34: =[11]SCENARIO1!AB37 -> 2 | G34: =[11]SCENARIO1!AC37 -> 0 | H34: =[11]SCENARIO1!AD37 -> 0 | I34: =[11]SCENARIO1!AE37 -> 2 | J34: 2066.666159 | K34: 1288.495443 | L34: 780.1707158 | M34: -2 | N34: =[11]SCENARIO1!AW37 -> 125.436379 | O34: =[11]SCENARIO1!AY37 -> 4.896944
A35: MU4A | B35: =[11]SCENARIO1!BD38 -> 188.5178732 | C35: =[11]SCENARIO1!BE38 -> 117.4207928 | D35: =[11]SCENARIO1!BF38 -> 71.09708032 | E35: =[11]SCENARIO1!BG38 -> 0 | F35: =[11]SCENARIO1!AB38 -> 0 | G35: =[11]SCENARIO1!AC38 -> 0 | H35: =[11]SCENARIO1!AD38 -> 0 | I35: =[11]SCENARIO1!AE38 -> 0 | J35: =B35-F35 -> 188.5178732 | K35: 117.4207928 | L35: 71.09708032 | M35: 0 | N35: =[11]SCENARIO1!AW38 -> 14.014107 | O35: =[11]SCENARIO1!AY38 -> 0
A36: MU4B | B36: =[11]SCENARIO1!BD39 -> 2047.169021 | C36: =[11]SCENARIO1!BE39 -> 2047.169021 | D36: =[11]SCENARIO1!BF39 -> 0 | E36: =[11]SCENARIO1!BG39 -> 0 | F36: =[11]SCENARIO1!AB39 -> 1 | G36: =[11]SCENARIO1!AC39 -> 0 | H36: =[11]SCENARIO1!AD39 -> 0 | I36: =[11]SCENARIO1!AE39 -> 1 | J36: 2046.169021 | K36: 2047.169021 | L36: 0 | M36: -1 | N36: =[11]SCENARIO1!AW39 -> 91.890715 | O36: =[11]SCENARIO1!AY39 -> 24.620602
A37: MU5A | B37: =[11]SCENARIO1!BD40 -> 0 | C37: =[11]SCENARIO1!BE40 -> 0 | D37: =[11]SCENARIO1!BF40 -> 0 | E37: =[11]SCENARIO1!BG40 -> 0 | F37: =[11]SCENARIO1!AB40 -> 0 | G37: =[11]SCENARIO1!AC40 -> 0 | H37: =[11]SCENARIO1!AD40 -> 0 | I37: =[11]SCENARIO1!AE40 -> 0 | J37: 0 | K37: 0 | L37: 0 | M37: 0 | N37: =[11]SCENARIO1!AW40 -> 0 | O37: =[11]SCENARIO1!AY40 -> 0
A38: MS1A | B38: =[11]SCENARIO1!BD41 -> 0 | C38: =[11]SCENARIO1!BE41 -> 0 | D38: =[11]SCENARIO1!BF41 -> 0 | E38: =[11]SCENARIO1!BG41 -> 0 | F38: =[11]SCENARIO1!AB41 -> 0 | G38: =[11]SCENARIO1!AC41 -> 0 | H38: =[11]SCENARIO1!AD41 -> 0 | I38: =[11]SCENARIO1!AE41 -> 0 | J38: 0 | K38: 0 | L38: 0 | M38: 0 | N38: =[11]SCENARIO1!AW41 -> 0 | O38: =[11]SCENARIO1!AY41 -> 0
A39: MS1B | B39: =[11]SCENARIO1!BD42 -> 22.86143855 | C39: =[11]SCENARIO1!BE42 -> 16.59348658 | D39: =[11]SCENARIO1!BF42 -> 0 | E39: =[11]SCENARIO1!BG42 -> 6.267951967 | F39: =[11]SCENARIO1!AB42 -> 0 | G39: =[11]SCENARIO1!AC42 -> 0 | H39: =[11]SCENARIO1!AD42 -> 0 | I39: =[11]SCENARIO1!AE42 -> 0 | J39: 22.86143855 | K39: 16.59348658 | L39: 0 | M39: 6.267951967 | N39: =[11]SCENARIO1!AW42 -> 0 | O39: =[11]SCENARIO1!AY42 -> 0.963946
A40: MS2A | B40: =[11]SCENARIO1!BD43 -> 54.84015605 | C40: =[11]SCENARIO1!BE43 -> 51.84672433 | D40: =[11]SCENARIO1!BF43 -> 0 | E40: =[11]SCENARIO1!BG43 -> 2.99343172 | F40: =[11]SCENARIO1!AB43 -> 0 | G40: =[11]SCENARIO1!AC43 -> 0 | H40: =[11]SCENARIO1!AD43 -> 0 | I40: =[11]SCENARIO1!AE43 -> 0 | J40: 54.84015605 | K40: 51.84672433 | L40: 0 | M40: 2.99343172 | N40: =[11]SCENARIO1!AW43 -> 0 | O40: =[11]SCENARIO1!AY43 -> 1.841435
A41: MS2B | B41: =[11]SCENARIO1!BD44 -> 33.36754453 | C41: =[11]SCENARIO1!BE44 -> 31.54618818 | D41: =[11]SCENARIO1!BF44 -> 0 | E41: =[11]SCENARIO1!BG44 -> 1.821356346 | F41: =[11]SCENARIO1!AB44 -> 0 | G41: =[11]SCENARIO1!AC44 -> 0 | H41: =[11]SCENARIO1!AD44 -> 0 | I41: =[11]SCENARIO1!AE44 -> 0 | J41: 33.36754453 | K41: 31.54618818 | L41: 0 | M41: 1.821356346 | N41: =[11]SCENARIO1!AW44 -> 1.626882 | O41: =[11]SCENARIO1!AY44 -> 0
A42: MS2C | B42: =[11]SCENARIO1!BD45 -> 0 | C42: =[11]SCENARIO1!BE45 -> 0 | D42: =[11]SCENARIO1!BF45 -> 0 | E42: =[11]SCENARIO1!BG45 -> 0 | F42: =[11]SCENARIO1!AB45 -> 0 | G42: =[11]SCENARIO1!AC45 -> 0 | H42: =[11]SCENARIO1!AD45 -> 0 | I42: =[11]SCENARIO1!AE45 -> 0 | J42: 0 | K42: 0 | L42: 0 | M42: 0 | N42: =[11]SCENARIO1!AW45 -> 0 | O42: =[11]SCENARIO1!AY45 -> 0
A43: MS3A | B43: =[11]SCENARIO1!BD46 -> 166.2887389 | C43: =[11]SCENARIO1!BE46 -> 166.2887389 | D43: =[11]SCENARIO1!BF46 -> 0 | E43: =[11]SCENARIO1!BG46 -> 0 | F43: =[11]SCENARIO1!AB46 -> 0 | G43: =[11]SCENARIO1!AC46 -> 0 | H43: =[11]SCENARIO1!AD46 -> 0 | I43: =[11]SCENARIO1!AE46 -> 0 | J43: 166.2887389 | K43: 166.2887389 | L43: 0 | M43: 0 | N43: =[11]SCENARIO1!AW46 -> 1.206673 | O43: =[11]SCENARIO1!AY46 -> 1.643773
A44: MS3B | B44: =[11]SCENARIO1!BD47 -> 0 | C44: =[11]SCENARIO1!BE47 -> 0 | D44: =[11]SCENARIO1!BF47 -> 0 | E44: =[11]SCENARIO1!BG47 -> 0 | F44: =[11]SCENARIO1!AB47 -> 0 | G44: =[11]SCENARIO1!AC47 -> 0 | H44: =[11]SCENARIO1!AD47 -> 0 | I44: =[11]SCENARIO1!AE47 -> 0 | J44: 0 | K44: 0 | L44: 0 | M44: 0 | N44: =[11]SCENARIO1!AW47 -> 0 | O44: =[11]SCENARIO1!AY47 -> 0
A45: UC | B45: =[11]SCENARIO1!BD48 -> 0 | C45: =[11]SCENARIO1!BE48 -> 0 | D45: =[11]SCENARIO1!BF48 -> 0 | E45: =[11]SCENARIO1!BG48 -> 0 | F45: =[11]SCENARIO1!AB48 -> 0 | G45: =[11]SCENARIO1!AC48 -> 0 | H45: =[11]SCENARIO1!AD48 -> 0 | I45: =[11]SCENARIO1!AE48 -> 0 | J45: 0 | K45: 0 | L45: 0 | M45: 0 | N45: =[11]SCENARIO1!AW48 -> 0 | O45: =[11]SCENARIO1!AY48 -> 0
A46: CC40 | B46: =[11]SCENARIO1!BD49 -> 0 | C46: =[11]SCENARIO1!BE49 -> 0 | D46: =[11]SCENARIO1!BF49 -> 0 | E46: =[11]SCENARIO1!BG49 -> 0 | F46: =[11]SCENARIO1!AB49 -> 0 | G46: =[11]SCENARIO1!AC49 -> 0 | H46: =[11]SCENARIO1!AD49 -> 0 | I46: =[11]SCENARIO1!AE49 -> 0 | J46: 0 | K46: 0 | L46: 0 | M46: 0 | N46: =[11]SCENARIO1!AW49 -> 0 | O46: =[11]SCENARIO1!AY49 -> 0
A47: CC60 | B47: =[11]SCENARIO1!BD50 -> 0 | C47: =[11]SCENARIO1!BE50 -> 0 | D47: =[11]SCENARIO1!BF50 -> 0 | E47: =[11]SCENARIO1!BG50 -> 0 | F47: =[11]SCENARIO1!AB50 -> 0 | G47: =[11]SCENARIO1!AC50 -> 0 | H47: =[11]SCENARIO1!AD50 -> 0 | I47: =[11]SCENARIO1!AE50 -> 0 | J47: 0 | K47: 0 | L47: 0 | M47: 0 | N47: =[11]SCENARIO1!AW50 -> 0 | O47: =[11]SCENARIO1!AY50 -> 0
A48: CC80 | B48: =[11]SCENARIO1!BD51 -> 0 | C48: =[11]SCENARIO1!BE51 -> 0 | D48: =[11]SCENARIO1!BF51 -> 0 | E48: =[11]SCENARIO1!BG51 -> 0 | F48: =[11]SCENARIO1!AB51 -> 0 | G48: =[11]SCENARIO1!AC51 -> 0 | H48: =[11]SCENARIO1!AD51 -> 0 | I48: =[11]SCENARIO1!AE51 -> 0 | J48: 0 | K48: 0 | L48: 0 | M48: 0 | N48: =[11]SCENARIO1!AW51 -> 0 | O48: =[11]SCENARIO1!AY51 -> 0
A49: CC120 | B49: =[11]SCENARIO1!BD52 -> 0 | C49: =[11]SCENARIO1!BE52 -> 0 | D49: =[11]SCENARIO1!BF52 -> 0 | E49: =[11]SCENARIO1!BG52 -> 0 | F49: =[11]SCENARIO1!AB52 -> 0 | G49: =[11]SCENARIO1!AC52 -> 0 | H49: =[11]SCENARIO1!AD52 -> 0 | I49: =[11]SCENARIO1!AE52 -> 0 | J49: 0 | K49: 0 | L49: 0 | M49: 0 | N49: =[11]SCENARIO1!AW52 -> 0 | O49: =[11]SCENARIO1!AY52 -> 0
A50: DC | B50: =[11]SCENARIO1!BD53 -> 0 | C50: =[11]SCENARIO1!BE53 -> 0 | D50: =[11]SCENARIO1!BF53 -> 0 | E50: =[11]SCENARIO1!BG53 -> 0 | F50: =[11]SCENARIO1!AB53 -> 0 | G50: =[11]SCENARIO1!AC53 -> 0 | H50: =[11]SCENARIO1!AD53 -> 0 | I50: =[11]SCENARIO1!AE53 -> 0 | J50: 0 | K50: 0 | L50: 0 | M50: 0 | N50: =[11]SCENARIO1!AW53 -> 0 | O50: =[11]SCENARIO1!AY53 -> 0
A51: CR | B51: =[11]SCENARIO1!BD54 -> 0 | C51: =[11]SCENARIO1!BE54 -> 0 | D51: =[11]SCENARIO1!BF54 -> 0 | E51: =[11]SCENARIO1!BG54 -> 0 | F51: =[11]SCENARIO1!AB54 -> 0 | G51: =[11]SCENARIO1!AC54 -> 0 | H51: =[11]SCENARIO1!AD54 -> 0 | I51: =[11]SCENARIO1!AE54 -> 0 | J51: 0 | K51: 0 | L51: 0 | M51: 0 | N51: =[11]SCENARIO1!AW54 -> 0 | O51: =[11]SCENARIO1!AY54 -> 0
A52: CW | B52: =[11]SCENARIO1!BD55 -> 0 | C52: =[11]SCENARIO1!BE55 -> 0 | D52: =[11]SCENARIO1!BF55 -> 0 | E52: =[11]SCENARIO1!BG55 -> 0 | F52: =[11]SCENARIO1!AB55 -> 0 | G52: =[11]SCENARIO1!AC55 -> 0 | H52: =[11]SCENARIO1!AD55 -> 0 | I52: =[11]SCENARIO1!AE55 -> 0 | J52: 0 | K52: 0 | L52: 0 | M52: 0 | N52: =[11]SCENARIO1!AW55 -> 1.910918 | O52: =[11]SCENARIO1!AY55 -> 0
A53: IF | B53: =[11]SCENARIO1!BD56 -> 245.8494894 | C53: =[11]SCENARIO1!BE56 -> 0 | D53: =[11]SCENARIO1!BF56 -> 0 | E53: =[11]SCENARIO1!BG56 -> 245.8494894 | F53: =[11]SCENARIO1!AB56 -> 0 | G53: =[11]SCENARIO1!AC56 -> 0 | H53: =[11]SCENARIO1!AD56 -> 0 | I53: =[11]SCENARIO1!AE56 -> 0 | J53: 245.8494894 | K53: 0 | L53: 0 | M53: 245.8494894 | N53: =[11]SCENARIO1!AW56 -> 181.820272 | O53: =[11]SCENARIO1!AY56 -> 0
A54: IG | B54: =[11]SCENARIO1!BD57 -> 0 | C54: =[11]SCENARIO1!BE57 -> 0 | D54: =[11]SCENARIO1!BF57 -> 0 | E54: =[11]SCENARIO1!BG57 -> 0 | F54: =[11]SCENARIO1!AB57 -> 0 | G54: =[11]SCENARIO1!AC57 -> 0 | H54: =[11]SCENARIO1!AD57 -> 0 | I54: =[11]SCENARIO1!AE57 -> 0 | J54: 0 | K54: 0 | L54: 0 | M54: 0 | N54: =[11]SCENARIO1!AW57 -> 0 | O54: =[11]SCENARIO1!AY57 -> 0
A55: IH | B55: =[11]SCENARIO1!BD58 -> 0 | C55: =[11]SCENARIO1!BE58 -> 0 | D55: =[11]SCENARIO1!BF58 -> 0 | E55: =[11]SCENARIO1!BG58 -> 0 | F55: =[11]SCENARIO1!AB58 -> 0 | G55: =[11]SCENARIO1!AC58 -> 0 | H55: =[11]SCENARIO1!AD58 -> 0 | I55: =[11]SCENARIO1!AE58 -> 0 | J55: 0 | K55: 0 | L55: 0 | M55: 0 | N55: =[11]SCENARIO1!AW58 -> 0 | O55: =[11]SCENARIO1!AY58 -> 0
A56: R&D | B56: =[11]SCENARIO1!BD59 -> 0 | C56: =[11]SCENARIO1!BE59 -> 0 | D56: =[11]SCENARIO1!BF59 -> 0 | E56: =[11]SCENARIO1!BG59 -> 0 | F56: =[11]SCENARIO1!AB59 -> 0 | G56: =[11]SCENARIO1!AC59 -> 0 | H56: =[11]SCENARIO1!AD59 -> 0 | I56: =[11]SCENARIO1!AE59 -> 0 | J56: 0 | K56: 0 | L56: 0 | M56: 0 | N56: =[11]SCENARIO1!AW59 -> 0 | O56: =[11]SCENARIO1!AY59 -> 0
A57: P | B57: =[11]SCENARIO1!BD60 -> 0 | C57: =[11]SCENARIO1!BE60 -> 0 | D57: =[11]SCENARIO1!BF60 -> 0 | E57: =[11]SCENARIO1!BG60 -> 0 | F57: =[11]SCENARIO1!AB60 -> 0 | G57: =[11]SCENARIO1!AC60 -> 0 | H57: =[11]SCENARIO1!AD60 -> 0 | I57: =[11]SCENARIO1!AE60 -> 0 | J57: 0 | K57: 0 | L57: 0 | M57: 0 | N57: =[11]SCENARIO1!AW60 -> 104.600761 | O57: =[11]SCENARIO1!AY60 -> 0
A58: PUD | B58: =[11]SCENARIO1!BD61 -> 0 | C58: =[11]SCENARIO1!BE61 -> 0 | D58: =[11]SCENARIO1!BF61 -> 0 | E58: =[11]SCENARIO1!BG61 -> 0 | F58: =[11]SCENARIO1!AB61 -> 0 | G58: =[11]SCENARIO1!AC61 -> 0 | H58: =[11]SCENARIO1!AD61 -> 0 | I58: =[11]SCENARIO1!AE61 -> 0 | J58: 0 | K58: 0 | L58: 0 | M58: 0 | N58: =[11]SCENARIO1!AW61 -> 21.526783 | O58: =[11]SCENARIO1!AY61 -> 0
A59: ERC | B59: =[11]SCENARIO1!BD62 -> 0 | C59: =[11]SCENARIO1!BE62 -> 0 | D59: =[11]SCENARIO1!BF62 -> 0 | E59: =[11]SCENARIO1!BG62 -> 0 | F59: =[11]SCENARIO1!AB62 -> 0 | G59: =[11]SCENARIO1!AC62 -> 0 | H59: =[11]SCENARIO1!AD62 -> 0 | I59: =[11]SCENARIO1!AE62 -> 0 | J59: 0 | K59: 0 | L59: 0 | M59: 0 | N59: =[11]SCENARIO1!AW62 -> 0 | O59: =[11]SCENARIO1!AY62 -> 0
A60: NBG | B60: =[11]SCENARIO1!BD63 -> 0 | C60: =[11]SCENARIO1!BE63 -> 0 | D60: =[11]SCENARIO1!BF63 -> 0 | E60: =[11]SCENARIO1!BG63 -> 0 | F60: =[11]SCENARIO1!AB63 -> 0 | G60: =[11]SCENARIO1!AC63 -> 0 | H60: =[11]SCENARIO1!AD63 -> 0 | I60: =[11]SCENARIO1!AE63 -> 0 | J60: 0 | K60: 0 | L60: 0 | M60: 0 | N60: =[11]SCENARIO1!AW63 -> 0 | O60: =[11]SCENARIO1!AY63 -> 0
A61: UNZ | B61: =[11]SCENARIO1!BD64 -> 0 | C61: =[11]SCENARIO1!BE64 -> 0 | D61: =[11]SCENARIO1!BF64 -> 0 | E61: =[11]SCENARIO1!BG64 -> 0 | F61: =[11]SCENARIO1!AB64 -> 0 | G61: =[11]SCENARIO1!AC64 -> 0 | H61: =[11]SCENARIO1!AD64 -> 0 | I61: =[11]SCENARIO1!AE64 -> 0 | J61: 0 | K61: 0 | L61: 0 | M61: 0 | N61: =[11]SCENARIO1!AW64 -> 0 | O61: =[11]SCENARIO1!AY64 -> 0
A62: TOD | B62: =[11]SCENARIO1!BD65 -> 0 | C62: =[11]SCENARIO1!BE65 -> 0 | D62: =[11]SCENARIO1!BF65 -> 0 | E62: =[11]SCENARIO1!BG65 -> 0 | F62: =[11]SCENARIO1!AB65 -> 0 | G62: =[11]SCENARIO1!AC65 -> 0 | H62: =[11]SCENARIO1!AD65 -> 0 | I62: =[11]SCENARIO1!AE65 -> 0 | J62: 0 | K62: 0 | L62: 0 | M62: 0 | N62: =[11]SCENARIO1!AW65 -> 0 | O62: =[11]SCENARIO1!AY65 -> 0
A63: Whisper Valley PUD | B63: =[11]SCENARIO1!BD66 -> 0 | C63: =[11]SCENARIO1!BE66 -> 0 | D63: =[11]SCENARIO1!BF66 -> 0 | E63: =[11]SCENARIO1!BG66 -> 0 | F63: =[11]SCENARIO1!AB66 -> 0 | G63: =[11]SCENARIO1!AC66 -> 0 | H63: =[11]SCENARIO1!AD66 -> 0 | I63: =[11]SCENARIO1!AE66 -> 0 | J63: 0 | K63: 0 | L63: 0 | M63: 0 | N63: =[11]SCENARIO1!AW66 -> 0 | O63: =[11]SCENARIO1!AY66 -> 0
A64: Wildhorse Ranch PUD | B64: =[11]SCENARIO1!BD67 -> 0 | C64: =[11]SCENARIO1!BE67 -> 0 | D64: =[11]SCENARIO1!BF67 -> 0 | E64: =[11]SCENARIO1!BG67 -> 0 | F64: =[11]SCENARIO1!AB67 -> 0 | G64: =[11]SCENARIO1!AC67 -> 0 | H64: =[11]SCENARIO1!AD67 -> 0 | I64: =[11]SCENARIO1!AE67 -> 0 | J64: 0 | K64: 0 | L64: 0 | M64: 0 | N64: =[11]SCENARIO1!AW67 -> 0 | O64: =[11]SCENARIO1!AY67 -> 0
A65: Waters Edge PUD | B65: =[11]SCENARIO1!BD68 -> 0 | C65: =[11]SCENARIO1!BE68 -> 0 | D65: =[11]SCENARIO1!BF68 -> 0 | E65: =[11]SCENARIO1!BG68 -> 0 | F65: =[11]SCENARIO1!AB68 -> 0 | G65: =[11]SCENARIO1!AC68 -> 0 | H65: =[11]SCENARIO1!AD68 -> 0 | I65: =[11]SCENARIO1!AE68 -> 0 | J65: 0 | K65: 0 | L65: 0 | M65: 0 | N65: =[11]SCENARIO1!AW68 -> 0 | O65: =[11]SCENARIO1!AY68 -> 0
A66: Goodnight Ranch PUD | B66: =[11]SCENARIO1!BD69 -> 0 | C66: =[11]SCENARIO1!BE69 -> 0 | D66: =[11]SCENARIO1!BF69 -> 0 | E66: =[11]SCENARIO1!BG69 -> 0 | F66: =[11]SCENARIO1!AB69 -> 0 | G66: =[11]SCENARIO1!AC69 -> 0 | H66: =[11]SCENARIO1!AD69 -> 0 | I66: =[11]SCENARIO1!AE69 -> 0 | J66: 0 | K66: 0 | L66: 0 | M66: 0 | N66: =[11]SCENARIO1!AW69 -> 0 | O66: =[11]SCENARIO1!AY69 -> 0
A67: UNO | B67: =[11]SCENARIO1!BD70 -> 0 | C67: =[11]SCENARIO1!BE70 -> 0 | D67: =[11]SCENARIO1!BF70 -> 0 | E67: =[11]SCENARIO1!BG70 -> 0 | F67: =[11]SCENARIO1!AB70 -> 0 | G67: =[11]SCENARIO1!AC70 -> 0 | H67: =[11]SCENARIO1!AD70 -> 0 | I67: =[11]SCENARIO1!AE70 -> 0 | J67: =B67-F67 -> 0 | K67: 0 | L67: 0 | M67: 0 | N67: =[11]SCENARIO1!AW70 -> 0 | O67: =[11]SCENARIO1!AY70 -> 0
A68: Estancia PUD | B68: =[11]SCENARIO1!BD71 -> 0 | C68: =[11]SCENARIO1!BE71 -> 0 | D68: =[11]SCENARIO1!BF71 -> 0 | E68: =[11]SCENARIO1!BG71 -> 0 | F68: =[11]SCENARIO1!AB71 -> 0 | G68: =[11]SCENARIO1!AC71 -> 0 | H68: =[11]SCENARIO1!AD71 -> 0 | I68: =[11]SCENARIO1!AE71 -> 0 | J68: 0 | K68: 0 | L68: 0 | M68: 0 | N68: =[11]SCENARIO1!AW71 -> 0 | O68: =[11]SCENARIO1!AY71 -> 0
A69: TOD - Medium Density Residential (TODMDR) | B69: =[11]SCENARIO1!BD72 -> 0 | C69: =[11]SCENARIO1!BE72 -> 0 | D69: =[11]SCENARIO1!BF72 -> 0 | E69: =[11]SCENARIO1!BG72 -> 0 | F69: =[11]SCENARIO1!AB72 -> 0 | G69: =[11]SCENARIO1!AC72 -> 0 | H69: =[11]SCENARIO1!AD72 -> 0 | I69: =[11]SCENARIO1!AE72 -> 0 | J69: 0 | K69: 0 | L69: 0 | M69: 0 | N69: =[11]SCENARIO1!AW72 -> 0 | O69: =[11]SCENARIO1!AY72 -> 0
A70: TOD – Low Density Residential (TODLDR) | B70: =[11]SCENARIO1!BD73 -> 0 | C70: =[11]SCENARIO1!BE73 -> 0 | D70: =[11]SCENARIO1!BF73 -> 0 | E70: =[11]SCENARIO1!BG73 -> 0 | F70: =[11]SCENARIO1!AB73 -> 0 | G70: =[11]SCENARIO1!AC73 -> 0 | H70: =[11]SCENARIO1!AD73 -> 0 | I70: =[11]SCENARIO1!AE73 -> 0 | J70: 0 | K70: 0 | L70: 0 | M70: 0 | N70: =[11]SCENARIO1!AW73 -> 0 | O70: =[11]SCENARIO1!AY73 -> 0
A71: TOD – TOD Mixed Use | B71: =[11]SCENARIO1!BD74 -> 1739.418422 | C71: =[11]SCENARIO1!BE74 -> 1739.418422 | D71: =[11]SCENARIO1!BF74 -> 0 | E71: =[11]SCENARIO1!BG74 -> 0 | F71: =[11]SCENARIO1!AB74 -> 0 | G71: =[11]SCENARIO1!AC74 -> 0 | H71: =[11]SCENARIO1!AD74 -> 0 | I71: =[11]SCENARIO1!AE74 -> 0 | J71: 1739.418422 | K71: 1739.418422 | L71: 0 | M71: 0 | N71: =[11]SCENARIO1!AW74 -> 60.232333 | O71: =[11]SCENARIO1!AY74 -> 16.33819
A72: TOD – Corridor Mixed Use (TODCMU) | B72: =[11]SCENARIO1!BD75 -> 0 | C72: =[11]SCENARIO1!BE75 -> 0 | D72: =[11]SCENARIO1!BF75 -> 0 | E72: =[11]SCENARIO1!BG75 -> 0 | F72: =[11]SCENARIO1!AB75 -> 0 | G72: =[11]SCENARIO1!AC75 -> 0 | H72: =[11]SCENARIO1!AD75 -> 0 | I72: =[11]SCENARIO1!AE75 -> 0 | J72: 0 | K72: 0 | L72: 0 | M72: 0 | N72: =[11]SCENARIO1!AW75 -> 0 | O72: =[11]SCENARIO1!AY75 -> 0
A73: South Shore PUD | B73: =[11]SCENARIO1!BD76 -> 0 | C73: =[11]SCENARIO1!BE76 -> 0 | D73: =[11]SCENARIO1!BF76 -> 0 | E73: =[11]SCENARIO1!BG76 -> 0 | F73: =[11]SCENARIO1!AB76 -> 0 | G73: =[11]SCENARIO1!AC76 -> 0 | H73: =[11]SCENARIO1!AD76 -> 0 | I73: =[11]SCENARIO1!AE76 -> 0 | J73: 0 | K73: 0 | L73: 0 | M73: 0 | N73: =[11]SCENARIO1!AW76 -> 0 | O73: =[11]SCENARIO1!AY76 -> 0
A74: Total | B74: =SUM(B3:B73) -> 14169.25384 | C74: =SUM(C3:C73) -> 9722.062862 | D74: 3120.256064 | E74: =SUM(E3:E73) -> 1326.934914 | F74: =SUM(F3:F73) -> 14 | G74: =SUM(G3:G73) -> 0 | H74: 0 | I74: =SUM(I3:I73) -> 14 | J74: =SUM(J3:J73) -> 14155.25384 | K74: =SUM(K3:K73) -> 9722.062862 | L74: =SUM(L3:L73) -> 3120.256064 | M74: 1312.934914 | N74: =SUM(N3:N73) -> 1087.790098 | O74: 134.258315

Sheet Draft 2 CD 8
B1: New | F1: Units assumed to redevelop | J1: Net Growth | N1: Acres
A2: CodeNEXT2 | B2: Units | C2: Multifamily | D2: Townhome | E2: Single Family | F2: Units | G2: Multifamily | H2: Townhome | I2: Single Family | J2: Units | K2: Multifamily | L2: Townhome | M2: Single Family | N2: Vacant Developed | O2: Developed Redeveloped
A3: Rural Residential | B3: =[12]SCENARIO1!BD6 -> 510.3191296 | C3: =[12]SCENARIO1!BE6 -> 0 | D3: =[12]SCENARIO1!BF6 -> 0 | E3: =[12]SCENARIO1!BG6 -> 510.3191296 | F3: =[12]SCENARIO1!AB6 -> 0 | G3: =[12]SCENARIO1!AC6 -> 0 | H3: =[12]SCENARIO1!AD6 -> 0 | I3: =[12]SCENARIO1!AE6 -> 0 | J3: =B3-F3 -> 510.3191296 | K3: 0 | L3: 0 | M3: 510.3191296 | N3: =[12]SCENARIO1!AW6 -> 903.15656 | O3: =[12]SCENARIO1!AY6 -> 0
A4: Lake Austin | B4: =[12]SCENARIO1!BD7 -> 0 | C4: =[12]SCENARIO1!BE7 -> 0 | D4: =[12]SCENARIO1!BF7 -> 0 | E4: =[12]SCENARIO1!BG7 -> 0 | F4: =[12]SCENARIO1!AB7 -> 0 | G4: =[12]SCENARIO1!AC7 -> 0 | H4: =[12]SCENARIO1!AD7 -> 0 | I4: =[12]SCENARIO1!AE7 -> 0 | J4: 0 | K4: 0 | L4: 0 | M4: 0 | N4: =[12]SCENARIO1!AW7 -> 0 | O4: =[12]SCENARIO1!AY7 -> 0
A5: R1A | B5: =[12]SCENARIO1!BD8 -> 91.86079733 | C5: =[12]SCENARIO1!BE8 -> 0 | D5: =[12]SCENARIO1!BF8 -> 0 | E5: =[12]SCENARIO1!BG8 -> 91.86079733 | F5: =[12]SCENARIO1!AB8 -> 2 | G5: =[12]SCENARIO1!AC8 -> 0 | H5: =[12]SCENARIO1!AD8 -> 0 | I5: =[12]SCENARIO1!AE8 -> 2 | J5: 89.86079733 | K5: 0 | L5: 0 | M5: 89.86079733 | N5: =[12]SCENARIO1!AW8 -> 44.48628 | O5: =[12]SCENARIO1!AY8 -> 1.601186
A6: R1B | B6: =[12]SCENARIO1!BD9 -> 618.7082716 | C6: =[12]SCENARIO1!BE9 -> 0 | D6: =[12]SCENARIO1!BF9 -> 0 | E6: =[12]SCENARIO1!BG9 -> 618.7082716 | F6: =[12]SCENARIO1!AB9 -> 0 | G6: =[12]SCENARIO1!AC9 -> 0 | H6: =[12]SCENARIO1!AD9 -> 0 | I6: =[12]SCENARIO1!AE9 -> 0 | J6: 618.7082716 | K6: 0 | L6: 0 | M6: 618.7082716 | N6: =[12]SCENARIO1!AW9 -> 175.287919 | O6: =[12]SCENARIO1!AY9 -> 0
A7: R1C | B7: =[12]SCENARIO1!BD10 -> 0 | C7: =[12]SCENARIO1!BE10 -> 0 | D7: =[12]SCENARIO1!BF10 -> 0 | E7: =[12]SCENARIO1!BG10 -> 0 | F7: =[12]SCENARIO1!AB10 -> 0 | G7: =[12]SCENARIO1!AC10 -> 0 | H7: =[12]SCENARIO1!AD10 -> 0 | I7: =[12]SCENARIO1!AE10 -> 0 | J7: 0 | K7: 0 | L7: 0 | M7: 0 | N7: =[12]SCENARIO1!AW10 -> 0 | O7: =[12]SCENARIO1!AY10 -> 0
A8: R2A | B8: =[12]SCENARIO1!BD11 -> 0 | C8: =[12]SCENARIO1!BE11 -> 0 | D8: =[12]SCENARIO1!BF11 -> 0 | E8: =[12]SCENARIO1!BG11 -> 0 | F8: =[12]SCENARIO1!AB11 -> 0 | G8: =[12]SCENARIO1!AC11 -> 0 | H8: =[12]SCENARIO1!AD11 -> 0 | I8: =[12]SCENARIO1!AE11 -> 0 | J8: 0 | K8: 0 | L8: 0 | M8: 0 | N8: =[12]SCENARIO1!AW11 -> 0 | O8: =[12]SCENARIO1!AY11 -> 0
A9: R2B | B9: =[12]SCENARIO1!BD12 -> 150.9488514 | C9: =[12]SCENARIO1!BE12 -> 0 | D9: =[12]SCENARIO1!BF12 -> 31.28950471 | E9: =[12]SCENARIO1!BG12 -> 119.6593467 | F9: =[12]SCENARIO1!AB12 -> 0 | G9: =[12]SCENARIO1!AC12 -> 0 | H9: =[12]SCENARIO1!AD12 -> 0 | I9: =[12]SCENARIO1!AE12 -> 0 | J9: 150.9488514 | K9: 0 | L9: 31.28950471 | M9: 119.6593467 | N9: =[12]SCENARIO1!AW12 -> 37.699762 | O9: =[12]SCENARIO1!AY12 -> 0
A10: R2C | B10: =[12]SCENARIO1!BD13 -> 0 | C10: =[12]SCENARIO1!BE13 -> 0 | D10: =[12]SCENARIO1!BF13 -> 0 | E10: =[12]SCENARIO1!BG13 -> 0 | F10: =[12]SCENARIO1!AB13 -> 0 | G10: =[12]SCENARIO1!AC13 -> 0 | H10: =[12]SCENARIO1!AD13 -> 0 | I10: =[12]SCENARIO1!AE13 -> 0 | J10: 0 | K10: 0 | L10: 0 | M10: 0 | N10: =[12]SCENARIO1!AW13 -> 0 | O10: =[12]SCENARIO1!AY13 -> 0
A11: R2D | B11: =[12]SCENARIO1!BD14 -> 10.71995918 | C11: =[12]SCENARIO1!BE14 -> 0 | D11: =[12]SCENARIO1!BF14 -> 0 | E11: =[12]SCENARIO1!BG14 -> 10.71995918 | F11: =[12]SCENARIO1!AB14 -> 0 | G11: =[12]SCENARIO1!AC14 -> 0 | H11: =[12]SCENARIO1!AD14 -> 0 | I11: =[12]SCENARIO1!AE14 -> 0 | J11: 10.71995918 | K11: 0 | L11: 0 | M11: 10.71995918 | N11: =[12]SCENARIO1!AW14 -> 1.505799 | O11: =[12]SCENARIO1!AY14 -> 0
A12: R2E | B12: =[12]SCENARIO1!BD15 -> 0 | C12: =[12]SCENARIO1!BE15 -> 0 | D12: =[12]SCENARIO1!BF15 -> 0 | E12: =[12]SCENARIO1!BG15 -> 0 | F12: =[12]SCENARIO1!AB15 -> 0 | G12: =[12]SCENARIO1!AC15 -> 0 | H12: =[12]SCENARIO1!AD15 -> 0 | I12: =[12]SCENARIO1!AE15 -> 0 | J12: 0 | K12: 0 | L12: 0 | M12: 0 | N12: =[12]SCENARIO1!AW15 -> 0 | O12: =[12]SCENARIO1!AY15 -> 0
A13: R3A | B13: =[12]SCENARIO1!BD16 -> 0 | C13: =[12]SCENARIO1!BE16 -> 0 | D13: =[12]SCENARIO1!BF16 -> 0 | E13: =[12]SCENARIO1!BG16 -> 0 | F13: =[12]SCENARIO1!AB16 -> 0 | G13: =[12]SCENARIO1!AC16 -> 0 | H13: =[12]SCENARIO1!AD16 -> 0 | I13: =[12]SCENARIO1!AE16 -> 0 | J13: 0 | K13: 0 | L13: 0 | M13: 0 | N13: =[12]SCENARIO1!AW16 -> 0 | O13: =[12]SCENARIO1!AY16 -> 0
A14: R3B | B14: =[12]SCENARIO1!BD17 -> 0 | C14: =[12]SCENARIO1!BE17 -> 0 | D14: =[12]SCENARIO1!BF17 -> 0 | E14: =[12]SCENARIO1!BG17 -> 0 | F14: =[12]SCENARIO1!AB17 -> 0 | G14: =[12]SCENARIO1!AC17 -> 0 | H14: =[12]SCENARIO1!AD17 -> 0 | I14: =[12]SCENARIO1!AE17 -> 0 | J14: 0 | K14: 0 | L14: 0 | M14: 0 | N14: =[12]SCENARIO1!AW17 -> 0 | O14: =[12]SCENARIO1!AY17 -> 0
A15: R3C | B15: =[12]SCENARIO1!BD18 -> 2.08379552 | C15: =[12]SCENARIO1!BE18 -> 0 | D15: =[12]SCENARIO1!BF18 -> 1.183975402 | E15: =[12]SCENARIO1!BG18 -> 0.8998201184 | F15: =[12]SCENARIO1!AB18 -> 0 | G15: =[12]SCENARIO1!AC18 -> 0 | H15: =[12]SCENARIO1!AD18 -> 0 | I15: =[12]SCENARIO1!AE18 -> 0 | J15: 2.08379552 | K15: 0 | L15: 1.183975402 | M15: 0.8998201184 | N15: =[12]SCENARIO1!AW18 -> 0.252464 | O15: =[12]SCENARIO1!AY18 -> 0
A16: R3D | B16: =[12]SCENARIO1!BD19 -> 0 | C16: =[12]SCENARIO1!BE19 -> 0 | D16: =[12]SCENARIO1!BF19 -> 0 | E16: =[12]SCENARIO1!BG19 -> 0 | F16: =[12]SCENARIO1!AB19 -> 0 | G16: =[12]SCENARIO1!AC19 -> 0 | H16: =[12]SCENARIO1!AD19 -> 0 | I16: =[12]SCENARIO1!AE19 -> 0 | J16: 0 | K16: 0 | L16: 0 | M16: 0 | N16: =[12]SCENARIO1!AW19 -> 0 | O16: =[12]SCENARIO1!AY19 -> 0
A17: R4A | B17: =[12]SCENARIO1!BD20 -> 0 | C17: =[12]SCENARIO1!BE20 -> 0 | D17: =[12]SCENARIO1!BF20 -> 0 | E17: =[12]SCENARIO1!BG20 -> 0 | F17: =[12]SCENARIO1!AB20 -> 0 | G17: =[12]SCENARIO1!AC20 -> 0 | H17: =[12]SCENARIO1!AD20 -> 0 | I17: =[12]SCENARIO1!AE20 -> 0 | J17: 0 | K17: 0 | L17: 0 | M17: 0 | N17: =[12]SCENARIO1!AW20 -> 0 | O17: =[12]SCENARIO1!AY20 -> 0
A18: R4B | B18: =[12]SCENARIO1!BD21 -> 0 | C18: =[12]SCENARIO1!BE21 -> 0 | D18: =[12]SCENARIO1!BF21 -> 0 | E18: =[12]SCENARIO1!BG21 -> 0 | F18: =[12]SCENARIO1!AB21 -> 0 | G18: =[12]SCENARIO1!AC21 -> 0 | H18: =[12]SCENARIO1!AD21 -> 0 | I18: =[12]SCENARIO1!AE21 -> 0 | J18: 0 | K18: 0 | L18: 0 | M18: 0 | N18: =[12]SCENARIO1!AW21 -> 0 | O18: =[12]SCENARIO1!AY21 -> 0
A19: R4C | B19: =[12]SCENARIO1!BD22 -> 0 | C19: =[12]SCENARIO1!BE22 -> 0 | D19: =[12]SCENARIO1!BF22 -> 0 | E19: =[12]SCENARIO1!BG22 -> 0 | F19: =[12]SCENARIO1!AB22 -> 0 | G19: =[12]SCENARIO1!AC22 -> 0 | H19: =[12]SCENARIO1!AD22 -> 0 | I19: =[12]SCENARIO1!AE22 -> 0 | J19: 0 | K19: 0 | L19: 0 | M19: 0 | N19: =[12]SCENARIO1!AW22 -> 0 | O19: =[12]SCENARIO1!AY22 -> 0
A20: RM1A | B20: =[12]SCENARIO1!BD23 -> 545.4548223 | C20: =[12]SCENARIO1!BE23 -> 0 | D20: =[12]SCENARIO1!BF23 -> 495.2779583 | E20: =[12]SCENARIO1!BG23 -> 50.17686396 | F20: =[12]SCENARIO1!AB23 -> 67 | G20: =[12]SCENARIO1!AC23 -> 66 | H20: =[12]SCENARIO1!AD23 -> 0 | I20: =[12]SCENARIO1!AE23 -> 1 | J20: 478.4548223 | K20: -66 | L20: 495.2779583 | M20: 49.17686396 | N20: =[12]SCENARIO1!AW23 -> 13.4298 | O20: =[12]SCENARIO1!AY23 -> 23.169942
A21: RM1B | B21: =[12]SCENARIO1!BD24 -> 0 | C21: =[12]SCENARIO1!BE24 -> 0 | D21: =[12]SCENARIO1!BF24 -> 0 | E21: =[12]SCENARIO1!BG24 -> 0 | F21: =[12]SCENARIO1!AB24 -> 0 | G21: =[12]SCENARIO1!AC24 -> 0 | H21: =[12]SCENARIO1!AD24 -> 0 | I21: =[12]SCENARIO1!AE24 -> 0 | J21: 0 | K21: 0 | L21: 0 | M21: 0 | N21: =[12]SCENARIO1!AW24 -> 0 | O21: =[12]SCENARIO1!AY24 -> 0
A22: RM2A | B22: =[12]SCENARIO1!BD25 -> 1361.536519 | C22: =[12]SCENARIO1!BE25 -> 915.529232 | D22: =[12]SCENARIO1!BF25 -> 446.0072872 | E22: =[12]SCENARIO1!BG25 -> 0 | F22: =[12]SCENARIO1!AB25 -> 577 | G22: =[12]SCENARIO1!AC25 -> 577 | H22: =[12]SCENARIO1!AD25 -> 0 | I22: =[12]SCENARIO1!AE25 -> 0 | J22: 784.5365192 | K22: 338.529232 | L22: 446.0072872 | M22: 0 | N22: =[12]SCENARIO1!AW25 -> 13.464316 | O22: =[12]SCENARIO1!AY25 -> 47.602976
A23: RM2B | B23: =[12]SCENARIO1!BD26 -> 0 | C23: =[12]SCENARIO1!BE26 -> 0 | D23: =[12]SCENARIO1!BF26 -> 0 | E23: =[12]SCENARIO1!BG26 -> 0 | F23: =[12]SCENARIO1!AB26 -> 0 | G23: =[12]SCENARIO1!AC26 -> 0 | H23: =[12]SCENARIO1!AD26 -> 0 | I23: =[12]SCENARIO1!AE26 -> 0 | J23: 0 | K23: 0 | L23: 0 | M23: 0 | N23: =[12]SCENARIO1!AW26 -> 0 | O23: =[12]SCENARIO1!AY26 -> 0
A24: RM3A | B24: =[12]SCENARIO1!BD27 -> 2336.25448 | C24: =[12]SCENARIO1!BE27 -> 2179.298781 | D24: =[12]SCENARIO1!BF27 -> 108.8334917 | E24: =[12]SCENARIO1!BG27 -> 48.12220794 | F24: =[12]SCENARIO1!AB27 -> 0 | G24: =[12]SCENARIO1!AC27 -> 0 | H24: =[12]SCENARIO1!AD27 -> 0 | I24: =[12]SCENARIO1!AE27 -> 0 | J24: 2336.25448 | K24: 2179.298781 | L24: 108.8334917 | M24: 48.12220794 | N24: =[12]SCENARIO1!AW27 -> 83.811198 | O24: =[12]SCENARIO1!AY27 -> 0
A25: RM4A | B25: =[12]SCENARIO1!BD28 -> 0 | C25: =[12]SCENARIO1!BE28 -> 0 | D25: =[12]SCENARIO1!BF28 -> 0 | E25: =[12]SCENARIO1!BG28 -> 0 | F25: =[12]SCENARIO1!AB28 -> 0 | G25: =[12]SCENARIO1!AC28 -> 0 | H25: =[12]SCENARIO1!AD28 -> 0 | I25: =[12]SCENARIO1!AE28 -> 0 | J25: 0 | K25: 0 | L25: 0 | M25: 0 | N25: =[12]SCENARIO1!AW28 -> 0 | O25: =[12]SCENARIO1!AY28 -> 0
A26: RM5A | B26: =[12]SCENARIO1!BD29 -> 0 | C26: =[12]SCENARIO1!BE29 -> 0 | D26: =[12]SCENARIO1!BF29 -> 0 | E26: =[12]SCENARIO1!BG29 -> 0 | F26: =[12]SCENARIO1!AB29 -> 0 | G26: =[12]SCENARIO1!AC29 -> 0 | H26: =[12]SCENARIO1!AD29 -> 0 | I26: =[12]SCENARIO1!AE29 -> 0 | J26: 0 | K26: 0 | L26: 0 | M26: 0 | N26: =[12]SCENARIO1!AW29 -> 0 | O26: =[12]SCENARIO1!AY29 -> 0
A27: MHP | B27: =[12]SCENARIO1!BD30 -> 0 | C27: =[12]SCENARIO1!BE30 -> 0 | D27: =[12]SCENARIO1!BF30 -> 0 | E27: =[12]SCENARIO1!BG30 -> 0 | F27: =[12]SCENARIO1!AB30 -> 0 | G27: =[12]SCENARIO1!AC30 -> 0 | H27: =[12]SCENARIO1!AD30 -> 0 | I27: =[12]SCENARIO1!AE30 -> 0 | J27: 0 | K27: 0 | L27: 0 | M27: 0 | N27: =[12]SCENARIO1!AW30 -> 0 | O27: =[12]SCENARIO1!AY30 -> 0
A28: MU1A | B28: =[12]SCENARIO1!BD31 -> 0 | C28: =[12]SCENARIO1!BE31 -> 0 | D28: =[12]SCENARIO1!BF31 -> 0 | E28: =[12]SCENARIO1!BG31 -> 0 | F28: =[12]SCENARIO1!AB31 -> 0 | G28: =[12]SCENARIO1!AC31 -> 0 | H28: =[12]SCENARIO1!AD31 -> 0 | I28: =[12]SCENARIO1!AE31 -> 0 | J28: 0 | K28: 0 | L28: 0 | M28: 0 | N28: =[12]SCENARIO1!AW31 -> 0 | O28: =[12]SCENARIO1!AY31 -> 0
A29: MU1B | B29: =[12]SCENARIO1!BD32 -> 0 | C29: =[12]SCENARIO1!BE32 -> 0 | D29: =[12]SCENARIO1!BF32 -> 0 | E29: =[12]SCENARIO1!BG32 -> 0 | F29: =[12]SCENARIO1!AB32 -> 0 | G29: =[12]SCENARIO1!AC32 -> 0 | H29: =[12]SCENARIO1!AD32 -> 0 | I29: =[12]SCENARIO1!AE32 -> 0 | J29: 0 | K29: 0 | L29: 0 | M29: 0 | N29: =[12]SCENARIO1!AW32 -> 0 | O29: =[12]SCENARIO1!AY32 -> 0
A30: MU1C | B30: =[12]SCENARIO1!BD33 -> 0 | C30: =[12]SCENARIO1!BE33 -> 0 | D30: =[12]SCENARIO1!BF33 -> 0 | E30: =[12]SCENARIO1!BG33 -> 0 | F30: =[12]SCENARIO1!AB33 -> 0 | G30: =[12]SCENARIO1!AC33 -> 0 | H30: =[12]SCENARIO1!AD33 -> 0 | I30: =[12]SCENARIO1!AE33 -> 0 | J30: 0 | K30: 0 | L30: 0 | M30: 0 | N30: =[12]SCENARIO1!AW33 -> 0 | O30: =[12]SCENARIO1!AY33 -> 0
A31: MU1D | B31: =[12]SCENARIO1!BD34 -> 0 | C31: =[12]SCENARIO1!BE34 -> 0 | D31: =[12]SCENARIO1!BF34 -> 0 | E31: =[12]SCENARIO1!BG34 -> 0 | F31: =[12]SCENARIO1!AB34 -> 0 | G31: =[12]SCENARIO1!AC34 -> 0 | H31: =[12]SCENARIO1!AD34 -> 0 | I31: =[12]SCENARIO1!AE34 -> 0 | J31: 0 | K31: 0 | L31: 0 | M31: 0 | N31: =[12]SCENARIO1!AW34 -> 0 | O31: =[12]SCENARIO1!AY34 -> 0
A32: MU2A | B32: =[12]SCENARIO1!BD35 -> 2099.199578 | C32: =[12]SCENARIO1!BE35 -> 808.7912216 | D32: =[12]SCENARIO1!BF35 -> 1290.408356 | E32: =[12]SCENARIO1!BG35 -> 0 | F32: =[12]SCENARIO1!AB35 -> 196 | G32: =[12]SCENARIO1!AC35 -> 195 | H32: =[12]SCENARIO1!AD35 -> 0 | I32: =[12]SCENARIO1!AE35 -> 1 | J32: 1903.199578 | K32: 613.7912216 | L32: 1290.408356 | M32: -1 | N32: =[12]SCENARIO1!AW35 -> 158.710797 | O32: =[12]SCENARIO1!AY35 -> 54.078631
A33: MU2B | B33: =[12]SCENARIO1!BD36 -> 3985.180392 | C33: =[12]SCENARIO1!BE36 -> 2545.614403 | D33: =[12]SCENARIO1!BF36 -> 1439.565989 | E33: =[12]SCENARIO1!BG36 -> 0 | F33: =[12]SCENARIO1!AB36 -> 6 | G33: =[12]SCENARIO1!AC36 -> 0 | H33: =[12]SCENARIO1!AD36 -> 0 | I33: =[12]SCENARIO1!AE36 -> 6 | J33: 3979.180392 | K33: 2545.614403 | L33: 1439.565989 | M33: -6 | N33: =[12]SCENARIO1!AW36 -> 235.749926 | O33: =[12]SCENARIO1!AY36 -> 4.602748
A34: MU3A | B34: =[12]SCENARIO1!BD37 -> 5618.146281 | C34: =[12]SCENARIO1!BE37 -> 3499.334994 | D34: =[12]SCENARIO1!BF37 -> 2118.811287 | E34: =[12]SCENARIO1!BG37 -> 0 | F34: =[12]SCENARIO1!AB37 -> 0 | G34: =[12]SCENARIO1!AC37 -> 0 | H34: =[12]SCENARIO1!AD37 -> 0 | I34: =[12]SCENARIO1!AE37 -> 0 | J34: 5618.146281 | K34: 3499.334994 | L34: 2118.811287 | M34: 0 | N34: =[12]SCENARIO1!AW37 -> 248.130872 | O34: =[12]SCENARIO1!AY37 -> 83.749837
A35: MU4A | B35: =[12]SCENARIO1!BD38 -> 20.04793041 | C35: =[12]SCENARIO1!BE38 -> 12.48711246 | D35: =[12]SCENARIO1!BF38 -> 7.560817947 | E35: =[12]SCENARIO1!BG38 -> 0 | F35: =[12]SCENARIO1!AB38 -> 0 | G35: =[12]SCENARIO1!AC38 -> 0 | H35: =[12]SCENARIO1!AD38 -> 0 | I35: =[12]SCENARIO1!AE38 -> 0 | J35: =B35-F35 -> 20.04793041 | K35: 12.48711246 | L35: 7.560817947 | M35: 0 | N35: =[12]SCENARIO1!AW38 -> 1.49033 | O35: =[12]SCENARIO1!AY38 -> 0
A36: MU4B | B36: =[12]SCENARIO1!BD39 -> 3228.746889 | C36: =[12]SCENARIO1!BE39 -> 3228.746889 | D36: =[12]SCENARIO1!BF39 -> 0 | E36: =[12]SCENARIO1!BG39 -> 0 | F36: =[12]SCENARIO1!AB39 -> 0 | G36: =[12]SCENARIO1!AC39 -> 0 | H36: =[12]SCENARIO1!AD39 -> 0 | I36: =[12]SCENARIO1!AE39 -> 0 | J36: 3228.746889 | K36: 3228.746889 | L36: 0 | M36: 0 | N36: =[12]SCENARIO1!AW39 -> 163.309312 | O36: =[12]SCENARIO1!AY39 -> 26.624469
A37: MU5A | B37: =[12]SCENARIO1!BD40 -> 0 | C37: =[12]SCENARIO1!BE40 -> 0 | D37: =[12]SCENARIO1!BF40 -> 0 | E37: =[12]SCENARIO1!BG40 -> 0 | F37: =[12]SCENARIO1!AB40 -> 0 | G37: =[12]SCENARIO1!AC40 -> 0 | H37: =[12]SCENARIO1!AD40 -> 0 | I37: =[12]SCENARIO1!AE40 -> 0 | J37: 0 | K37: 0 | L37: 0 | M37: 0 | N37: =[12]SCENARIO1!AW40 -> 0 | O37: =[12]SCENARIO1!AY40 -> 0
A38: MS1A | B38: =[12]SCENARIO1!BD41 -> 0 | C38: =[12]SCENARIO1!BE41 -> 0 | D38: =[12]SCENARIO1!BF41 -> 0 | E38: =[12]SCENARIO1!BG41 -> 0 | F38: =[12]SCENARIO1!AB41 -> 0 | G38: =[12]SCENARIO1!AC41 -> 0 | H38: =[12]SCENARIO1!AD41 -> 0 | I38: =[12]SCENARIO1!AE41 -> 0 | J38: 0 | K38: 0 | L38: 0 | M38: 0 | N38: =[12]SCENARIO1!AW41 -> 0 | O38: =[12]SCENARIO1!AY41 -> 0
A39: MS1B | B39: =[12]SCENARIO1!BD42 -> 0 | C39: =[12]SCENARIO1!BE42 -> 0 | D39: =[12]SCENARIO1!BF42 -> 0 | E39: =[12]SCENARIO1!BG42 -> 0 | F39: =[12]SCENARIO1!AB42 -> 0 | G39: =[12]SCENARIO1!AC42 -> 0 | H39: =[12]SCENARIO1!AD42 -> 0 | I39: =[12]SCENARIO1!AE42 -> 0 | J39: 0 | K39: 0 | L39: 0 | M39: 0 | N39: =[12]SCENARIO1!AW42 -> 0 | O39: =[12]SCENARIO1!AY42 -> 0
A40: MS2A | B40: =[12]SCENARIO1!BD43 -> 0 | C40: =[12]SCENARIO1!BE43 -> 0 | D40: =[12]SCENARIO1!BF43 -> 0 | E40: =[12]SCENARIO1!BG43 -> 0 | F40: =[12]SCENARIO1!AB43 -> 0 | G40: =[12]SCENARIO1!AC43 -> 0 | H40: =[12]SCENARIO1!AD43 -> 0 | I40: =[12]SCENARIO1!AE43 -> 0 | J40: 0 | K40: 0 | L40: 0 | M40: 0 | N40: =[12]SCENARIO1!AW43 -> 0 | O40: =[12]SCENARIO1!AY43 -> 0
A41: MS2B | B41: =[12]SCENARIO1!BD44 -> 0 | C41: =[12]SCENARIO1!BE44 -> 0 | D41: =[12]SCENARIO1!BF44 -> 0 | E41: =[12]SCENARIO1!BG44 -> 0 | F41: =[12]SCENARIO1!AB44 -> 0 | G41: =[12]SCENARIO1!AC44 -> 0 | H41: =[12]SCENARIO1!AD44 -> 0 | I41: =[12]SCENARIO1!AE44 -> 0 | J41: 0 | K41: 0 | L41: 0 | M41: 0 | N41: =[12]SCENARIO1!AW44 -> 0 | O41: =[12]SCENARIO1!AY44 -> 0
A42: MS2C | B42: =[12]SCENARIO1!BD45 -> 0 | C42: =[12]SCENARIO1!BE45 -> 0 | D42: =[12]SCENARIO1!BF45 -> 0 | E42: =[12]SCENARIO1!BG45 -> 0 | F42: =[12]SCENARIO1!AB45 -> 0 | G42: =[12]SCENARIO1!AC45 -> 0 | H42: =[12]SCENARIO1!AD45 -> 0 | I42: =[12]SCENARIO1!AE45 -> 0 | J42: 0 | K42: 0 | L42: 0 | M42: 0 | N42: =[12]SCENARIO1!AW45 -> 0 | O42: =[12]SCENARIO1!AY45 -> 0
A43: MS3A | B43: =[12]SCENARIO1!BD46 -> 0 | C43: =[12]SCENARIO1!BE46 -> 0 | D43: =[12]SCENARIO1!BF46 -> 0 | E43: =[12]SCENARIO1!BG46 -> 0 | F43: =[12]SCENARIO1!AB46 -> 0 | G43: =[12]SCENARIO1!AC46 -> 0 | H43: =[12]SCENARIO1!AD46 -> 0 | I43: =[12]SCENARIO1!AE46 -> 0 | J43: 0 | K43: 0 | L43: 0 | M43: 0 | N43: =[12]SCENARIO1!AW46 -> 0 | O43: =[12]SCENARIO1!AY46 -> 0
A44: MS3B | B44: =[12]SCENARIO1!BD47 -> 0 | C44: =[12]SCENARIO1!BE47 -> 0 | D44: =[12]SCENARIO1!BF47 -> 0 | E44: =[12]SCENARIO1!BG47 -> 0 | F44: =[12]SCENARIO1!AB47 -> 0 | G44: =[12]SCENARIO1!AC47 -> 0 | H44: =[12]SCENARIO1!AD47 -> 0 | I44: =[12]SCENARIO1!AE47 -> 0 | J44: 0 | K44: 0 | L44: 0 | M44: 0 | N44: =[12]SCENARIO1!AW47 -> 0 | O44: =[12]SCENARIO1!AY47 -> 0
A45: UC | B45: =[12]SCENARIO1!BD48 -> 0 | C45: =[12]SCENARIO1!BE48 -> 0 | D45: =[12]SCENARIO1!BF48 -> 0 | E45: =[12]SCENARIO1!BG48 -> 0 | F45: =[12]SCENARIO1!AB48 -> 0 | G45: =[12]SCENARIO1!AC48 -> 0 | H45: =[12]SCENARIO1!AD48 -> 0 | I45: =[12]SCENARIO1!AE48 -> 0 | J45: 0 | K45: 0 | L45: 0 | M45: 0 | N45: =[12]SCENARIO1!AW48 -> 0 | O45: =[12]SCENARIO1!AY48 -> 0
A46: CC40 | B46: =[12]SCENARIO1!BD49 -> 0 | C46: =[12]SCENARIO1!BE49 -> 0 | D46: =[12]SCENARIO1!BF49 -> 0 | E46: =[12]SCENARIO1!BG49 -> 0 | F46: =[12]SCENARIO1!AB49 -> 0 | G46: =[12]SCENARIO1!AC49 -> 0 | H46: =[12]SCENARIO1!AD49 -> 0 | I46: =[12]SCENARIO1!AE49 -> 0 | J46: 0 | K46: 0 | L46: 0 | M46: 0 | N46: =[12]SCENARIO1!AW49 -> 0 | O46: =[12]SCENARIO1!AY49 -> 0
A47: CC60 | B47: =[12]SCENARIO1!BD50 -> 0 | C47: =[12]SCENARIO1!BE50 -> 0 | D47: =[12]SCENARIO1!BF50 -> 0 | E47: =[12]SCENARIO1!BG50 -> 0 | F47: =[12]SCENARIO1!AB50 -> 0 | G47: =[12]SCENARIO1!AC50 -> 0 | H47: =[12]SCENARIO1!AD50 -> 0 | I47: =[12]SCENARIO1!AE50 -> 0 | J47: 0 | K47: 0 | L47: 0 | M47: 0 | N47: =[12]SCENARIO1!AW50 -> 0 | O47: =[12]SCENARIO1!AY50 -> 0
A48: CC80 | B48: =[12]SCENARIO1!BD51 -> 0 | C48: =[12]SCENARIO1!BE51 -> 0 | D48: =[12]SCENARIO1!BF51 -> 0 | E48: =[12]SCENARIO1!BG51 -> 0 | F48: =[12]SCENARIO1!AB51 -> 0 | G48: =[12]SCENARIO1!AC51 -> 0 | H48: =[12]SCENARIO1!AD51 -> 0 | I48: =[12]SCENARIO1!AE51 -> 0 | J48: 0 | K48: 0 | L48: 0 | M48: 0 | N48: =[12]SCENARIO1!AW51 -> 0 | O48: =[12]SCENARIO1!AY51 -> 0
A49: CC120 | B49: =[12]SCENARIO1!BD52 -> 0 | C49: =[12]SCENARIO1!BE52 -> 0 | D49: =[12]SCENARIO1!BF52 -> 0 | E49: =[12]SCENARIO1!BG52 -> 0 | F49: =[12]SCENARIO1!AB52 -> 0 | G49: =[12]SCENARIO1!AC52 -> 0 | H49: =[12]SCENARIO1!AD52 -> 0 | I49: =[12]SCENARIO1!AE52 -> 0 | J49: 0 | K49: 0 | L49: 0 | M49: 0 | N49: =[12]SCENARIO1!AW52 -> 0 | O49: =[12]SCENARIO1!AY52 -> 0
A50: DC | B50: =[12]SCENARIO1!BD53 -> 0 | C50: =[12]SCENARIO1!BE53 -> 0 | D50: =[12]SCENARIO1!BF53 -> 0 | E50: =[12]SCENARIO1!BG53 -> 0 | F50: =[12]SCENARIO1!AB53 -> 0 | G50: =[12]SCENARIO1!AC53 -> 0 | H50: =[12]SCENARIO1!AD53 -> 0 | I50: =[12]SCENARIO1!AE53 -> 0 | J50: 0 | K50: 0 | L50: 0 | M50: 0 | N50: =[12]SCENARIO1!AW53 -> 0 | O50: =[12]SCENARIO1!AY53 -> 0
A51: CR | B51: =[12]SCENARIO1!BD54 -> 0 | C51: =[12]SCENARIO1!BE54 -> 0 | D51: =[12]SCENARIO1!BF54 -> 0 | E51: =[12]SCENARIO1!BG54 -> 0 | F51: =[12]SCENARIO1!AB54 -> 0 | G51: =[12]SCENARIO1!AC54 -> 0 | H51: =[12]SCENARIO1!AD54 -> 0 | I51: =[12]SCENARIO1!AE54 -> 0 | J51: 0 | K51: 0 | L51: 0 | M51: 0 | N51: =[12]SCENARIO1!AW54 -> 0 | O51: =[12]SCENARIO1!AY54 -> 0
A52: CW | B52: =[12]SCENARIO1!BD55 -> 0 | C52: =[12]SCENARIO1!BE55 -> 0 | D52: =[12]SCENARIO1!BF55 -> 0 | E52: =[12]SCENARIO1!BG55 -> 0 | F52: =[12]SCENARIO1!AB55 -> 0 | G52: =[12]SCENARIO1!AC55 -> 0 | H52: =[12]SCENARIO1!AD55 -> 0 | I52: =[12]SCENARIO1!AE55 -> 0 | J52: 0 | K52: 0 | L52: 0 | M52: 0 | N52: =[12]SCENARIO1!AW55 -> 2.403913 | O52: =[12]SCENARIO1!AY55 -> 0
A53: IF | B53: =[12]SCENARIO1!BD56 -> 0 | C53: =[12]SCENARIO1!BE56 -> 0 | D53: =[12]SCENARIO1!BF56 -> 0 | E53: =[12]SCENARIO1!BG56 -> 0 | F53: =[12]SCENARIO1!AB56 -> 0 | G53: =[12]SCENARIO1!AC56 -> 0 | H53: =[12]SCENARIO1!AD56 -> 0 | I53: =[12]SCENARIO1!AE56 -> 0 | J53: 0 | K53: 0 | L53: 0 | M53: 0 | N53: =[12]SCENARIO1!AW56 -> 0 | O53: =[12]SCENARIO1!AY56 -> 0
A54: IG | B54: =[12]SCENARIO1!BD57 -> 0 | C54: =[12]SCENARIO1!BE57 -> 0 | D54: =[12]SCENARIO1!BF57 -> 0 | E54: =[12]SCENARIO1!BG57 -> 0 | F54: =[12]SCENARIO1!AB57 -> 0 | G54: =[12]SCENARIO1!AC57 -> 0 | H54: =[12]SCENARIO1!AD57 -> 0 | I54: =[12]SCENARIO1!AE57 -> 0 | J54: 0 | K54: 0 | L54: 0 | M54: 0 | N54: =[12]SCENARIO1!AW57 -> 0 | O54: =[12]SCENARIO1!AY57 -> 0
A55: IH | B55: =[12]SCENARIO1!BD58 -> 0 | C55: =[12]SCENARIO1!BE58 -> 0 | D55: =[12]SCENARIO1!BF58 -> 0 | E55: =[12]SCENARIO1!BG58 -> 0 | F55: =[12]SCENARIO1!AB58 -> 0 | G55: =[12]SCENARIO1!AC58 -> 0 | H55: =[12]SCENARIO1!AD58 -> 0 | I55: =[12]SCENARIO1!AE58 -> 0 | J55: 0 | K55: 0 | L55: 0 | M55: 0 | N55: =[12]SCENARIO1!AW58 -> 0 | O55: =[12]SCENARIO1!AY58 -> 0
A56: R&D | B56: =[12]SCENARIO1!BD59 -> 0 | C56: =[12]SCENARIO1!BE59 -> 0 | D56: =[12]SCENARIO1!BF59 -> 0 | E56: =[12]SCENARIO1!BG59 -> 0 | F56: =[12]SCENARIO1!AB59 -> 0 | G56: =[12]SCENARIO1!AC59 -> 0 | H56: =[12]SCENARIO1!AD59 -> 0 | I56: =[12]SCENARIO1!AE59 -> 0 | J56: 0 | K56: 0 | L56: 0 | M56: 0 | N56: =[12]SCENARIO1!AW59 -> 0 | O56: =[12]SCENARIO1!AY59 -> 0
A57: P | B57: =[12]SCENARIO1!BD60 -> 0 | C57: =[12]SCENARIO1!BE60 -> 0 | D57: =[12]SCENARIO1!BF60 -> 0 | E57: =[12]SCENARIO1!BG60 -> 0 | F57: =[12]SCENARIO1!AB60 -> 0 | G57: =[12]SCENARIO1!AC60 -> 0 | H57: =[12]SCENARIO1!AD60 -> 0 | I57: =[12]SCENARIO1!AE60 -> 0 | J57: 0 | K57: 0 | L57: 0 | M57: 0 | N57: =[12]SCENARIO1!AW60 -> 45.295549 | O57: =[12]SCENARIO1!AY60 -> 0
A58: PUD | B58: =[12]SCENARIO1!BD61 -> 0 | C58: =[12]SCENARIO1!BE61 -> 0 | D58: =[12]SCENARIO1!BF61 -> 0 | E58: =[12]SCENARIO1!BG61 -> 0 | F58: =[12]SCENARIO1!AB61 -> 250 | G58: =[12]SCENARIO1!AC61 -> 250 | H58: =[12]SCENARIO1!AD61 -> 0 | I58: =[12]SCENARIO1!AE61 -> 0 | J58: -250 | K58: -250 | L58: 0 | M58: 0 | N58: =[12]SCENARIO1!AW61 -> 229.410039 | O58: =[12]SCENARIO1!AY61 -> 22.816125
A59: ERC | B59: =[12]SCENARIO1!BD62 -> 0 | C59: =[12]SCENARIO1!BE62 -> 0 | D59: =[12]SCENARIO1!BF62 -> 0 | E59: =[12]SCENARIO1!BG62 -> 0 | F59: =[12]SCENARIO1!AB62 -> 0 | G59: =[12]SCENARIO1!AC62 -> 0 | H59: =[12]SCENARIO1!AD62 -> 0 | I59: =[12]SCENARIO1!AE62 -> 0 | J59: 0 | K59: 0 | L59: 0 | M59: 0 | N59: =[12]SCENARIO1!AW62 -> 0 | O59: =[12]SCENARIO1!AY62 -> 0
A60: NBG | B60: =[12]SCENARIO1!BD63 -> 0 | C60: =[12]SCENARIO1!BE63 -> 0 | D60: =[12]SCENARIO1!BF63 -> 0 | E60: =[12]SCENARIO1!BG63 -> 0 | F60: =[12]SCENARIO1!AB63 -> 0 | G60: =[12]SCENARIO1!AC63 -> 0 | H60: =[12]SCENARIO1!AD63 -> 0 | I60: =[12]SCENARIO1!AE63 -> 0 | J60: 0 | K60: 0 | L60: 0 | M60: 0 | N60: =[12]SCENARIO1!AW63 -> 0 | O60: =[12]SCENARIO1!AY63 -> 0
A61: UNZ | B61: =[12]SCENARIO1!BD64 -> 0 | C61: =[12]SCENARIO1!BE64 -> 0 | D61: =[12]SCENARIO1!BF64 -> 0 | E61: =[12]SCENARIO1!BG64 -> 0 | F61: =[12]SCENARIO1!AB64 -> 0 | G61: =[12]SCENARIO1!AC64 -> 0 | H61: =[12]SCENARIO1!AD64 -> 0 | I61: =[12]SCENARIO1!AE64 -> 0 | J61: 0 | K61: 0 | L61: 0 | M61: 0 | N61: =[12]SCENARIO1!AW64 -> 0 | O61: =[12]SCENARIO1!AY64 -> 0
A62: TOD | B62: =[12]SCENARIO1!BD65 -> 0 | C62: =[12]SCENARIO1!BE65 -> 0 | D62: =[12]SCENARIO1!BF65 -> 0 | E62: =[12]SCENARIO1!BG65 -> 0 | F62: =[12]SCENARIO1!AB65 -> 0 | G62: =[12]SCENARIO1!AC65 -> 0 | H62: =[12]SCENARIO1!AD65 -> 0 | I62: =[12]SCENARIO1!AE65 -> 0 | J62: 0 | K62: 0 | L62: 0 | M62: 0 | N62: =[12]SCENARIO1!AW65 -> 0 | O62: =[12]SCENARIO1!AY65 -> 0
A63: Whisper Valley PUD | B63: =[12]SCENARIO1!BD66 -> 0 | C63: =[12]SCENARIO1!BE66 -> 0 | D63: =[12]SCENARIO1!BF66 -> 0 | E63: =[12]SCENARIO1!BG66 -> 0 | F63: =[12]SCENARIO1!AB66 -> 0 | G63: =[12]SCENARIO1!AC66 -> 0 | H63: =[12]SCENARIO1!AD66 -> 0 | I63: =[12]SCENARIO1!AE66 -> 0 | J63: 0 | K63: 0 | L63: 0 | M63: 0 | N63: =[12]SCENARIO1!AW66 -> 0 | O63: =[12]SCENARIO1!AY66 -> 0
A64: Wildhorse Ranch PUD | B64: =[12]SCENARIO1!BD67 -> 0 | C64: =[12]SCENARIO1!BE67 -> 0 | D64: =[12]SCENARIO1!BF67 -> 0 | E64: =[12]SCENARIO1!BG67 -> 0 | F64: =[12]SCENARIO1!AB67 -> 0 | G64: =[12]SCENARIO1!AC67 -> 0 | H64: =[12]SCENARIO1!AD67 -> 0 | I64: =[12]SCENARIO1!AE67 -> 0 | J64: 0 | K64: 0 | L64: 0 | M64: 0 | N64: =[12]SCENARIO1!AW67 -> 0 | O64: =[12]SCENARIO1!AY67 -> 0
A65: Waters Edge PUD | B65: =[12]SCENARIO1!BD68 -> 0 | C65: =[12]SCENARIO1!BE68 -> 0 | D65: =[12]SCENARIO1!BF68 -> 0 | E65: =[12]SCENARIO1!BG68 -> 0 | F65: =[12]SCENARIO1!AB68 -> 0 | G65: =[12]SCENARIO1!AC68 -> 0 | H65: =[12]SCENARIO1!AD68 -> 0 | I65: =[12]SCENARIO1!AE68 -> 0 | J65: 0 | K65: 0 | L65: 0 | M65: 0 | N65: =[12]SCENARIO1!AW68 -> 0 | O65: =[12]SCENARIO1!AY68 -> 0
A66: Goodnight Ranch PUD | B66: =[12]SCENARIO1!BD69 -> 0 | C66: =[12]SCENARIO1!BE69 -> 0 | D66: =[12]SCENARIO1!BF69 -> 0 | E66: =[12]SCENARIO1!BG69 -> 0 | F66: =[12]SCENARIO1!AB69 -> 0 | G66: =[12]SCENARIO1!AC69 -> 0 | H66: =[12]SCENARIO1!AD69 -> 0 | I66: =[12]SCENARIO1!AE69 -> 0 | J66: 0 | K66: 0 | L66: 0 | M66: 0 | N66: =[12]SCENARIO1!AW69 -> 0 | O66: =[12]SCENARIO1!AY69 -> 0
A67: UNO | B67: =[12]SCENARIO1!BD70 -> 0 | C67: =[12]SCENARIO1!BE70 -> 0 | D67: =[12]SCENARIO1!BF70 -> 0 | E67: =[12]SCENARIO1!BG70 -> 0 | F67: =[12]SCENARIO1!AB70 -> 0 | G67: =[12]SCENARIO1!AC70 -> 0 | H67: =[12]SCENARIO1!AD70 -> 0 | I67: =[12]SCENARIO1!AE70 -> 0 | J67: =B67-F67 -> 0 | K67: 0 | L67: 0 | M67: 0 | N67: =[12]SCENARIO1!AW70 -> 0 | O67: =[12]SCENARIO1!AY70 -> 0
A68: Estancia PUD | B68: =[12]SCENARIO1!BD71 -> 0 | C68: =[12]SCENARIO1!BE71 -> 0 | D68: =[12]SCENARIO1!BF71 -> 0 | E68: =[12]SCENARIO1!BG71 -> 0 | F68: =[12]SCENARIO1!AB71 -> 0 | G68: =[12]SCENARIO1!AC71 -> 0 | H68: =[12]SCENARIO1!AD71 -> 0 | I68: =[12]SCENARIO1!AE71 -> 0 | J68: 0 | K68: 0 | L68: 0 | M68: 0 | N68: =[12]SCENARIO1!AW71 -> 0 | O68: =[12]SCENARIO1!AY71 -> 0
A69: TOD - Medium Density Residential (TODMDR) | B69: =[12]SCENARIO1!BD72 -> 0 | C69: =[12]SCENARIO1!BE72 -> 0 | D69: =[12]SCENARIO1!BF72 -> 0 | E69: =[12]SCENARIO1!BG72 -> 0 | F69: =[12]SCENARIO1!AB72 -> 0 | G69: =[12]SCENARIO1!AC72 -> 0 | H69: =[12]SCENARIO1!AD72 -> 0 | I69: =[12]SCENARIO1!AE72 -> 0 | J69: 0 | K69: 0 | L69: 0 | M69: 0 | N69: =[12]SCENARIO1!AW72 -> 0 | O69: =[12]SCENARIO1!AY72 -> 0
A70: TOD – Low Density Residential (TODLDR) | B70: =[12]SCENARIO1!BD73 -> 0 | C70: =[12]SCENARIO1!BE73 -> 0 | D70: =[12]SCENARIO1!BF73 -> 0 | E70: =[12]SCENARIO1!BG73 -> 0 | F70: =[12]SCENARIO1!AB73 -> 0 | G70: =[12]SCENARIO1!AC73 -> 0 | H70: =[12]SCENARIO1!AD73 -> 0 | I70: =[12]SCENARIO1!AE73 -> 0 | J70: 0 | K70: 0 | L70: 0 | M70: 0 | N70: =[12]SCENARIO1!AW73 -> 0 | O70: =[12]SCENARIO1!AY73 -> 0
A71: TOD – TOD Mixed Use | B71: =[12]SCENARIO1!BD74 -> 0 | C71: =[12]SCENARIO1!BE74 -> 0 | D71: =[12]SCENARIO1!BF74 -> 0 | E71: =[12]SCENARIO1!BG74 -> 0 | F71: =[12]SCENARIO1!AB74 -> 0 | G71: =[12]SCENARIO1!AC74 -> 0 | H71: =[12]SCENARIO1!AD74 -> 0 | I71: =[12]SCENARIO1!AE74 -> 0 | J71: 0 | K71: 0 | L71: 0 | M71: 0 | N71: =[12]SCENARIO1!AW74 -> 0 | O71: =[12]SCENARIO1!AY74 -> 0
A72: TOD – Corridor Mixed Use (TODCMU) | B72: =[12]SCENARIO1!BD75 -> 0 | C72: =[12]SCENARIO1!BE75 -> 0 | D72: =[12]SCENARIO1!BF75 -> 0 | E72: =[12]SCENARIO1!BG75 -> 0 | F72: =[12]SCENARIO1!AB75 -> 0 | G72: =[12]SCENARIO1!AC75 -> 0 | H72: =[12]SCENARIO1!AD75 -> 0 | I72: =[12]SCENARIO1!AE75 -> 0 | J72: 0 | K72: 0 | L72: 0 | M72: 0 | N72: =[12]SCENARIO1!AW75 -> 0 | O72: =[12]SCENARIO1!AY75 -> 0
A73: South Shore PUD | B73: =[12]SCENARIO1!BD76 -> 0 | C73: =[12]SCENARIO1!BE76 -> 0 | D73: =[12]SCENARIO1!BF76 -> 0 | E73: =[12]SCENARIO1!BG76 -> 0 | F73: =[12]SCENARIO1!AB76 -> 0 | G73: =[12]SCENARIO1!AC76 -> 0 | H73: =[12]SCENARIO1!AD76 -> 0 | I73: =[12]SCENARIO1!AE76 -> 0 | J73: 0 | K73: 0 | L73: 0 | M73: 0 | N73: =[12]SCENARIO1!AW76 -> 0 | O73: =[12]SCENARIO1!AY76 -> 0
A74: Total | B74: =SUM(B3:B73) -> 20579.2077 | C74: =SUM(C3:C73) -> 13189.80263 | D74: 5938.938667 | E74: =SUM(E3:E73) -> 1450.466397 | F74: =SUM(F3:F73) -> 1098 | G74: =SUM(G3:G73) -> 1088 | H74: 0 | I74: =SUM(I3:I73) -> 10 | J74: =SUM(J3:J73) -> 19481.2077 | K74: =SUM(K3:K73) -> 12101.80263 | L74: =SUM(L3:L73) -> 5938.938667 | M74: 1440.466397 | N74: =SUM(N3:N73) -> 2357.594836 | O74: 264.245914

Sheet Draft 2 CD 9
B1: New | F1: Units assumed to redevelop | J1: Net Growth | N1: Acres
A2: CodeNEXT2 | B2: Units | C2: Multifamily | D2: Townhome | E2: Single Family | F2: Units | G2: Multifamily | H2: Townhome | I2: Single Family | J2: Units | K2: Multifamily | L2: Townhome | M2: Single Family | N2: Vacant Developed | O2: Developed Redeveloped
A3: Rural Residential | B3: =[2]SCENARIO1!BD6 -> 0 | C3: =[2]SCENARIO1!BE6 -> 0 | D3: =[2]SCENARIO1!BF6 -> 0 | E3: =[2]SCENARIO1!BG6 -> 0 | F3: =[2]SCENARIO1!AB6 -> 0 | G3: =[2]SCENARIO1!AC6 -> 0 | H3: =[2]SCENARIO1!AD6 -> 0 | I3: =[2]SCENARIO1!AE6 -> 0 | J3: =B3-F3 -> 0 | K3: 0 | L3: 0 | M3: 0 | N3: =[12]SCENARIO1!AW6 -> 903.15656 | O3: =[2]SCENARIO1!AY6 -> 0
A4: Lake Austin | B4: =[2]SCENARIO1!BD7 -> 0.4941760303 | C4: =[2]SCENARIO1!BE7 -> 0 | D4: =[2]SCENARIO1!BF7 -> 0.06055248221 | E4: =[2]SCENARIO1!BG7 -> 0.433623548 | F4: =[2]SCENARIO1!AB7 -> 0 | G4: =[2]SCENARIO1!AC7 -> 0 | H4: =[2]SCENARIO1!AD7 -> 0 | I4: =[2]SCENARIO1!AE7 -> 0 | J4: 0.4941760303 | K4: 0 | L4: 0.06055248221 | M4: 0.433623548 | N4: =[12]SCENARIO1!AW7 -> 0 | O4: =[2]SCENARIO1!AY7 -> 0
A5: R1A | B5: =[2]SCENARIO1!BD8 -> 0 | C5: =[2]SCENARIO1!BE8 -> 0 | D5: =[2]SCENARIO1!BF8 -> 0 | E5: =[2]SCENARIO1!BG8 -> 0 | F5: =[2]SCENARIO1!AB8 -> 0 | G5: =[2]SCENARIO1!AC8 -> 0 | H5: =[2]SCENARIO1!AD8 -> 0 | I5: =[2]SCENARIO1!AE8 -> 0 | J5: 0 | K5: 0 | L5: 0 | M5: 0 | N5: =[12]SCENARIO1!AW8 -> 44.48628 | O5: =[2]SCENARIO1!AY8 -> 0
A6: R1B | B6: =[2]SCENARIO1!BD9 -> 0 | C6: =[2]SCENARIO1!BE9 -> 0 | D6: =[2]SCENARIO1!BF9 -> 0 | E6: =[2]SCENARIO1!BG9 -> 0 | F6: =[2]SCENARIO1!AB9 -> 0 | G6: =[2]SCENARIO1!AC9 -> 0 | H6: =[2]SCENARIO1!AD9 -> 0 | I6: =[2]SCENARIO1!AE9 -> 0 | J6: 0 | K6: 0 | L6: 0 | M6: 0 | N6: =[2]SCENARIO1!AW6 -> 0 | O6: =[2]SCENARIO1!AY9 -> 0
A7: R1C | B7: =[2]SCENARIO1!BD10 -> 0 | C7: =[2]SCENARIO1!BE10 -> 0 | D7: =[2]SCENARIO1!BF10 -> 0 | E7: =[2]SCENARIO1!BG10 -> 0 | F7: =[2]SCENARIO1!AB10 -> 0 | G7: =[2]SCENARIO1!AC10 -> 0 | H7: =[2]SCENARIO1!AD10 -> 0 | I7: =[2]SCENARIO1!AE10 -> 0 | J7: 0 | K7: 0 | L7: 0 | M7: 0 | N7: =[2]SCENARIO1!AW7 -> 0.405486 | O7: =[2]SCENARIO1!AY10 -> 0
A8: R2A | B8: =[2]SCENARIO1!BD11 -> 0 | C8: =[2]SCENARIO1!BE11 -> 0 | D8: =[2]SCENARIO1!BF11 -> 0 | E8: =[2]SCENARIO1!BG11 -> 0 | F8: =[2]SCENARIO1!AB11 -> 0 | G8: =[2]SCENARIO1!AC11 -> 0 | H8: =[2]SCENARIO1!AD11 -> 0 | I8: =[2]SCENARIO1!AE11 -> 0 | J8: 0 | K8: 0 | L8: 0 | M8: 0 | N8: =[2]SCENARIO1!AW8 -> 0 | O8: =[2]SCENARIO1!AY11 -> 0
A9: R2B | B9: =[2]SCENARIO1!BD12 -> 0 | C9: =[2]SCENARIO1!BE12 -> 0 | D9: =[2]SCENARIO1!BF12 -> 0 | E9: =[2]SCENARIO1!BG12 -> 0 | F9: =[2]SCENARIO1!AB12 -> 0 | G9: =[2]SCENARIO1!AC12 -> 0 | H9: =[2]SCENARIO1!AD12 -> 0 | I9: =[2]SCENARIO1!AE12 -> 0 | J9: 0 | K9: 0 | L9: 0 | M9: 0 | N9: =[2]SCENARIO1!AW9 -> 0 | O9: =[2]SCENARIO1!AY12 -> 0
A10: R2C | B10: =[2]SCENARIO1!BD13 -> 20.33017516 | C10: =[2]SCENARIO1!BE13 -> 0 | D10: =[2]SCENARIO1!BF13 -> 4.21415006 | E10: =[2]SCENARIO1!BG13 -> 16.1160251 | F10: =[2]SCENARIO1!AB13 -> 5 | G10: =[2]SCENARIO1!AC13 -> 0 | H10: =[2]SCENARIO1!AD13 -> 4 | I10: =[2]SCENARIO1!AE13 -> 1 | J10: 15.33017516 | K10: 0 | L10: 0.21415006 | M10: 15.1160251 | N10: =[2]SCENARIO1!AW10 -> 0 | O10: =[2]SCENARIO1!AY13 -> 0.8922
A11: R2D | B11: =[2]SCENARIO1!BD14 -> 0 | C11: =[2]SCENARIO1!BE14 -> 0 | D11: =[2]SCENARIO1!BF14 -> 0 | E11: =[2]SCENARIO1!BG14 -> 0 | F11: =[2]SCENARIO1!AB14 -> 0 | G11: =[2]SCENARIO1!AC14 -> 0 | H11: =[2]SCENARIO1!AD14 -> 0 | I11: =[2]SCENARIO1!AE14 -> 0 | J11: 0 | K11: 0 | L11: 0 | M11: 0 | N11: =[2]SCENARIO1!AW11 -> 0 | O11: =[2]SCENARIO1!AY14 -> 0
A12: R2E | B12: =[2]SCENARIO1!BD15 -> 2.089368275 | C12: =[2]SCENARIO1!BE15 -> 0 | D12: =[2]SCENARIO1!BF15 -> 0 | E12: =[2]SCENARIO1!BG15 -> 2.089368275 | F12: =[2]SCENARIO1!AB15 -> 0 | G12: =[2]SCENARIO1!AC15 -> 0 | H12: =[2]SCENARIO1!AD15 -> 0 | I12: =[2]SCENARIO1!AE15 -> 0 | J12: 2.089368275 | K12: 0 | L12: 0 | M12: 2.089368275 | N12: =[2]SCENARIO1!AW12 -> 0 | O12: =[2]SCENARIO1!AY15 -> 0
A13: R3A | B13: =[2]SCENARIO1!BD16 -> 0 | C13: =[2]SCENARIO1!BE16 -> 0 | D13: =[2]SCENARIO1!BF16 -> 0 | E13: =[2]SCENARIO1!BG16 -> 0 | F13: =[2]SCENARIO1!AB16 -> 0 | G13: =[2]SCENARIO1!AC16 -> 0 | H13: =[2]SCENARIO1!AD16 -> 0 | I13: =[2]SCENARIO1!AE16 -> 0 | J13: 0 | K13: 0 | L13: 0 | M13: 0 | N13: =[2]SCENARIO1!AW13 -> 3.828798 | O13: =[2]SCENARIO1!AY16 -> 0
A14: R3B | B14: =[2]SCENARIO1!BD17 -> 0 | C14: =[2]SCENARIO1!BE17 -> 0 | D14: =[2]SCENARIO1!BF17 -> 0 | E14: =[2]SCENARIO1!BG17 -> 0 | F14: =[2]SCENARIO1!AB17 -> 0 | G14: =[2]SCENARIO1!AC17 -> 0 | H14: =[2]SCENARIO1!AD17 -> 0 | I14: =[2]SCENARIO1!AE17 -> 0 | J14: 0 | K14: 0 | L14: 0 | M14: 0 | N14: =[2]SCENARIO1!AW14 -> 0 | O14: =[2]SCENARIO1!AY17 -> 0
A15: R3C | B15: =[2]SCENARIO1!BD18 -> 579.774759 | C15: =[2]SCENARIO1!BE18 -> 0 | D15: =[2]SCENARIO1!BF18 -> 329.4176644 | E15: =[2]SCENARIO1!BG18 -> 250.3570947 | F15: =[2]SCENARIO1!AB18 -> 253 | G15: =[2]SCENARIO1!AC18 -> 64 | H15: =[2]SCENARIO1!AD18 -> 80 | I15: =[2]SCENARIO1!AE18 -> 109 | J15: 326.774759 | K15: -64 | L15: 249.4176644 | M15: 141.3570947 | N15: =[2]SCENARIO1!AW15 -> 0.293487 | O15: =[2]SCENARIO1!AY18 -> 46.227191
A16: R3D | B16: =[2]SCENARIO1!BD19 -> 0 | C16: =[2]SCENARIO1!BE19 -> 0 | D16: =[2]SCENARIO1!BF19 -> 0 | E16: =[2]SCENARIO1!BG19 -> 0 | F16: =[2]SCENARIO1!AB19 -> 0 | G16: =[2]SCENARIO1!AC19 -> 0 | H16: =[2]SCENARIO1!AD19 -> 0 | I16: =[2]SCENARIO1!AE19 -> 0 | J16: 0 | K16: 0 | L16: 0 | M16: 0 | N16: =[2]SCENARIO1!AW16 -> 0 | O16: =[2]SCENARIO1!AY19 -> 0
A17: R4A | B17: =[2]SCENARIO1!BD20 -> 322.7835849 | C17: =[2]SCENARIO1!BE20 -> 201.7397406 | D17: =[2]SCENARIO1!BF20 -> 80.69589623 | E17: =[2]SCENARIO1!BG20 -> 40.34794812 | F17: =[2]SCENARIO1!AB20 -> 299 | G17: =[2]SCENARIO1!AC20 -> 197 | H17: =[2]SCENARIO1!AD20 -> 77 | I17: =[2]SCENARIO1!AE20 -> 25 | J17: 23.78358492 | K17: 4.739740575 | L17: 3.69589623 | M17: 15.34794812 | N17: =[2]SCENARIO1!AW17 -> 0 | O17: =[2]SCENARIO1!AY20 -> 22.829516
A18: R4B | B18: =[2]SCENARIO1!BD21 -> 46.49335631 | C18: =[2]SCENARIO1!BE21 -> 24.73051046 | D18: =[2]SCENARIO1!BF21 -> 12.36525523 | E18: =[2]SCENARIO1!BG21 -> 9.397590612 | F18: =[2]SCENARIO1!AB21 -> 15 | G18: =[2]SCENARIO1!AC21 -> 10 | H18: =[2]SCENARIO1!AD21 -> 0 | I18: =[2]SCENARIO1!AE21 -> 5 | J18: 31.49335631 | K18: 14.73051046 | L18: 12.36525523 | M18: 4.397590612 | N18: =[2]SCENARIO1!AW18 -> 12.992387 | O18: =[2]SCENARIO1!AY21 -> 2.36556
A19: R4C | B19: =[2]SCENARIO1!BD22 -> 0 | C19: =[2]SCENARIO1!BE22 -> 0 | D19: =[2]SCENARIO1!BF22 -> 0 | E19: =[2]SCENARIO1!BG22 -> 0 | F19: =[2]SCENARIO1!AB22 -> 0 | G19: =[2]SCENARIO1!AC22 -> 0 | H19: =[2]SCENARIO1!AD22 -> 0 | I19: =[2]SCENARIO1!AE22 -> 0 | J19: 0 | K19: 0 | L19: 0 | M19: 0 | N19: =[2]SCENARIO1!AW19 -> 0 | O19: =[2]SCENARIO1!AY22 -> 0
A20: RM1A | B20: =[2]SCENARIO1!BD23 -> 59.61524084 | C20: =[2]SCENARIO1!BE23 -> 0 | D20: =[2]SCENARIO1!BF23 -> 54.13118293 | E20: =[2]SCENARIO1!BG23 -> 5.484057905 | F20: =[2]SCENARIO1!AB23 -> 44 | G20: =[2]SCENARIO1!AC23 -> 0 | H20: =[2]SCENARIO1!AD23 -> 44 | I20: =[2]SCENARIO1!AE23 -> 0 | J20: 15.61524084 | K20: 0 | L20: 10.13118293 | M20: 5.484057905 | N20: =[2]SCENARIO1!AW20 -> 0.388238 | O20: =[2]SCENARIO1!AY23 -> 3.580836
